Workbook

Sheet DatosGx
B1: : evento modificado o incorporado manualmente
B2: : evento sin cierre
B3: Cerradas al 01-08-2017, dado que se cambia a estados operativos.
B4: AÑO | C4: CLAVE | D4: INFORME | E4: CENTRAL | F4: UNIDAD | G4: ORIGEN | H4: TIPO | I4: Fecha Inicio | J4: Fecha Fin | K4: Potencia Disponible | L4: Potencia Máxima | N4: Htot | O4: Hpro | P4: Hfor | Q4: Ffor | R4: Hpro límite | S4: Hfor límite | T4: Comentario | U4: Causa Presunta | V4: Causa Definitiva | W4: flag | Y4: DP
B5: =YEAR(I5) -> 2007 | C5: =E5&F5 -> NUEVA ALDEA IINUEVA ALDEA II TG4 | D5: IF - NM2785 | E5: NUEVA ALDEA II | F5: NUEVA ALDEA II TG4 | G5: I | H5: F | I5: 2007-12-23T21:10:00 | J5: 2017-08-01 | K5: 0 | L5: 11 | M5: =(L5-K5)/L5*((J5-I5)-(R5/24)-(S5/24))*24*IF(G5="I",1,0)*W5 -> 15336 | N5: =(L5-K5)/L5*((J5-I5)-(R5/24)-(S5/24))*24*IF(G5="I",1,0)*IF(OR(J5<=Cálculo!$C$3,I5>=Cálculo!$D$3),0,1)*W5 -> 15336 | O5: =IF(H5="P",$N5,0) -> 0 | P5: =IF(OR(H5="F",H5="N"),$N5,0) -> 15336 | Q5: =IF(LEFT(D5,2)="IF",1,0)*IF(G5="I",1,0)*IF(OR(J5<=Cálculo!$C$3,I5>=Cálculo!$D$3),0,1)*W5 -> 1 | R5: =IF(J5<Cálculo!$D$3,0,(J5-Cálculo!$D$3))*24*IF(OR(J5<=Cálculo!$C$3,I5>=Cálculo!$D$3),0,1) -> 0 | S5: =IF(I5>Cálculo!$C$3,0,Cálculo!$C$3-I5)*24*IF(OR(J5<=Cálculo!$C$3,I5>=Cálculo!$D$3),0,1) -> 68858.83333 | W5: TRUE | X5: =IF(L5<K5,1,0) -> 0 | Y5: =IF(LEFT(D5,2)="SD",1,0)*IF(G5="I",1,0)*IF(H5="P",1,0)*IF(OR(J5<=Cálculo!$C$3,I5>=Cálculo!$D$3),0,1)*W5 -> 0
B6: 2011 | C6: PLACILLAPLACILLA 3 | D6: IF00705/2011 | E6: PLACILLA | F6: PLACILLA 3 | G6: I | H6: F | I6: 2011-03-13T03:32:00 | J6: 2017-08-01 | K6: 0 | L6: 0.6 | M6: 15336 | N6: =(L6-K6)/L6*((J6-I6)-(R6/24)-(S6/24))*24*IF(G6="I",1,0)*IF(OR(J6<=Cálculo!$C$3,I6>=Cálculo!$D$3),0,1)*W6 -> 15336 | O6: 0 | P6: 15336 | Q6: =IF(LEFT(D6,2)="IF",1,0)*IF(G6="I",1,0)*IF(OR(J6<=Cálculo!$C$3,I6>=Cálculo!$D$3),0,1)*W6 -> 1 | R6: =IF(J6<Cálculo!$D$3,0,(J6-Cálculo!$D$3))*24*IF(OR(J6<=Cálculo!$C$3,I6>=Cálculo!$D$3),0,1) -> 0 | S6: =IF(I6>Cálculo!$C$3,0,Cálculo!$C$3-I6)*24*IF(OR(J6<=Cálculo!$C$3,I6>=Cálculo!$D$3),0,1) -> 40652.46667 | T6: 13/03/2011 07:19 ~ ~ L.Muñoz T. | W6: TRUE | X6: 0 | Y6: =IF(LEFT(D6,2)="SD",1,0)*IF(G6="I",1,0)*IF(H6="P",1,0)*IF(OR(J6<=Cálculo!$C$3,I6>=Cálculo!$D$3),0,1)*W6 -> 0
B7: 2013 | C7: LAGUNA VERDE TGLAGUNA VERDE TG | D7: IF00132/2013 | E7: LAGUNA VERDE TG | F7: LAGUNA VERDE TG | G7: I | H7: F | I7: 2013-01-11T10:52:00 | J7: 2017-08-01 | K7: 0 | L7: 18.75 | M7: 15336 | N7: =(L7-K7)/L7*((J7-I7)-(R7/24)-(S7/24))*24*IF(G7="I",1,0)*IF(OR(J7<=Cálculo!$C$3,I7>=Cálculo!$D$3),0,1)*W7 -> 15336 | O7: 0 | P7: 15336 | Q7: =IF(LEFT(D7,2)="IF",1,0)*IF(G7="I",1,0)*IF(OR(J7<=Cálculo!$C$3,I7>=Cálculo!$D$3),0,1)*W7 -> 1 | R7: =IF(J7<Cálculo!$D$3,0,(J7-Cálculo!$D$3))*24*IF(OR(J7<=Cálculo!$C$3,I7>=Cálculo!$D$3),0,1) -> 0 | S7: =IF(I7>Cálculo!$C$3,0,Cálculo!$C$3-I7)*24*IF(OR(J7<=Cálculo!$C$3,I7>=Cálculo!$D$3),0,1) -> 24565.13333 | T7: 11/01/2013 11:05 ~ Falla en la partida, causa en investigación ~ Felipe Mendoza Leyton | W7: TRUE | X7: 0 | Y7: =IF(LEFT(D7,2)="SD",1,0)*IF(G7="I",1,0)*IF(H7="P",1,0)*IF(OR(J7<=Cálculo!$C$3,I7>=Cálculo!$D$3),0,1)*W7 -> 0
B8: 2013 | C8: CENIZASCENIZAS 1 | D8: IF01682/2013 | E8: CENIZAS | F8: CENIZAS 1 | G8: I | H8: F | I8: 2013-08-02T14:29:00 | J8: 2017-08-01 | K8: 0 | L8: 5.43 | M8: 15336 | N8: =(L8-K8)/L8*((J8-I8)-(R8/24)-(S8/24))*24*IF(G8="I",1,0)*IF(OR(J8<=Cálculo!$C$3,I8>=Cálculo!$D$3),0,1)*W8 -> 15336 | O8: 0 | P8: 15336 | Q8: =IF(LEFT(D8,2)="IF",1,0)*IF(G8="I",1,0)*IF(OR(J8<=Cálculo!$C$3,I8>=Cálculo!$D$3),0,1)*W8 -> 1 | R8: =IF(J8<Cálculo!$D$3,0,(J8-Cálculo!$D$3))*24*IF(OR(J8<=Cálculo!$C$3,I8>=Cálculo!$D$3),0,1) -> 0 | S8: =IF(I8>Cálculo!$C$3,0,Cálculo!$C$3-I8)*24*IF(OR(J8<=Cálculo!$C$3,I8>=Cálculo!$D$3),0,1) -> 19689.51667 | T8: Incendio en sala de maquinas | W8: TRUE | X8: 0 | Y8: =IF(LEFT(D8,2)="SD",1,0)*IF(G8="I",1,0)*IF(H8="P",1,0)*IF(OR(J8<=Cálculo!$C$3,I8>=Cálculo!$D$3),0,1)*W8 -> 0
B9: 2013 | C9: CENIZASCENIZAS 3 | D9: IF01682/2013 | E9: CENIZAS | F9: CENIZAS 3 | G9: I | H9: F | I9: 2013-08-02T14:29:00 | J9: 2017-08-01 | K9: 0 | L9: 5.43 | M9: 15336 | N9: =(L9-K9)/L9*((J9-I9)-(R9/24)-(S9/24))*24*IF(G9="I",1,0)*IF(OR(J9<=Cálculo!$C$3,I9>=Cálculo!$D$3),0,1)*W9 -> 15336 | O9: 0 | P9: 15336 | Q9: =IF(LEFT(D9,2)="IF",1,0)*IF(G9="I",1,0)*IF(OR(J9<=Cálculo!$C$3,I9>=Cálculo!$D$3),0,1)*W9 -> 1 | R9: =IF(J9<Cálculo!$D$3,0,(J9-Cálculo!$D$3))*24*IF(OR(J9<=Cálculo!$C$3,I9>=Cálculo!$D$3),0,1) -> 0 | S9: =IF(I9>Cálculo!$C$3,0,Cálculo!$C$3-I9)*24*IF(OR(J9<=Cálculo!$C$3,I9>=Cálculo!$D$3),0,1) -> 19689.51667 | T9: Incendio en sala de maquinas | W9: TRUE | X9: 0 | Y9: =IF(LEFT(D9,2)="SD",1,0)*IF(G9="I",1,0)*IF(H9="P",1,0)*IF(OR(J9<=Cálculo!$C$3,I9>=Cálculo!$D$3),0,1)*W9 -> 0
B10: 2013 | C10: CENIZASCENIZAS 2 | D10: IF01682/2013 | E10: CENIZAS | F10: CENIZAS 2 | G10: I | H10: F | I10: 2013-08-02T14:29:00 | J10: 2017-02-03T15:22:00 | K10: 0 | L10: 5.43 | M10: 11055.36667 | N10: =(L10-K10)/L10*((J10-I10)-(R10/24)-(S10/24))*24*IF(G10="I",1,0)*IF(OR(J10<=Cálculo!$C$3,I10>=Cálculo!$D$3),0,1)*W10 -> 11055.36667 | O10: 0 | P10: 11055.36667 | Q10: =IF(LEFT(D10,2)="IF",1,0)*IF(G10="I",1,0)*IF(OR(J10<=Cálculo!$C$3,I10>=Cálculo!$D$3),0,1)*W10 -> 1 | R10: =IF(J10<Cálculo!$D$3,0,(J10-Cálculo!$D$3))*24*IF(OR(J10<=Cálculo!$C$3,I10>=Cálculo!$D$3),0,1) -> 0 | S10: =IF(I10>Cálculo!$C$3,0,Cálculo!$C$3-I10)*24*IF(OR(J10<=Cálculo!$C$3,I10>=Cálculo!$D$3),0,1) -> 19689.51667 | T10: Incendio en sala de maquinas | W10: TRUE | X10: 0 | Y10: =IF(LEFT(D10,2)="SD",1,0)*IF(G10="I",1,0)*IF(H10="P",1,0)*IF(OR(J10<=Cálculo!$C$3,I10>=Cálculo!$D$3),0,1)*W10 -> 0
B11: 2013 | C11: CONSTITUCION 1Central | D11: SD39135/2013 | E11: CONSTITUCION 1 | F11: Central | G11: I | H11: P | I11: 2013-12-19T08:35:00 | J11: 2014-01-02T00:32:00 | K11: 7.5 | L11: 9 | M11: 54.65833333 | N11: =(L11-K11)/L11*((J11-I11)-(R11/24)-(S11/24))*24*IF(G11="I",1,0)*IF(OR(J11<=Cálculo!$C$3,I11>=Cálculo!$D$3),0,1)*W11 -> 0 | O11: 0 | P11: 0 | Q11: =IF(LEFT(D11,2)="IF",1,0)*IF(G11="I",1,0)*IF(OR(J11<=Cálculo!$C$3,I11>=Cálculo!$D$3),0,1)*W11 -> 0 | R11: =IF(J11<Cálculo!$D$3,0,(J11-Cálculo!$D$3))*24*IF(OR(J11<=Cálculo!$C$3,I11>=Cálculo!$D$3),0,1) -> 0 | S11: =IF(I11>Cálculo!$C$3,0,Cálculo!$C$3-I11)*24*IF(OR(J11<=Cálculo!$C$3,I11>=Cálculo!$D$3),0,1) -> 0 | T11: Ejecución de mantenimiento mayor programado de unidad U5, referente a la respuesta de la carta D.O Nº1109/2012 de fecha 17 de octubre 2012 - Mantenimiento Mayor de las instalaciones del SIC periodo 2013-2014. | W11: TRUE | X11: 0 | Y11: =IF(LEFT(D11,2)="SD",1,0)*IF(G11="I",1,0)*IF(H11="P",1,0)*IF(OR(J11<=Cálculo!$C$3,I11>=Cálculo!$D$3),0,1)*W11 -> 0
B12: =YEAR(I12) -> 2013 | C12: =E12&F12 -> PEHUENCHEPEHUENCHE 1 | D12: SD40310/2013 | E12: PEHUENCHE | F12: PEHUENCHE 1 | G12: I | H12: F | I12: 2013-12-29T20:00:00 | J12: 2014-01-11T20:30:00 | K12: 283 | L12: 283 | M12: =(L12-K12)/L12*((J12-I12)-(R12/24)-(S12/24))*24*IF(G12="I",1,0)*W12 -> 0 | N12: =(L12-K12)/L12*((J12-I12)-(R12/24)-(S12/24))*24*IF(G12="I",1,0)*IF(OR(J12<=Cálculo!$C$3,I12>=Cálculo!$D$3),0,1)*W12 -> 0 | O12: =IF(H12="P",$N12,0) -> 0 | P12: =IF(OR(H12="F",H12="N"),$N12,0) -> 0 | Q12: =IF(LEFT(D12,2)="IF",1,0)*IF(G12="I",1,0)*IF(OR(J12<=Cálculo!$C$3,I12>=Cálculo!$D$3),0,1)*W12 -> 0 | R12: =IF(J12<Cálculo!$D$3,0,(J12-Cálculo!$D$3))*24*IF(OR(J12<=Cálculo!$C$3,I12>=Cálculo!$D$3),0,1) -> 0 | S12: =IF(I12>Cálculo!$C$3,0,Cálculo!$C$3-I12)*24*IF(OR(J12<=Cálculo!$C$3,I12>=Cálculo!$D$3),0,1) -> 0 | T12: - UNIDAD N°1. - REPARACIÓN PASADOR ALABES TURBINA N°1. (NOTA: En inspección de rutina se detecta pasador cortado). | W12: TRUE | X12: =IF(L12<K12,1,0) -> 0 | Y12: =IF(LEFT(D12,2)="SD",1,0)*IF(G12="I",1,0)*IF(H12="P",1,0)*IF(OR(J12<=Cálculo!$C$3,I12>=Cálculo!$D$3),0,1)*W12 -> 0
B13: 2013 | C13: PEHUENCHEPEHUENCHE 1 | D13: SD40310/2013 | E13: PEHUENCHE | F13: PEHUENCHE 1 | G13: I | H13: F | I13: 2013-12-29T20:00:00 | J13: 2014-01-11T20:30:00 | K13: 0 | L13: 283 | M13: 312.5 | N13: =(L13-K13)/L13*((J13-I13)-(R13/24)-(S13/24))*24*IF(G13="I",1,0)*IF(OR(J13<=Cálculo!$C$3,I13>=Cálculo!$D$3),0,1)*W13 -> 0 | O13: 0 | P13: 0 | Q13: =IF(LEFT(D13,2)="IF",1,0)*IF(G13="I",1,0)*IF(OR(J13<=Cálculo!$C$3,I13>=Cálculo!$D$3),0,1)*W13 -> 0 | R13: =IF(J13<Cálculo!$D$3,0,(J13-Cálculo!$D$3))*24*IF(OR(J13<=Cálculo!$C$3,I13>=Cálculo!$D$3),0,1) -> 0 | S13: =IF(I13>Cálculo!$C$3,0,Cálculo!$C$3-I13)*24*IF(OR(J13<=Cálculo!$C$3,I13>=Cálculo!$D$3),0,1) -> 0 | T13: - UNIDAD N°1. - REPARACIÓN PASADOR ALABES TURBINA N°1. (NOTA: En inspección de rutina se detecta pasador cortado). | W13: TRUE | X13: 0 | Y13: =IF(LEFT(D13,2)="SD",1,0)*IF(G13="I",1,0)*IF(H13="P",1,0)*IF(OR(J13<=Cálculo!$C$3,I13>=Cálculo!$D$3),0,1)*W13 -> 0
B14: 2013 | C14: BOCAMINA IIBOCAMINA II | D14: SD40379/2013 | E14: BOCAMINA II | F14: BOCAMINA II | G14: I | H14: F | I14: 2013-12-30T20:30:00 | J14: 2014-01-15T23:59:00 | K14: 0 | L14: 350 | M14: 387.4833333 | N14: =(L14-K14)/L14*((J14-I14)-(R14/24)-(S14/24))*24*IF(G14="I",1,0)*IF(OR(J14<=Cálculo!$C$3,I14>=Cálculo!$D$3),0,1)*W14 -> 0 | O14: 0 | P14: 0 | Q14: =IF(LEFT(D14,2)="IF",1,0)*IF(G14="I",1,0)*IF(OR(J14<=Cálculo!$C$3,I14>=Cálculo!$D$3),0,1)*W14 -> 0 | R14: =IF(J14<Cálculo!$D$3,0,(J14-Cálculo!$D$3))*24*IF(OR(J14<=Cálculo!$C$3,I14>=Cálculo!$D$3),0,1) -> 0 | S14: =IF(I14>Cálculo!$C$3,0,Cálculo!$C$3-I14)*24*IF(OR(J14<=Cálculo!$C$3,I14>=Cálculo!$D$3),0,1) -> 0 | T14: Condición resuelta en Recurso de Protección Rol N°18988-2013-P, Corte de Apelaciones de Concepción, donde se concede orden de no innovar mientras se tramita el citado recurso | W14: TRUE | X14: 0 | Y14: =IF(LEFT(D14,2)="SD",1,0)*IF(G14="I",1,0)*IF(H14="P",1,0)*IF(OR(J14<=Cálculo!$C$3,I14>=Cálculo!$D$3),0,1)*W14 -> 0
B15: 2013 | C15: BOCAMINA IIBOCAMINA II | D15: SD40379/2013 | E15: BOCAMINA II | F15: BOCAMINA II | G15: E | H15: F | I15: 2013-12-30T20:30:00 | J15: 2014-01-15T23:59:00 | K15: 0 | L15: 350 | M15: 0 | N15: =(L15-K15)/L15*((J15-I15)-(R15/24)-(S15/24))*24*IF(G15="I",1,0)*IF(OR(J15<=Cálculo!$C$3,I15>=Cálculo!$D$3),0,1)*W15 -> 0 | O15: 0 | P15: 0 | Q15: =IF(LEFT(D15,2)="IF",1,0)*IF(G15="I",1,0)*IF(OR(J15<=Cálculo!$C$3,I15>=Cálculo!$D$3),0,1)*W15 -> 0 | R15: =IF(J15<Cálculo!$D$3,0,(J15-Cálculo!$D$3))*24*IF(OR(J15<=Cálculo!$C$3,I15>=Cálculo!$D$3),0,1) -> 0 | S15: =IF(I15>Cálculo!$C$3,0,Cálculo!$C$3-I15)*24*IF(OR(J15<=Cálculo!$C$3,I15>=Cálculo!$D$3),0,1) -> 0 | T15: Condición resuelta en Recurso de Protección Rol N°18988-2013-P, Corte de Apelaciones de Concepción, donde se concede orden de no innovar mientras se tramita el citado recurso | W15: TRUE | X15: 0 | Y15: =IF(LEFT(D15,2)="SD",1,0)*IF(G15="I",1,0)*IF(H15="P",1,0)*IF(OR(J15<=Cálculo!$C$3,I15>=Cálculo!$D$3),0,1)*W15 -> 0
B16: 2013 | C16: VENTANAS 1VENTANAS 1 | D16: IL00567/2013 | E16: VENTANAS 1 | F16: VENTANAS 1 | G16: I | H16: F | I16: 2013-12-31T15:40:00 | J16: 2014-01-01T22:00:00 | K16: 120 | L16: 120 | M16: 0 | N16: =(L16-K16)/L16*((J16-I16)-(R16/24)-(S16/24))*24*IF(G16="I",1,0)*IF(OR(J16<=Cálculo!$C$3,I16>=Cálculo!$D$3),0,1)*W16 -> 0 | O16: 0 | P16: 0 | Q16: =IF(LEFT(D16,2)="IF",1,0)*IF(G16="I",1,0)*IF(OR(J16<=Cálculo!$C$3,I16>=Cálculo!$D$3),0,1)*W16 -> 0 | R16: =IF(J16<Cálculo!$D$3,0,(J16-Cálculo!$D$3))*24*IF(OR(J16<=Cálculo!$C$3,I16>=Cálculo!$D$3),0,1) -> 0 | S16: =IF(I16>Cálculo!$C$3,0,Cálculo!$C$3-I16)*24*IF(OR(J16<=Cálculo!$C$3,I16>=Cálculo!$D$3),0,1) -> 0 | T16: Limitada en 85 MW por control de temperatura de descarga de agua de mar. | W16: TRUE | X16: 0 | Y16: =IF(LEFT(D16,2)="SD",1,0)*IF(G16="I",1,0)*IF(H16="P",1,0)*IF(OR(J16<=Cálculo!$C$3,I16>=Cálculo!$D$3),0,1)*W16 -> 0
B17: 2013 | C17: VENTANAS 1VENTANAS 1 | D17: IL00567/2013 | E17: VENTANAS 1 | F17: VENTANAS 1 | G17: I | H17: F | I17: 2013-12-31T15:40:00 | J17: 2014-01-01T22:00:00 | K17: 85 | L17: 120 | M17: 8.847222222 | N17: =(L17-K17)/L17*((J17-I17)-(R17/24)-(S17/24))*24*IF(G17="I",1,0)*IF(OR(J17<=Cálculo!$C$3,I17>=Cálculo!$D$3),0,1)*W17 -> 0 | O17: 0 | P17: 0 | Q17: =IF(LEFT(D17,2)="IF",1,0)*IF(G17="I",1,0)*IF(OR(J17<=Cálculo!$C$3,I17>=Cálculo!$D$3),0,1)*W17 -> 0 | R17: =IF(J17<Cálculo!$D$3,0,(J17-Cálculo!$D$3))*24*IF(OR(J17<=Cálculo!$C$3,I17>=Cálculo!$D$3),0,1) -> 0 | S17: =IF(I17>Cálculo!$C$3,0,Cálculo!$C$3-I17)*24*IF(OR(J17<=Cálculo!$C$3,I17>=Cálculo!$D$3),0,1) -> 0 | T17: Limitada en 85 MW por control de temperatura de descarga de agua de mar. | W17: TRUE | X17: 0 | Y17: =IF(LEFT(D17,2)="SD",1,0)*IF(G17="I",1,0)*IF(H17="P",1,0)*IF(OR(J17<=Cálculo!$C$3,I17>=Cálculo!$D$3),0,1)*W17 -> 0
B18: 2013 | C18: VENTANAS 2VENTANAS 2 | D18: IL00569/2013 | E18: VENTANAS 2 | F18: VENTANAS 2 | G18: I | H18: F | I18: 2013-12-31T15:40:00 | J18: 2014-01-01T20:38:00 | K18: 220 | L18: 220 | M18: 0 | N18: =(L18-K18)/L18*((J18-I18)-(R18/24)-(S18/24))*24*IF(G18="I",1,0)*IF(OR(J18<=Cálculo!$C$3,I18>=Cálculo!$D$3),0,1)*W18 -> 0 | O18: 0 | P18: 0 | Q18: =IF(LEFT(D18,2)="IF",1,0)*IF(G18="I",1,0)*IF(OR(J18<=Cálculo!$C$3,I18>=Cálculo!$D$3),0,1)*W18 -> 0 | R18: =IF(J18<Cálculo!$D$3,0,(J18-Cálculo!$D$3))*24*IF(OR(J18<=Cálculo!$C$3,I18>=Cálculo!$D$3),0,1) -> 0 | S18: =IF(I18>Cálculo!$C$3,0,Cálculo!$C$3-I18)*24*IF(OR(J18<=Cálculo!$C$3,I18>=Cálculo!$D$3),0,1) -> 0 | T18: Limitada en 165 MW por control de temperatura de descarga de agua de mar. | W18: TRUE | X18: 0 | Y18: =IF(LEFT(D18,2)="SD",1,0)*IF(G18="I",1,0)*IF(H18="P",1,0)*IF(OR(J18<=Cálculo!$C$3,I18>=Cálculo!$D$3),0,1)*W18 -> 0
B19: 2013 | C19: VENTANAS 2VENTANAS 2 | D19: IL00569/2013 | E19: VENTANAS 2 | F19: VENTANAS 2 | G19: I | H19: F | I19: 2013-12-31T15:40:00 | J19: 2014-01-01T20:38:00 | K19: 165 | L19: 220 | M19: =(L19-K19)/L19*((J19-I19)-(R19/24)-(S19/24))*24*IF(G19="I",1,0)*W19 -> 7.241666667 | N19: =(L19-K19)/L19*((J19-I19)-(R19/24)-(S19/24))*24*IF(G19="I",1,0)*IF(OR(J19<=Cálculo!$C$3,I19>=Cálculo!$D$3),0,1)*W19 -> 0 | O19: 0 | P19: 0 | Q19: =IF(LEFT(D19,2)="IF",1,0)*IF(G19="I",1,0)*IF(OR(J19<=Cálculo!$C$3,I19>=Cálculo!$D$3),0,1)*W19 -> 0 | R19: =IF(J19<Cálculo!$D$3,0,(J19-Cálculo!$D$3))*24*IF(OR(J19<=Cálculo!$C$3,I19>=Cálculo!$D$3),0,1) -> 0 | S19: =IF(I19>Cálculo!$C$3,0,Cálculo!$C$3-I19)*24*IF(OR(J19<=Cálculo!$C$3,I19>=Cálculo!$D$3),0,1) -> 0 | T19: Limitada en 165 MW por control de temperatura de descarga de agua de mar. | W19: TRUE | X19: 0 | Y19: =IF(LEFT(D19,2)="SD",1,0)*IF(G19="I",1,0)*IF(H19="P",1,0)*IF(OR(J19<=Cálculo!$C$3,I19>=Cálculo!$D$3),0,1)*W19 -> 0
B20: 2013 | C20: CAMPICHECAMPICHE | D20: IL00570/2013 | E20: CAMPICHE | F20: CAMPICHE | G20: I | H20: F | I20: 2013-12-31T21:16:00 | J20: 2014-01-02T10:50:00 | K20: 270 | L20: 270 | M20: 0 | N20: =(L20-K20)/L20*((J20-I20)-(R20/24)-(S20/24))*24*IF(G20="I",1,0)*IF(OR(J20<=Cálculo!$C$3,I20>=Cálculo!$D$3),0,1)*W20 -> 0 | O20: 0 | P20: 0 | Q20: =IF(LEFT(D20,2)="IF",1,0)*IF(G20="I",1,0)*IF(OR(J20<=Cálculo!$C$3,I20>=Cálculo!$D$3),0,1)*W20 -> 0 | R20: =IF(J20<Cálculo!$D$3,0,(J20-Cálculo!$D$3))*24*IF(OR(J20<=Cálculo!$C$3,I20>=Cálculo!$D$3),0,1) -> 0 | S20: =IF(I20>Cálculo!$C$3,0,Cálculo!$C$3-I20)*24*IF(OR(J20<=Cálculo!$C$3,I20>=Cálculo!$D$3),0,1) -> 0 | T20: Limitada por control de temperatura de descarga de agua de mar. | W20: TRUE | X20: 0 | Y20: =IF(LEFT(D20,2)="SD",1,0)*IF(G20="I",1,0)*IF(H20="P",1,0)*IF(OR(J20<=Cálculo!$C$3,I20>=Cálculo!$D$3),0,1)*W20 -> 0
B21: 2014 | C21: LAGUNA VERDE TGLAGUNA VERDE TG | D21: novedades | E21: LAGUNA VERDE TG | F21: LAGUNA VERDE TG | G21: I | H21: F | I21: 2014-01-01 | J21: 2015-06-30T23:59:59 | K21: 0 | L21: 18 | M21: 13103.99972 | N21: =(L21-K21)/L21*((J21-I21)-(R21/24)-(S21/24))*24*IF(G21="I",1,0)*IF(OR(J21<=Cálculo!$C$3,I21>=Cálculo!$D$3),0,1)*W21 -> 0 | O21: 0 | P21: 0 | Q21: =IF(LEFT(D21,2)="IF",1,0)*IF(G21="I",1,0)*IF(OR(J21<=Cálculo!$C$3,I21>=Cálculo!$D$3),0,1)*W21 -> 0 | R21: =IF(J21<Cálculo!$D$3,0,(J21-Cálculo!$D$3))*24*IF(OR(J21<=Cálculo!$C$3,I21>=Cálculo!$D$3),0,1) -> 0 | S21: =IF(I21>Cálculo!$C$3,0,Cálculo!$C$3-I21)*24*IF(OR(J21<=Cálculo!$C$3,I21>=Cálculo!$D$3),0,1) -> 0 | W21: TRUE | X21: 0 | Y21: =IF(LEFT(D21,2)="SD",1,0)*IF(G21="I",1,0)*IF(H21="P",1,0)*IF(OR(J21<=Cálculo!$C$3,I21>=Cálculo!$D$3),0,1)*W21 -> 0
B22: 2014 | C22: PLACILLAPLACILLA 2 | D22: IF00756/2012 | E22: PLACILLA | F22: PLACILLA 2 | G22: I | H22: F | I22: 2014-01-01 | J22: 2014-09-22T17:48:00 | K22: 0 | L22: 1.2 | M22: 6353.8 | N22: =(L22-K22)/L22*((J22-I22)-(R22/24)-(S22/24))*24*IF(G22="I",1,0)*IF(OR(J22<=Cálculo!$C$3,I22>=Cálculo!$D$3),0,1)*W22 -> 0 | O22: 0 | P22: 0 | Q22: =IF(LEFT(D22,2)="IF",1,0)*IF(G22="I",1,0)*IF(OR(J22<=Cálculo!$C$3,I22>=Cálculo!$D$3),0,1)*W22 -> 0 | R22: =IF(J22<Cálculo!$D$3,0,(J22-Cálculo!$D$3))*24*IF(OR(J22<=Cálculo!$C$3,I22>=Cálculo!$D$3),0,1) -> 0 | S22: =IF(I22>Cálculo!$C$3,0,Cálculo!$C$3-I22)*24*IF(OR(J22<=Cálculo!$C$3,I22>=Cálculo!$D$3),0,1) -> 0 | T22: Comentario:Falla crítica por problemas mecánicos Causa Presunta: Causa Definitiva: | W22: TRUE | X22: 0 | Y22: =IF(LEFT(D22,2)="SD",1,0)*IF(G22="I",1,0)*IF(H22="P",1,0)*IF(OR(J22<=Cálculo!$C$3,I22>=Cálculo!$D$3),0,1)*W22 -> 0
B23: 2014 | C23: CHILOECentral | D23: SD39990/2013 | E23: CHILOE | F23: Central | G23: I | H23: P | I23: 2014-01-01 | J23: 2014-02-01T17:30:00 | K23: 8 | L23: 9 | M23: 84.61111111 | N23: =(L23-K23)/L23*((J23-I23)-(R23/24)-(S23/24))*24*IF(G23="I",1,0)*IF(OR(J23<=Cálculo!$C$3,I23>=Cálculo!$D$3),0,1)*W23 -> 0 | O23: 0 | P23: 0 | Q23: =IF(LEFT(D23,2)="IF",1,0)*IF(G23="I",1,0)*IF(OR(J23<=Cálculo!$C$3,I23>=Cálculo!$D$3),0,1)*W23 -> 0 | R23: =IF(J23<Cálculo!$D$3,0,(J23-Cálculo!$D$3))*24*IF(OR(J23<=Cálculo!$C$3,I23>=Cálculo!$D$3),0,1) -> 0 | S23: =IF(I23>Cálculo!$C$3,0,Cálculo!$C$3-I23)*24*IF(OR(J23<=Cálculo!$C$3,I23>=Cálculo!$D$3),0,1) -> 0 | T23: Ejecución de mantenimiento mayor programado de unidad U4, referente a la respuesta de la carta D.O Nº1109/2012 de fecha 17 de octubre 2012 - Mantenimiento Mayor de las instalaciones del SIC periodo 2013-2014. | W23: TRUE | X23: 0 | Y23: =IF(LEFT(D23,2)="SD",1,0)*IF(G23="I",1,0)*IF(H23="P",1,0)*IF(OR(J23<=Cálculo!$C$3,I23>=Cálculo!$D$3),0,1)*W23 -> 0
B24: 2014 | C24: RÍO HUASCOCentral | D24: IF00001/2014 | E24: RÍO HUASCO | F24: Central | G24: E | H24: F | I24: 2014-01-01T00:02:00 | J24: 2014-01-01T01:22:00 | K24: 0 | L24: 5.12 | M24: 0 | N24: =(L24-K24)/L24*((J24-I24)-(R24/24)-(S24/24))*24*IF(G24="I",1,0)*IF(OR(J24<=Cálculo!$C$3,I24>=Cálculo!$D$3),0,1)*W24 -> 0 | O24: 0 | P24: 0 | Q24: =IF(LEFT(D24,2)="IF",1,0)*IF(G24="I",1,0)*IF(OR(J24<=Cálculo!$C$3,I24>=Cálculo!$D$3),0,1)*W24 -> 0 | R24: =IF(J24<Cálculo!$D$3,0,(J24-Cálculo!$D$3))*24*IF(OR(J24<=Cálculo!$C$3,I24>=Cálculo!$D$3),0,1) -> 0 | S24: =IF(I24>Cálculo!$C$3,0,Cálculo!$C$3-I24)*24*IF(OR(J24<=Cálculo!$C$3,I24>=Cálculo!$D$3),0,1) -> 0 | U24: 01/01/2014 02:39 ~ Perturbación en línea 110KV (El Edén-Alto del Carmen) perteneciente a Transelec, con apertura del Int. 52HT SSEE Río Huasco ~ Hernán Meza Ávila | W24: TRUE | X24: 0 | Y24: =IF(LEFT(D24,2)="SD",1,0)*IF(G24="I",1,0)*IF(H24="P",1,0)*IF(OR(J24<=Cálculo!$C$3,I24>=Cálculo!$D$3),0,1)*W24 -> 0
B25: 2014 | C25: RÍO HUASCORIO HUASCO 1 | D25: IF00001/2014 | E25: RÍO HUASCO | F25: RIO HUASCO 1 | G25: E | H25: F | I25: 2014-01-01T00:02:00 | J25: 2014-01-01T01:22:00 | K25: 0 | L25: 2.56 | M25: 0 | N25: =(L25-K25)/L25*((J25-I25)-(R25/24)-(S25/24))*24*IF(G25="I",1,0)*IF(OR(J25<=Cálculo!$C$3,I25>=Cálculo!$D$3),0,1)*W25 -> 0 | O25: 0 | P25: 0 | Q25: =IF(LEFT(D25,2)="IF",1,0)*IF(G25="I",1,0)*IF(OR(J25<=Cálculo!$C$3,I25>=Cálculo!$D$3),0,1)*W25 -> 0 | R25: =IF(J25<Cálculo!$D$3,0,(J25-Cálculo!$D$3))*24*IF(OR(J25<=Cálculo!$C$3,I25>=Cálculo!$D$3),0,1) -> 0 | S25: =IF(I25>Cálculo!$C$3,0,Cálculo!$C$3-I25)*24*IF(OR(J25<=Cálculo!$C$3,I25>=Cálculo!$D$3),0,1) -> 0 | U25: 01/01/2014 02:39 ~ Perturbación en línea 110KV (El Edén-Alto del Carmen) perteneciente a Transelec, con apertura del Int. 52HT SSEE Río Huasco ~ Hernán Meza Ávila | W25: TRUE | X25: 0 | Y25: =IF(LEFT(D25,2)="SD",1,0)*IF(G25="I",1,0)*IF(H25="P",1,0)*IF(OR(J25<=Cálculo!$C$3,I25>=Cálculo!$D$3),0,1)*W25 -> 0
B26: 2014 | C26: VENTANAS 2VENTANAS 2 | D26: IL00001/2014 | E26: VENTANAS 2 | F26: VENTANAS 2 | G26: I | H26: F | I26: 2014-01-01T20:38:00 | J26: 2014-01-02T22:00:00 | K26: 190 | L26: 220 | M26: 3.459090909 | N26: =(L26-K26)/L26*((J26-I26)-(R26/24)-(S26/24))*24*IF(G26="I",1,0)*IF(OR(J26<=Cálculo!$C$3,I26>=Cálculo!$D$3),0,1)*W26 -> 0 | O26: 0 | P26: 0 | Q26: =IF(LEFT(D26,2)="IF",1,0)*IF(G26="I",1,0)*IF(OR(J26<=Cálculo!$C$3,I26>=Cálculo!$D$3),0,1)*W26 -> 0 | R26: =IF(J26<Cálculo!$D$3,0,(J26-Cálculo!$D$3))*24*IF(OR(J26<=Cálculo!$C$3,I26>=Cálculo!$D$3),0,1) -> 0 | S26: =IF(I26>Cálculo!$C$3,0,Cálculo!$C$3-I26)*24*IF(OR(J26<=Cálculo!$C$3,I26>=Cálculo!$D$3),0,1) -> 0 | T26: Limitada en 190 MW por control de temperatura de descarga de agua de mar. | W26: TRUE | X26: 0 | Y26: =IF(LEFT(D26,2)="SD",1,0)*IF(G26="I",1,0)*IF(H26="P",1,0)*IF(OR(J26<=Cálculo!$C$3,I26>=Cálculo!$D$3),0,1)*W26 -> 0
B27: 2014 | C27: VENTANAS 2VENTANAS 2 | D27: IL00002/2014 | E27: VENTANAS 2 | F27: VENTANAS 2 | G27: I | H27: F | I27: 2014-01-01T23:13:00 | J27: 2014-01-02T23:13:00 | K27: 160 | L27: 220 | M27: 6.545454545 | N27: =(L27-K27)/L27*((J27-I27)-(R27/24)-(S27/24))*24*IF(G27="I",1,0)*IF(OR(J27<=Cálculo!$C$3,I27>=Cálculo!$D$3),0,1)*W27 -> 0 | O27: 0 | P27: 0 | Q27: =IF(LEFT(D27,2)="IF",1,0)*IF(G27="I",1,0)*IF(OR(J27<=Cálculo!$C$3,I27>=Cálculo!$D$3),0,1)*W27 -> 0 | R27: =IF(J27<Cálculo!$D$3,0,(J27-Cálculo!$D$3))*24*IF(OR(J27<=Cálculo!$C$3,I27>=Cálculo!$D$3),0,1) -> 0 | S27: =IF(I27>Cálculo!$C$3,0,Cálculo!$C$3-I27)*24*IF(OR(J27<=Cálculo!$C$3,I27>=Cálculo!$D$3),0,1) -> 0 | T27: Cloruro en la caldera | W27: TRUE | X27: 0 | Y27: =IF(LEFT(D27,2)="SD",1,0)*IF(G27="I",1,0)*IF(H27="P",1,0)*IF(OR(J27<=Cálculo!$C$3,I27>=Cálculo!$D$3),0,1)*W27 -> 0
B28: 2014 | C28: CANELA IICANELA II | D28: SD40385/2013 | E28: CANELA II | F28: CANELA II | G28: I | H28: P | I28: 2014-01-02T09:17:00 | J28: 2014-01-02T16:49:00 | K28: 58.5 | L28: 60 | M28: 0.1883333333 | N28: =(L28-K28)/L28*((J28-I28)-(R28/24)-(S28/24))*24*IF(G28="I",1,0)*IF(OR(J28<=Cálculo!$C$3,I28>=Cálculo!$D$3),0,1)*W28 -> 0 | O28: 0 | P28: 0 | Q28: =IF(LEFT(D28,2)="IF",1,0)*IF(G28="I",1,0)*IF(OR(J28<=Cálculo!$C$3,I28>=Cálculo!$D$3),0,1)*W28 -> 0 | R28: =IF(J28<Cálculo!$D$3,0,(J28-Cálculo!$D$3))*24*IF(OR(J28<=Cálculo!$C$3,I28>=Cálculo!$D$3),0,1) -> 0 | S28: =IF(I28>Cálculo!$C$3,0,Cálculo!$C$3-I28)*24*IF(OR(J28<=Cálculo!$C$3,I28>=Cálculo!$D$3),0,1) -> 0 | T28: Aerogenerador G02, 1.5 Mw. indisponibles, Mantenimiento preventivo mecánico y eléctrico, en la unidad Aerogenerador Acciona. | W28: TRUE | X28: 0 | Y28: =IF(LEFT(D28,2)="SD",1,0)*IF(G28="I",1,0)*IF(H28="P",1,0)*IF(OR(J28<=Cálculo!$C$3,I28>=Cálculo!$D$3),0,1)*W28 -> 0
B29: 2014 | C29: CELCOCELCO TG2 | D29: IF00006/2014 | E29: CELCO | F29: CELCO TG2 | G29: I | H29: F | I29: 2014-01-02T09:59:00 | J29: 2014-01-02T10:04:00 | K29: 0 | L29: 8 | M29: 0.08333333326 | N29: =(L29-K29)/L29*((J29-I29)-(R29/24)-(S29/24))*24*IF(G29="I",1,0)*IF(OR(J29<=Cálculo!$C$3,I29>=Cálculo!$D$3),0,1)*W29 -> 0 | O29: 0 | P29: 0 | Q29: =IF(LEFT(D29,2)="IF",1,0)*IF(G29="I",1,0)*IF(OR(J29<=Cálculo!$C$3,I29>=Cálculo!$D$3),0,1)*W29 -> 0 | R29: =IF(J29<Cálculo!$D$3,0,(J29-Cálculo!$D$3))*24*IF(OR(J29<=Cálculo!$C$3,I29>=Cálculo!$D$3),0,1) -> 0 | S29: =IF(I29>Cálculo!$C$3,0,Cálculo!$C$3-I29)*24*IF(OR(J29<=Cálculo!$C$3,I29>=Cálculo!$D$3),0,1) -> 0 | T29: 02/01/2014 10:32 ~ Central Celco genera en isla y deja de inyectar 6,5 MW al SIC. ~ Erick Iturra H. | U29: 02/01/2014 10:32 ~ Se investiga. ~ Erick Iturra H. | V29: 02/01/2014 10:37 ~ Señal errónea en relé diferencial del transformador. ~ Erick Iturra H. | W29: TRUE | X29: 0 | Y29: =IF(LEFT(D29,2)="SD",1,0)*IF(G29="I",1,0)*IF(H29="P",1,0)*IF(OR(J29<=Cálculo!$C$3,I29>=Cálculo!$D$3),0,1)*W29 -> 0
B30: 2014 | C30: ESPERANZAESPERANZA DS1 | D30: SD40213/2013 | E30: ESPERANZA | F30: ESPERANZA DS1 | G30: I | H30: P | I30: 2014-01-02T10:33:00 | J30: 2014-01-03T15:40:00 | K30: 0 | L30: 1.6 | M30: 29.11666667 | N30: =(L30-K30)/L30*((J30-I30)-(R30/24)-(S30/24))*24*IF(G30="I",1,0)*IF(OR(J30<=Cálculo!$C$3,I30>=Cálculo!$D$3),0,1)*W30 -> 0 | O30: 0 | P30: 0 | Q30: =IF(LEFT(D30,2)="IF",1,0)*IF(G30="I",1,0)*IF(OR(J30<=Cálculo!$C$3,I30>=Cálculo!$D$3),0,1)*W30 -> 0 | R30: =IF(J30<Cálculo!$D$3,0,(J30-Cálculo!$D$3))*24*IF(OR(J30<=Cálculo!$C$3,I30>=Cálculo!$D$3),0,1) -> 0 | S30: =IF(I30>Cálculo!$C$3,0,Cálculo!$C$3-I30)*24*IF(OR(J30<=Cálculo!$C$3,I30>=Cálculo!$D$3),0,1) -> 0 | T30: 09:00 a 20:00 horas estará fuera de servicio la línea de 15kV a la cual inyecta energía la unidad DS01 | W30: TRUE | X30: 0 | Y30: =IF(LEFT(D30,2)="SD",1,0)*IF(G30="I",1,0)*IF(H30="P",1,0)*IF(OR(J30<=Cálculo!$C$3,I30>=Cálculo!$D$3),0,1)*W30 -> 0
B31: 2014 | C31: LOMA LOS COLORADOS (KDM)Central | D31: IF00007/2014 | E31: LOMA LOS COLORADOS (KDM) | F31: Central | G31: I | H31: F | I31: 2014-01-02T11:10:00 | J31: 2014-01-02T14:10:00 | K31: 1.4 | L31: 2 | M31: 0.9 | N31: =(L31-K31)/L31*((J31-I31)-(R31/24)-(S31/24))*24*IF(G31="I",1,0)*IF(OR(J31<=Cálculo!$C$3,I31>=Cálculo!$D$3),0,1)*W31 -> 0 | O31: 0 | P31: 0 | Q31: =IF(LEFT(D31,2)="IF",1,0)*IF(G31="I",1,0)*IF(OR(J31<=Cálculo!$C$3,I31>=Cálculo!$D$3),0,1)*W31 -> 0 | R31: =IF(J31<Cálculo!$D$3,0,(J31-Cálculo!$D$3))*24*IF(OR(J31<=Cálculo!$C$3,I31>=Cálculo!$D$3),0,1) -> 0 | S31: =IF(I31>Cálculo!$C$3,0,Cálculo!$C$3-I31)*24*IF(OR(J31<=Cálculo!$C$3,I31>=Cálculo!$D$3),0,1) -> 0 | U31: 02/01/2014 11:58 ~ Salida intempestiva Central Loma Los Colorados 1 y 2. ~ Pablo Echagüe D. | V31: 09/01/2014 12:02 ~ Salida intempestiva Unidad 1 y 2 en Central Loma Los Colorados a causa de una caída brusca en la composición de metano del biogás por debajo de los niveles de operación de las unidades de generación, originándose además aumento de nivel de oxigeno en la red de biogás y variaciones de presión que afectan la operación normal de las unidades de generación. ~ Pablo Echagüe Dinamarca | W31: TRUE | X31: 0 | Y31: =IF(LEFT(D31,2)="SD",1,0)*IF(G31="I",1,0)*IF(H31="P",1,0)*IF(OR(J31<=Cálculo!$C$3,I31>=Cálculo!$D$3),0,1)*W31 -> 0
B32: 2014 | C32: LOMA LOS COLORADOS II (KDM)Central | D32: IF00007/2014 | E32: LOMA LOS COLORADOS II (KDM) | F32: Central | G32: I | H32: F | I32: 2014-01-02T11:10:00 | J32: 2014-01-02T14:10:00 | K32: 0 | L32: 15.4 | M32: 3 | N32: =(L32-K32)/L32*((J32-I32)-(R32/24)-(S32/24))*24*IF(G32="I",1,0)*IF(OR(J32<=Cálculo!$C$3,I32>=Cálculo!$D$3),0,1)*W32 -> 0 | O32: 0 | P32: 0 | Q32: =IF(LEFT(D32,2)="IF",1,0)*IF(G32="I",1,0)*IF(OR(J32<=Cálculo!$C$3,I32>=Cálculo!$D$3),0,1)*W32 -> 0 | R32: =IF(J32<Cálculo!$D$3,0,(J32-Cálculo!$D$3))*24*IF(OR(J32<=Cálculo!$C$3,I32>=Cálculo!$D$3),0,1) -> 0 | S32: =IF(I32>Cálculo!$C$3,0,Cálculo!$C$3-I32)*24*IF(OR(J32<=Cálculo!$C$3,I32>=Cálculo!$D$3),0,1) -> 0 | U32: 02/01/2014 11:58 ~ Salida intempestiva Central Loma Los Colorados 1 y 2. ~ Pablo Echagüe D. | V32: 09/01/2014 12:02 ~ Salida intempestiva Unidad 1 y 2 en Central Loma Los Colorados a causa de una caída brusca en la composición de metano del biogás por debajo de los niveles de operación de las unidades de generación, originándose además aumento de nivel de oxigeno en la red de biogás y variaciones de presión que afectan la operación normal de las unidades de generación. ~ Pablo Echagüe Dinamarca | W32: TRUE | X32: 0 | Y32: =IF(LEFT(D32,2)="SD",1,0)*IF(G32="I",1,0)*IF(H32="P",1,0)*IF(OR(J32<=Cálculo!$C$3,I32>=Cálculo!$D$3),0,1)*W32 -> 0
B33: 2014 | C33: ESPERANZAESPERANZA DS2 | D33: SD00115/2014 | E33: ESPERANZA | F33: ESPERANZA DS2 | G33: I | H33: F | I33: 2014-01-02T12:00:00 | J33: 2014-01-02T12:00:00 | K33: 0 | L33: 1.8 | M33: 0 | N33: =(L33-K33)/L33*((J33-I33)-(R33/24)-(S33/24))*24*IF(G33="I",1,0)*IF(OR(J33<=Cálculo!$C$3,I33>=Cálculo!$D$3),0,1)*W33 -> 0 | O33: 0 | P33: 0 | Q33: =IF(LEFT(D33,2)="IF",1,0)*IF(G33="I",1,0)*IF(OR(J33<=Cálculo!$C$3,I33>=Cálculo!$D$3),0,1)*W33 -> 0 | R33: =IF(J33<Cálculo!$D$3,0,(J33-Cálculo!$D$3))*24*IF(OR(J33<=Cálculo!$C$3,I33>=Cálculo!$D$3),0,1) -> 0 | S33: =IF(I33>Cálculo!$C$3,0,Cálculo!$C$3-I33)*24*IF(OR(J33<=Cálculo!$C$3,I33>=Cálculo!$D$3),0,1) -> 0 | T33: 12:00 a 16:00 horas estará fuera de servicio la línea de 23 kV a la cual inyecta energía la unidad DS2 | W33: TRUE | X33: 0 | Y33: =IF(LEFT(D33,2)="SD",1,0)*IF(G33="I",1,0)*IF(H33="P",1,0)*IF(OR(J33<=Cálculo!$C$3,I33>=Cálculo!$D$3),0,1)*W33 -> 0
B34: 2014 | C34: ESPERANZAESPERANZA DS2 | D34: SD00124/2014 | E34: ESPERANZA | F34: ESPERANZA DS2 | G34: I | H34: F | I34: 2014-01-02T12:35:00 | J34: 2014-01-02T18:00:00 | K34: 0 | L34: 1.8 | M34: 5.416666667 | N34: =(L34-K34)/L34*((J34-I34)-(R34/24)-(S34/24))*24*IF(G34="I",1,0)*IF(OR(J34<=Cálculo!$C$3,I34>=Cálculo!$D$3),0,1)*W34 -> 0 | O34: 0 | P34: 0 | Q34: =IF(LEFT(D34,2)="IF",1,0)*IF(G34="I",1,0)*IF(OR(J34<=Cálculo!$C$3,I34>=Cálculo!$D$3),0,1)*W34 -> 0 | R34: =IF(J34<Cálculo!$D$3,0,(J34-Cálculo!$D$3))*24*IF(OR(J34<=Cálculo!$C$3,I34>=Cálculo!$D$3),0,1) -> 0 | S34: =IF(I34>Cálculo!$C$3,0,Cálculo!$C$3-I34)*24*IF(OR(J34<=Cálculo!$C$3,I34>=Cálculo!$D$3),0,1) -> 0 | T34: A solicitud de Minera Valle Central, por presentar falla en interruptor de línea 23 Kv. | W34: TRUE | X34: 0 | Y34: =IF(LEFT(D34,2)="SD",1,0)*IF(G34="I",1,0)*IF(H34="P",1,0)*IF(OR(J34<=Cálculo!$C$3,I34>=Cálculo!$D$3),0,1)*W34 -> 0
B35: 2014 | C35: EYZAGUIRREEYZAGUIRRE 1 | D35: IF00017/2014 | E35: EYZAGUIRRE | F35: EYZAGUIRRE 1 | G35: I | H35: F | I35: 2014-01-02T13:27:00 | J35: 2014-01-02T15:27:00 | K35: 0 | L35: 2.1 | M35: 2 | N35: =(L35-K35)/L35*((J35-I35)-(R35/24)-(S35/24))*24*IF(G35="I",1,0)*IF(OR(J35<=Cálculo!$C$3,I35>=Cálculo!$D$3),0,1)*W35 -> 0 | O35: 0 | P35: 0 | Q35: =IF(LEFT(D35,2)="IF",1,0)*IF(G35="I",1,0)*IF(OR(J35<=Cálculo!$C$3,I35>=Cálculo!$D$3),0,1)*W35 -> 0 | R35: =IF(J35<Cálculo!$D$3,0,(J35-Cálculo!$D$3))*24*IF(OR(J35<=Cálculo!$C$3,I35>=Cálculo!$D$3),0,1) -> 0 | S35: =IF(I35>Cálculo!$C$3,0,Cálculo!$C$3-I35)*24*IF(OR(J35<=Cálculo!$C$3,I35>=Cálculo!$D$3),0,1) -> 0 | U35: 03/01/2014 22:44 ~ Desconexión intempestiva por operación de protecciones, causa presunta, equipo de medida arroja valor erróneo de sobre temperatura en bobinado del estator provocando la desconexión de la unidad. ~ Francisco Rodriguez | W35: TRUE | X35: 0 | Y35: =IF(LEFT(D35,2)="SD",1,0)*IF(G35="I",1,0)*IF(H35="P",1,0)*IF(OR(J35<=Cálculo!$C$3,I35>=Cálculo!$D$3),0,1)*W35 -> 0
B36: 2014 | C36: ESCUADRONCentral | D36: IF00009/2014 | E36: ESCUADRON | F36: Central | G36: I | H36: F | I36: 2014-01-02T15:56:00 | J36: 2014-01-03T01:05:00 | K36: 11 | L36: 12.2 | M36: 0.9 | N36: =(L36-K36)/L36*((J36-I36)-(R36/24)-(S36/24))*24*IF(G36="I",1,0)*IF(OR(J36<=Cálculo!$C$3,I36>=Cálculo!$D$3),0,1)*W36 -> 0 | O36: 0 | P36: 0 | Q36: =IF(LEFT(D36,2)="IF",1,0)*IF(G36="I",1,0)*IF(OR(J36<=Cálculo!$C$3,I36>=Cálculo!$D$3),0,1)*W36 -> 0 | R36: =IF(J36<Cálculo!$D$3,0,(J36-Cálculo!$D$3))*24*IF(OR(J36<=Cálculo!$C$3,I36>=Cálculo!$D$3),0,1) -> 0 | S36: =IF(I36>Cálculo!$C$3,0,Cálculo!$C$3-I36)*24*IF(OR(J36<=Cálculo!$C$3,I36>=Cálculo!$D$3),0,1) -> 0 | V36: 02/01/2014 19:31 ~ Falla de descanso de ventilador inducido caldera principal ~ Cristian Muñoz Elgueta | W36: TRUE | X36: 0 | Y36: =IF(LEFT(D36,2)="SD",1,0)*IF(G36="I",1,0)*IF(H36="P",1,0)*IF(OR(J36<=Cálculo!$C$3,I36>=Cálculo!$D$3),0,1)*W36 -> 0
B37: 2014 | C37: EYZAGUIRREEYZAGUIRRE 1 | D37: IF00018/2014 | E37: EYZAGUIRRE | F37: EYZAGUIRRE 1 | G37: I | H37: F | I37: 2014-01-02T17:05:00 | J37: 2014-01-02T18:20:00 | K37: 0 | L37: 2.1 | M37: 1.25 | N37: =(L37-K37)/L37*((J37-I37)-(R37/24)-(S37/24))*24*IF(G37="I",1,0)*IF(OR(J37<=Cálculo!$C$3,I37>=Cálculo!$D$3),0,1)*W37 -> 0 | O37: 0 | P37: 0 | Q37: =IF(LEFT(D37,2)="IF",1,0)*IF(G37="I",1,0)*IF(OR(J37<=Cálculo!$C$3,I37>=Cálculo!$D$3),0,1)*W37 -> 0 | R37: =IF(J37<Cálculo!$D$3,0,(J37-Cálculo!$D$3))*24*IF(OR(J37<=Cálculo!$C$3,I37>=Cálculo!$D$3),0,1) -> 0 | S37: =IF(I37>Cálculo!$C$3,0,Cálculo!$C$3-I37)*24*IF(OR(J37<=Cálculo!$C$3,I37>=Cálculo!$D$3),0,1) -> 0 | U37: 03/01/2014 22:52 ~ Desconexión intempestiva por operación de protecciones, causa presunta, equipo de medida arroja valor erróneo de sobre temperatura en bobinado del estator provocando la desconexión de la unidad. ~ Francisco Rodriguez | W37: TRUE | X37: 0 | Y37: =IF(LEFT(D37,2)="SD",1,0)*IF(G37="I",1,0)*IF(H37="P",1,0)*IF(OR(J37<=Cálculo!$C$3,I37>=Cálculo!$D$3),0,1)*W37 -> 0
B38: 2014 | C38: VENTANAS 1VENTANAS 1 | D38: IL00003/2014 | E38: VENTANAS 1 | F38: VENTANAS 1 | G38: I | H38: F | I38: 2014-01-02T19:27:00 | J38: 2014-01-02T21:44:00 | K38: 100 | L38: 120 | M38: 0.3805555555 | N38: =(L38-K38)/L38*((J38-I38)-(R38/24)-(S38/24))*24*IF(G38="I",1,0)*IF(OR(J38<=Cálculo!$C$3,I38>=Cálculo!$D$3),0,1)*W38 -> 0 | O38: 0 | P38: 0 | Q38: =IF(LEFT(D38,2)="IF",1,0)*IF(G38="I",1,0)*IF(OR(J38<=Cálculo!$C$3,I38>=Cálculo!$D$3),0,1)*W38 -> 0 | R38: =IF(J38<Cálculo!$D$3,0,(J38-Cálculo!$D$3))*24*IF(OR(J38<=Cálculo!$C$3,I38>=Cálculo!$D$3),0,1) -> 0 | S38: =IF(I38>Cálculo!$C$3,0,Cálculo!$C$3-I38)*24*IF(OR(J38<=Cálculo!$C$3,I38>=Cálculo!$D$3),0,1) -> 0 | T38: Limitada en 100 MW por control de temperatura de descarga de agua de mar. | W38: TRUE | X38: 0 | Y38: =IF(LEFT(D38,2)="SD",1,0)*IF(G38="I",1,0)*IF(H38="P",1,0)*IF(OR(J38<=Cálculo!$C$3,I38>=Cálculo!$D$3),0,1)*W38 -> 0
B39: =YEAR(I39) -> 2014 | C39: =E39&F39 -> SANTA MARIASANTA MARIA 1 | D39: SD00010/2014 | E39: SANTA MARIA | F39: SANTA MARIA 1 | G39: I | H39: F | I39: 2014-01-02T22:45:00 | J39: 2014-01-07T10:42:00 | K39: 0 | L39: 370 | M39: =(L39-K39)/L39*((J39-I39)-(R39/24)-(S39/24))*24*IF(G39="I",1,0)*W39 -> 107.95 | N39: =(L39-K39)/L39*((J39-I39)-(R39/24)-(S39/24))*24*IF(G39="I",1,0)*IF(OR(J39<=Cálculo!$C$3,I39>=Cálculo!$D$3),0,1)*W39 -> 0 | O39: =IF(H39="P",$N39,0) -> 0 | P39: =IF(OR(H39="F",H39="N"),$N39,0) -> 0 | Q39: =IF(LEFT(D39,2)="IF",1,0)*IF(G39="I",1,0)*IF(OR(J39<=Cálculo!$C$3,I39>=Cálculo!$D$3),0,1)*W39 -> 0 | R39: =IF(J39<Cálculo!$D$3,0,(J39-Cálculo!$D$3))*24*IF(OR(J39<=Cálculo!$C$3,I39>=Cálculo!$D$3),0,1) -> 0 | S39: =IF(I39>Cálculo!$C$3,0,Cálculo!$C$3-I39)*24*IF(OR(J39<=Cálculo!$C$3,I39>=Cálculo!$D$3),0,1) -> 0 | T39: Tubo roto caldera nivel 64000 | W39: TRUE | X39: =IF(L39<K39,1,0) -> 0 | Y39: =IF(LEFT(D39,2)="SD",1,0)*IF(G39="I",1,0)*IF(H39="P",1,0)*IF(OR(J39<=Cálculo!$C$3,I39>=Cálculo!$D$3),0,1)*W39 -> 0
B40: 2014 | C40: VENTANAS 2VENTANAS 2 | D40: IL00004/2014 | E40: VENTANAS 2 | F40: VENTANAS 2 | G40: I | H40: F | I40: 2014-01-02T23:53:00 | J40: 2014-01-03T09:49:00 | K40: 190 | L40: 220 | M40: 1.354545455 | N40: =(L40-K40)/L40*((J40-I40)-(R40/24)-(S40/24))*24*IF(G40="I",1,0)*IF(OR(J40<=Cálculo!$C$3,I40>=Cálculo!$D$3),0,1)*W40 -> 0 | O40: 0 | P40: 0 | Q40: =IF(LEFT(D40,2)="IF",1,0)*IF(G40="I",1,0)*IF(OR(J40<=Cálculo!$C$3,I40>=Cálculo!$D$3),0,1)*W40 -> 0 | R40: =IF(J40<Cálculo!$D$3,0,(J40-Cálculo!$D$3))*24*IF(OR(J40<=Cálculo!$C$3,I40>=Cálculo!$D$3),0,1) -> 0 | S40: =IF(I40>Cálculo!$C$3,0,Cálculo!$C$3-I40)*24*IF(OR(J40<=Cálculo!$C$3,I40>=Cálculo!$D$3),0,1) -> 0 | T40: Limitada en 190 MW por control de parámetros de emisiones. | W40: TRUE | X40: 0 | Y40: =IF(LEFT(D40,2)="SD",1,0)*IF(G40="I",1,0)*IF(H40="P",1,0)*IF(OR(J40<=Cálculo!$C$3,I40>=Cálculo!$D$3),0,1)*W40 -> 0
B41: 2014 | C41: CONSTITUCION 1Central | D41: SD40287/2013 | E41: CONSTITUCION 1 | F41: Central | G41: I | H41: P | I41: 2014-01-03T00:02:00 | J41: 2014-01-18T07:00:00 | K41: 7.5 | L41: 9 | M41: 61.16111111 | N41: =(L41-K41)/L41*((J41-I41)-(R41/24)-(S41/24))*24*IF(G41="I",1,0)*IF(OR(J41<=Cálculo!$C$3,I41>=Cálculo!$D$3),0,1)*W41 -> 0 | O41: 0 | P41: 0 | Q41: =IF(LEFT(D41,2)="IF",1,0)*IF(G41="I",1,0)*IF(OR(J41<=Cálculo!$C$3,I41>=Cálculo!$D$3),0,1)*W41 -> 0 | R41: =IF(J41<Cálculo!$D$3,0,(J41-Cálculo!$D$3))*24*IF(OR(J41<=Cálculo!$C$3,I41>=Cálculo!$D$3),0,1) -> 0 | S41: =IF(I41>Cálculo!$C$3,0,Cálculo!$C$3-I41)*24*IF(OR(J41<=Cálculo!$C$3,I41>=Cálculo!$D$3),0,1) -> 0 | T41: Ejecución de mantenimiento mayor programado de unidad U6, referente a la respuesta de la carta D.O Nº1109/2012 de fecha 17 de octubre 2012 - Mantenimiento Mayor de las instalaciones del SIC periodo 2013-2014. | W41: TRUE | X41: 0 | Y41: =IF(LEFT(D41,2)="SD",1,0)*IF(G41="I",1,0)*IF(H41="P",1,0)*IF(OR(J41<=Cálculo!$C$3,I41>=Cálculo!$D$3),0,1)*W41 -> 0
B42: 2014 | C42: PILMAIQUENPILMAIQUEN 5 | D42: SD00170/2014 | E42: PILMAIQUEN | F42: PILMAIQUEN 5 | G42: I | H42: F | I42: 2014-01-03T11:25:00 | J42: 2014-01-03T16:51:00 | K42: 0 | L42: 12 | M42: 5.433333333 | N42: =(L42-K42)/L42*((J42-I42)-(R42/24)-(S42/24))*24*IF(G42="I",1,0)*IF(OR(J42<=Cálculo!$C$3,I42>=Cálculo!$D$3),0,1)*W42 -> 0 | O42: 0 | P42: 0 | Q42: =IF(LEFT(D42,2)="IF",1,0)*IF(G42="I",1,0)*IF(OR(J42<=Cálculo!$C$3,I42>=Cálculo!$D$3),0,1)*W42 -> 0 | R42: =IF(J42<Cálculo!$D$3,0,(J42-Cálculo!$D$3))*24*IF(OR(J42<=Cálculo!$C$3,I42>=Cálculo!$D$3),0,1) -> 0 | S42: =IF(I42>Cálculo!$C$3,0,Cálculo!$C$3-I42)*24*IF(OR(J42<=Cálculo!$C$3,I42>=Cálculo!$D$3),0,1) -> 0 | T42: Investigar ruido extraño al interior de Unidad. | W42: TRUE | X42: 0 | Y42: =IF(LEFT(D42,2)="SD",1,0)*IF(G42="I",1,0)*IF(H42="P",1,0)*IF(OR(J42<=Cálculo!$C$3,I42>=Cálculo!$D$3),0,1)*W42 -> 0
B43: 2014 | C43: VENTANAS 2VENTANAS 2 | D43: IL00005/2014 | E43: VENTANAS 2 | F43: VENTANAS 2 | G43: I | H43: F | I43: 2014-01-03T12:13:00 | J43: 2014-01-03T15:23:00 | K43: 150 | L43: 220 | M43: 1.007575758 | N43: =(L43-K43)/L43*((J43-I43)-(R43/24)-(S43/24))*24*IF(G43="I",1,0)*IF(OR(J43<=Cálculo!$C$3,I43>=Cálculo!$D$3),0,1)*W43 -> 0 | O43: 0 | P43: 0 | Q43: =IF(LEFT(D43,2)="IF",1,0)*IF(G43="I",1,0)*IF(OR(J43<=Cálculo!$C$3,I43>=Cálculo!$D$3),0,1)*W43 -> 0 | R43: =IF(J43<Cálculo!$D$3,0,(J43-Cálculo!$D$3))*24*IF(OR(J43<=Cálculo!$C$3,I43>=Cálculo!$D$3),0,1) -> 0 | S43: =IF(I43>Cálculo!$C$3,0,Cálculo!$C$3-I43)*24*IF(OR(J43<=Cálculo!$C$3,I43>=Cálculo!$D$3),0,1) -> 0 | T43: Falla en sistema FGD. ( control de emisiones) | W43: TRUE | X43: 0 | Y43: =IF(LEFT(D43,2)="SD",1,0)*IF(G43="I",1,0)*IF(H43="P",1,0)*IF(OR(J43<=Cálculo!$C$3,I43>=Cálculo!$D$3),0,1)*W43 -> 0
B44: 2014 | C44: VENTANAS 2VENTANAS 2 | D44: IL00006/2014 | E44: VENTANAS 2 | F44: VENTANAS 2 | G44: I | H44: F | I44: 2014-01-03T15:23:00 | J44: 2014-01-06T07:00:00 | K44: 180 | L44: 220 | M44: 11.56666667 | N44: =(L44-K44)/L44*((J44-I44)-(R44/24)-(S44/24))*24*IF(G44="I",1,0)*IF(OR(J44<=Cálculo!$C$3,I44>=Cálculo!$D$3),0,1)*W44 -> 0 | O44: 0 | P44: 0 | Q44: =IF(LEFT(D44,2)="IF",1,0)*IF(G44="I",1,0)*IF(OR(J44<=Cálculo!$C$3,I44>=Cálculo!$D$3),0,1)*W44 -> 0 | R44: =IF(J44<Cálculo!$D$3,0,(J44-Cálculo!$D$3))*24*IF(OR(J44<=Cálculo!$C$3,I44>=Cálculo!$D$3),0,1) -> 0 | S44: =IF(I44>Cálculo!$C$3,0,Cálculo!$C$3-I44)*24*IF(OR(J44<=Cálculo!$C$3,I44>=Cálculo!$D$3),0,1) -> 0 | T44: Control de combustión. | W44: TRUE | X44: 0 | Y44: =IF(LEFT(D44,2)="SD",1,0)*IF(G44="I",1,0)*IF(H44="P",1,0)*IF(OR(J44<=Cálculo!$C$3,I44>=Cálculo!$D$3),0,1)*W44 -> 0
B45: 2014 | C45: VENTANAS 1VENTANAS 1 | D45: IL00007/2014 | E45: VENTANAS 1 | F45: VENTANAS 1 | G45: I | H45: F | I45: 2014-01-03T17:52:00 | J45: 2014-01-04T01:06:00 | K45: 90 | L45: 120 | M45: 1.808333333 | N45: =(L45-K45)/L45*((J45-I45)-(R45/24)-(S45/24))*24*IF(G45="I",1,0)*IF(OR(J45<=Cálculo!$C$3,I45>=Cálculo!$D$3),0,1)*W45 -> 0 | O45: 0 | P45: 0 | Q45: =IF(LEFT(D45,2)="IF",1,0)*IF(G45="I",1,0)*IF(OR(J45<=Cálculo!$C$3,I45>=Cálculo!$D$3),0,1)*W45 -> 0 | R45: =IF(J45<Cálculo!$D$3,0,(J45-Cálculo!$D$3))*24*IF(OR(J45<=Cálculo!$C$3,I45>=Cálculo!$D$3),0,1) -> 0 | S45: =IF(I45>Cálculo!$C$3,0,Cálculo!$C$3-I45)*24*IF(OR(J45<=Cálculo!$C$3,I45>=Cálculo!$D$3),0,1) -> 0 | T45: Control temperatura de descarga de agua de mar. | W45: TRUE | X45: 0 | Y45: =IF(LEFT(D45,2)="SD",1,0)*IF(G45="I",1,0)*IF(H45="P",1,0)*IF(OR(J45<=Cálculo!$C$3,I45>=Cálculo!$D$3),0,1)*W45 -> 0
B46: 2014 | C46: LA CONFLUENCIALA CONFLUENCIA 2 | D46: IF00020/2014 | E46: LA CONFLUENCIA | F46: LA CONFLUENCIA 2 | G46: I | H46: F | I46: 2014-01-04T01:35:00 | J46: 2014-01-04T02:10:00 | K46: 0 | L46: 81.6 | M46: 0.5833333335 | N46: =(L46-K46)/L46*((J46-I46)-(R46/24)-(S46/24))*24*IF(G46="I",1,0)*IF(OR(J46<=Cálculo!$C$3,I46>=Cálculo!$D$3),0,1)*W46 -> 0 | O46: 0 | P46: 0 | Q46: =IF(LEFT(D46,2)="IF",1,0)*IF(G46="I",1,0)*IF(OR(J46<=Cálculo!$C$3,I46>=Cálculo!$D$3),0,1)*W46 -> 0 | R46: =IF(J46<Cálculo!$D$3,0,(J46-Cálculo!$D$3))*24*IF(OR(J46<=Cálculo!$C$3,I46>=Cálculo!$D$3),0,1) -> 0 | S46: =IF(I46>Cálculo!$C$3,0,Cálculo!$C$3-I46)*24*IF(OR(J46<=Cálculo!$C$3,I46>=Cálculo!$D$3),0,1) -> 0 | U46: 04/01/2014 02:11 ~ Muy Bajo flujo sello eje turbina ~ Claudio Rebolledo | W46: TRUE | X46: 0 | Y46: =IF(LEFT(D46,2)="SD",1,0)*IF(G46="I",1,0)*IF(H46="P",1,0)*IF(OR(J46<=Cálculo!$C$3,I46>=Cálculo!$D$3),0,1)*W46 -> 0
B47: 2014 | C47: LA HIGUERALA HIGUERA 2 | D47: SD00219/2014 | E47: LA HIGUERA | F47: LA HIGUERA 2 | G47: I | H47: P | I47: 2014-01-04T06:01:00 | J47: 2014-01-04T14:39:00 | K47: 0 | L47: 77.35 | M47: 8.633333333 | N47: =(L47-K47)/L47*((J47-I47)-(R47/24)-(S47/24))*24*IF(G47="I",1,0)*IF(OR(J47<=Cálculo!$C$3,I47>=Cálculo!$D$3),0,1)*W47 -> 0 | O47: 0 | P47: 0 | Q47: =IF(LEFT(D47,2)="IF",1,0)*IF(G47="I",1,0)*IF(OR(J47<=Cálculo!$C$3,I47>=Cálculo!$D$3),0,1)*W47 -> 0 | R47: =IF(J47<Cálculo!$D$3,0,(J47-Cálculo!$D$3))*24*IF(OR(J47<=Cálculo!$C$3,I47>=Cálculo!$D$3),0,1) -> 0 | S47: =IF(I47>Cálculo!$C$3,0,Cálculo!$C$3-I47)*24*IF(OR(J47<=Cálculo!$C$3,I47>=Cálculo!$D$3),0,1) -> 0 | T47: Mantenimiento Preventivo Cambio Carbones Sistema Excitación | W47: TRUE | X47: 0 | Y47: =IF(LEFT(D47,2)="SD",1,0)*IF(G47="I",1,0)*IF(H47="P",1,0)*IF(OR(J47<=Cálculo!$C$3,I47>=Cálculo!$D$3),0,1)*W47 -> 0
B48: 2014 | C48: NEHUENCO IINEHUENCO II | D48: IL00008/2014 | E48: NEHUENCO II | F48: NEHUENCO II | G48: I | H48: F | I48: 2014-01-04T08:55:00 | J48: 2014-01-04T14:30:00 | K48: 316 | L48: 380 | M48: 0.9403508772 | N48: =(L48-K48)/L48*((J48-I48)-(R48/24)-(S48/24))*24*IF(G48="I",1,0)*IF(OR(J48<=Cálculo!$C$3,I48>=Cálculo!$D$3),0,1)*W48 -> 0 | O48: 0 | P48: 0 | Q48: =IF(LEFT(D48,2)="IF",1,0)*IF(G48="I",1,0)*IF(OR(J48<=Cálculo!$C$3,I48>=Cálculo!$D$3),0,1)*W48 -> 0 | R48: =IF(J48<Cálculo!$D$3,0,(J48-Cálculo!$D$3))*24*IF(OR(J48<=Cálculo!$C$3,I48>=Cálculo!$D$3),0,1) -> 0 | S48: =IF(I48>Cálculo!$C$3,0,Cálculo!$C$3-I48)*24*IF(OR(J48<=Cálculo!$C$3,I48>=Cálculo!$D$3),0,1) -> 0 | T48: Durante proceso de subir a carga base en ciclo combinado operan alarmas relacionadas con ventiladores de compartimiento TG, se produce reducción de carga de esta y limita el CC en 316 MW, se estudia causa. | W48: TRUE | X48: 0 | Y48: =IF(LEFT(D48,2)="SD",1,0)*IF(G48="I",1,0)*IF(H48="P",1,0)*IF(OR(J48<=Cálculo!$C$3,I48>=Cálculo!$D$3),0,1)*W48 -> 0
B49: 2014 | C49: EL TOROEL TORO 3 | D49: SD00163/2014 | E49: EL TORO | F49: EL TORO 3 | G49: I | H49: P | I49: 2014-01-04T09:04:00 | J49: 2014-01-04T11:31:00 | K49: 0 | L49: 112.5 | M49: 2.45 | N49: =(L49-K49)/L49*((J49-I49)-(R49/24)-(S49/24))*24*IF(G49="I",1,0)*IF(OR(J49<=Cálculo!$C$3,I49>=Cálculo!$D$3),0,1)*W49 -> 0 | O49: 0 | P49: 0 | Q49: =IF(LEFT(D49,2)="IF",1,0)*IF(G49="I",1,0)*IF(OR(J49<=Cálculo!$C$3,I49>=Cálculo!$D$3),0,1)*W49 -> 0 | R49: =IF(J49<Cálculo!$D$3,0,(J49-Cálculo!$D$3))*24*IF(OR(J49<=Cálculo!$C$3,I49>=Cálculo!$D$3),0,1) -> 0 | S49: =IF(I49>Cálculo!$C$3,0,Cálculo!$C$3-I49)*24*IF(OR(J49<=Cálculo!$C$3,I49>=Cálculo!$D$3),0,1) -> 0 | T49: Pruebas de Trip, Alarmas y Comandos de nuevo Scada PGP con C. Antuco y CEN. | W49: TRUE | X49: 0 | Y49: =IF(LEFT(D49,2)="SD",1,0)*IF(G49="I",1,0)*IF(H49="P",1,0)*IF(OR(J49<=Cálculo!$C$3,I49>=Cálculo!$D$3),0,1)*W49 -> 0
B50: 2014 | C50: EL TOROEL TORO 1 | D50: SD00164/2014 | E50: EL TORO | F50: EL TORO 1 | G50: I | H50: P | I50: 2014-01-04T11:31:00 | J50: 2014-01-04T14:00:00 | K50: 0 | L50: 112.5 | M50: 2.483333333 | N50: =(L50-K50)/L50*((J50-I50)-(R50/24)-(S50/24))*24*IF(G50="I",1,0)*IF(OR(J50<=Cálculo!$C$3,I50>=Cálculo!$D$3),0,1)*W50 -> 0 | O50: 0 | P50: 0 | Q50: =IF(LEFT(D50,2)="IF",1,0)*IF(G50="I",1,0)*IF(OR(J50<=Cálculo!$C$3,I50>=Cálculo!$D$3),0,1)*W50 -> 0 | R50: =IF(J50<Cálculo!$D$3,0,(J50-Cálculo!$D$3))*24*IF(OR(J50<=Cálculo!$C$3,I50>=Cálculo!$D$3),0,1) -> 0 | S50: =IF(I50>Cálculo!$C$3,0,Cálculo!$C$3-I50)*24*IF(OR(J50<=Cálculo!$C$3,I50>=Cálculo!$D$3),0,1) -> 0 | T50: Pruebas de Trip, Alarmas y Comandos de nuevo Scada PGP con C. Antuco y CEN. | W50: TRUE | X50: 0 | Y50: =IF(LEFT(D50,2)="SD",1,0)*IF(G50="I",1,0)*IF(H50="P",1,0)*IF(OR(J50<=Cálculo!$C$3,I50>=Cálculo!$D$3),0,1)*W50 -> 0
B51: 2014 | C51: VENTANAS 1VENTANAS 1 | D51: IL00009/2014 | E51: VENTANAS 1 | F51: VENTANAS 1 | G51: I | H51: F | I51: 2014-01-04T16:25:00 | J51: 2014-01-04T18:50:00 | K51: 90 | L51: 120 | M51: 0.6041666666 | N51: =(L51-K51)/L51*((J51-I51)-(R51/24)-(S51/24))*24*IF(G51="I",1,0)*IF(OR(J51<=Cálculo!$C$3,I51>=Cálculo!$D$3),0,1)*W51 -> 0 | O51: 0 | P51: 0 | Q51: =IF(LEFT(D51,2)="IF",1,0)*IF(G51="I",1,0)*IF(OR(J51<=Cálculo!$C$3,I51>=Cálculo!$D$3),0,1)*W51 -> 0 | R51: =IF(J51<Cálculo!$D$3,0,(J51-Cálculo!$D$3))*24*IF(OR(J51<=Cálculo!$C$3,I51>=Cálculo!$D$3),0,1) -> 0 | S51: =IF(I51>Cálculo!$C$3,0,Cálculo!$C$3-I51)*24*IF(OR(J51<=Cálculo!$C$3,I51>=Cálculo!$D$3),0,1) -> 0 | T51: Control de temperatura de descarga de agua de mar. | W51: TRUE | X51: 0 | Y51: =IF(LEFT(D51,2)="SD",1,0)*IF(G51="I",1,0)*IF(H51="P",1,0)*IF(OR(J51<=Cálculo!$C$3,I51>=Cálculo!$D$3),0,1)*W51 -> 0
B52: 2014 | C52: RAPELRAPEL 3 | D52: SD00276/2014 | E52: RAPEL | F52: RAPEL 3 | G52: I | H52: F | I52: 2014-01-04T16:30:00 | J52: 2014-01-05T10:38:00 | K52: 0 | L52: 75.6 | M52: 18.13333333 | N52: =(L52-K52)/L52*((J52-I52)-(R52/24)-(S52/24))*24*IF(G52="I",1,0)*IF(OR(J52<=Cálculo!$C$3,I52>=Cálculo!$D$3),0,1)*W52 -> 0 | O52: 0 | P52: 0 | Q52: =IF(LEFT(D52,2)="IF",1,0)*IF(G52="I",1,0)*IF(OR(J52<=Cálculo!$C$3,I52>=Cálculo!$D$3),0,1)*W52 -> 0 | R52: =IF(J52<Cálculo!$D$3,0,(J52-Cálculo!$D$3))*24*IF(OR(J52<=Cálculo!$C$3,I52>=Cálculo!$D$3),0,1) -> 0 | S52: =IF(I52>Cálculo!$C$3,0,Cálculo!$C$3-I52)*24*IF(OR(J52<=Cálculo!$C$3,I52>=Cálculo!$D$3),0,1) -> 0 | T52: Banco Transformador N° 2. Unidades 3 y 4 quedan fuera de servicio durante la desconexión. Eliminar filtracion de aceite en mufa cable 66 Kv, Banco Transformador N° 2. | W52: TRUE | X52: 0 | Y52: =IF(LEFT(D52,2)="SD",1,0)*IF(G52="I",1,0)*IF(H52="P",1,0)*IF(OR(J52<=Cálculo!$C$3,I52>=Cálculo!$D$3),0,1)*W52 -> 0
B53: 2014 | C53: RAPELRAPEL 4 | D53: SD00276/2014 | E53: RAPEL | F53: RAPEL 4 | G53: I | H53: F | I53: 2014-01-04T16:30:00 | J53: 2014-01-05T10:38:00 | K53: 0 | L53: 75.6 | M53: 18.13333333 | N53: =(L53-K53)/L53*((J53-I53)-(R53/24)-(S53/24))*24*IF(G53="I",1,0)*IF(OR(J53<=Cálculo!$C$3,I53>=Cálculo!$D$3),0,1)*W53 -> 0 | O53: 0 | P53: 0 | Q53: =IF(LEFT(D53,2)="IF",1,0)*IF(G53="I",1,0)*IF(OR(J53<=Cálculo!$C$3,I53>=Cálculo!$D$3),0,1)*W53 -> 0 | R53: =IF(J53<Cálculo!$D$3,0,(J53-Cálculo!$D$3))*24*IF(OR(J53<=Cálculo!$C$3,I53>=Cálculo!$D$3),0,1) -> 0 | S53: =IF(I53>Cálculo!$C$3,0,Cálculo!$C$3-I53)*24*IF(OR(J53<=Cálculo!$C$3,I53>=Cálculo!$D$3),0,1) -> 0 | T53: Banco Transformador N° 2. Unidades 3 y 4 quedan fuera de servicio durante la desconexión. Eliminar filtracion de aceite en mufa cable 66 Kv, Banco Transformador N° 2. | W53: TRUE | X53: 0 | Y53: =IF(LEFT(D53,2)="SD",1,0)*IF(G53="I",1,0)*IF(H53="P",1,0)*IF(OR(J53<=Cálculo!$C$3,I53>=Cálculo!$D$3),0,1)*W53 -> 0
B54: 2014 | C54: RALCORALCO 2 | D54: SD00275/2014 | E54: RALCO | F54: RALCO 2 | G54: I | H54: F | I54: 2014-01-04T16:30:00 | J54: 2014-01-04T16:30:00 | K54: 225 | L54: 345 | M54: 0 | N54: =(L54-K54)/L54*((J54-I54)-(R54/24)-(S54/24))*24*IF(G54="I",1,0)*IF(OR(J54<=Cálculo!$C$3,I54>=Cálculo!$D$3),0,1)*W54 -> 0 | O54: 0 | P54: 0 | Q54: =IF(LEFT(D54,2)="IF",1,0)*IF(G54="I",1,0)*IF(OR(J54<=Cálculo!$C$3,I54>=Cálculo!$D$3),0,1)*W54 -> 0 | R54: =IF(J54<Cálculo!$D$3,0,(J54-Cálculo!$D$3))*24*IF(OR(J54<=Cálculo!$C$3,I54>=Cálculo!$D$3),0,1) -> 0 | S54: =IF(I54>Cálculo!$C$3,0,Cálculo!$C$3-I54)*24*IF(OR(J54<=Cálculo!$C$3,I54>=Cálculo!$D$3),0,1) -> 0 | T54: Banco Transformador N° 2. Unidades 3 y 4 quedan fuera de servicio durante la desconexión. Eliminar filtracion de aceite en mufa cable 66 Kv, Banco Transformador N° 2 | W54: TRUE | X54: 0 | Y54: =IF(LEFT(D54,2)="SD",1,0)*IF(G54="I",1,0)*IF(H54="P",1,0)*IF(OR(J54<=Cálculo!$C$3,I54>=Cálculo!$D$3),0,1)*W54 -> 0
B55: 2014 | C55: VENTANAS 2VENTANAS 2 | D55: IL00010/2014 | E55: VENTANAS 2 | F55: VENTANAS 2 | G55: I | H55: F | I55: 2014-01-04T17:50:00 | J55: 2014-01-04T22:30:00 | K55: 100 | L55: 220 | M55: 2.545454545 | N55: =(L55-K55)/L55*((J55-I55)-(R55/24)-(S55/24))*24*IF(G55="I",1,0)*IF(OR(J55<=Cálculo!$C$3,I55>=Cálculo!$D$3),0,1)*W55 -> 0 | O55: 0 | P55: 0 | Q55: =IF(LEFT(D55,2)="IF",1,0)*IF(G55="I",1,0)*IF(OR(J55<=Cálculo!$C$3,I55>=Cálculo!$D$3),0,1)*W55 -> 0 | R55: =IF(J55<Cálculo!$D$3,0,(J55-Cálculo!$D$3))*24*IF(OR(J55<=Cálculo!$C$3,I55>=Cálculo!$D$3),0,1) -> 0 | S55: =IF(I55>Cálculo!$C$3,0,Cálculo!$C$3-I55)*24*IF(OR(J55<=Cálculo!$C$3,I55>=Cálculo!$D$3),0,1) -> 0 | T55: Control de emisiones. | W55: TRUE | X55: 0 | Y55: =IF(LEFT(D55,2)="SD",1,0)*IF(G55="I",1,0)*IF(H55="P",1,0)*IF(OR(J55<=Cálculo!$C$3,I55>=Cálculo!$D$3),0,1)*W55 -> 0
B56: 2014 | C56: MASISAMASISA | D56: SD39953/2013 | E56: MASISA | F56: MASISA | G56: I | H56: P | I56: 2014-01-04T23:34:00 | J56: 2014-01-20T19:03:00 | K56: 0 | L56: 11 | M56: 379.4833333 | N56: =(L56-K56)/L56*((J56-I56)-(R56/24)-(S56/24))*24*IF(G56="I",1,0)*IF(OR(J56<=Cálculo!$C$3,I56>=Cálculo!$D$3),0,1)*W56 -> 0 | O56: 0 | P56: 0 | Q56: =IF(LEFT(D56,2)="IF",1,0)*IF(G56="I",1,0)*IF(OR(J56<=Cálculo!$C$3,I56>=Cálculo!$D$3),0,1)*W56 -> 0 | R56: =IF(J56<Cálculo!$D$3,0,(J56-Cálculo!$D$3))*24*IF(OR(J56<=Cálculo!$C$3,I56>=Cálculo!$D$3),0,1) -> 0 | S56: =IF(I56>Cálculo!$C$3,0,Cálculo!$C$3-I56)*24*IF(OR(J56<=Cálculo!$C$3,I56>=Cálculo!$D$3),0,1) -> 0 | T56: Desconexión de la central, según plan anual de mantenimiento, según carta respuesta de Masisa Ecoenergía a la DO 0991/2013 emitada por el CDEC. | W56: TRUE | X56: 0 | Y56: =IF(LEFT(D56,2)="SD",1,0)*IF(G56="I",1,0)*IF(H56="P",1,0)*IF(OR(J56<=Cálculo!$C$3,I56>=Cálculo!$D$3),0,1)*W56 -> 0
B57: 2014 | C57: ABANICOCentral | D57: SD00165/2014 | E57: ABANICO | F57: Central | G57: I | H57: P | I57: 2014-01-05T08:02:00 | J57: 2014-01-05T19:08:00 | K57: 0 | L57: 136 | M57: 11.1 | N57: =(L57-K57)/L57*((J57-I57)-(R57/24)-(S57/24))*24*IF(G57="I",1,0)*IF(OR(J57<=Cálculo!$C$3,I57>=Cálculo!$D$3),0,1)*W57 -> 0 | O57: 0 | P57: 0 | Q57: =IF(LEFT(D57,2)="IF",1,0)*IF(G57="I",1,0)*IF(OR(J57<=Cálculo!$C$3,I57>=Cálculo!$D$3),0,1)*W57 -> 0 | R57: =IF(J57<Cálculo!$D$3,0,(J57-Cálculo!$D$3))*24*IF(OR(J57<=Cálculo!$C$3,I57>=Cálculo!$D$3),0,1) -> 0 | S57: =IF(I57>Cálculo!$C$3,0,Cálculo!$C$3-I57)*24*IF(OR(J57<=Cálculo!$C$3,I57>=Cálculo!$D$3),0,1) -> 0 | T57: S/E Charrúa Paño 52A8, pruebas de control en Normal - Intermedio - Trasferido, medidas de aislación y reaprite de conexiones. (Durante la Desconexión la Central no podra ser despachada). | W57: TRUE | X57: 0 | Y57: =IF(LEFT(D57,2)="SD",1,0)*IF(G57="I",1,0)*IF(H57="P",1,0)*IF(OR(J57<=Cálculo!$C$3,I57>=Cálculo!$D$3),0,1)*W57 -> 0
B58: 2014 | C58: NUEVA RENCANUEVA RENCA | D58: IF00028/2014 | E58: NUEVA RENCA | F58: NUEVA RENCA | G58: I | H58: F | I58: 2014-01-05T21:22:00 | J58: 2014-01-06T13:11:00 | K58: 200 | L58: 365.6 | M58: 7.164223195 | N58: =(L58-K58)/L58*((J58-I58)-(R58/24)-(S58/24))*24*IF(G58="I",1,0)*IF(OR(J58<=Cálculo!$C$3,I58>=Cálculo!$D$3),0,1)*W58 -> 0 | O58: 0 | P58: 0 | Q58: =IF(LEFT(D58,2)="IF",1,0)*IF(G58="I",1,0)*IF(OR(J58<=Cálculo!$C$3,I58>=Cálculo!$D$3),0,1)*W58 -> 0 | R58: =IF(J58<Cálculo!$D$3,0,(J58-Cálculo!$D$3))*24*IF(OR(J58<=Cálculo!$C$3,I58>=Cálculo!$D$3),0,1) -> 0 | S58: =IF(I58>Cálculo!$C$3,0,Cálculo!$C$3-I58)*24*IF(OR(J58<=Cálculo!$C$3,I58>=Cálculo!$D$3),0,1) -> 0 | U58: 06/01/2014 00:41 ~ En investigación ~ Alvaro García D | W58: TRUE | X58: 0 | Y58: =IF(LEFT(D58,2)="SD",1,0)*IF(G58="I",1,0)*IF(H58="P",1,0)*IF(OR(J58<=Cálculo!$C$3,I58>=Cálculo!$D$3),0,1)*W58 -> 0
B59: 2014 | C59: CMPC LAJACentral | D59: IL00011/2014 | E59: CMPC LAJA | F59: Central | G59: I | H59: F | I59: 2014-01-06T01:30:00 | J59: 2014-01-07T19:10:00 | K59: 5 | L59: 25 | M59: 33.33333333 | N59: =(L59-K59)/L59*((J59-I59)-(R59/24)-(S59/24))*24*IF(G59="I",1,0)*IF(OR(J59<=Cálculo!$C$3,I59>=Cálculo!$D$3),0,1)*W59 -> 0 | O59: 0 | P59: 0 | Q59: =IF(LEFT(D59,2)="IF",1,0)*IF(G59="I",1,0)*IF(OR(J59<=Cálculo!$C$3,I59>=Cálculo!$D$3),0,1)*W59 -> 0 | R59: =IF(J59<Cálculo!$D$3,0,(J59-Cálculo!$D$3))*24*IF(OR(J59<=Cálculo!$C$3,I59>=Cálculo!$D$3),0,1) -> 0 | S59: =IF(I59>Cálculo!$C$3,0,Cálculo!$C$3-I59)*24*IF(OR(J59<=Cálculo!$C$3,I59>=Cálculo!$D$3),0,1) -> 0 | T59: Problema alimentación a caldera recuperadora | W59: TRUE | X59: 0 | Y59: =IF(LEFT(D59,2)="SD",1,0)*IF(G59="I",1,0)*IF(H59="P",1,0)*IF(OR(J59<=Cálculo!$C$3,I59>=Cálculo!$D$3),0,1)*W59 -> 0
B60: 2014 | C60: CELCOCELCO TG2 | D60: IF00030/2014 | E60: CELCO | F60: CELCO TG2 | G60: I | H60: F | I60: 2014-01-06T02:50:00 | J60: 2014-01-06T09:37:00 | K60: 0 | L60: 8 | M60: 6.783333333 | N60: =(L60-K60)/L60*((J60-I60)-(R60/24)-(S60/24))*24*IF(G60="I",1,0)*IF(OR(J60<=Cálculo!$C$3,I60>=Cálculo!$D$3),0,1)*W60 -> 0 | O60: 0 | P60: 0 | Q60: =IF(LEFT(D60,2)="IF",1,0)*IF(G60="I",1,0)*IF(OR(J60<=Cálculo!$C$3,I60>=Cálculo!$D$3),0,1)*W60 -> 0 | R60: =IF(J60<Cálculo!$D$3,0,(J60-Cálculo!$D$3))*24*IF(OR(J60<=Cálculo!$C$3,I60>=Cálculo!$D$3),0,1) -> 0 | S60: =IF(I60>Cálculo!$C$3,0,Cálculo!$C$3-I60)*24*IF(OR(J60<=Cálculo!$C$3,I60>=Cálculo!$D$3),0,1) -> 0 | T60: 06/01/2014 06:41 ~ A las 02:50 horas, genera en isla cuando inyectaba 3,2 MW al SIC, debido a desconexión forzada de la línea de 66 kV Celco – Constitución. A las 02:56 horas, se abre manualmente el interruptor 52DT2. ~ Alberto Salas Leyton | V60: 06/01/2014 06:41 ~ Falla en línea de 66 kV Celco - Constitución ~ Alberto Salas Leyton | W60: TRUE | X60: 0 | Y60: =IF(LEFT(D60,2)="SD",1,0)*IF(G60="I",1,0)*IF(H60="P",1,0)*IF(OR(J60<=Cálculo!$C$3,I60>=Cálculo!$D$3),0,1)*W60 -> 0
B61: 2014 | C61: VENTANAS 2VENTANAS 2 | D61: SD00287/2014 | E61: VENTANAS 2 | F61: VENTANAS 2 | G61: I | H61: F | I61: 2014-01-06T07:00:00 | J61: 2014-01-09T04:33:00 | K61: 0 | L61: 220 | M61: 69.55 | N61: =(L61-K61)/L61*((J61-I61)-(R61/24)-(S61/24))*24*IF(G61="I",1,0)*IF(OR(J61<=Cálculo!$C$3,I61>=Cálculo!$D$3),0,1)*W61 -> 0 | O61: 0 | P61: 0 | Q61: =IF(LEFT(D61,2)="IF",1,0)*IF(G61="I",1,0)*IF(OR(J61<=Cálculo!$C$3,I61>=Cálculo!$D$3),0,1)*W61 -> 0 | R61: =IF(J61<Cálculo!$D$3,0,(J61-Cálculo!$D$3))*24*IF(OR(J61<=Cálculo!$C$3,I61>=Cálculo!$D$3),0,1) -> 0 | S61: =IF(I61>Cálculo!$C$3,0,Cálculo!$C$3-I61)*24*IF(OR(J61<=Cálculo!$C$3,I61>=Cálculo!$D$3),0,1) -> 0 | T61: Tubo roto de caldera | W61: TRUE | X61: 0 | Y61: =IF(LEFT(D61,2)="SD",1,0)*IF(G61="I",1,0)*IF(H61="P",1,0)*IF(OR(J61<=Cálculo!$C$3,I61>=Cálculo!$D$3),0,1)*W61 -> 0
B62: 2014 | C62: PILMAIQUENPILMAIQUEN 4 | D62: SD40314/2013 | E62: PILMAIQUEN | F62: PILMAIQUEN 4 | G62: I | H62: P | I62: 2014-01-06T16:03:00 | J62: 2014-01-20T19:06:00 | K62: 0 | L62: 12 | M62: 339.05 | N62: =(L62-K62)/L62*((J62-I62)-(R62/24)-(S62/24))*24*IF(G62="I",1,0)*IF(OR(J62<=Cálculo!$C$3,I62>=Cálculo!$D$3),0,1)*W62 -> 0 | O62: 0 | P62: 0 | Q62: =IF(LEFT(D62,2)="IF",1,0)*IF(G62="I",1,0)*IF(OR(J62<=Cálculo!$C$3,I62>=Cálculo!$D$3),0,1)*W62 -> 0 | R62: =IF(J62<Cálculo!$D$3,0,(J62-Cálculo!$D$3))*24*IF(OR(J62<=Cálculo!$C$3,I62>=Cálculo!$D$3),0,1) -> 0 | S62: =IF(I62>Cálculo!$C$3,0,Cálculo!$C$3-I62)*24*IF(OR(J62<=Cálculo!$C$3,I62>=Cálculo!$D$3),0,1) -> 0 | T62: Mantenimiento programado Anual de la Unidad. Eléctrico, Mecánico y Control. | W62: TRUE | X62: 0 | Y62: =IF(LEFT(D62,2)="SD",1,0)*IF(G62="I",1,0)*IF(H62="P",1,0)*IF(OR(J62<=Cálculo!$C$3,I62>=Cálculo!$D$3),0,1)*W62 -> 0
B63: 2014 | C63: QUINTEROQUINTERO 1 | D63: IF00033/2014 | E63: QUINTERO | F63: QUINTERO 1 | G63: I | H63: F | I63: 2014-01-06T19:49:00 | J63: 2014-01-21T10:00:00 | K63: 0 | L63: 128 | M63: 350.1833333 | N63: =(L63-K63)/L63*((J63-I63)-(R63/24)-(S63/24))*24*IF(G63="I",1,0)*IF(OR(J63<=Cálculo!$C$3,I63>=Cálculo!$D$3),0,1)*W63 -> 0 | O63: 0 | P63: 0 | Q63: =IF(LEFT(D63,2)="IF",1,0)*IF(G63="I",1,0)*IF(OR(J63<=Cálculo!$C$3,I63>=Cálculo!$D$3),0,1)*W63 -> 0 | R63: =IF(J63<Cálculo!$D$3,0,(J63-Cálculo!$D$3))*24*IF(OR(J63<=Cálculo!$C$3,I63>=Cálculo!$D$3),0,1) -> 0 | S63: =IF(I63>Cálculo!$C$3,0,Cálculo!$C$3-I63)*24*IF(OR(J63<=Cálculo!$C$3,I63>=Cálculo!$D$3),0,1) -> 0 | U63: 06/01/2014 20:41 ~ Falla Tranductor de Potencia Activa. ~ Fernando Leyton Alegría | W63: TRUE | X63: 0 | Y63: =IF(LEFT(D63,2)="SD",1,0)*IF(G63="I",1,0)*IF(H63="P",1,0)*IF(OR(J63<=Cálculo!$C$3,I63>=Cálculo!$D$3),0,1)*W63 -> 0
B64: 2014 | C64: GUAYACANGUAYACÁN 1 | D64: IF00032/2014 | E64: GUAYACAN | F64: GUAYACÁN 1 | G64: I | H64: F | I64: 2014-01-06T20:41:00 | J64: 2014-01-27T14:30:00 | K64: 0 | L64: 6 | M64: 497.8166667 | N64: =(L64-K64)/L64*((J64-I64)-(R64/24)-(S64/24))*24*IF(G64="I",1,0)*IF(OR(J64<=Cálculo!$C$3,I64>=Cálculo!$D$3),0,1)*W64 -> 0 | O64: 0 | P64: 0 | Q64: =IF(LEFT(D64,2)="IF",1,0)*IF(G64="I",1,0)*IF(OR(J64<=Cálculo!$C$3,I64>=Cálculo!$D$3),0,1)*W64 -> 0 | R64: =IF(J64<Cálculo!$D$3,0,(J64-Cálculo!$D$3))*24*IF(OR(J64<=Cálculo!$C$3,I64>=Cálculo!$D$3),0,1) -> 0 | S64: =IF(I64>Cálculo!$C$3,0,Cálculo!$C$3-I64)*24*IF(OR(J64<=Cálculo!$C$3,I64>=Cálculo!$D$3),0,1) -> 0 | U64: 06/01/2014 20:28 ~ Daño en descanso de Turbina ~ Juan Gutierrez Martinez | W64: TRUE | X64: 0 | Y64: =IF(LEFT(D64,2)="SD",1,0)*IF(G64="I",1,0)*IF(H64="P",1,0)*IF(OR(J64<=Cálculo!$C$3,I64>=Cálculo!$D$3),0,1)*W64 -> 0
B65: 2014 | C65: SAN ISIDRO IISAN ISIDRO II | D65: SD00005/2014 | E65: SAN ISIDRO II | F65: SAN ISIDRO II | G65: I | H65: P | I65: 2014-01-06T22:30:00 | J65: 2014-01-18T00:17:00 | K65: 0 | L65: 399 | M65: 265.7833333 | N65: =(L65-K65)/L65*((J65-I65)-(R65/24)-(S65/24))*24*IF(G65="I",1,0)*IF(OR(J65<=Cálculo!$C$3,I65>=Cálculo!$D$3),0,1)*W65 -> 0 | O65: 0 | P65: 0 | Q65: =IF(LEFT(D65,2)="IF",1,0)*IF(G65="I",1,0)*IF(OR(J65<=Cálculo!$C$3,I65>=Cálculo!$D$3),0,1)*W65 -> 0 | R65: =IF(J65<Cálculo!$D$3,0,(J65-Cálculo!$D$3))*24*IF(OR(J65<=Cálculo!$C$3,I65>=Cálculo!$D$3),0,1) -> 0 | S65: =IF(I65>Cálculo!$C$3,0,Cálculo!$C$3-I65)*24*IF(OR(J65<=Cálculo!$C$3,I65>=Cálculo!$D$3),0,1) -> 0 | T65: Inspección Turbina a Gas, TV, MPB de los BOP y en S/E San Luis se intervendrán paños en 220 KV relacionados con TG y TV 52J10, 52J12, 52J9-10, 52J11-12. Pruebas con Carga para ajustes de combustión | W65: TRUE | X65: 0 | Y65: =IF(LEFT(D65,2)="SD",1,0)*IF(G65="I",1,0)*IF(H65="P",1,0)*IF(OR(J65<=Cálculo!$C$3,I65>=Cálculo!$D$3),0,1)*W65 -> 0
B66: 2014 | C66: CARENACARENA 1 | D66: SD00313/2014 | E66: CARENA | F66: CARENA 1 | G66: I | H66: P | I66: 2014-01-07T08:50:00 | J66: 2014-01-07T10:13:00 | K66: 0 | L66: 2.5 | M66: 1.383333333 | N66: =(L66-K66)/L66*((J66-I66)-(R66/24)-(S66/24))*24*IF(G66="I",1,0)*IF(OR(J66<=Cálculo!$C$3,I66>=Cálculo!$D$3),0,1)*W66 -> 0 | O66: 0 | P66: 0 | Q66: =IF(LEFT(D66,2)="IF",1,0)*IF(G66="I",1,0)*IF(OR(J66<=Cálculo!$C$3,I66>=Cálculo!$D$3),0,1)*W66 -> 0 | R66: =IF(J66<Cálculo!$D$3,0,(J66-Cálculo!$D$3))*24*IF(OR(J66<=Cálculo!$C$3,I66>=Cálculo!$D$3),0,1) -> 0 | S66: =IF(I66>Cálculo!$C$3,0,Cálculo!$C$3-I66)*24*IF(OR(J66<=Cálculo!$C$3,I66>=Cálculo!$D$3),0,1) -> 0 | T66: MP Carena U1: Revisión rodete, codo, difusor descarga, válvulas mariposa y sobrepresión, regulador de velocidad, descansos, serpentín, sistema desagües y refrigeración. Cambio de escobillas carbón y lavado de naves cámara de carga. | W66: TRUE | X66: 0 | Y66: =IF(LEFT(D66,2)="SD",1,0)*IF(G66="I",1,0)*IF(H66="P",1,0)*IF(OR(J66<=Cálculo!$C$3,I66>=Cálculo!$D$3),0,1)*W66 -> 0
B67: 2014 | C67: CANELA IICANELA II | D67: SD00312/2014 | E67: CANELA II | F67: CANELA II | G67: I | H67: P | I67: 2014-01-07T08:52:00 | J67: 2014-01-07T16:00:00 | K67: 58.5 | L67: 60 | M67: 0.1783333333 | N67: =(L67-K67)/L67*((J67-I67)-(R67/24)-(S67/24))*24*IF(G67="I",1,0)*IF(OR(J67<=Cálculo!$C$3,I67>=Cálculo!$D$3),0,1)*W67 -> 0 | O67: 0 | P67: 0 | Q67: =IF(LEFT(D67,2)="IF",1,0)*IF(G67="I",1,0)*IF(OR(J67<=Cálculo!$C$3,I67>=Cálculo!$D$3),0,1)*W67 -> 0 | R67: =IF(J67<Cálculo!$D$3,0,(J67-Cálculo!$D$3))*24*IF(OR(J67<=Cálculo!$C$3,I67>=Cálculo!$D$3),0,1) -> 0 | S67: =IF(I67>Cálculo!$C$3,0,Cálculo!$C$3-I67)*24*IF(OR(J67<=Cálculo!$C$3,I67>=Cálculo!$D$3),0,1) -> 0 | T67: - Aerogenerador C01, 1.5 MW indisponibles. - Mantenimiento preventivo mecánico y eléctrico, en la unidad Aerogenerador Acciona. | W67: TRUE | X67: 0 | Y67: =IF(LEFT(D67,2)="SD",1,0)*IF(G67="I",1,0)*IF(H67="P",1,0)*IF(OR(J67<=Cálculo!$C$3,I67>=Cálculo!$D$3),0,1)*W67 -> 0
B68: 2014 | C68: LOMA LOS COLORADOS (KDM)Central | D68: SD00332/2014 | E68: LOMA LOS COLORADOS (KDM) | F68: Central | G68: I | H68: P | I68: 2014-01-07T09:14:00 | J68: 2014-01-07T11:05:00 | K68: 0 | L68: 2 | M68: 1.85 | N68: =(L68-K68)/L68*((J68-I68)-(R68/24)-(S68/24))*24*IF(G68="I",1,0)*IF(OR(J68<=Cálculo!$C$3,I68>=Cálculo!$D$3),0,1)*W68 -> 0 | O68: 0 | P68: 0 | Q68: =IF(LEFT(D68,2)="IF",1,0)*IF(G68="I",1,0)*IF(OR(J68<=Cálculo!$C$3,I68>=Cálculo!$D$3),0,1)*W68 -> 0 | R68: =IF(J68<Cálculo!$D$3,0,(J68-Cálculo!$D$3))*24*IF(OR(J68<=Cálculo!$C$3,I68>=Cálculo!$D$3),0,1) -> 0 | S68: =IF(I68>Cálculo!$C$3,0,Cálculo!$C$3-I68)*24*IF(OR(J68<=Cálculo!$C$3,I68>=Cálculo!$D$3),0,1) -> 0 | T68: Limpieza de los scrubber de la Planta de Tratamiento de Gas (PTG) con el fin de mejorar las condiciones de presión de trabajo de la central. | W68: TRUE | X68: 0 | Y68: =IF(LEFT(D68,2)="SD",1,0)*IF(G68="I",1,0)*IF(H68="P",1,0)*IF(OR(J68<=Cálculo!$C$3,I68>=Cálculo!$D$3),0,1)*W68 -> 0
B69: 2014 | C69: LOMA LOS COLORADOS II (KDM)Central | D69: SD00330/2014 | E69: LOMA LOS COLORADOS II (KDM) | F69: Central | G69: I | H69: P | I69: 2014-01-07T09:14:00 | J69: 2014-01-07T10:42:00 | K69: 0 | L69: 15.4 | M69: 1.466666667 | N69: =(L69-K69)/L69*((J69-I69)-(R69/24)-(S69/24))*24*IF(G69="I",1,0)*IF(OR(J69<=Cálculo!$C$3,I69>=Cálculo!$D$3),0,1)*W69 -> 0 | O69: 0 | P69: 0 | Q69: =IF(LEFT(D69,2)="IF",1,0)*IF(G69="I",1,0)*IF(OR(J69<=Cálculo!$C$3,I69>=Cálculo!$D$3),0,1)*W69 -> 0 | R69: =IF(J69<Cálculo!$D$3,0,(J69-Cálculo!$D$3))*24*IF(OR(J69<=Cálculo!$C$3,I69>=Cálculo!$D$3),0,1) -> 0 | S69: =IF(I69>Cálculo!$C$3,0,Cálculo!$C$3-I69)*24*IF(OR(J69<=Cálculo!$C$3,I69>=Cálculo!$D$3),0,1) -> 0 | T69: Limpieza de los scrubber de la Planta de Tratamiento de Gas (PTG) con el fin de mejorar las condiciones de presión de trabajo de la central. | W69: TRUE | X69: 0 | Y69: =IF(LEFT(D69,2)="SD",1,0)*IF(G69="I",1,0)*IF(H69="P",1,0)*IF(OR(J69<=Cálculo!$C$3,I69>=Cálculo!$D$3),0,1)*W69 -> 0
B70: 2014 | C70: CARENACARENA 2 | D70: SD00314/2014 | E70: CARENA | F70: CARENA 2 | G70: I | H70: P | I70: 2014-01-07T10:16:00 | J70: 2014-01-07T10:55:00 | K70: 0 | L70: 2.5 | M70: 0.65 | N70: =(L70-K70)/L70*((J70-I70)-(R70/24)-(S70/24))*24*IF(G70="I",1,0)*IF(OR(J70<=Cálculo!$C$3,I70>=Cálculo!$D$3),0,1)*W70 -> 0 | O70: 0 | P70: 0 | Q70: =IF(LEFT(D70,2)="IF",1,0)*IF(G70="I",1,0)*IF(OR(J70<=Cálculo!$C$3,I70>=Cálculo!$D$3),0,1)*W70 -> 0 | R70: =IF(J70<Cálculo!$D$3,0,(J70-Cálculo!$D$3))*24*IF(OR(J70<=Cálculo!$C$3,I70>=Cálculo!$D$3),0,1) -> 0 | S70: =IF(I70>Cálculo!$C$3,0,Cálculo!$C$3-I70)*24*IF(OR(J70<=Cálculo!$C$3,I70>=Cálculo!$D$3),0,1) -> 0 | T70: MP Carena U2: Revisión rodete, codo, difusor descarga, válvulas mariposa y sobrepresión, regulador de velocidad, descansos, serpentín, sistema desagües y refrigeración. Cambio de escobillas carbón y lavado de naves cámara de carga. | W70: TRUE | X70: 0 | Y70: =IF(LEFT(D70,2)="SD",1,0)*IF(G70="I",1,0)*IF(H70="P",1,0)*IF(OR(J70<=Cálculo!$C$3,I70>=Cálculo!$D$3),0,1)*W70 -> 0
B71: 2014 | C71: ANTUCOANTUCO 2 | D71: SD00317/2014 | E71: ANTUCO | F71: ANTUCO 2 | G71: I | H71: P | I71: 2014-01-07T10:48:00 | J71: 2014-01-07T12:00:00 | K71: 0 | L71: 160 | M71: 1.2 | N71: =(L71-K71)/L71*((J71-I71)-(R71/24)-(S71/24))*24*IF(G71="I",1,0)*IF(OR(J71<=Cálculo!$C$3,I71>=Cálculo!$D$3),0,1)*W71 -> 0 | O71: 0 | P71: 0 | Q71: =IF(LEFT(D71,2)="IF",1,0)*IF(G71="I",1,0)*IF(OR(J71<=Cálculo!$C$3,I71>=Cálculo!$D$3),0,1)*W71 -> 0 | R71: =IF(J71<Cálculo!$D$3,0,(J71-Cálculo!$D$3))*24*IF(OR(J71<=Cálculo!$C$3,I71>=Cálculo!$D$3),0,1) -> 0 | S71: =IF(I71>Cálculo!$C$3,0,Cálculo!$C$3-I71)*24*IF(OR(J71<=Cálculo!$C$3,I71>=Cálculo!$D$3),0,1) -> 0 | W71: TRUE | X71: 0 | Y71: =IF(LEFT(D71,2)="SD",1,0)*IF(G71="I",1,0)*IF(H71="P",1,0)*IF(OR(J71<=Cálculo!$C$3,I71>=Cálculo!$D$3),0,1)*W71 -> 0
B72: 2014 | C72: CALLE CALLECALLE CALLE 1 | D72: SD00280/2014 | E72: CALLE CALLE | F72: CALLE CALLE 1 | G72: I | H72: P | I72: 2014-01-07T11:06:00 | J72: 2014-01-27T17:37:00 | K72: 0 | L72: 1.6 | M72: 486.5166667 | N72: =(L72-K72)/L72*((J72-I72)-(R72/24)-(S72/24))*24*IF(G72="I",1,0)*IF(OR(J72<=Cálculo!$C$3,I72>=Cálculo!$D$3),0,1)*W72 -> 0 | O72: 0 | P72: 0 | Q72: =IF(LEFT(D72,2)="IF",1,0)*IF(G72="I",1,0)*IF(OR(J72<=Cálculo!$C$3,I72>=Cálculo!$D$3),0,1)*W72 -> 0 | R72: =IF(J72<Cálculo!$D$3,0,(J72-Cálculo!$D$3))*24*IF(OR(J72<=Cálculo!$C$3,I72>=Cálculo!$D$3),0,1) -> 0 | S72: =IF(I72>Cálculo!$C$3,0,Cálculo!$C$3-I72)*24*IF(OR(J72<=Cálculo!$C$3,I72>=Cálculo!$D$3),0,1) -> 0 | T72: Lavado de radiador de la unidad 1 y reemplazo de cigueñal. | W72: TRUE | X72: 0 | Y72: =IF(LEFT(D72,2)="SD",1,0)*IF(G72="I",1,0)*IF(H72="P",1,0)*IF(OR(J72<=Cálculo!$C$3,I72>=Cálculo!$D$3),0,1)*W72 -> 0
B73: 2014 | C73: CARENACARENA 3 | D73: SD00315/2014 | E73: CARENA | F73: CARENA 3 | G73: I | H73: P | I73: 2014-01-07T11:11:00 | J73: 2014-01-07T12:05:00 | K73: 0 | L73: 2.5 | M73: 0.9 | N73: =(L73-K73)/L73*((J73-I73)-(R73/24)-(S73/24))*24*IF(G73="I",1,0)*IF(OR(J73<=Cálculo!$C$3,I73>=Cálculo!$D$3),0,1)*W73 -> 0 | O73: 0 | P73: 0 | Q73: =IF(LEFT(D73,2)="IF",1,0)*IF(G73="I",1,0)*IF(OR(J73<=Cálculo!$C$3,I73>=Cálculo!$D$3),0,1)*W73 -> 0 | R73: =IF(J73<Cálculo!$D$3,0,(J73-Cálculo!$D$3))*24*IF(OR(J73<=Cálculo!$C$3,I73>=Cálculo!$D$3),0,1) -> 0 | S73: =IF(I73>Cálculo!$C$3,0,Cálculo!$C$3-I73)*24*IF(OR(J73<=Cálculo!$C$3,I73>=Cálculo!$D$3),0,1) -> 0 | T73: MP Carena U3: Revisión rodete, codo, difusor descarga, válvulas mariposa y sobrepresión, regulador de velocidad, descansos, serpentín, sistema desagües y refrigeración. Cambio de escobillas carbón y lavado de naves cámara de carga. | W73: TRUE | X73: 0 | Y73: =IF(LEFT(D73,2)="SD",1,0)*IF(G73="I",1,0)*IF(H73="P",1,0)*IF(OR(J73<=Cálculo!$C$3,I73>=Cálculo!$D$3),0,1)*W73 -> 0
B74: 2014 | C74: LAJACentral | D74: SD00470/2014 | E74: LAJA | F74: Central | G74: I | H74: F | I74: 2014-01-07T11:48:00 | J74: 2014-01-07T17:07:00 | K74: 0 | L74: 10.2 | M74: 5.316666667 | N74: =(L74-K74)/L74*((J74-I74)-(R74/24)-(S74/24))*24*IF(G74="I",1,0)*IF(OR(J74<=Cálculo!$C$3,I74>=Cálculo!$D$3),0,1)*W74 -> 0 | O74: 0 | P74: 0 | Q74: =IF(LEFT(D74,2)="IF",1,0)*IF(G74="I",1,0)*IF(OR(J74<=Cálculo!$C$3,I74>=Cálculo!$D$3),0,1)*W74 -> 0 | R74: =IF(J74<Cálculo!$D$3,0,(J74-Cálculo!$D$3))*24*IF(OR(J74<=Cálculo!$C$3,I74>=Cálculo!$D$3),0,1) -> 0 | S74: =IF(I74>Cálculo!$C$3,0,Cálculo!$C$3-I74)*24*IF(OR(J74<=Cálculo!$C$3,I74>=Cálculo!$D$3),0,1) -> 0 | T74: Fuera de servicio debido a alta temperatura en fases del generador. por falla en S/E Enlace | W74: TRUE | X74: 0 | Y74: =IF(LEFT(D74,2)="SD",1,0)*IF(G74="I",1,0)*IF(H74="P",1,0)*IF(OR(J74<=Cálculo!$C$3,I74>=Cálculo!$D$3),0,1)*W74 -> 0
B75: 2014 | C75: ABANICOABANICO 1 | D75: IF00039/2014 | E75: ABANICO | F75: ABANICO 1 | G75: I | H75: F | I75: 2014-01-07T12:01:00 | J75: 2014-01-07T13:09:00 | K75: 0 | L75: 22.7 | M75: 1.133333333 | N75: =(L75-K75)/L75*((J75-I75)-(R75/24)-(S75/24))*24*IF(G75="I",1,0)*IF(OR(J75<=Cálculo!$C$3,I75>=Cálculo!$D$3),0,1)*W75 -> 0 | O75: 0 | P75: 0 | Q75: =IF(LEFT(D75,2)="IF",1,0)*IF(G75="I",1,0)*IF(OR(J75<=Cálculo!$C$3,I75>=Cálculo!$D$3),0,1)*W75 -> 0 | R75: =IF(J75<Cálculo!$D$3,0,(J75-Cálculo!$D$3))*24*IF(OR(J75<=Cálculo!$C$3,I75>=Cálculo!$D$3),0,1) -> 0 | S75: =IF(I75>Cálculo!$C$3,0,Cálculo!$C$3-I75)*24*IF(OR(J75<=Cálculo!$C$3,I75>=Cálculo!$D$3),0,1) -> 0 | U75: 07/01/2014 16:05 ~ Se investiga ~ Ricardo Rodríguez H. | W75: TRUE | X75: 0 | Y75: =IF(LEFT(D75,2)="SD",1,0)*IF(G75="I",1,0)*IF(H75="P",1,0)*IF(OR(J75<=Cálculo!$C$3,I75>=Cálculo!$D$3),0,1)*W75 -> 0
B76: 2014 | C76: CARENACARENA 4 | D76: SD00316/2014 | E76: CARENA | F76: CARENA 4 | G76: I | H76: P | I76: 2014-01-07T12:22:00 | J76: 2014-01-07T12:57:00 | K76: 0 | L76: 2.5 | M76: 0.5833333333 | N76: =(L76-K76)/L76*((J76-I76)-(R76/24)-(S76/24))*24*IF(G76="I",1,0)*IF(OR(J76<=Cálculo!$C$3,I76>=Cálculo!$D$3),0,1)*W76 -> 0 | O76: 0 | P76: 0 | Q76: =IF(LEFT(D76,2)="IF",1,0)*IF(G76="I",1,0)*IF(OR(J76<=Cálculo!$C$3,I76>=Cálculo!$D$3),0,1)*W76 -> 0 | R76: =IF(J76<Cálculo!$D$3,0,(J76-Cálculo!$D$3))*24*IF(OR(J76<=Cálculo!$C$3,I76>=Cálculo!$D$3),0,1) -> 0 | S76: =IF(I76>Cálculo!$C$3,0,Cálculo!$C$3-I76)*24*IF(OR(J76<=Cálculo!$C$3,I76>=Cálculo!$D$3),0,1) -> 0 | T76: MP Carena U4: Revisión rodete, codo, difusor descarga, válvulas mariposa y sobrepresión, regulador de velocidad, descansos, serpentín, sistema desagües y refrigeración. Cambio de escobillas carbón y lavado de naves cámara de carga. | W76: TRUE | X76: 0 | Y76: =IF(LEFT(D76,2)="SD",1,0)*IF(G76="I",1,0)*IF(H76="P",1,0)*IF(OR(J76<=Cálculo!$C$3,I76>=Cálculo!$D$3),0,1)*W76 -> 0
B77: 2014 | C77: ANTUCOANTUCO 1 | D77: SD00318/2014 | E77: ANTUCO | F77: ANTUCO 1 | G77: I | H77: P | I77: 2014-01-07T14:40:00 | J77: 2014-01-07T16:12:00 | K77: 0 | L77: 160 | M77: 1.533333333 | N77: =(L77-K77)/L77*((J77-I77)-(R77/24)-(S77/24))*24*IF(G77="I",1,0)*IF(OR(J77<=Cálculo!$C$3,I77>=Cálculo!$D$3),0,1)*W77 -> 0 | O77: 0 | P77: 0 | Q77: =IF(LEFT(D77,2)="IF",1,0)*IF(G77="I",1,0)*IF(OR(J77<=Cálculo!$C$3,I77>=Cálculo!$D$3),0,1)*W77 -> 0 | R77: =IF(J77<Cálculo!$D$3,0,(J77-Cálculo!$D$3))*24*IF(OR(J77<=Cálculo!$C$3,I77>=Cálculo!$D$3),0,1) -> 0 | S77: =IF(I77>Cálculo!$C$3,0,Cálculo!$C$3-I77)*24*IF(OR(J77<=Cálculo!$C$3,I77>=Cálculo!$D$3),0,1) -> 0 | W77: TRUE | X77: 0 | Y77: =IF(LEFT(D77,2)="SD",1,0)*IF(G77="I",1,0)*IF(H77="P",1,0)*IF(OR(J77<=Cálculo!$C$3,I77>=Cálculo!$D$3),0,1)*W77 -> 0
B78: 2014 | C78: CURILLINQUECURILLINQUE | D78: IF00042/2014 | E78: CURILLINQUE | F78: CURILLINQUE | G78: I | H78: F | I78: 2014-01-07T20:05:00 | J78: 2014-01-07T21:52:00 | K78: 0 | L78: 92 | M78: 1.783333333 | N78: =(L78-K78)/L78*((J78-I78)-(R78/24)-(S78/24))*24*IF(G78="I",1,0)*IF(OR(J78<=Cálculo!$C$3,I78>=Cálculo!$D$3),0,1)*W78 -> 0 | O78: 0 | P78: 0 | Q78: =IF(LEFT(D78,2)="IF",1,0)*IF(G78="I",1,0)*IF(OR(J78<=Cálculo!$C$3,I78>=Cálculo!$D$3),0,1)*W78 -> 0 | R78: =IF(J78<Cálculo!$D$3,0,(J78-Cálculo!$D$3))*24*IF(OR(J78<=Cálculo!$C$3,I78>=Cálculo!$D$3),0,1) -> 0 | S78: =IF(I78>Cálculo!$C$3,0,Cálculo!$C$3-I78)*24*IF(OR(J78<=Cálculo!$C$3,I78>=Cálculo!$D$3),0,1) -> 0 | U78: 07/01/2014 21:02 ~ Temperatura alta aire calido ~ Fernando Leyton Alegría | W78: TRUE | X78: 0 | Y78: =IF(LEFT(D78,2)="SD",1,0)*IF(G78="I",1,0)*IF(H78="P",1,0)*IF(OR(J78<=Cálculo!$C$3,I78>=Cálculo!$D$3),0,1)*W78 -> 0
B79: 2014 | C79: VENTANAS 1VENTANAS 1 | D79: IL00012/2014 | E79: VENTANAS 1 | F79: VENTANAS 1 | G79: I | H79: F | I79: 2014-01-07T23:20:00 | J79: 2014-01-08T11:15:00 | K79: 100 | L79: 120 | M79: 1.986111111 | N79: =(L79-K79)/L79*((J79-I79)-(R79/24)-(S79/24))*24*IF(G79="I",1,0)*IF(OR(J79<=Cálculo!$C$3,I79>=Cálculo!$D$3),0,1)*W79 -> 0 | O79: 0 | P79: 0 | Q79: =IF(LEFT(D79,2)="IF",1,0)*IF(G79="I",1,0)*IF(OR(J79<=Cálculo!$C$3,I79>=Cálculo!$D$3),0,1)*W79 -> 0 | R79: =IF(J79<Cálculo!$D$3,0,(J79-Cálculo!$D$3))*24*IF(OR(J79<=Cálculo!$C$3,I79>=Cálculo!$D$3),0,1) -> 0 | S79: =IF(I79>Cálculo!$C$3,0,Cálculo!$C$3-I79)*24*IF(OR(J79<=Cálculo!$C$3,I79>=Cálculo!$D$3),0,1) -> 0 | T79: Control de temperatura de descarga agua de mar. | W79: TRUE | X79: 0 | Y79: =IF(LEFT(D79,2)="SD",1,0)*IF(G79="I",1,0)*IF(H79="P",1,0)*IF(OR(J79<=Cálculo!$C$3,I79>=Cálculo!$D$3),0,1)*W79 -> 0
B80: 2014 | C80: CANELA IICANELA II | D80: SD00452/2014 | E80: CANELA II | F80: CANELA II | G80: I | H80: P | I80: 2014-01-08T08:39:00 | J80: 2014-01-08T17:05:00 | K80: 58.5 | L80: 60 | M80: 0.2108333333 | N80: =(L80-K80)/L80*((J80-I80)-(R80/24)-(S80/24))*24*IF(G80="I",1,0)*IF(OR(J80<=Cálculo!$C$3,I80>=Cálculo!$D$3),0,1)*W80 -> 0 | O80: 0 | P80: 0 | Q80: =IF(LEFT(D80,2)="IF",1,0)*IF(G80="I",1,0)*IF(OR(J80<=Cálculo!$C$3,I80>=Cálculo!$D$3),0,1)*W80 -> 0 | R80: =IF(J80<Cálculo!$D$3,0,(J80-Cálculo!$D$3))*24*IF(OR(J80<=Cálculo!$C$3,I80>=Cálculo!$D$3),0,1) -> 0 | S80: =IF(I80>Cálculo!$C$3,0,Cálculo!$C$3-I80)*24*IF(OR(J80<=Cálculo!$C$3,I80>=Cálculo!$D$3),0,1) -> 0 | T80: Aerogenerador C01; Mantenimiento preventivo mecánico y eléctrico. | W80: TRUE | X80: 0 | Y80: =IF(LEFT(D80,2)="SD",1,0)*IF(G80="I",1,0)*IF(H80="P",1,0)*IF(OR(J80<=Cálculo!$C$3,I80>=Cálculo!$D$3),0,1)*W80 -> 0
B81: 2014 | C81: CHACAYESCHACAYES 1 | D81: SD00437/2014 | E81: CHACAYES | F81: CHACAYES 1 | G81: I | H81: P | I81: 2014-01-08T09:58:00 | J81: 2014-01-08T10:35:00 | K81: 0 | L81: 56 | M81: 0.6166666666 | N81: =(L81-K81)/L81*((J81-I81)-(R81/24)-(S81/24))*24*IF(G81="I",1,0)*IF(OR(J81<=Cálculo!$C$3,I81>=Cálculo!$D$3),0,1)*W81 -> 0 | O81: 0 | P81: 0 | Q81: =IF(LEFT(D81,2)="IF",1,0)*IF(G81="I",1,0)*IF(OR(J81<=Cálculo!$C$3,I81>=Cálculo!$D$3),0,1)*W81 -> 0 | R81: =IF(J81<Cálculo!$D$3,0,(J81-Cálculo!$D$3))*24*IF(OR(J81<=Cálculo!$C$3,I81>=Cálculo!$D$3),0,1) -> 0 | S81: =IF(I81>Cálculo!$C$3,0,Cálculo!$C$3-I81)*24*IF(OR(J81<=Cálculo!$C$3,I81>=Cálculo!$D$3),0,1) -> 0 | T81: Se requiere detener la Unidad 1 durante media hora, para calibrar instrumentos comparadores de posición en válvula mariposa. | W81: TRUE | X81: 0 | Y81: =IF(LEFT(D81,2)="SD",1,0)*IF(G81="I",1,0)*IF(H81="P",1,0)*IF(OR(J81<=Cálculo!$C$3,I81>=Cálculo!$D$3),0,1)*W81 -> 0
B82: 2014 | C82: ANTUCOANTUCO 1 | D82: SD00526/2014 | E82: ANTUCO | F82: ANTUCO 1 | G82: I | H82: F | I82: 2014-01-08T10:02:00 | J82: 2014-01-08T12:14:00 | K82: 0 | L82: 160 | M82: 2.2 | N82: =(L82-K82)/L82*((J82-I82)-(R82/24)-(S82/24))*24*IF(G82="I",1,0)*IF(OR(J82<=Cálculo!$C$3,I82>=Cálculo!$D$3),0,1)*W82 -> 0 | O82: 0 | P82: 0 | Q82: =IF(LEFT(D82,2)="IF",1,0)*IF(G82="I",1,0)*IF(OR(J82<=Cálculo!$C$3,I82>=Cálculo!$D$3),0,1)*W82 -> 0 | R82: =IF(J82<Cálculo!$D$3,0,(J82-Cálculo!$D$3))*24*IF(OR(J82<=Cálculo!$C$3,I82>=Cálculo!$D$3),0,1) -> 0 | S82: =IF(I82>Cálculo!$C$3,0,Cálculo!$C$3-I82)*24*IF(OR(J82<=Cálculo!$C$3,I82>=Cálculo!$D$3),0,1) -> 0 | T82: Cambiar fuente de alimentación superior Regulador de Voltaje, por falla de estas. | W82: TRUE | X82: 0 | Y82: =IF(LEFT(D82,2)="SD",1,0)*IF(G82="I",1,0)*IF(H82="P",1,0)*IF(OR(J82<=Cálculo!$C$3,I82>=Cálculo!$D$3),0,1)*W82 -> 0
B83: 2014 | C83: CHACAYESCHACAYES 2 | D83: SD00442/2014 | E83: CHACAYES | F83: CHACAYES 2 | G83: I | H83: P | I83: 2014-01-08T10:35:00 | J83: 2014-01-08T10:58:00 | K83: 0 | L83: 56 | M83: 0.3833333334 | N83: =(L83-K83)/L83*((J83-I83)-(R83/24)-(S83/24))*24*IF(G83="I",1,0)*IF(OR(J83<=Cálculo!$C$3,I83>=Cálculo!$D$3),0,1)*W83 -> 0 | O83: 0 | P83: 0 | Q83: =IF(LEFT(D83,2)="IF",1,0)*IF(G83="I",1,0)*IF(OR(J83<=Cálculo!$C$3,I83>=Cálculo!$D$3),0,1)*W83 -> 0 | R83: =IF(J83<Cálculo!$D$3,0,(J83-Cálculo!$D$3))*24*IF(OR(J83<=Cálculo!$C$3,I83>=Cálculo!$D$3),0,1) -> 0 | S83: =IF(I83>Cálculo!$C$3,0,Cálculo!$C$3-I83)*24*IF(OR(J83<=Cálculo!$C$3,I83>=Cálculo!$D$3),0,1) -> 0 | T83: Se requiere detener la Unidad 2 durante media hora, para calibrar instrumentos comparadores de posición en válvula mariposa. | W83: TRUE | X83: 0 | Y83: =IF(LEFT(D83,2)="SD",1,0)*IF(G83="I",1,0)*IF(H83="P",1,0)*IF(OR(J83<=Cálculo!$C$3,I83>=Cálculo!$D$3),0,1)*W83 -> 0
B84: 2014 | C84: ESCUADRONCentral | D84: SD00561/2014 | E84: ESCUADRON | F84: Central | G84: I | H84: F | I84: 2014-01-08T11:05:00 | J84: 2014-01-08T11:20:00 | K84: 12 | L84: 12.2 | M84: 0.004098360655 | N84: =(L84-K84)/L84*((J84-I84)-(R84/24)-(S84/24))*24*IF(G84="I",1,0)*IF(OR(J84<=Cálculo!$C$3,I84>=Cálculo!$D$3),0,1)*W84 -> 0 | O84: 0 | P84: 0 | Q84: =IF(LEFT(D84,2)="IF",1,0)*IF(G84="I",1,0)*IF(OR(J84<=Cálculo!$C$3,I84>=Cálculo!$D$3),0,1)*W84 -> 0 | R84: =IF(J84<Cálculo!$D$3,0,(J84-Cálculo!$D$3))*24*IF(OR(J84<=Cálculo!$C$3,I84>=Cálculo!$D$3),0,1) -> 0 | S84: =IF(I84>Cálculo!$C$3,0,Cálculo!$C$3-I84)*24*IF(OR(J84<=Cálculo!$C$3,I84>=Cálculo!$D$3),0,1) -> 0 | T84: Combustiòn inestable de la caldera de poder. Se realiza desconexiòn de ambas unidades de generaciòn para establizar combustible y volver a recuperar presiòn de vapor. | W84: TRUE | X84: 0 | Y84: =IF(LEFT(D84,2)="SD",1,0)*IF(G84="I",1,0)*IF(H84="P",1,0)*IF(OR(J84<=Cálculo!$C$3,I84>=Cálculo!$D$3),0,1)*W84 -> 0
B85: 2014 | C85: VENTANAS 1VENTANAS 1 | D85: IL00013/2014 | E85: VENTANAS 1 | F85: VENTANAS 1 | G85: I | H85: F | I85: 2014-01-08T11:15:00 | J85: 2014-01-08T16:02:00 | K85: 65 | L85: 120 | M85: 2.192361111 | N85: =(L85-K85)/L85*((J85-I85)-(R85/24)-(S85/24))*24*IF(G85="I",1,0)*IF(OR(J85<=Cálculo!$C$3,I85>=Cálculo!$D$3),0,1)*W85 -> 0 | O85: 0 | P85: 0 | Q85: =IF(LEFT(D85,2)="IF",1,0)*IF(G85="I",1,0)*IF(OR(J85<=Cálculo!$C$3,I85>=Cálculo!$D$3),0,1)*W85 -> 0 | R85: =IF(J85<Cálculo!$D$3,0,(J85-Cálculo!$D$3))*24*IF(OR(J85<=Cálculo!$C$3,I85>=Cálculo!$D$3),0,1) -> 0 | S85: =IF(I85>Cálculo!$C$3,0,Cálculo!$C$3-I85)*24*IF(OR(J85<=Cálculo!$C$3,I85>=Cálculo!$D$3),0,1) -> 0 | T85: Limitada en 65 MW por avalancha de algas que tienen obstruido el condensador de la unidad. | W85: TRUE | X85: 0 | Y85: =IF(LEFT(D85,2)="SD",1,0)*IF(G85="I",1,0)*IF(H85="P",1,0)*IF(OR(J85<=Cálculo!$C$3,I85>=Cálculo!$D$3),0,1)*W85 -> 0
B86: 2014 | C86: CHACAYESCHACAYES 2 | D86: IF00049/2014 | E86: CHACAYES | F86: CHACAYES 2 | G86: I | H86: F | I86: 2014-01-08T13:44:00 | J86: 2014-01-08T14:06:00 | K86: 0 | L86: 56 | M86: 0.3666666666 | N86: =(L86-K86)/L86*((J86-I86)-(R86/24)-(S86/24))*24*IF(G86="I",1,0)*IF(OR(J86<=Cálculo!$C$3,I86>=Cálculo!$D$3),0,1)*W86 -> 0 | O86: 0 | P86: 0 | Q86: =IF(LEFT(D86,2)="IF",1,0)*IF(G86="I",1,0)*IF(OR(J86<=Cálculo!$C$3,I86>=Cálculo!$D$3),0,1)*W86 -> 0 | R86: =IF(J86<Cálculo!$D$3,0,(J86-Cálculo!$D$3))*24*IF(OR(J86<=Cálculo!$C$3,I86>=Cálculo!$D$3),0,1) -> 0 | S86: =IF(I86>Cálculo!$C$3,0,Cálculo!$C$3-I86)*24*IF(OR(J86<=Cálculo!$C$3,I86>=Cálculo!$D$3),0,1) -> 0 | V86: 08/01/2014 14:29 ~ Baja de flujo de agua de refrigeración descansos. ~ ASA | W86: TRUE | X86: 0 | Y86: =IF(LEFT(D86,2)="SD",1,0)*IF(G86="I",1,0)*IF(H86="P",1,0)*IF(OR(J86<=Cálculo!$C$3,I86>=Cálculo!$D$3),0,1)*W86 -> 0
B87: 2014 | C87: CMPC LAJACentral | D87: IL00014/2014 | E87: CMPC LAJA | F87: Central | G87: I | H87: F | I87: 2014-01-08T15:00:00 | J87: 2014-01-08T17:15:00 | K87: 0 | L87: 25 | M87: 2.25 | N87: =(L87-K87)/L87*((J87-I87)-(R87/24)-(S87/24))*24*IF(G87="I",1,0)*IF(OR(J87<=Cálculo!$C$3,I87>=Cálculo!$D$3),0,1)*W87 -> 0 | O87: 0 | P87: 0 | Q87: =IF(LEFT(D87,2)="IF",1,0)*IF(G87="I",1,0)*IF(OR(J87<=Cálculo!$C$3,I87>=Cálculo!$D$3),0,1)*W87 -> 0 | R87: =IF(J87<Cálculo!$D$3,0,(J87-Cálculo!$D$3))*24*IF(OR(J87<=Cálculo!$C$3,I87>=Cálculo!$D$3),0,1) -> 0 | S87: =IF(I87>Cálculo!$C$3,0,Cálculo!$C$3-I87)*24*IF(OR(J87<=Cálculo!$C$3,I87>=Cálculo!$D$3),0,1) -> 0 | T87: Obstrucción es sistema de alimentación caldera biomasa | W87: TRUE | X87: 0 | Y87: =IF(LEFT(D87,2)="SD",1,0)*IF(G87="I",1,0)*IF(H87="P",1,0)*IF(OR(J87<=Cálculo!$C$3,I87>=Cálculo!$D$3),0,1)*W87 -> 0
B88: 2014 | C88: QUELTEHUESQUELTEHUES 2 | D88: IF00084/2014 | E88: QUELTEHUES | F88: QUELTEHUES 2 | G88: I | H88: F | I88: 2014-01-08T15:08:00 | J88: 2014-01-17T01:18:00 | K88: 0 | L88: 16.3 | M88: 202.1666667 | N88: =(L88-K88)/L88*((J88-I88)-(R88/24)-(S88/24))*24*IF(G88="I",1,0)*IF(OR(J88<=Cálculo!$C$3,I88>=Cálculo!$D$3),0,1)*W88 -> 0 | O88: 0 | P88: 0 | Q88: =IF(LEFT(D88,2)="IF",1,0)*IF(G88="I",1,0)*IF(OR(J88<=Cálculo!$C$3,I88>=Cálculo!$D$3),0,1)*W88 -> 0 | R88: =IF(J88<Cálculo!$D$3,0,(J88-Cálculo!$D$3))*24*IF(OR(J88<=Cálculo!$C$3,I88>=Cálculo!$D$3),0,1) -> 0 | S88: =IF(I88>Cálculo!$C$3,0,Cálculo!$C$3-I88)*24*IF(OR(J88<=Cálculo!$C$3,I88>=Cálculo!$D$3),0,1) -> 0 | U88: 10/01/2014 19:57 ~ Desconexión de unidad por operación automática de LT Queltehues Laja ambos ctos. por incendio. Unidad en el momento de la falla se funde descanso de empuje y queda indisponible. ~ Felipe Mendoza L. | W88: TRUE | X88: 0 | Y88: =IF(LEFT(D88,2)="SD",1,0)*IF(G88="I",1,0)*IF(H88="P",1,0)*IF(OR(J88<=Cálculo!$C$3,I88>=Cálculo!$D$3),0,1)*W88 -> 0
B89: 2014 | C89: EYZAGUIRREEYZAGUIRRE 1 | D89: IF00082/2014 | E89: EYZAGUIRRE | F89: EYZAGUIRRE 1 | G89: E | H89: F | I89: 2014-01-08T15:08:00 | J89: 2014-01-08T20:28:00 | K89: 0 | L89: 2.1 | M89: 0 | N89: =(L89-K89)/L89*((J89-I89)-(R89/24)-(S89/24))*24*IF(G89="I",1,0)*IF(OR(J89<=Cálculo!$C$3,I89>=Cálculo!$D$3),0,1)*W89 -> 0 | O89: 0 | P89: 0 | Q89: =IF(LEFT(D89,2)="IF",1,0)*IF(G89="I",1,0)*IF(OR(J89<=Cálculo!$C$3,I89>=Cálculo!$D$3),0,1)*W89 -> 0 | R89: =IF(J89<Cálculo!$D$3,0,(J89-Cálculo!$D$3))*24*IF(OR(J89<=Cálculo!$C$3,I89>=Cálculo!$D$3),0,1) -> 0 | S89: =IF(I89>Cálculo!$C$3,0,Cálculo!$C$3-I89)*24*IF(OR(J89<=Cálculo!$C$3,I89>=Cálculo!$D$3),0,1) -> 0 | U89: 10/01/2014 16:21 ~ Desconexión intempestiva de la unidad por operación de protecció del generedador debido a falla externa en LT de 110 kV Florida - Maitenes – Queltehues – La Laja circuitos 1 y 2. ~ E. Maurens | W89: TRUE | X89: 0 | Y89: =IF(LEFT(D89,2)="SD",1,0)*IF(G89="I",1,0)*IF(H89="P",1,0)*IF(OR(J89<=Cálculo!$C$3,I89>=Cálculo!$D$3),0,1)*W89 -> 0
B90: 2014 | C90: QUELTEHUESCentral | D90: IF00052/2014 | E90: QUELTEHUES | F90: Central | G90: E | H90: F | I90: 2014-01-08T15:08:00 | J90: 2014-01-08T17:57:00 | K90: 0 | L90: 49 | M90: 0 | N90: =(L90-K90)/L90*((J90-I90)-(R90/24)-(S90/24))*24*IF(G90="I",1,0)*IF(OR(J90<=Cálculo!$C$3,I90>=Cálculo!$D$3),0,1)*W90 -> 0 | O90: 0 | P90: 0 | Q90: =IF(LEFT(D90,2)="IF",1,0)*IF(G90="I",1,0)*IF(OR(J90<=Cálculo!$C$3,I90>=Cálculo!$D$3),0,1)*W90 -> 0 | R90: =IF(J90<Cálculo!$D$3,0,(J90-Cálculo!$D$3))*24*IF(OR(J90<=Cálculo!$C$3,I90>=Cálculo!$D$3),0,1) -> 0 | S90: =IF(I90>Cálculo!$C$3,0,Cálculo!$C$3-I90)*24*IF(OR(J90<=Cálculo!$C$3,I90>=Cálculo!$D$3),0,1) -> 0 | U90: 08/01/2014 19:08 ~ Operación automática de ambos circuitos de LT L.Laja-Florida por incendio desconecta Central del SIC. ~ Felipe Mendoza L. | W90: TRUE | X90: 0 | Y90: =IF(LEFT(D90,2)="SD",1,0)*IF(G90="I",1,0)*IF(H90="P",1,0)*IF(OR(J90<=Cálculo!$C$3,I90>=Cálculo!$D$3),0,1)*W90 -> 0
B91: 2014 | C91: PUNTILLAPUNTILLA U2 | D91: IF00081/2014 | E91: PUNTILLA | F91: PUNTILLA U2 | G91: E | H91: F | I91: 2014-01-08T15:08:00 | J91: 2014-01-08T17:33:00 | K91: 0 | L91: 9.6 | M91: 0 | N91: =(L91-K91)/L91*((J91-I91)-(R91/24)-(S91/24))*24*IF(G91="I",1,0)*IF(OR(J91<=Cálculo!$C$3,I91>=Cálculo!$D$3),0,1)*W91 -> 0 | O91: 0 | P91: 0 | Q91: =IF(LEFT(D91,2)="IF",1,0)*IF(G91="I",1,0)*IF(OR(J91<=Cálculo!$C$3,I91>=Cálculo!$D$3),0,1)*W91 -> 0 | R91: =IF(J91<Cálculo!$D$3,0,(J91-Cálculo!$D$3))*24*IF(OR(J91<=Cálculo!$C$3,I91>=Cálculo!$D$3),0,1) -> 0 | S91: =IF(I91>Cálculo!$C$3,0,Cálculo!$C$3-I91)*24*IF(OR(J91<=Cálculo!$C$3,I91>=Cálculo!$D$3),0,1) -> 0 | U91: 10/01/2014 16:13 ~ Desconexión intempestiva de unidades por operación de protecciones debido a falla externa en LT de 110 kV Florida - Maitenes – Queltehues – La Laja circuitos 1 y 2. ~ E. Maurens | W91: TRUE | X91: 0 | Y91: =IF(LEFT(D91,2)="SD",1,0)*IF(G91="I",1,0)*IF(H91="P",1,0)*IF(OR(J91<=Cálculo!$C$3,I91>=Cálculo!$D$3),0,1)*W91 -> 0
B92: 2014 | C92: PUNTILLAPUNTILLA U3 | D92: IF00081/2014 | E92: PUNTILLA | F92: PUNTILLA U3 | G92: E | H92: F | I92: 2014-01-08T15:08:00 | J92: 2014-01-08T17:33:00 | K92: 0 | L92: 8.06 | M92: 0 | N92: =(L92-K92)/L92*((J92-I92)-(R92/24)-(S92/24))*24*IF(G92="I",1,0)*IF(OR(J92<=Cálculo!$C$3,I92>=Cálculo!$D$3),0,1)*W92 -> 0 | O92: 0 | P92: 0 | Q92: =IF(LEFT(D92,2)="IF",1,0)*IF(G92="I",1,0)*IF(OR(J92<=Cálculo!$C$3,I92>=Cálculo!$D$3),0,1)*W92 -> 0 | R92: =IF(J92<Cálculo!$D$3,0,(J92-Cálculo!$D$3))*24*IF(OR(J92<=Cálculo!$C$3,I92>=Cálculo!$D$3),0,1) -> 0 | S92: =IF(I92>Cálculo!$C$3,0,Cálculo!$C$3-I92)*24*IF(OR(J92<=Cálculo!$C$3,I92>=Cálculo!$D$3),0,1) -> 0 | U92: 10/01/2014 16:13 ~ Desconexión intempestiva de unidades por operación de protecciones debido a falla externa en LT de 110 kV Florida - Maitenes – Queltehues – La Laja circuitos 1 y 2. ~ E. Maurens | W92: TRUE | X92: 0 | Y92: =IF(LEFT(D92,2)="SD",1,0)*IF(G92="I",1,0)*IF(H92="P",1,0)*IF(OR(J92<=Cálculo!$C$3,I92>=Cálculo!$D$3),0,1)*W92 -> 0
B93: 2014 | C93: VOLCANVOLCAN | D93: IF00053/2014 | E93: VOLCAN | F93: VOLCAN | G93: E | H93: F | I93: 2014-01-08T15:08:00 | J93: 2014-01-08T17:08:00 | K93: 0 | L93: 13 | M93: 0 | N93: =(L93-K93)/L93*((J93-I93)-(R93/24)-(S93/24))*24*IF(G93="I",1,0)*IF(OR(J93<=Cálculo!$C$3,I93>=Cálculo!$D$3),0,1)*W93 -> 0 | O93: 0 | P93: 0 | Q93: =IF(LEFT(D93,2)="IF",1,0)*IF(G93="I",1,0)*IF(OR(J93<=Cálculo!$C$3,I93>=Cálculo!$D$3),0,1)*W93 -> 0 | R93: =IF(J93<Cálculo!$D$3,0,(J93-Cálculo!$D$3))*24*IF(OR(J93<=Cálculo!$C$3,I93>=Cálculo!$D$3),0,1) -> 0 | S93: =IF(I93>Cálculo!$C$3,0,Cálculo!$C$3-I93)*24*IF(OR(J93<=Cálculo!$C$3,I93>=Cálculo!$D$3),0,1) -> 0 | U93: 08/01/2014 19:14 ~ Operación automática de ambos circuitos de LT L.Laja-Florida por incendio desconecta Central del SIC. ~ Felipe Mendoza L. | W93: TRUE | X93: 0 | Y93: =IF(LEFT(D93,2)="SD",1,0)*IF(G93="I",1,0)*IF(H93="P",1,0)*IF(OR(J93<=Cálculo!$C$3,I93>=Cálculo!$D$3),0,1)*W93 -> 0
B94: 2014 | C94: MAITENESCentral | D94: IF00051/2014 | E94: MAITENES | F94: Central | G94: E | H94: F | I94: 2014-01-08T15:08:00 | J94: 2014-01-08T16:45:00 | K94: 0 | L94: 31 | M94: 0 | N94: =(L94-K94)/L94*((J94-I94)-(R94/24)-(S94/24))*24*IF(G94="I",1,0)*IF(OR(J94<=Cálculo!$C$3,I94>=Cálculo!$D$3),0,1)*W94 -> 0 | O94: 0 | P94: 0 | Q94: =IF(LEFT(D94,2)="IF",1,0)*IF(G94="I",1,0)*IF(OR(J94<=Cálculo!$C$3,I94>=Cálculo!$D$3),0,1)*W94 -> 0 | R94: =IF(J94<Cálculo!$D$3,0,(J94-Cálculo!$D$3))*24*IF(OR(J94<=Cálculo!$C$3,I94>=Cálculo!$D$3),0,1) -> 0 | S94: =IF(I94>Cálculo!$C$3,0,Cálculo!$C$3-I94)*24*IF(OR(J94<=Cálculo!$C$3,I94>=Cálculo!$D$3),0,1) -> 0 | U94: 08/01/2014 19:00 ~ Operación automática de ambos circuitos de LT L.Laja-Florida por incendio desconecta Central del SIC. ~ Felipe Mendoza L. | W94: TRUE | X94: 0 | Y94: =IF(LEFT(D94,2)="SD",1,0)*IF(G94="I",1,0)*IF(H94="P",1,0)*IF(OR(J94<=Cálculo!$C$3,I94>=Cálculo!$D$3),0,1)*W94 -> 0
B95: 2014 | C95: GUAYACANCentral | D95: IF00050/2014 | E95: GUAYACAN | F95: Central | G95: E | H95: F | I95: 2014-01-08T15:08:00 | J95: 2014-01-08T16:28:00 | K95: 0 | L95: 12 | M95: 0 | N95: =(L95-K95)/L95*((J95-I95)-(R95/24)-(S95/24))*24*IF(G95="I",1,0)*IF(OR(J95<=Cálculo!$C$3,I95>=Cálculo!$D$3),0,1)*W95 -> 0 | O95: 0 | P95: 0 | Q95: =IF(LEFT(D95,2)="IF",1,0)*IF(G95="I",1,0)*IF(OR(J95<=Cálculo!$C$3,I95>=Cálculo!$D$3),0,1)*W95 -> 0 | R95: =IF(J95<Cálculo!$D$3,0,(J95-Cálculo!$D$3))*24*IF(OR(J95<=Cálculo!$C$3,I95>=Cálculo!$D$3),0,1) -> 0 | S95: =IF(I95>Cálculo!$C$3,0,Cálculo!$C$3-I95)*24*IF(OR(J95<=Cálculo!$C$3,I95>=Cálculo!$D$3),0,1) -> 0 | T95: 08/01/2014 16:35 ~ En coordinacion con Cdec Sic y Aes Gener la unidad 2 es sincronizada a las 16:28 hrs ~ Diego Millan Romero | V95: 08/01/2014 16:35 ~ Se espera informe de AES Gener. ~ Diego Millan Romero | W95: TRUE | X95: 0 | Y95: =IF(LEFT(D95,2)="SD",1,0)*IF(G95="I",1,0)*IF(H95="P",1,0)*IF(OR(J95<=Cálculo!$C$3,I95>=Cálculo!$D$3),0,1)*W95 -> 0
B96: 2014 | C96: QUELTEHUESQUELTEHUES 2 | D96: IF00075/2014 | E96: QUELTEHUES | F96: QUELTEHUES 2 | G96: I | H96: F | I96: 2014-01-08T15:08:00 | J96: 2014-01-08T16:21:00 | K96: 0 | L96: 16.3 | M96: 1.216666667 | N96: =(L96-K96)/L96*((J96-I96)-(R96/24)-(S96/24))*24*IF(G96="I",1,0)*IF(OR(J96<=Cálculo!$C$3,I96>=Cálculo!$D$3),0,1)*W96 -> 0 | O96: 0 | P96: 0 | Q96: =IF(LEFT(D96,2)="IF",1,0)*IF(G96="I",1,0)*IF(OR(J96<=Cálculo!$C$3,I96>=Cálculo!$D$3),0,1)*W96 -> 0 | R96: =IF(J96<Cálculo!$D$3,0,(J96-Cálculo!$D$3))*24*IF(OR(J96<=Cálculo!$C$3,I96>=Cálculo!$D$3),0,1) -> 0 | S96: =IF(I96>Cálculo!$C$3,0,Cálculo!$C$3-I96)*24*IF(OR(J96<=Cálculo!$C$3,I96>=Cálculo!$D$3),0,1) -> 0 | U96: 09/01/2014 20:13 ~ Falla en los descansos del generador ~ Patricio Astengo | W96: TRUE | X96: 0 | Y96: =IF(LEFT(D96,2)="SD",1,0)*IF(G96="I",1,0)*IF(H96="P",1,0)*IF(OR(J96<=Cálculo!$C$3,I96>=Cálculo!$D$3),0,1)*W96 -> 0
B97: 2014 | C97: SAN CLEMENTESAN CLEMENTE | D97: IF00064/2014 | E97: SAN CLEMENTE | F97: SAN CLEMENTE | G97: E | H97: F | I97: 2014-01-08T15:30:00 | J97: 2014-01-08T17:13:00 | K97: 0 | L97: 5.4 | M97: 0 | N97: =(L97-K97)/L97*((J97-I97)-(R97/24)-(S97/24))*24*IF(G97="I",1,0)*IF(OR(J97<=Cálculo!$C$3,I97>=Cálculo!$D$3),0,1)*W97 -> 0 | O97: 0 | P97: 0 | Q97: =IF(LEFT(D97,2)="IF",1,0)*IF(G97="I",1,0)*IF(OR(J97<=Cálculo!$C$3,I97>=Cálculo!$D$3),0,1)*W97 -> 0 | R97: =IF(J97<Cálculo!$D$3,0,(J97-Cálculo!$D$3))*24*IF(OR(J97<=Cálculo!$C$3,I97>=Cálculo!$D$3),0,1) -> 0 | S97: =IF(I97>Cálculo!$C$3,0,Cálculo!$C$3-I97)*24*IF(OR(J97<=Cálculo!$C$3,I97>=Cálculo!$D$3),0,1) -> 0 | U97: 08/01/2014 20:18 ~ Sale de Servicio Unidad Central San Clemente, producto falla sistema de transmisión línea Colbún-CMPC Planta Maule por incendio en la zona. ~ Juan Pablo Garrido Fuhrop | W97: TRUE | X97: 0 | Y97: =IF(LEFT(D97,2)="SD",1,0)*IF(G97="I",1,0)*IF(H97="P",1,0)*IF(OR(J97<=Cálculo!$C$3,I97>=Cálculo!$D$3),0,1)*W97 -> 0
B98: 2014 | C98: CHIBURGOCHIBURGO 1 | D98: IF00063/2014 | E98: CHIBURGO | F98: CHIBURGO 1 | G98: E | H98: F | I98: 2014-01-08T15:30:00 | J98: 2014-01-08T17:09:00 | K98: 0 | L98: 9.7 | M98: 0 | N98: =(L98-K98)/L98*((J98-I98)-(R98/24)-(S98/24))*24*IF(G98="I",1,0)*IF(OR(J98<=Cálculo!$C$3,I98>=Cálculo!$D$3),0,1)*W98 -> 0 | O98: 0 | P98: 0 | Q98: =IF(LEFT(D98,2)="IF",1,0)*IF(G98="I",1,0)*IF(OR(J98<=Cálculo!$C$3,I98>=Cálculo!$D$3),0,1)*W98 -> 0 | R98: =IF(J98<Cálculo!$D$3,0,(J98-Cálculo!$D$3))*24*IF(OR(J98<=Cálculo!$C$3,I98>=Cálculo!$D$3),0,1) -> 0 | S98: =IF(I98>Cálculo!$C$3,0,Cálculo!$C$3-I98)*24*IF(OR(J98<=Cálculo!$C$3,I98>=Cálculo!$D$3),0,1) -> 0 | U98: 08/01/2014 20:07 ~ Sale de servicio Unidades 1 y 2 Central Chiburgo, producto de falla sistema de transmisión línea Colbún-CMPC PLanta Maule por incendio en la zona. ~ Juan Pablo Garrido Fuhrop | W98: TRUE | X98: 0 | Y98: =IF(LEFT(D98,2)="SD",1,0)*IF(G98="I",1,0)*IF(H98="P",1,0)*IF(OR(J98<=Cálculo!$C$3,I98>=Cálculo!$D$3),0,1)*W98 -> 0
B99: 2014 | C99: CHIBURGOCHIBURGO 2 | D99: IF00063/2014 | E99: CHIBURGO | F99: CHIBURGO 2 | G99: E | H99: F | I99: 2014-01-08T15:30:00 | J99: 2014-01-08T17:09:00 | K99: 0 | L99: 9.7 | M99: 0 | N99: =(L99-K99)/L99*((J99-I99)-(R99/24)-(S99/24))*24*IF(G99="I",1,0)*IF(OR(J99<=Cálculo!$C$3,I99>=Cálculo!$D$3),0,1)*W99 -> 0 | O99: 0 | P99: 0 | Q99: =IF(LEFT(D99,2)="IF",1,0)*IF(G99="I",1,0)*IF(OR(J99<=Cálculo!$C$3,I99>=Cálculo!$D$3),0,1)*W99 -> 0 | R99: =IF(J99<Cálculo!$D$3,0,(J99-Cálculo!$D$3))*24*IF(OR(J99<=Cálculo!$C$3,I99>=Cálculo!$D$3),0,1) -> 0 | S99: =IF(I99>Cálculo!$C$3,0,Cálculo!$C$3-I99)*24*IF(OR(J99<=Cálculo!$C$3,I99>=Cálculo!$D$3),0,1) -> 0 | U99: 08/01/2014 20:07 ~ Sale de servicio Unidades 1 y 2 Central Chiburgo, producto de falla sistema de transmisión línea Colbún-CMPC PLanta Maule por incendio en la zona. ~ Juan Pablo Garrido Fuhrop | W99: TRUE | X99: 0 | Y99: =IF(LEFT(D99,2)="SD",1,0)*IF(G99="I",1,0)*IF(H99="P",1,0)*IF(OR(J99<=Cálculo!$C$3,I99>=Cálculo!$D$3),0,1)*W99 -> 0
B100: 2014 | C100: LOS QUILOSLOS QUILOS 2 | D100: SD00583/2014 | E100: LOS QUILOS | F100: LOS QUILOS 2 | G100: I | H100: F | I100: 2014-01-08T15:40:00 | J100: 2014-01-09T01:02:00 | K100: 0 | L100: 13.3 | M100: 9.366666667 | N100: =(L100-K100)/L100*((J100-I100)-(R100/24)-(S100/24))*24*IF(G100="I",1,0)*IF(OR(J100<=Cálculo!$C$3,I100>=Cálculo!$D$3),0,1)*W100 -> 0 | O100: 0 | P100: 0 | Q100: =IF(LEFT(D100,2)="IF",1,0)*IF(G100="I",1,0)*IF(OR(J100<=Cálculo!$C$3,I100>=Cálculo!$D$3),0,1)*W100 -> 0 | R100: =IF(J100<Cálculo!$D$3,0,(J100-Cálculo!$D$3))*24*IF(OR(J100<=Cálculo!$C$3,I100>=Cálculo!$D$3),0,1) -> 0 | S100: =IF(I100>Cálculo!$C$3,0,Cálculo!$C$3-I100)*24*IF(OR(J100<=Cálculo!$C$3,I100>=Cálculo!$D$3),0,1) -> 0 | T100: Reparación tubería de llenado distribuidor unidad N° 2 | W100: TRUE | X100: 0 | Y100: =IF(LEFT(D100,2)="SD",1,0)*IF(G100="I",1,0)*IF(H100="P",1,0)*IF(OR(J100<=Cálculo!$C$3,I100>=Cálculo!$D$3),0,1)*W100 -> 0
B101: 2014 | C101: MACHICURAMACHICURA 1 | D101: IF00065/2014 | E101: MACHICURA | F101: MACHICURA 1 | G101: I | H101: F | I101: 2014-01-08T16:51:00 | J101: 2014-01-08T19:40:00 | K101: 0 | L101: 47.5 | M101: 2.816666667 | N101: =(L101-K101)/L101*((J101-I101)-(R101/24)-(S101/24))*24*IF(G101="I",1,0)*IF(OR(J101<=Cálculo!$C$3,I101>=Cálculo!$D$3),0,1)*W101 -> 0 | O101: 0 | P101: 0 | Q101: =IF(LEFT(D101,2)="IF",1,0)*IF(G101="I",1,0)*IF(OR(J101<=Cálculo!$C$3,I101>=Cálculo!$D$3),0,1)*W101 -> 0 | R101: =IF(J101<Cálculo!$D$3,0,(J101-Cálculo!$D$3))*24*IF(OR(J101<=Cálculo!$C$3,I101>=Cálculo!$D$3),0,1) -> 0 | S101: =IF(I101>Cálculo!$C$3,0,Cálculo!$C$3-I101)*24*IF(OR(J101<=Cálculo!$C$3,I101>=Cálculo!$D$3),0,1) -> 0 | U101: 08/01/2014 20:23 ~ Falla regulador de velocidad. ~ Juan Pablo Garrido Fuhrop | W101: TRUE | X101: 0 | Y101: =IF(LEFT(D101,2)="SD",1,0)*IF(G101="I",1,0)*IF(H101="P",1,0)*IF(OR(J101<=Cálculo!$C$3,I101>=Cálculo!$D$3),0,1)*W101 -> 0
B102: =YEAR(I102) -> 2014 | C102: =E102&F102 -> CMPC LAJACentral | D102: IL00015/2014 | E102: CMPC LAJA | F102: Central | G102: I | H102: F | I102: 2014-01-08T17:15:00 | J102: 2014-01-08T19:03:00 | K102: 15 | L102: 25 | M102: =(L102-K102)/L102*((J102-I102)-(R102/24)-(S102/24))*24*IF(G102="I",1,0)*W102 -> 0.72 | N102: =(L102-K102)/L102*((J102-I102)-(R102/24)-(S102/24))*24*IF(G102="I",1,0)*IF(OR(J102<=Cálculo!$C$3,I102>=Cálculo!$D$3),0,1)*W102 -> 0 | O102: =IF(H102="P",$N102,0) -> 0 | P102: =IF(OR(H102="F",H102="N"),$N102,0) -> 0 | Q102: =IF(LEFT(D102,2)="IF",1,0)*IF(G102="I",1,0)*IF(OR(J102<=Cálculo!$C$3,I102>=Cálculo!$D$3),0,1)*W102 -> 0 | R102: =IF(J102<Cálculo!$D$3,0,(J102-Cálculo!$D$3))*24*IF(OR(J102<=Cálculo!$C$3,I102>=Cálculo!$D$3),0,1) -> 0 | S102: =IF(I102>Cálculo!$C$3,0,Cálculo!$C$3-I102)*24*IF(OR(J102<=Cálculo!$C$3,I102>=Cálculo!$D$3),0,1) -> 0 | T102: Problemas en sistema de alimentación caldera biomasa. | W102: TRUE | X102: =IF(L102<K102,1,0) -> 0 | Y102: =IF(LEFT(D102,2)="SD",1,0)*IF(G102="I",1,0)*IF(H102="P",1,0)*IF(OR(J102<=Cálculo!$C$3,I102>=Cálculo!$D$3),0,1)*W102 -> 0
B103: 2014 | C103: NUEVA RENCANUEVA RENCA | D103: IF00066/2014 | E103: NUEVA RENCA | F103: NUEVA RENCA | G103: I | H103: F | I103: 2014-01-08T23:50:00 | J103: 2014-01-09T00:04:00 | K103: 100 | L103: 365.6 | M103: 0.1695113057 | N103: =(L103-K103)/L103*((J103-I103)-(R103/24)-(S103/24))*24*IF(G103="I",1,0)*IF(OR(J103<=Cálculo!$C$3,I103>=Cálculo!$D$3),0,1)*W103 -> 0 | O103: 0 | P103: 0 | Q103: =IF(LEFT(D103,2)="IF",1,0)*IF(G103="I",1,0)*IF(OR(J103<=Cálculo!$C$3,I103>=Cálculo!$D$3),0,1)*W103 -> 0 | R103: =IF(J103<Cálculo!$D$3,0,(J103-Cálculo!$D$3))*24*IF(OR(J103<=Cálculo!$C$3,I103>=Cálculo!$D$3),0,1) -> 0 | S103: =IF(I103>Cálculo!$C$3,0,Cálculo!$C$3-I103)*24*IF(OR(J103<=Cálculo!$C$3,I103>=Cálculo!$D$3),0,1) -> 0 | U103: 09/01/2014 06:23 ~ Problemas Sistema de control de velocidad asociados a servovalvula ~ Patricio Astengo | W103: TRUE | X103: 0 | Y103: =IF(LEFT(D103,2)="SD",1,0)*IF(G103="I",1,0)*IF(H103="P",1,0)*IF(OR(J103<=Cálculo!$C$3,I103>=Cálculo!$D$3),0,1)*W103 -> 0
B104: 2014 | C104: VENTANAS 2VENTANAS 2 | D104: IL00016/2014 | E104: VENTANAS 2 | F104: VENTANAS 2 | G104: I | H104: F | I104: 2014-01-09T04:33:00 | J104: 2014-01-09T14:27:00 | K104: 190 | L104: 220 | M104: 1.35 | N104: =(L104-K104)/L104*((J104-I104)-(R104/24)-(S104/24))*24*IF(G104="I",1,0)*IF(OR(J104<=Cálculo!$C$3,I104>=Cálculo!$D$3),0,1)*W104 -> 0 | O104: 0 | P104: 0 | Q104: =IF(LEFT(D104,2)="IF",1,0)*IF(G104="I",1,0)*IF(OR(J104<=Cálculo!$C$3,I104>=Cálculo!$D$3),0,1)*W104 -> 0 | R104: =IF(J104<Cálculo!$D$3,0,(J104-Cálculo!$D$3))*24*IF(OR(J104<=Cálculo!$C$3,I104>=Cálculo!$D$3),0,1) -> 0 | S104: =IF(I104>Cálculo!$C$3,0,Cálculo!$C$3-I104)*24*IF(OR(J104<=Cálculo!$C$3,I104>=Cálculo!$D$3),0,1) -> 0 | T104: Limitada en 190 MW por control de parámetros de combustión. | W104: TRUE | X104: 0 | Y104: =IF(LEFT(D104,2)="SD",1,0)*IF(G104="I",1,0)*IF(H104="P",1,0)*IF(OR(J104<=Cálculo!$C$3,I104>=Cálculo!$D$3),0,1)*W104 -> 0
B105: 2014 | C105: NUEVA RENCANUEVA RENCA | D105: SD00595/2014 | E105: NUEVA RENCA | F105: NUEVA RENCA | G105: I | H105: F | I105: 2014-01-09T06:41:00 | J105: 2014-01-09T09:45:00 | K105: 70 | L105: 365.6 | M105: 2.479504012 | N105: =(L105-K105)/L105*((J105-I105)-(R105/24)-(S105/24))*24*IF(G105="I",1,0)*IF(OR(J105<=Cálculo!$C$3,I105>=Cálculo!$D$3),0,1)*W105 -> 0 | O105: 0 | P105: 0 | Q105: =IF(LEFT(D105,2)="IF",1,0)*IF(G105="I",1,0)*IF(OR(J105<=Cálculo!$C$3,I105>=Cálculo!$D$3),0,1)*W105 -> 0 | R105: =IF(J105<Cálculo!$D$3,0,(J105-Cálculo!$D$3))*24*IF(OR(J105<=Cálculo!$C$3,I105>=Cálculo!$D$3),0,1) -> 0 | S105: =IF(I105>Cálculo!$C$3,0,Cálculo!$C$3-I105)*24*IF(OR(J105<=Cálculo!$C$3,I105>=Cálculo!$D$3),0,1) -> 0 | T105: Problemas ene el sistema de control de velocidad de la unidad TV, asociado a una servo válvula | W105: TRUE | X105: 0 | Y105: =IF(LEFT(D105,2)="SD",1,0)*IF(G105="I",1,0)*IF(H105="P",1,0)*IF(OR(J105<=Cálculo!$C$3,I105>=Cálculo!$D$3),0,1)*W105 -> 0
B106: 2014 | C106: CANELA IICANELA II | D106: SD00521/2014 | E106: CANELA II | F106: CANELA II | G106: I | H106: P | I106: 2014-01-09T08:57:00 | J106: 2014-01-09T16:52:00 | K106: 58.5 | L106: 60 | M106: 0.1979166667 | N106: =(L106-K106)/L106*((J106-I106)-(R106/24)-(S106/24))*24*IF(G106="I",1,0)*IF(OR(J106<=Cálculo!$C$3,I106>=Cálculo!$D$3),0,1)*W106 -> 0 | O106: 0 | P106: 0 | Q106: =IF(LEFT(D106,2)="IF",1,0)*IF(G106="I",1,0)*IF(OR(J106<=Cálculo!$C$3,I106>=Cálculo!$D$3),0,1)*W106 -> 0 | R106: =IF(J106<Cálculo!$D$3,0,(J106-Cálculo!$D$3))*24*IF(OR(J106<=Cálculo!$C$3,I106>=Cálculo!$D$3),0,1) -> 0 | S106: =IF(I106>Cálculo!$C$3,0,Cálculo!$C$3-I106)*24*IF(OR(J106<=Cálculo!$C$3,I106>=Cálculo!$D$3),0,1) -> 0 | T106: Aerogenerador C02; Mantenimiento preventivo mecánico y eléctrico | W106: TRUE | X106: 0 | Y106: =IF(LEFT(D106,2)="SD",1,0)*IF(G106="I",1,0)*IF(H106="P",1,0)*IF(OR(J106<=Cálculo!$C$3,I106>=Cálculo!$D$3),0,1)*W106 -> 0
B107: 2014 | C107: NEHUENCONEHUENCO | D107: IF00067/2014 | E107: NEHUENCO | F107: NEHUENCO | G107: I | H107: F | I107: 2014-01-09T09:40:00 | J107: 2014-01-09T13:57:00 | K107: 320 | L107: 340.8 | M107: 0.2614241002 | N107: =(L107-K107)/L107*((J107-I107)-(R107/24)-(S107/24))*24*IF(G107="I",1,0)*IF(OR(J107<=Cálculo!$C$3,I107>=Cálculo!$D$3),0,1)*W107 -> 0 | O107: 0 | P107: 0 | Q107: =IF(LEFT(D107,2)="IF",1,0)*IF(G107="I",1,0)*IF(OR(J107<=Cálculo!$C$3,I107>=Cálculo!$D$3),0,1)*W107 -> 0 | R107: =IF(J107<Cálculo!$D$3,0,(J107-Cálculo!$D$3))*24*IF(OR(J107<=Cálculo!$C$3,I107>=Cálculo!$D$3),0,1) -> 0 | S107: =IF(I107>Cálculo!$C$3,0,Cálculo!$C$3-I107)*24*IF(OR(J107<=Cálculo!$C$3,I107>=Cálculo!$D$3),0,1) -> 0 | U107: 09/01/2014 10:19 ~ Señal errónea de Trip de Emergencia de la TG. ~ Eduardo Zapata Elitin | W107: TRUE | X107: 0 | Y107: =IF(LEFT(D107,2)="SD",1,0)*IF(G107="I",1,0)*IF(H107="P",1,0)*IF(OR(J107<=Cálculo!$C$3,I107>=Cálculo!$D$3),0,1)*W107 -> 0
B108: 2014 | C108: COLIHUESCOLIHUES 1 | D108: IF00068/2014 | E108: COLIHUES | F108: COLIHUES 1 | G108: I | H108: F | I108: 2014-01-09T12:00:00 | J108: 2014-01-10T23:38:00 | K108: 0 | L108: 11 | M108: 35.63333333 | N108: =(L108-K108)/L108*((J108-I108)-(R108/24)-(S108/24))*24*IF(G108="I",1,0)*IF(OR(J108<=Cálculo!$C$3,I108>=Cálculo!$D$3),0,1)*W108 -> 0 | O108: 0 | P108: 0 | Q108: =IF(LEFT(D108,2)="IF",1,0)*IF(G108="I",1,0)*IF(OR(J108<=Cálculo!$C$3,I108>=Cálculo!$D$3),0,1)*W108 -> 0 | R108: =IF(J108<Cálculo!$D$3,0,(J108-Cálculo!$D$3))*24*IF(OR(J108<=Cálculo!$C$3,I108>=Cálculo!$D$3),0,1) -> 0 | S108: =IF(I108>Cálculo!$C$3,0,Cálculo!$C$3-I108)*24*IF(OR(J108<=Cálculo!$C$3,I108>=Cálculo!$D$3),0,1) -> 0 | T108: 09/01/2014 12:17 ~ se observa aumento brusco de temperatura ~ David Castro | U108: 09/01/2014 12:17 ~ Problema de bomba inyectora cilindro nº 6 ~ David Castro | W108: TRUE | X108: 0 | Y108: =IF(LEFT(D108,2)="SD",1,0)*IF(G108="I",1,0)*IF(H108="P",1,0)*IF(OR(J108<=Cálculo!$C$3,I108>=Cálculo!$D$3),0,1)*W108 -> 0
B109: 2014 | C109: COLIHUESCOLIHUES 2 | D109: IF00069/2014 | E109: COLIHUES | F109: COLIHUES 2 | G109: I | H109: F | I109: 2014-01-09T12:10:00 | J109: 2014-01-09T20:18:00 | K109: 0 | L109: 11 | M109: 8.133333333 | N109: =(L109-K109)/L109*((J109-I109)-(R109/24)-(S109/24))*24*IF(G109="I",1,0)*IF(OR(J109<=Cálculo!$C$3,I109>=Cálculo!$D$3),0,1)*W109 -> 0 | O109: 0 | P109: 0 | Q109: =IF(LEFT(D109,2)="IF",1,0)*IF(G109="I",1,0)*IF(OR(J109<=Cálculo!$C$3,I109>=Cálculo!$D$3),0,1)*W109 -> 0 | R109: =IF(J109<Cálculo!$D$3,0,(J109-Cálculo!$D$3))*24*IF(OR(J109<=Cálculo!$C$3,I109>=Cálculo!$D$3),0,1) -> 0 | S109: =IF(I109>Cálculo!$C$3,0,Cálculo!$C$3-I109)*24*IF(OR(J109<=Cálculo!$C$3,I109>=Cálculo!$D$3),0,1) -> 0 | T109: 09/01/2014 13:00 ~ se produce aumento progresivo de la temperatura en cilindro nº 1, al aumentar la carga de la unidad. ~ David Castro | U109: 09/01/2014 13:00 ~ Problema en inyeccion de combustible ~ David Castro | W109: TRUE | X109: 0 | Y109: =IF(LEFT(D109,2)="SD",1,0)*IF(G109="I",1,0)*IF(H109="P",1,0)*IF(OR(J109<=Cálculo!$C$3,I109>=Cálculo!$D$3),0,1)*W109 -> 0
B110: 2014 | C110: VENTANAS 1VENTANAS 1 | D110: IL00018/2014 | E110: VENTANAS 1 | F110: VENTANAS 1 | G110: I | H110: F | I110: 2014-01-09T13:00:00 | J110: 2014-01-09T23:50:00 | K110: 100 | L110: 120 | M110: 1.805555556 | N110: =(L110-K110)/L110*((J110-I110)-(R110/24)-(S110/24))*24*IF(G110="I",1,0)*IF(OR(J110<=Cálculo!$C$3,I110>=Cálculo!$D$3),0,1)*W110 -> 0 | O110: 0 | P110: 0 | Q110: =IF(LEFT(D110,2)="IF",1,0)*IF(G110="I",1,0)*IF(OR(J110<=Cálculo!$C$3,I110>=Cálculo!$D$3),0,1)*W110 -> 0 | R110: =IF(J110<Cálculo!$D$3,0,(J110-Cálculo!$D$3))*24*IF(OR(J110<=Cálculo!$C$3,I110>=Cálculo!$D$3),0,1) -> 0 | S110: =IF(I110>Cálculo!$C$3,0,Cálculo!$C$3-I110)*24*IF(OR(J110<=Cálculo!$C$3,I110>=Cálculo!$D$3),0,1) -> 0 | T110: Limitada en 100 MW por control de temperatura de descarga de agua de mar. | W110: TRUE | X110: 0 | Y110: =IF(LEFT(D110,2)="SD",1,0)*IF(G110="I",1,0)*IF(H110="P",1,0)*IF(OR(J110<=Cálculo!$C$3,I110>=Cálculo!$D$3),0,1)*W110 -> 0
B111: 2014 | C111: ISLAISLA 1 | D111: IL00021/2014 | E111: ISLA | F111: ISLA 1 | G111: I | H111: F | I111: 2014-01-09T13:24:00 | J111: 2014-01-09T21:00:00 | K111: 30 | L111: 34 | M111: 0.8941176471 | N111: =(L111-K111)/L111*((J111-I111)-(R111/24)-(S111/24))*24*IF(G111="I",1,0)*IF(OR(J111<=Cálculo!$C$3,I111>=Cálculo!$D$3),0,1)*W111 -> 0 | O111: 0 | P111: 0 | Q111: =IF(LEFT(D111,2)="IF",1,0)*IF(G111="I",1,0)*IF(OR(J111<=Cálculo!$C$3,I111>=Cálculo!$D$3),0,1)*W111 -> 0 | R111: =IF(J111<Cálculo!$D$3,0,(J111-Cálculo!$D$3))*24*IF(OR(J111<=Cálculo!$C$3,I111>=Cálculo!$D$3),0,1) -> 0 | S111: =IF(I111>Cálculo!$C$3,0,Cálculo!$C$3-I111)*24*IF(OR(J111<=Cálculo!$C$3,I111>=Cálculo!$D$3),0,1) -> 0 | T111: Por operación de Temperatura Alta aire del generador. | W111: TRUE | X111: 0 | Y111: =IF(LEFT(D111,2)="SD",1,0)*IF(G111="I",1,0)*IF(H111="P",1,0)*IF(OR(J111<=Cálculo!$C$3,I111>=Cálculo!$D$3),0,1)*W111 -> 0
B112: 2014 | C112: ISLAISLA 2 | D112: IL00022/2014 | E112: ISLA | F112: ISLA 2 | G112: I | H112: F | I112: 2014-01-09T13:24:00 | J112: 2014-01-09T21:00:00 | K112: 30 | L112: 34 | M112: 0.8941176471 | N112: =(L112-K112)/L112*((J112-I112)-(R112/24)-(S112/24))*24*IF(G112="I",1,0)*IF(OR(J112<=Cálculo!$C$3,I112>=Cálculo!$D$3),0,1)*W112 -> 0 | O112: 0 | P112: 0 | Q112: =IF(LEFT(D112,2)="IF",1,0)*IF(G112="I",1,0)*IF(OR(J112<=Cálculo!$C$3,I112>=Cálculo!$D$3),0,1)*W112 -> 0 | R112: =IF(J112<Cálculo!$D$3,0,(J112-Cálculo!$D$3))*24*IF(OR(J112<=Cálculo!$C$3,I112>=Cálculo!$D$3),0,1) -> 0 | S112: =IF(I112>Cálculo!$C$3,0,Cálculo!$C$3-I112)*24*IF(OR(J112<=Cálculo!$C$3,I112>=Cálculo!$D$3),0,1) -> 0 | T112: POR OPERACIÓN DE TEMPERATURA ALTA AIRE DEL GENERADOR. | W112: TRUE | X112: 0 | Y112: =IF(LEFT(D112,2)="SD",1,0)*IF(G112="I",1,0)*IF(H112="P",1,0)*IF(OR(J112<=Cálculo!$C$3,I112>=Cálculo!$D$3),0,1)*W112 -> 0
B113: 2014 | C113: CAMPICHECAMPICHE | D113: SD40006/2013 | E113: CAMPICHE | F113: CAMPICHE | G113: I | H113: P | I113: 2014-01-09T14:00:00 | J113: 2014-01-26T16:41:00 | K113: 0 | L113: 270 | M113: 410.6833333 | N113: =(L113-K113)/L113*((J113-I113)-(R113/24)-(S113/24))*24*IF(G113="I",1,0)*IF(OR(J113<=Cálculo!$C$3,I113>=Cálculo!$D$3),0,1)*W113 -> 0 | O113: 0 | P113: 0 | Q113: =IF(LEFT(D113,2)="IF",1,0)*IF(G113="I",1,0)*IF(OR(J113<=Cálculo!$C$3,I113>=Cálculo!$D$3),0,1)*W113 -> 0 | R113: =IF(J113<Cálculo!$D$3,0,(J113-Cálculo!$D$3))*24*IF(OR(J113<=Cálculo!$C$3,I113>=Cálculo!$D$3),0,1) -> 0 | S113: =IF(I113>Cálculo!$C$3,0,Cálculo!$C$3-I113)*24*IF(OR(J113<=Cálculo!$C$3,I113>=Cálculo!$D$3),0,1) -> 0 | T113: Mantenimiento mayor. | W113: TRUE | X113: 0 | Y113: =IF(LEFT(D113,2)="SD",1,0)*IF(G113="I",1,0)*IF(H113="P",1,0)*IF(OR(J113<=Cálculo!$C$3,I113>=Cálculo!$D$3),0,1)*W113 -> 0
B114: 2014 | C114: RENAICORENAICO | D114: SD00507/2014 | E114: RENAICO | F114: RENAICO | G114: I | H114: P | I114: 2014-01-09T14:00:00 | J114: 2014-01-09T18:25:00 | K114: 0 | L114: 6.3 | M114: 4.416666667 | N114: =(L114-K114)/L114*((J114-I114)-(R114/24)-(S114/24))*24*IF(G114="I",1,0)*IF(OR(J114<=Cálculo!$C$3,I114>=Cálculo!$D$3),0,1)*W114 -> 0 | O114: 0 | P114: 0 | Q114: =IF(LEFT(D114,2)="IF",1,0)*IF(G114="I",1,0)*IF(OR(J114<=Cálculo!$C$3,I114>=Cálculo!$D$3),0,1)*W114 -> 0 | R114: =IF(J114<Cálculo!$D$3,0,(J114-Cálculo!$D$3))*24*IF(OR(J114<=Cálculo!$C$3,I114>=Cálculo!$D$3),0,1) -> 0 | S114: =IF(I114>Cálculo!$C$3,0,Cálculo!$C$3-I114)*24*IF(OR(J114<=Cálculo!$C$3,I114>=Cálculo!$D$3),0,1) -> 0 | T114: cambio de relé GE489, los ajustes de protecciones se mantienen los mismos. | W114: TRUE | X114: 0 | Y114: =IF(LEFT(D114,2)="SD",1,0)*IF(G114="I",1,0)*IF(H114="P",1,0)*IF(OR(J114<=Cálculo!$C$3,I114>=Cálculo!$D$3),0,1)*W114 -> 0
B115: 2014 | C115: VENTANAS 2VENTANAS 2 | D115: IL00019/2014 | E115: VENTANAS 2 | F115: VENTANAS 2 | G115: I | H115: F | I115: 2014-01-09T14:27:00 | J115: 2014-01-09T16:30:00 | K115: 145 | L115: 220 | M115: 0.6988636364 | N115: =(L115-K115)/L115*((J115-I115)-(R115/24)-(S115/24))*24*IF(G115="I",1,0)*IF(OR(J115<=Cálculo!$C$3,I115>=Cálculo!$D$3),0,1)*W115 -> 0 | O115: 0 | P115: 0 | Q115: =IF(LEFT(D115,2)="IF",1,0)*IF(G115="I",1,0)*IF(OR(J115<=Cálculo!$C$3,I115>=Cálculo!$D$3),0,1)*W115 -> 0 | R115: =IF(J115<Cálculo!$D$3,0,(J115-Cálculo!$D$3))*24*IF(OR(J115<=Cálculo!$C$3,I115>=Cálculo!$D$3),0,1) -> 0 | S115: =IF(I115>Cálculo!$C$3,0,Cálculo!$C$3-I115)*24*IF(OR(J115<=Cálculo!$C$3,I115>=Cálculo!$D$3),0,1) -> 0 | T115: Limitada en 145 MW por falla en pulverizador de carbón 2F, amago de incendio. | W115: TRUE | X115: 0 | Y115: =IF(LEFT(D115,2)="SD",1,0)*IF(G115="I",1,0)*IF(H115="P",1,0)*IF(OR(J115<=Cálculo!$C$3,I115>=Cálculo!$D$3),0,1)*W115 -> 0
B116: 2014 | C116: LA HIGUERALA HIGUERA 2 | D116: SD00638/2014 | E116: LA HIGUERA | F116: LA HIGUERA 2 | G116: I | H116: F | I116: 2014-01-09T14:30:00 | J116: 2014-01-24T15:03:00 | K116: 0 | L116: 77.35 | M116: 360.55 | N116: =(L116-K116)/L116*((J116-I116)-(R116/24)-(S116/24))*24*IF(G116="I",1,0)*IF(OR(J116<=Cálculo!$C$3,I116>=Cálculo!$D$3),0,1)*W116 -> 0 | O116: 0 | P116: 0 | Q116: =IF(LEFT(D116,2)="IF",1,0)*IF(G116="I",1,0)*IF(OR(J116<=Cálculo!$C$3,I116>=Cálculo!$D$3),0,1)*W116 -> 0 | R116: =IF(J116<Cálculo!$D$3,0,(J116-Cálculo!$D$3))*24*IF(OR(J116<=Cálculo!$C$3,I116>=Cálculo!$D$3),0,1) -> 0 | S116: =IF(I116>Cálculo!$C$3,0,Cálculo!$C$3-I116)*24*IF(OR(J116<=Cálculo!$C$3,I116>=Cálculo!$D$3),0,1) -> 0 | T116: Controlar fuga excesiva por tapa superior turbina Unidad 2 | W116: TRUE | X116: 0 | Y116: =IF(LEFT(D116,2)="SD",1,0)*IF(G116="I",1,0)*IF(H116="P",1,0)*IF(OR(J116<=Cálculo!$C$3,I116>=Cálculo!$D$3),0,1)*W116 -> 0
B117: 2014 | C117: VENTANAS 2VENTANAS 2 | D117: IL00020/2014 | E117: VENTANAS 2 | F117: VENTANAS 2 | G117: I | H117: F | I117: 2014-01-09T16:30:00 | J117: 2014-01-11T13:28:00 | K117: 190 | L117: 220 | M117: 6.131818182 | N117: =(L117-K117)/L117*((J117-I117)-(R117/24)-(S117/24))*24*IF(G117="I",1,0)*IF(OR(J117<=Cálculo!$C$3,I117>=Cálculo!$D$3),0,1)*W117 -> 0 | O117: 0 | P117: 0 | Q117: =IF(LEFT(D117,2)="IF",1,0)*IF(G117="I",1,0)*IF(OR(J117<=Cálculo!$C$3,I117>=Cálculo!$D$3),0,1)*W117 -> 0 | R117: =IF(J117<Cálculo!$D$3,0,(J117-Cálculo!$D$3))*24*IF(OR(J117<=Cálculo!$C$3,I117>=Cálculo!$D$3),0,1) -> 0 | S117: =IF(I117>Cálculo!$C$3,0,Cálculo!$C$3-I117)*24*IF(OR(J117<=Cálculo!$C$3,I117>=Cálculo!$D$3),0,1) -> 0 | T117: Limitada en 190 MW por control de proceso de combustión. | W117: TRUE | X117: 0 | Y117: =IF(LEFT(D117,2)="SD",1,0)*IF(G117="I",1,0)*IF(H117="P",1,0)*IF(OR(J117<=Cálculo!$C$3,I117>=Cálculo!$D$3),0,1)*W117 -> 0
B118: 2014 | C118: JUNCALITOJUNCALITO | D118: IF00076/2014 | E118: JUNCALITO | F118: JUNCALITO | G118: E | H118: F | I118: 2014-01-09T17:01:00 | J118: 2014-01-10T14:56:00 | K118: 0 | L118: 1.5 | M118: 0 | N118: =(L118-K118)/L118*((J118-I118)-(R118/24)-(S118/24))*24*IF(G118="I",1,0)*IF(OR(J118<=Cálculo!$C$3,I118>=Cálculo!$D$3),0,1)*W118 -> 0 | O118: 0 | P118: 0 | Q118: =IF(LEFT(D118,2)="IF",1,0)*IF(G118="I",1,0)*IF(OR(J118<=Cálculo!$C$3,I118>=Cálculo!$D$3),0,1)*W118 -> 0 | R118: =IF(J118<Cálculo!$D$3,0,(J118-Cálculo!$D$3))*24*IF(OR(J118<=Cálculo!$C$3,I118>=Cálculo!$D$3),0,1) -> 0 | S118: =IF(I118>Cálculo!$C$3,0,Cálculo!$C$3-I118)*24*IF(OR(J118<=Cálculo!$C$3,I118>=Cálculo!$D$3),0,1) -> 0 | U118: 09/01/2014 21:26 ~ Unidad sale de servicio por bajo voltaje en sistema 12 KV S/E Rio Blanco de Chilquinta. ~ Juan Avendaño Campos. | W118: TRUE | X118: 0 | Y118: =IF(LEFT(D118,2)="SD",1,0)*IF(G118="I",1,0)*IF(H118="P",1,0)*IF(OR(J118<=Cálculo!$C$3,I118>=Cálculo!$D$3),0,1)*W118 -> 0
B119: 2014 | C119: VENTANAS 1VENTANAS 1 | D119: SD00657/2014 | E119: VENTANAS 1 | F119: VENTANAS 1 | G119: I | H119: F | I119: 2014-01-09T22:50:00 | J119: 2014-01-14T00:09:00 | K119: 0 | L119: 120 | M119: 97.31666667 | N119: =(L119-K119)/L119*((J119-I119)-(R119/24)-(S119/24))*24*IF(G119="I",1,0)*IF(OR(J119<=Cálculo!$C$3,I119>=Cálculo!$D$3),0,1)*W119 -> 0 | O119: 0 | P119: 0 | Q119: =IF(LEFT(D119,2)="IF",1,0)*IF(G119="I",1,0)*IF(OR(J119<=Cálculo!$C$3,I119>=Cálculo!$D$3),0,1)*W119 -> 0 | R119: =IF(J119<Cálculo!$D$3,0,(J119-Cálculo!$D$3))*24*IF(OR(J119<=Cálculo!$C$3,I119>=Cálculo!$D$3),0,1) -> 0 | S119: =IF(I119>Cálculo!$C$3,0,Cálculo!$C$3-I119)*24*IF(OR(J119<=Cálculo!$C$3,I119>=Cálculo!$D$3),0,1) -> 0 | T119: Desconexión de la Unidad por posible rotura de tubo de caldera | W119: TRUE | X119: 0 | Y119: =IF(LEFT(D119,2)="SD",1,0)*IF(G119="I",1,0)*IF(H119="P",1,0)*IF(OR(J119<=Cálculo!$C$3,I119>=Cálculo!$D$3),0,1)*W119 -> 0
B120: 2014 | C120: CMPC PACÍFICOCMPC PACIFICO 1 | D120: IL00023/2014 | E120: CMPC PACÍFICO | F120: CMPC PACIFICO 1 | G120: I | H120: F | I120: 2014-01-10T00:21:00 | J120: 2014-01-10T02:48:00 | K120: 0 | L120: 35 | M120: 2.45 | N120: =(L120-K120)/L120*((J120-I120)-(R120/24)-(S120/24))*24*IF(G120="I",1,0)*IF(OR(J120<=Cálculo!$C$3,I120>=Cálculo!$D$3),0,1)*W120 -> 0 | O120: 0 | P120: 0 | Q120: =IF(LEFT(D120,2)="IF",1,0)*IF(G120="I",1,0)*IF(OR(J120<=Cálculo!$C$3,I120>=Cálculo!$D$3),0,1)*W120 -> 0 | R120: =IF(J120<Cálculo!$D$3,0,(J120-Cálculo!$D$3))*24*IF(OR(J120<=Cálculo!$C$3,I120>=Cálculo!$D$3),0,1) -> 0 | S120: =IF(I120>Cálculo!$C$3,0,Cálculo!$C$3-I120)*24*IF(OR(J120<=Cálculo!$C$3,I120>=Cálculo!$D$3),0,1) -> 0 | T120: Limitación de generación por obstrucción en sistema de filtro de material particulado (PPT). | W120: TRUE | X120: 0 | Y120: =IF(LEFT(D120,2)="SD",1,0)*IF(G120="I",1,0)*IF(H120="P",1,0)*IF(OR(J120<=Cálculo!$C$3,I120>=Cálculo!$D$3),0,1)*W120 -> 0
B121: 2014 | C121: CIPRESESCIPRESES 2 | D121: SD00658/2014 | E121: CIPRESES | F121: CIPRESES 2 | G121: I | H121: F | I121: 2014-01-10T00:40:00 | J121: 2014-01-10T04:30:00 | K121: 0 | L121: 35.3 | M121: 3.833333333 | N121: =(L121-K121)/L121*((J121-I121)-(R121/24)-(S121/24))*24*IF(G121="I",1,0)*IF(OR(J121<=Cálculo!$C$3,I121>=Cálculo!$D$3),0,1)*W121 -> 0 | O121: 0 | P121: 0 | Q121: =IF(LEFT(D121,2)="IF",1,0)*IF(G121="I",1,0)*IF(OR(J121<=Cálculo!$C$3,I121>=Cálculo!$D$3),0,1)*W121 -> 0 | R121: =IF(J121<Cálculo!$D$3,0,(J121-Cálculo!$D$3))*24*IF(OR(J121<=Cálculo!$C$3,I121>=Cálculo!$D$3),0,1) -> 0 | S121: =IF(I121>Cálculo!$C$3,0,Cálculo!$C$3-I121)*24*IF(OR(J121<=Cálculo!$C$3,I121>=Cálculo!$D$3),0,1) -> 0 | T121: Investigar Ruido anormal de la Unidad Sector anillos rozantes.- | W121: TRUE | X121: 0 | Y121: =IF(LEFT(D121,2)="SD",1,0)*IF(G121="I",1,0)*IF(H121="P",1,0)*IF(OR(J121<=Cálculo!$C$3,I121>=Cálculo!$D$3),0,1)*W121 -> 0
B122: 2014 | C122: QUELTEHUESQUELTEHUES 1 | D122: SD00660/2014 | E122: QUELTEHUES | F122: QUELTEHUES 1 | G122: I | H122: F | I122: 2014-01-10T03:30:00 | J122: 2014-01-10T20:23:00 | K122: 0 | L122: 16.3 | M122: 16.88333333 | N122: =(L122-K122)/L122*((J122-I122)-(R122/24)-(S122/24))*24*IF(G122="I",1,0)*IF(OR(J122<=Cálculo!$C$3,I122>=Cálculo!$D$3),0,1)*W122 -> 0 | O122: 0 | P122: 0 | Q122: =IF(LEFT(D122,2)="IF",1,0)*IF(G122="I",1,0)*IF(OR(J122<=Cálculo!$C$3,I122>=Cálculo!$D$3),0,1)*W122 -> 0 | R122: =IF(J122<Cálculo!$D$3,0,(J122-Cálculo!$D$3))*24*IF(OR(J122<=Cálculo!$C$3,I122>=Cálculo!$D$3),0,1) -> 0 | S122: =IF(I122>Cálculo!$C$3,0,Cálculo!$C$3-I122)*24*IF(OR(J122<=Cálculo!$C$3,I122>=Cálculo!$D$3),0,1) -> 0 | T122: Se desconecta del Sistema por rotura de cañería de presión. Se instalará parche de presión | W122: TRUE | X122: 0 | Y122: =IF(LEFT(D122,2)="SD",1,0)*IF(G122="I",1,0)*IF(H122="P",1,0)*IF(OR(J122<=Cálculo!$C$3,I122>=Cálculo!$D$3),0,1)*W122 -> 0
B123: 2014 | C123: LA HIGUERACentral | D123: SD00659/2014 | E123: LA HIGUERA | F123: Central | G123: I | H123: F | I123: 2014-01-10T03:30:00 | J123: 2014-01-10T17:30:00 | K123: 0 | L123: 154.7 | M123: 14 | N123: =(L123-K123)/L123*((J123-I123)-(R123/24)-(S123/24))*24*IF(G123="I",1,0)*IF(OR(J123<=Cálculo!$C$3,I123>=Cálculo!$D$3),0,1)*W123 -> 0 | O123: 0 | P123: 0 | Q123: =IF(LEFT(D123,2)="IF",1,0)*IF(G123="I",1,0)*IF(OR(J123<=Cálculo!$C$3,I123>=Cálculo!$D$3),0,1)*W123 -> 0 | R123: =IF(J123<Cálculo!$D$3,0,(J123-Cálculo!$D$3))*24*IF(OR(J123<=Cálculo!$C$3,I123>=Cálculo!$D$3),0,1) -> 0 | S123: =IF(I123>Cálculo!$C$3,0,Cálculo!$C$3-I123)*24*IF(OR(J123<=Cálculo!$C$3,I123>=Cálculo!$D$3),0,1) -> 0 | T123: Fuga intempestiva de agua en válvula manual de By Pass del sistema de Válvula Esférica de UG2, se debe vaciar Penstock para su intervención. | W123: TRUE | X123: 0 | Y123: =IF(LEFT(D123,2)="SD",1,0)*IF(G123="I",1,0)*IF(H123="P",1,0)*IF(OR(J123<=Cálculo!$C$3,I123>=Cálculo!$D$3),0,1)*W123 -> 0
B124: 2014 | C124: NUEVA RENCANUEVA RENCA | D124: IF00086/2014 | E124: NUEVA RENCA | F124: NUEVA RENCA | G124: I | H124: F | I124: 2014-01-10T23:04:00 | J124: 2014-01-10T23:16:00 | K124: 100 | L124: 365.6 | M124: 0.1452954049 | N124: =(L124-K124)/L124*((J124-I124)-(R124/24)-(S124/24))*24*IF(G124="I",1,0)*IF(OR(J124<=Cálculo!$C$3,I124>=Cálculo!$D$3),0,1)*W124 -> 0 | O124: 0 | P124: 0 | Q124: =IF(LEFT(D124,2)="IF",1,0)*IF(G124="I",1,0)*IF(OR(J124<=Cálculo!$C$3,I124>=Cálculo!$D$3),0,1)*W124 -> 0 | R124: =IF(J124<Cálculo!$D$3,0,(J124-Cálculo!$D$3))*24*IF(OR(J124<=Cálculo!$C$3,I124>=Cálculo!$D$3),0,1) -> 0 | S124: =IF(I124>Cálculo!$C$3,0,Cálculo!$C$3-I124)*24*IF(OR(J124<=Cálculo!$C$3,I124>=Cálculo!$D$3),0,1) -> 0 | U124: 11/01/2014 01:16 ~ Falla en sistema de excitación. ~ Alvaro García D | W124: TRUE | X124: 0 | Y124: =IF(LEFT(D124,2)="SD",1,0)*IF(G124="I",1,0)*IF(H124="P",1,0)*IF(OR(J124<=Cálculo!$C$3,I124>=Cálculo!$D$3),0,1)*W124 -> 0
B125: 2014 | C125: NEHUENCO IINEHUENCO II | D125: SD00478/2014 | E125: NEHUENCO II | F125: NEHUENCO II | G125: I | H125: F | I125: 2014-01-11 | J125: 2014-01-13T18:03:00 | K125: 0 | L125: 380 | M125: 66.05 | N125: =(L125-K125)/L125*((J125-I125)-(R125/24)-(S125/24))*24*IF(G125="I",1,0)*IF(OR(J125<=Cálculo!$C$3,I125>=Cálculo!$D$3),0,1)*W125 -> 0 | O125: 0 | P125: 0 | Q125: =IF(LEFT(D125,2)="IF",1,0)*IF(G125="I",1,0)*IF(OR(J125<=Cálculo!$C$3,I125>=Cálculo!$D$3),0,1)*W125 -> 0 | R125: =IF(J125<Cálculo!$D$3,0,(J125-Cálculo!$D$3))*24*IF(OR(J125<=Cálculo!$C$3,I125>=Cálculo!$D$3),0,1) -> 0 | S125: =IF(I125>Cálculo!$C$3,0,Cálculo!$C$3-I125)*24*IF(OR(J125<=Cálculo!$C$3,I125>=Cálculo!$D$3),0,1) -> 0 | T125: Cambio de End Covers en sistema de combustion de la TG2. | W125: TRUE | X125: 0 | Y125: =IF(LEFT(D125,2)="SD",1,0)*IF(G125="I",1,0)*IF(H125="P",1,0)*IF(OR(J125<=Cálculo!$C$3,I125>=Cálculo!$D$3),0,1)*W125 -> 0
B126: 2014 | C126: CANUTILLARCANUTILLAR 2 | D126: SD00550/2014 | E126: CANUTILLAR | F126: CANUTILLAR 2 | G126: I | H126: P | I126: 2014-01-11T08:08:00 | J126: 2014-01-11T21:50:00 | K126: 0 | L126: 86 | M126: 13.7 | N126: =(L126-K126)/L126*((J126-I126)-(R126/24)-(S126/24))*24*IF(G126="I",1,0)*IF(OR(J126<=Cálculo!$C$3,I126>=Cálculo!$D$3),0,1)*W126 -> 0 | O126: 0 | P126: 0 | Q126: =IF(LEFT(D126,2)="IF",1,0)*IF(G126="I",1,0)*IF(OR(J126<=Cálculo!$C$3,I126>=Cálculo!$D$3),0,1)*W126 -> 0 | R126: =IF(J126<Cálculo!$D$3,0,(J126-Cálculo!$D$3))*24*IF(OR(J126<=Cálculo!$C$3,I126>=Cálculo!$D$3),0,1) -> 0 | S126: =IF(I126>Cálculo!$C$3,0,Cálculo!$C$3-I126)*24*IF(OR(J126<=Cálculo!$C$3,I126>=Cálculo!$D$3),0,1) -> 0 | T126: Trabajos de mantenimiento en transformador U2, se requiere unidad fuera de servicio. Además se realizarán trabajos de limpieza de filtros en válvula esférica y sistema de refrigeración A y B en la unidad. | W126: TRUE | X126: 0 | Y126: =IF(LEFT(D126,2)="SD",1,0)*IF(G126="I",1,0)*IF(H126="P",1,0)*IF(OR(J126<=Cálculo!$C$3,I126>=Cálculo!$D$3),0,1)*W126 -> 0
B127: 2014 | C127: VENTANAS 2VENTANAS 2 | D127: IL00024/2014 | E127: VENTANAS 2 | F127: VENTANAS 2 | G127: I | H127: F | I127: 2014-01-11T13:28:00 | J127: 2014-01-12T01:02:00 | K127: 160 | L127: 220 | M127: 3.154545455 | N127: =(L127-K127)/L127*((J127-I127)-(R127/24)-(S127/24))*24*IF(G127="I",1,0)*IF(OR(J127<=Cálculo!$C$3,I127>=Cálculo!$D$3),0,1)*W127 -> 0 | O127: 0 | P127: 0 | Q127: =IF(LEFT(D127,2)="IF",1,0)*IF(G127="I",1,0)*IF(OR(J127<=Cálculo!$C$3,I127>=Cálculo!$D$3),0,1)*W127 -> 0 | R127: =IF(J127<Cálculo!$D$3,0,(J127-Cálculo!$D$3))*24*IF(OR(J127<=Cálculo!$C$3,I127>=Cálculo!$D$3),0,1) -> 0 | S127: =IF(I127>Cálculo!$C$3,0,Cálculo!$C$3-I127)*24*IF(OR(J127<=Cálculo!$C$3,I127>=Cálculo!$D$3),0,1) -> 0 | T127: Limitada en 160 MW por control de temperatura de descarga de agua de mar. | W127: TRUE | X127: 0 | Y127: =IF(LEFT(D127,2)="SD",1,0)*IF(G127="I",1,0)*IF(H127="P",1,0)*IF(OR(J127<=Cálculo!$C$3,I127>=Cálculo!$D$3),0,1)*W127 -> 0
B128: 2014 | C128: VENTANAS 2VENTANAS 2 | D128: IL00025/2014 | E128: VENTANAS 2 | F128: VENTANAS 2 | G128: I | H128: F | I128: 2014-01-12T01:02:00 | J128: 2014-01-13T12:40:00 | K128: 190 | L128: 220 | M128: 4.859090909 | N128: =(L128-K128)/L128*((J128-I128)-(R128/24)-(S128/24))*24*IF(G128="I",1,0)*IF(OR(J128<=Cálculo!$C$3,I128>=Cálculo!$D$3),0,1)*W128 -> 0 | O128: 0 | P128: 0 | Q128: =IF(LEFT(D128,2)="IF",1,0)*IF(G128="I",1,0)*IF(OR(J128<=Cálculo!$C$3,I128>=Cálculo!$D$3),0,1)*W128 -> 0 | R128: =IF(J128<Cálculo!$D$3,0,(J128-Cálculo!$D$3))*24*IF(OR(J128<=Cálculo!$C$3,I128>=Cálculo!$D$3),0,1) -> 0 | S128: =IF(I128>Cálculo!$C$3,0,Cálculo!$C$3-I128)*24*IF(OR(J128<=Cálculo!$C$3,I128>=Cálculo!$D$3),0,1) -> 0 | T128: Control temperatura de descarga de agua de mar. | W128: TRUE | X128: 0 | Y128: =IF(LEFT(D128,2)="SD",1,0)*IF(G128="I",1,0)*IF(H128="P",1,0)*IF(OR(J128<=Cálculo!$C$3,I128>=Cálculo!$D$3),0,1)*W128 -> 0
B129: 2014 | C129: JUNCALACONCAGUA (JUNCAL) | D129: SD01009/2014 | E129: JUNCAL | F129: ACONCAGUA (JUNCAL) | G129: I | H129: F | I129: 2014-01-12T04:38:00 | J129: 2014-01-12T09:40:00 | K129: 0 | L129: 29.2 | M129: 5.033333333 | N129: =(L129-K129)/L129*((J129-I129)-(R129/24)-(S129/24))*24*IF(G129="I",1,0)*IF(OR(J129<=Cálculo!$C$3,I129>=Cálculo!$D$3),0,1)*W129 -> 0 | O129: 0 | P129: 0 | Q129: =IF(LEFT(D129,2)="IF",1,0)*IF(G129="I",1,0)*IF(OR(J129<=Cálculo!$C$3,I129>=Cálculo!$D$3),0,1)*W129 -> 0 | R129: =IF(J129<Cálculo!$D$3,0,(J129-Cálculo!$D$3))*24*IF(OR(J129<=Cálculo!$C$3,I129>=Cálculo!$D$3),0,1) -> 0 | S129: =IF(I129>Cálculo!$C$3,0,Cálculo!$C$3-I129)*24*IF(OR(J129<=Cálculo!$C$3,I129>=Cálculo!$D$3),0,1) -> 0 | T129: SE SOLICITA LA DESCONEXIÓN DE UG. JUNCAL, PARA INSPECCIÓN Y DESCARTAR RUIDO ANORMAL, DEBIDO A LA SALIDA INTEMPESTIVA DE UG. BLACO. | W129: TRUE | X129: 0 | Y129: =IF(LEFT(D129,2)="SD",1,0)*IF(G129="I",1,0)*IF(H129="P",1,0)*IF(OR(J129<=Cálculo!$C$3,I129>=Cálculo!$D$3),0,1)*W129 -> 0
B130: 2014 | C130: COLBÚNCentral | D130: SD00479/2014 | E130: COLBÚN | F130: Central | G130: I | H130: P | I130: 2014-01-12T07:57:00 | J130: 2014-01-12T14:40:00 | K130: 0 | L130: 474 | M130: 6.716666667 | N130: =(L130-K130)/L130*((J130-I130)-(R130/24)-(S130/24))*24*IF(G130="I",1,0)*IF(OR(J130<=Cálculo!$C$3,I130>=Cálculo!$D$3),0,1)*W130 -> 0 | O130: 0 | P130: 0 | Q130: =IF(LEFT(D130,2)="IF",1,0)*IF(G130="I",1,0)*IF(OR(J130<=Cálculo!$C$3,I130>=Cálculo!$D$3),0,1)*W130 -> 0 | R130: =IF(J130<Cálculo!$D$3,0,(J130-Cálculo!$D$3))*24*IF(OR(J130<=Cálculo!$C$3,I130>=Cálculo!$D$3),0,1) -> 0 | S130: =IF(I130>Cálculo!$C$3,0,Cálculo!$C$3-I130)*24*IF(OR(J130<=Cálculo!$C$3,I130>=Cálculo!$D$3),0,1) -> 0 | T130: Inspección Túnel de aducción central Colbún 800 metros desde chimenea de equilibrio hacia pique de compuertas. Unidades pueden ser entregadas en 1 hora a solicitud del CDEC. | W130: TRUE | X130: 0 | Y130: =IF(LEFT(D130,2)="SD",1,0)*IF(G130="I",1,0)*IF(H130="P",1,0)*IF(OR(J130<=Cálculo!$C$3,I130>=Cálculo!$D$3),0,1)*W130 -> 0
B131: 2014 | C131: COLBÚNCOLBUN 2 | D131: SD00553/2014 | E131: COLBÚN | F131: COLBUN 2 | G131: I | H131: P | I131: 2014-01-12T08:26:00 | J131: 2014-01-12T14:25:00 | K131: 0 | L131: 237 | M131: 5.983333333 | N131: =(L131-K131)/L131*((J131-I131)-(R131/24)-(S131/24))*24*IF(G131="I",1,0)*IF(OR(J131<=Cálculo!$C$3,I131>=Cálculo!$D$3),0,1)*W131 -> 0 | O131: 0 | P131: 0 | Q131: =IF(LEFT(D131,2)="IF",1,0)*IF(G131="I",1,0)*IF(OR(J131<=Cálculo!$C$3,I131>=Cálculo!$D$3),0,1)*W131 -> 0 | R131: =IF(J131<Cálculo!$D$3,0,(J131-Cálculo!$D$3))*24*IF(OR(J131<=Cálculo!$C$3,I131>=Cálculo!$D$3),0,1) -> 0 | S131: =IF(I131>Cálculo!$C$3,0,Cálculo!$C$3-I131)*24*IF(OR(J131<=Cálculo!$C$3,I131>=Cálculo!$D$3),0,1) -> 0 | T131: Se realizará MPB de anillos rozantes a U2 Central Colbún, aprovechando trabajos indicados en SD00479. | W131: TRUE | X131: 0 | Y131: =IF(LEFT(D131,2)="SD",1,0)*IF(G131="I",1,0)*IF(H131="P",1,0)*IF(OR(J131<=Cálculo!$C$3,I131>=Cálculo!$D$3),0,1)*W131 -> 0
B132: 2014 | C132: MACHICURAMACHICURA 2 | D132: SD00556/2014 | E132: MACHICURA | F132: MACHICURA 2 | G132: I | H132: P | I132: 2014-01-12T08:38:00 | J132: 2014-01-12T12:30:00 | K132: 0 | L132: 47.5 | M132: 3.866666667 | N132: =(L132-K132)/L132*((J132-I132)-(R132/24)-(S132/24))*24*IF(G132="I",1,0)*IF(OR(J132<=Cálculo!$C$3,I132>=Cálculo!$D$3),0,1)*W132 -> 0 | O132: 0 | P132: 0 | Q132: =IF(LEFT(D132,2)="IF",1,0)*IF(G132="I",1,0)*IF(OR(J132<=Cálculo!$C$3,I132>=Cálculo!$D$3),0,1)*W132 -> 0 | R132: =IF(J132<Cálculo!$D$3,0,(J132-Cálculo!$D$3))*24*IF(OR(J132<=Cálculo!$C$3,I132>=Cálculo!$D$3),0,1) -> 0 | S132: =IF(I132>Cálculo!$C$3,0,Cálculo!$C$3-I132)*24*IF(OR(J132<=Cálculo!$C$3,I132>=Cálculo!$D$3),0,1) -> 0 | T132: Se realizará MPB a anillos rozantes U#2 Central Machicura. | W132: TRUE | X132: 0 | Y132: =IF(LEFT(D132,2)="SD",1,0)*IF(G132="I",1,0)*IF(H132="P",1,0)*IF(OR(J132<=Cálculo!$C$3,I132>=Cálculo!$D$3),0,1)*W132 -> 0
B133: 2014 | C133: MACHICURAMACHICURA 1 | D133: SD00554/2014 | E133: MACHICURA | F133: MACHICURA 1 | G133: I | H133: P | I133: 2014-01-12T13:00:00 | J133: 2014-01-12T15:40:00 | K133: 0 | L133: 47.5 | M133: 2.666666667 | N133: =(L133-K133)/L133*((J133-I133)-(R133/24)-(S133/24))*24*IF(G133="I",1,0)*IF(OR(J133<=Cálculo!$C$3,I133>=Cálculo!$D$3),0,1)*W133 -> 0 | O133: 0 | P133: 0 | Q133: =IF(LEFT(D133,2)="IF",1,0)*IF(G133="I",1,0)*IF(OR(J133<=Cálculo!$C$3,I133>=Cálculo!$D$3),0,1)*W133 -> 0 | R133: =IF(J133<Cálculo!$D$3,0,(J133-Cálculo!$D$3))*24*IF(OR(J133<=Cálculo!$C$3,I133>=Cálculo!$D$3),0,1) -> 0 | S133: =IF(I133>Cálculo!$C$3,0,Cálculo!$C$3-I133)*24*IF(OR(J133<=Cálculo!$C$3,I133>=Cálculo!$D$3),0,1) -> 0 | T133: Se realizara MPB a Anillos rozantes de U#1 central Machicura. | W133: TRUE | X133: 0 | Y133: =IF(LEFT(D133,2)="SD",1,0)*IF(G133="I",1,0)*IF(H133="P",1,0)*IF(OR(J133<=Cálculo!$C$3,I133>=Cálculo!$D$3),0,1)*W133 -> 0
B134: 2014 | C134: CANELA IICANELA II | D134: SD00728/2014 | E134: CANELA II | F134: CANELA II | G134: I | H134: P | I134: 2014-01-13T09:10:00 | J134: 2014-01-13T17:13:00 | K134: 58.5 | L134: 60 | M134: 0.20125 | N134: =(L134-K134)/L134*((J134-I134)-(R134/24)-(S134/24))*24*IF(G134="I",1,0)*IF(OR(J134<=Cálculo!$C$3,I134>=Cálculo!$D$3),0,1)*W134 -> 0 | O134: 0 | P134: 0 | Q134: =IF(LEFT(D134,2)="IF",1,0)*IF(G134="I",1,0)*IF(OR(J134<=Cálculo!$C$3,I134>=Cálculo!$D$3),0,1)*W134 -> 0 | R134: =IF(J134<Cálculo!$D$3,0,(J134-Cálculo!$D$3))*24*IF(OR(J134<=Cálculo!$C$3,I134>=Cálculo!$D$3),0,1) -> 0 | S134: =IF(I134>Cálculo!$C$3,0,Cálculo!$C$3-I134)*24*IF(OR(J134<=Cálculo!$C$3,I134>=Cálculo!$D$3),0,1) -> 0 | T134: Aerogenerador C03, 1.5 Mw Indisponibles. Mantenimiento preventivo mecánico y eléctrico en la unidad Aerogenerador Acciona. | W134: TRUE | X134: 0 | Y134: =IF(LEFT(D134,2)="SD",1,0)*IF(G134="I",1,0)*IF(H134="P",1,0)*IF(OR(J134<=Cálculo!$C$3,I134>=Cálculo!$D$3),0,1)*W134 -> 0
B135: 2014 | C135: SAUZALSAUZAL 3 | D135: SD01085/2014 | E135: SAUZAL | F135: SAUZAL 3 | G135: I | H135: F | I135: 2014-01-13T12:00:00 | J135: 2014-01-13T12:00:00 | K135: 0 | L135: 25.6 | M135: 0 | N135: =(L135-K135)/L135*((J135-I135)-(R135/24)-(S135/24))*24*IF(G135="I",1,0)*IF(OR(J135<=Cálculo!$C$3,I135>=Cálculo!$D$3),0,1)*W135 -> 0 | O135: 0 | P135: 0 | Q135: =IF(LEFT(D135,2)="IF",1,0)*IF(G135="I",1,0)*IF(OR(J135<=Cálculo!$C$3,I135>=Cálculo!$D$3),0,1)*W135 -> 0 | R135: =IF(J135<Cálculo!$D$3,0,(J135-Cálculo!$D$3))*24*IF(OR(J135<=Cálculo!$C$3,I135>=Cálculo!$D$3),0,1) -> 0 | S135: =IF(I135>Cálculo!$C$3,0,Cálculo!$C$3-I135)*24*IF(OR(J135<=Cálculo!$C$3,I135>=Cálculo!$D$3),0,1) -> 0 | W135: TRUE | X135: 0 | Y135: =IF(LEFT(D135,2)="SD",1,0)*IF(G135="I",1,0)*IF(H135="P",1,0)*IF(OR(J135<=Cálculo!$C$3,I135>=Cálculo!$D$3),0,1)*W135 -> 0
B136: 2014 | C136: SAUZALSAUZAL 3 | D136: SD01084/2014 | E136: SAUZAL | F136: SAUZAL 3 | G136: I | H136: F | I136: 2014-01-13T12:09:00 | J136: 2014-01-13T13:36:00 | K136: 0 | L136: 25.6 | M136: 1.45 | N136: =(L136-K136)/L136*((J136-I136)-(R136/24)-(S136/24))*24*IF(G136="I",1,0)*IF(OR(J136<=Cálculo!$C$3,I136>=Cálculo!$D$3),0,1)*W136 -> 0 | O136: 0 | P136: 0 | Q136: =IF(LEFT(D136,2)="IF",1,0)*IF(G136="I",1,0)*IF(OR(J136<=Cálculo!$C$3,I136>=Cálculo!$D$3),0,1)*W136 -> 0 | R136: =IF(J136<Cálculo!$D$3,0,(J136-Cálculo!$D$3))*24*IF(OR(J136<=Cálculo!$C$3,I136>=Cálculo!$D$3),0,1) -> 0 | S136: =IF(I136>Cálculo!$C$3,0,Cálculo!$C$3-I136)*24*IF(OR(J136<=Cálculo!$C$3,I136>=Cálculo!$D$3),0,1) -> 0 | W136: TRUE | X136: 0 | Y136: =IF(LEFT(D136,2)="SD",1,0)*IF(G136="I",1,0)*IF(H136="P",1,0)*IF(OR(J136<=Cálculo!$C$3,I136>=Cálculo!$D$3),0,1)*W136 -> 0
B137: 2014 | C137: VENTANAS 2VENTANAS 2 | D137: IL00026/2014 | E137: VENTANAS 2 | F137: VENTANAS 2 | G137: I | H137: F | I137: 2014-01-13T12:40:00 | J137: 2014-01-15T05:16:00 | K137: 190 | L137: 220 | M137: 5.536363636 | N137: =(L137-K137)/L137*((J137-I137)-(R137/24)-(S137/24))*24*IF(G137="I",1,0)*IF(OR(J137<=Cálculo!$C$3,I137>=Cálculo!$D$3),0,1)*W137 -> 0 | O137: 0 | P137: 0 | Q137: =IF(LEFT(D137,2)="IF",1,0)*IF(G137="I",1,0)*IF(OR(J137<=Cálculo!$C$3,I137>=Cálculo!$D$3),0,1)*W137 -> 0 | R137: =IF(J137<Cálculo!$D$3,0,(J137-Cálculo!$D$3))*24*IF(OR(J137<=Cálculo!$C$3,I137>=Cálculo!$D$3),0,1) -> 0 | S137: =IF(I137>Cálculo!$C$3,0,Cálculo!$C$3-I137)*24*IF(OR(J137<=Cálculo!$C$3,I137>=Cálculo!$D$3),0,1) -> 0 | T137: Limitada por control de parámetros de combustión. | W137: TRUE | X137: 0 | Y137: =IF(LEFT(D137,2)="SD",1,0)*IF(G137="I",1,0)*IF(H137="P",1,0)*IF(OR(J137<=Cálculo!$C$3,I137>=Cálculo!$D$3),0,1)*W137 -> 0
B138: 2014 | C138: JUNCALITOJUNCALITO | D138: IF00093/2014 | E138: JUNCALITO | F138: JUNCALITO | G138: E | H138: F | I138: 2014-01-13T19:02:00 | J138: 2014-01-13T22:40:00 | K138: 0 | L138: 1.5 | M138: 0 | N138: =(L138-K138)/L138*((J138-I138)-(R138/24)-(S138/24))*24*IF(G138="I",1,0)*IF(OR(J138<=Cálculo!$C$3,I138>=Cálculo!$D$3),0,1)*W138 -> 0 | O138: 0 | P138: 0 | Q138: =IF(LEFT(D138,2)="IF",1,0)*IF(G138="I",1,0)*IF(OR(J138<=Cálculo!$C$3,I138>=Cálculo!$D$3),0,1)*W138 -> 0 | R138: =IF(J138<Cálculo!$D$3,0,(J138-Cálculo!$D$3))*24*IF(OR(J138<=Cálculo!$C$3,I138>=Cálculo!$D$3),0,1) -> 0 | S138: =IF(I138>Cálculo!$C$3,0,Cálculo!$C$3-I138)*24*IF(OR(J138<=Cálculo!$C$3,I138>=Cálculo!$D$3),0,1) -> 0 | U138: 13/01/2014 22:11 ~ Unidad Generadora Juncalito sale fuera de servicio por bajo voltaje linea 12 kv Propiedad de chilquinta ~ Juan Pablo Garrido Fuhrop | W138: TRUE | X138: 0 | Y138: =IF(LEFT(D138,2)="SD",1,0)*IF(G138="I",1,0)*IF(H138="P",1,0)*IF(OR(J138<=Cálculo!$C$3,I138>=Cálculo!$D$3),0,1)*W138 -> 0
B139: 2014 | C139: VENTANAS 1VENTANAS 1 | D139: IL00027/2014 | E139: VENTANAS 1 | F139: VENTANAS 1 | G139: I | H139: F | I139: 2014-01-14T00:09:00 | J139: 2014-01-16T13:24:00 | K139: 100 | L139: 120 | M139: 10.20833333 | N139: =(L139-K139)/L139*((J139-I139)-(R139/24)-(S139/24))*24*IF(G139="I",1,0)*IF(OR(J139<=Cálculo!$C$3,I139>=Cálculo!$D$3),0,1)*W139 -> 0 | O139: 0 | P139: 0 | Q139: =IF(LEFT(D139,2)="IF",1,0)*IF(G139="I",1,0)*IF(OR(J139<=Cálculo!$C$3,I139>=Cálculo!$D$3),0,1)*W139 -> 0 | R139: =IF(J139<Cálculo!$D$3,0,(J139-Cálculo!$D$3))*24*IF(OR(J139<=Cálculo!$C$3,I139>=Cálculo!$D$3),0,1) -> 0 | S139: =IF(I139>Cálculo!$C$3,0,Cálculo!$C$3-I139)*24*IF(OR(J139<=Cálculo!$C$3,I139>=Cálculo!$D$3),0,1) -> 0 | T139: Control temperatura de descarga de agua de mar. | W139: TRUE | X139: 0 | Y139: =IF(LEFT(D139,2)="SD",1,0)*IF(G139="I",1,0)*IF(H139="P",1,0)*IF(OR(J139<=Cálculo!$C$3,I139>=Cálculo!$D$3),0,1)*W139 -> 0
B140: 2014 | C140: RÍO HUASCOCentral | D140: IF00096/2014 | E140: RÍO HUASCO | F140: Central | G140: E | H140: F | I140: 2014-01-14T04:24:00 | J140: 2014-01-15T01:27:00 | K140: 0 | L140: 5.12 | M140: 0 | N140: =(L140-K140)/L140*((J140-I140)-(R140/24)-(S140/24))*24*IF(G140="I",1,0)*IF(OR(J140<=Cálculo!$C$3,I140>=Cálculo!$D$3),0,1)*W140 -> 0 | O140: 0 | P140: 0 | Q140: =IF(LEFT(D140,2)="IF",1,0)*IF(G140="I",1,0)*IF(OR(J140<=Cálculo!$C$3,I140>=Cálculo!$D$3),0,1)*W140 -> 0 | R140: =IF(J140<Cálculo!$D$3,0,(J140-Cálculo!$D$3))*24*IF(OR(J140<=Cálculo!$C$3,I140>=Cálculo!$D$3),0,1) -> 0 | S140: =IF(I140>Cálculo!$C$3,0,Cálculo!$C$3-I140)*24*IF(OR(J140<=Cálculo!$C$3,I140>=Cálculo!$D$3),0,1) -> 0 | U140: 14/01/2014 07:25 ~ Falla externa, de acuerdo a lo informado por medio oficiales CDEC problemas en línea 110kV Maintecillo - Vallenar, de propiedad de Transelec, produciendo perdida de tensión en línea Eden - Alto del Carmen y provocando apertura Interruptor 52HT SSEE Rio Huasco ~ Juan C Leiva | W140: TRUE | X140: 0 | Y140: =IF(LEFT(D140,2)="SD",1,0)*IF(G140="I",1,0)*IF(H140="P",1,0)*IF(OR(J140<=Cálculo!$C$3,I140>=Cálculo!$D$3),0,1)*W140 -> 0
B141: 2014 | C141: CANELA IICANELA II | D141: SD01031/2014 | E141: CANELA II | F141: CANELA II | G141: I | H141: P | I141: 2014-01-14T09:29:00 | J141: 2014-01-14T18:18:00 | K141: 58.5 | L141: 60 | M141: 0.2204166667 | N141: =(L141-K141)/L141*((J141-I141)-(R141/24)-(S141/24))*24*IF(G141="I",1,0)*IF(OR(J141<=Cálculo!$C$3,I141>=Cálculo!$D$3),0,1)*W141 -> 0 | O141: 0 | P141: 0 | Q141: =IF(LEFT(D141,2)="IF",1,0)*IF(G141="I",1,0)*IF(OR(J141<=Cálculo!$C$3,I141>=Cálculo!$D$3),0,1)*W141 -> 0 | R141: =IF(J141<Cálculo!$D$3,0,(J141-Cálculo!$D$3))*24*IF(OR(J141<=Cálculo!$C$3,I141>=Cálculo!$D$3),0,1) -> 0 | S141: =IF(I141>Cálculo!$C$3,0,Cálculo!$C$3-I141)*24*IF(OR(J141<=Cálculo!$C$3,I141>=Cálculo!$D$3),0,1) -> 0 | T141: Aerogenerador C02, 1.5 Mw indisponibles. Mantenimiento preventivo mecánico y eléctrico de la Unidad Aerogenerador Acciona. | W141: TRUE | X141: 0 | Y141: =IF(LEFT(D141,2)="SD",1,0)*IF(G141="I",1,0)*IF(H141="P",1,0)*IF(OR(J141<=Cálculo!$C$3,I141>=Cálculo!$D$3),0,1)*W141 -> 0
B142: 2014 | C142: CANELA IICANELA II | D142: SD01030/2014 | E142: CANELA II | F142: CANELA II | G142: I | H142: P | I142: 2014-01-14T09:29:00 | J142: 2014-01-14T17:17:00 | K142: 58.5 | L142: 60 | M142: 0.195 | N142: =(L142-K142)/L142*((J142-I142)-(R142/24)-(S142/24))*24*IF(G142="I",1,0)*IF(OR(J142<=Cálculo!$C$3,I142>=Cálculo!$D$3),0,1)*W142 -> 0 | O142: 0 | P142: 0 | Q142: =IF(LEFT(D142,2)="IF",1,0)*IF(G142="I",1,0)*IF(OR(J142<=Cálculo!$C$3,I142>=Cálculo!$D$3),0,1)*W142 -> 0 | R142: =IF(J142<Cálculo!$D$3,0,(J142-Cálculo!$D$3))*24*IF(OR(J142<=Cálculo!$C$3,I142>=Cálculo!$D$3),0,1) -> 0 | S142: =IF(I142>Cálculo!$C$3,0,Cálculo!$C$3-I142)*24*IF(OR(J142<=Cálculo!$C$3,I142>=Cálculo!$D$3),0,1) -> 0 | T142: Aerogenerador C03, 1.5 Mw indisponibles. Mantenimiento preventivo mecánico y eléctrico de la Unidad Aerogenerador Acciona. | W142: TRUE | X142: 0 | Y142: =IF(LEFT(D142,2)="SD",1,0)*IF(G142="I",1,0)*IF(H142="P",1,0)*IF(OR(J142<=Cálculo!$C$3,I142>=Cálculo!$D$3),0,1)*W142 -> 0
B143: 2014 | C143: ANTILHUE TGANTILHUE 1 | D143: SD01039/2014 | E143: ANTILHUE TG | F143: ANTILHUE 1 | G143: I | H143: P | I143: 2014-01-14T10:23:00 | J143: 2014-01-14T17:17:00 | K143: 0 | L143: 50.9 | M143: 6.9 | N143: =(L143-K143)/L143*((J143-I143)-(R143/24)-(S143/24))*24*IF(G143="I",1,0)*IF(OR(J143<=Cálculo!$C$3,I143>=Cálculo!$D$3),0,1)*W143 -> 0 | O143: 0 | P143: 0 | Q143: =IF(LEFT(D143,2)="IF",1,0)*IF(G143="I",1,0)*IF(OR(J143<=Cálculo!$C$3,I143>=Cálculo!$D$3),0,1)*W143 -> 0 | R143: =IF(J143<Cálculo!$D$3,0,(J143-Cálculo!$D$3))*24*IF(OR(J143<=Cálculo!$C$3,I143>=Cálculo!$D$3),0,1) -> 0 | S143: =IF(I143>Cálculo!$C$3,0,Cálculo!$C$3-I143)*24*IF(OR(J143<=Cálculo!$C$3,I143>=Cálculo!$D$3),0,1) -> 0 | T143: Reubicación de los equipos de MP y flujo en chimenea de unidad generadora TG1. | W143: TRUE | X143: 0 | Y143: =IF(LEFT(D143,2)="SD",1,0)*IF(G143="I",1,0)*IF(H143="P",1,0)*IF(OR(J143<=Cálculo!$C$3,I143>=Cálculo!$D$3),0,1)*W143 -> 0
B144: 2014 | C144: RENAICORENAICO | D144: IF00103/2014 | E144: RENAICO | F144: RENAICO | G144: I | H144: F | I144: 2014-01-14T11:43:00 | J144: 2014-01-14T14:00:00 | K144: 0 | L144: 6.3 | M144: 2.283333333 | N144: =(L144-K144)/L144*((J144-I144)-(R144/24)-(S144/24))*24*IF(G144="I",1,0)*IF(OR(J144<=Cálculo!$C$3,I144>=Cálculo!$D$3),0,1)*W144 -> 0 | O144: 0 | P144: 0 | Q144: =IF(LEFT(D144,2)="IF",1,0)*IF(G144="I",1,0)*IF(OR(J144<=Cálculo!$C$3,I144>=Cálculo!$D$3),0,1)*W144 -> 0 | R144: =IF(J144<Cálculo!$D$3,0,(J144-Cálculo!$D$3))*24*IF(OR(J144<=Cálculo!$C$3,I144>=Cálculo!$D$3),0,1) -> 0 | S144: =IF(I144>Cálculo!$C$3,0,Cálculo!$C$3-I144)*24*IF(OR(J144<=Cálculo!$C$3,I144>=Cálculo!$D$3),0,1) -> 0 | V144: 14/01/2014 16:05 ~ caída de rama en la línea de 23KV que une central Renaico con S/E Angol. ~ Rodrigo Véjar B. | W144: TRUE | X144: 0 | Y144: =IF(LEFT(D144,2)="SD",1,0)*IF(G144="I",1,0)*IF(H144="P",1,0)*IF(OR(J144<=Cálculo!$C$3,I144>=Cálculo!$D$3),0,1)*W144 -> 0
B145: 2014 | C145: CMPC PACÍFICOCMPC PACIFICO 1 | D145: IL00029/2014 | E145: CMPC PACÍFICO | F145: CMPC PACIFICO 1 | G145: E | H145: F | I145: 2014-01-14T12:09:00 | J145: 2014-01-14T14:44:00 | K145: 5 | L145: 35 | M145: 0 | N145: =(L145-K145)/L145*((J145-I145)-(R145/24)-(S145/24))*24*IF(G145="I",1,0)*IF(OR(J145<=Cálculo!$C$3,I145>=Cálculo!$D$3),0,1)*W145 -> 0 | O145: 0 | P145: 0 | Q145: =IF(LEFT(D145,2)="IF",1,0)*IF(G145="I",1,0)*IF(OR(J145<=Cálculo!$C$3,I145>=Cálculo!$D$3),0,1)*W145 -> 0 | R145: =IF(J145<Cálculo!$D$3,0,(J145-Cálculo!$D$3))*24*IF(OR(J145<=Cálculo!$C$3,I145>=Cálculo!$D$3),0,1) -> 0 | S145: =IF(I145>Cálculo!$C$3,0,Cálculo!$C$3-I145)*24*IF(OR(J145<=Cálculo!$C$3,I145>=Cálculo!$D$3),0,1) -> 0 | T145: Operación limitada por incendio bajo línea de transmisión adicional 220 KV. CMPC Charrua. | W145: TRUE | X145: 0 | Y145: =IF(LEFT(D145,2)="SD",1,0)*IF(G145="I",1,0)*IF(H145="P",1,0)*IF(OR(J145<=Cálculo!$C$3,I145>=Cálculo!$D$3),0,1)*W145 -> 0
B146: 2014 | C146: SANTA FESANTA FE | D146: IL00030/2014 | E146: SANTA FE | F146: SANTA FE | G146: E | H146: F | I146: 2014-01-14T12:09:00 | J146: 2014-01-14T14:44:00 | K146: 0 | L146: 50.4 | M146: 0 | N146: =(L146-K146)/L146*((J146-I146)-(R146/24)-(S146/24))*24*IF(G146="I",1,0)*IF(OR(J146<=Cálculo!$C$3,I146>=Cálculo!$D$3),0,1)*W146 -> 0 | O146: 0 | P146: 0 | Q146: =IF(LEFT(D146,2)="IF",1,0)*IF(G146="I",1,0)*IF(OR(J146<=Cálculo!$C$3,I146>=Cálculo!$D$3),0,1)*W146 -> 0 | R146: =IF(J146<Cálculo!$D$3,0,(J146-Cálculo!$D$3))*24*IF(OR(J146<=Cálculo!$C$3,I146>=Cálculo!$D$3),0,1) -> 0 | S146: =IF(I146>Cálculo!$C$3,0,Cálculo!$C$3-I146)*24*IF(OR(J146<=Cálculo!$C$3,I146>=Cálculo!$D$3),0,1) -> 0 | T146: entral limitada por incenido bajo línea de transmisión adicional 220 KV. CMPC Charrua. | W146: TRUE | X146: 0 | Y146: =IF(LEFT(D146,2)="SD",1,0)*IF(G146="I",1,0)*IF(H146="P",1,0)*IF(OR(J146<=Cálculo!$C$3,I146>=Cálculo!$D$3),0,1)*W146 -> 0
B147: 2014 | C147: NUEVA ALDEA IIINUEVA ALDEA III TG3 | D147: IF00107/2014 | E147: NUEVA ALDEA III | F147: NUEVA ALDEA III TG3 | G147: E | H147: F | I147: 2014-01-14T15:47:00 | J147: 2014-01-14T18:22:00 | K147: 0 | L147: 37 | M147: 0 | N147: =(L147-K147)/L147*((J147-I147)-(R147/24)-(S147/24))*24*IF(G147="I",1,0)*IF(OR(J147<=Cálculo!$C$3,I147>=Cálculo!$D$3),0,1)*W147 -> 0 | O147: 0 | P147: 0 | Q147: =IF(LEFT(D147,2)="IF",1,0)*IF(G147="I",1,0)*IF(OR(J147<=Cálculo!$C$3,I147>=Cálculo!$D$3),0,1)*W147 -> 0 | R147: =IF(J147<Cálculo!$D$3,0,(J147-Cálculo!$D$3))*24*IF(OR(J147<=Cálculo!$C$3,I147>=Cálculo!$D$3),0,1) -> 0 | S147: =IF(I147>Cálculo!$C$3,0,Cálculo!$C$3-I147)*24*IF(OR(J147<=Cálculo!$C$3,I147>=Cálculo!$D$3),0,1) -> 0 | T147: 14/01/2014 19:29 ~ Central genera en isla dejando de inyectar 36 MW al SIC ~ Hector Vilche A. | V147: 14/01/2014 19:29 ~ Interrupción con reconexión automática con éxito LT de 66 kV Santa Elvira - Nueva Aldea debido a incendio cercano a la línea. ~ Hector Vilche A. | W147: TRUE | X147: 0 | Y147: =IF(LEFT(D147,2)="SD",1,0)*IF(G147="I",1,0)*IF(H147="P",1,0)*IF(OR(J147<=Cálculo!$C$3,I147>=Cálculo!$D$3),0,1)*W147 -> 0
B148: 2014 | C148: NUEVA ALDEA INUEVA ALDEA I TG1 | D148: IF00106/2014 | E148: NUEVA ALDEA I | F148: NUEVA ALDEA I TG1 | G148: E | H148: F | I148: 2014-01-14T15:47:00 | J148: 2014-01-14T18:15:00 | K148: 0 | L148: 17 | M148: 0 | N148: =(L148-K148)/L148*((J148-I148)-(R148/24)-(S148/24))*24*IF(G148="I",1,0)*IF(OR(J148<=Cálculo!$C$3,I148>=Cálculo!$D$3),0,1)*W148 -> 0 | O148: 0 | P148: 0 | Q148: =IF(LEFT(D148,2)="IF",1,0)*IF(G148="I",1,0)*IF(OR(J148<=Cálculo!$C$3,I148>=Cálculo!$D$3),0,1)*W148 -> 0 | R148: =IF(J148<Cálculo!$D$3,0,(J148-Cálculo!$D$3))*24*IF(OR(J148<=Cálculo!$C$3,I148>=Cálculo!$D$3),0,1) -> 0 | S148: =IF(I148>Cálculo!$C$3,0,Cálculo!$C$3-I148)*24*IF(OR(J148<=Cálculo!$C$3,I148>=Cálculo!$D$3),0,1) -> 0 | T148: 14/01/2014 19:22 ~ Central genera en isla dejando de inyectar 13 MW al SIC. ~ Héctor Vilche A | V148: 14/01/2014 19:22 ~ Interrupción con reconexión automática con éxito LT de 66 kV Santa Elvira - Nueva Aldea debido a incendio cercano a la línea. ~ Héctor Vilche A | W148: TRUE | X148: 0 | Y148: =IF(LEFT(D148,2)="SD",1,0)*IF(G148="I",1,0)*IF(H148="P",1,0)*IF(OR(J148<=Cálculo!$C$3,I148>=Cálculo!$D$3),0,1)*W148 -> 0
B149: 2014 | C149: FLORIDA IIIFLORIDA III 2 | D149: IF00131/2014 | E149: FLORIDA III | F149: FLORIDA III 2 | G149: I | H149: F | I149: 2014-01-14T17:54:00 | J149: 2014-01-17T16:09:00 | K149: 0 | L149: 1.2 | M149: 70.25 | N149: =(L149-K149)/L149*((J149-I149)-(R149/24)-(S149/24))*24*IF(G149="I",1,0)*IF(OR(J149<=Cálculo!$C$3,I149>=Cálculo!$D$3),0,1)*W149 -> 0 | O149: 0 | P149: 0 | Q149: =IF(LEFT(D149,2)="IF",1,0)*IF(G149="I",1,0)*IF(OR(J149<=Cálculo!$C$3,I149>=Cálculo!$D$3),0,1)*W149 -> 0 | R149: =IF(J149<Cálculo!$D$3,0,(J149-Cálculo!$D$3))*24*IF(OR(J149<=Cálculo!$C$3,I149>=Cálculo!$D$3),0,1) -> 0 | S149: =IF(I149>Cálculo!$C$3,0,Cálculo!$C$3-I149)*24*IF(OR(J149<=Cálculo!$C$3,I149>=Cálculo!$D$3),0,1) -> 0 | T149: 17/01/2014 17:23 ~ El equipo afectado (bomba de arrastre) fue revisado y reemplaza por otro nuevo y de similares características, a este último se le realizaron pruebas de funcionamiento las cuales concluyeron de forma optima. ~ Carlos Cartes V. | U149: 16/01/2014 13:20 ~ Desconexión intempestiva de la unidad por falla en bomba de arrastre asociada a sistema de lubricación. ~ E. Maurens | V149: 17/01/2014 17:23 ~ Desconexión intempestiva de la unidad por falla en bomba de arrastre asociada a sistema de lubricación. ~ Carlos Cartes V. | W149: TRUE | X149: 0 | Y149: =IF(LEFT(D149,2)="SD",1,0)*IF(G149="I",1,0)*IF(H149="P",1,0)*IF(OR(J149<=Cálculo!$C$3,I149>=Cálculo!$D$3),0,1)*W149 -> 0
B150: 2014 | C150: FLORIDA IIIFLORIDA III 1 | D150: IF00130/2014 | E150: FLORIDA III | F150: FLORIDA III 1 | G150: I | H150: F | I150: 2014-01-14T17:57:00 | J150: 2014-01-14T19:10:00 | K150: 0 | L150: 1.2 | M150: 1.216666667 | N150: =(L150-K150)/L150*((J150-I150)-(R150/24)-(S150/24))*24*IF(G150="I",1,0)*IF(OR(J150<=Cálculo!$C$3,I150>=Cálculo!$D$3),0,1)*W150 -> 0 | O150: 0 | P150: 0 | Q150: =IF(LEFT(D150,2)="IF",1,0)*IF(G150="I",1,0)*IF(OR(J150<=Cálculo!$C$3,I150>=Cálculo!$D$3),0,1)*W150 -> 0 | R150: =IF(J150<Cálculo!$D$3,0,(J150-Cálculo!$D$3))*24*IF(OR(J150<=Cálculo!$C$3,I150>=Cálculo!$D$3),0,1) -> 0 | S150: =IF(I150>Cálculo!$C$3,0,Cálculo!$C$3-I150)*24*IF(OR(J150<=Cálculo!$C$3,I150>=Cálculo!$D$3),0,1) -> 0 | U150: 16/01/2014 13:16 ~ Desconexión de la unidad por bajo nivel en foso de descarga. ~ E. Maurens | V150: 16/01/2014 19:00 ~ Desconexión de la unidad por bajo nivel en foso de descarga. ~ Carlos Cartes V. | W150: TRUE | X150: 0 | Y150: =IF(LEFT(D150,2)="SD",1,0)*IF(G150="I",1,0)*IF(H150="P",1,0)*IF(OR(J150<=Cálculo!$C$3,I150>=Cálculo!$D$3),0,1)*W150 -> 0
B151: 2014 | C151: JUNCALACONCAGUA (JUNCAL) | D151: SD01259/2014 | E151: JUNCAL | F151: ACONCAGUA (JUNCAL) | G151: I | H151: F | I151: 2014-01-14T21:06:00 | J151: 2014-01-15T21:47:00 | K151: 0 | L151: 29.2 | M151: 24.68333333 | N151: =(L151-K151)/L151*((J151-I151)-(R151/24)-(S151/24))*24*IF(G151="I",1,0)*IF(OR(J151<=Cálculo!$C$3,I151>=Cálculo!$D$3),0,1)*W151 -> 0 | O151: 0 | P151: 0 | Q151: =IF(LEFT(D151,2)="IF",1,0)*IF(G151="I",1,0)*IF(OR(J151<=Cálculo!$C$3,I151>=Cálculo!$D$3),0,1)*W151 -> 0 | R151: =IF(J151<Cálculo!$D$3,0,(J151-Cálculo!$D$3))*24*IF(OR(J151<=Cálculo!$C$3,I151>=Cálculo!$D$3),0,1) -> 0 | S151: =IF(I151>Cálculo!$C$3,0,Cálculo!$C$3-I151)*24*IF(OR(J151<=Cálculo!$C$3,I151>=Cálculo!$D$3),0,1) -> 0 | T151: Desconexión de Unidad Juncal por inspección de turbina y generador para detectar o prevenir posibles fallas, en relación a falla ocurrida en unidad Blanco. Todo por requerimiento de la Gerencia de la compañía. | W151: TRUE | X151: 0 | Y151: =IF(LEFT(D151,2)="SD",1,0)*IF(G151="I",1,0)*IF(H151="P",1,0)*IF(OR(J151<=Cálculo!$C$3,I151>=Cálculo!$D$3),0,1)*W151 -> 0
B152: 2014 | C152: RUCUERUCUE 1 | D152: SD01144/2014 | E152: RUCUE | F152: RUCUE 1 | G152: I | H152: P | I152: 2014-01-15T00:41:00 | J152: 2014-01-15T21:40:00 | K152: 0 | L152: 89.2 | M152: 20.98333333 | N152: =(L152-K152)/L152*((J152-I152)-(R152/24)-(S152/24))*24*IF(G152="I",1,0)*IF(OR(J152<=Cálculo!$C$3,I152>=Cálculo!$D$3),0,1)*W152 -> 0 | O152: 0 | P152: 0 | Q152: =IF(LEFT(D152,2)="IF",1,0)*IF(G152="I",1,0)*IF(OR(J152<=Cálculo!$C$3,I152>=Cálculo!$D$3),0,1)*W152 -> 0 | R152: =IF(J152<Cálculo!$D$3,0,(J152-Cálculo!$D$3))*24*IF(OR(J152<=Cálculo!$C$3,I152>=Cálculo!$D$3),0,1) -> 0 | S152: =IF(I152>Cálculo!$C$3,0,Cálculo!$C$3-I152)*24*IF(OR(J152<=Cálculo!$C$3,I152>=Cálculo!$D$3),0,1) -> 0 | T152: Solicita desconexión para inspeccionar y eliminar leve filtración de aceite por sonda 741. | W152: TRUE | X152: 0 | Y152: =IF(LEFT(D152,2)="SD",1,0)*IF(G152="I",1,0)*IF(H152="P",1,0)*IF(OR(J152<=Cálculo!$C$3,I152>=Cálculo!$D$3),0,1)*W152 -> 0
B153: 2014 | C153: GUAYACANGUAYACÁN 2 | D153: SD01264/2014 | E153: GUAYACAN | F153: GUAYACÁN 2 | G153: I | H153: F | I153: 2014-01-15T04:29:00 | J153: 2014-01-20T17:24:00 | K153: 0 | L153: 6 | M153: 132.9166667 | N153: =(L153-K153)/L153*((J153-I153)-(R153/24)-(S153/24))*24*IF(G153="I",1,0)*IF(OR(J153<=Cálculo!$C$3,I153>=Cálculo!$D$3),0,1)*W153 -> 0 | O153: 0 | P153: 0 | Q153: =IF(LEFT(D153,2)="IF",1,0)*IF(G153="I",1,0)*IF(OR(J153<=Cálculo!$C$3,I153>=Cálculo!$D$3),0,1)*W153 -> 0 | R153: =IF(J153<Cálculo!$D$3,0,(J153-Cálculo!$D$3))*24*IF(OR(J153<=Cálculo!$C$3,I153>=Cálculo!$D$3),0,1) -> 0 | S153: =IF(I153>Cálculo!$C$3,0,Cálculo!$C$3-I153)*24*IF(OR(J153<=Cálculo!$C$3,I153>=Cálculo!$D$3),0,1) -> 0 | T153: Inspección a descanzo de turbina por aumento intempestivo de temperatura | W153: TRUE | X153: 0 | Y153: =IF(LEFT(D153,2)="SD",1,0)*IF(G153="I",1,0)*IF(H153="P",1,0)*IF(OR(J153<=Cálculo!$C$3,I153>=Cálculo!$D$3),0,1)*W153 -> 0
B154: 2014 | C154: SAN IGNACIOSAN IGNACIO 1 | D154: SD01166/2014 | E154: SAN IGNACIO | F154: SAN IGNACIO 1 | G154: I | H154: P | I154: 2014-01-15T05:53:00 | J154: 2014-01-15T08:02:00 | K154: 0 | L154: 37 | M154: 2.15 | N154: =(L154-K154)/L154*((J154-I154)-(R154/24)-(S154/24))*24*IF(G154="I",1,0)*IF(OR(J154<=Cálculo!$C$3,I154>=Cálculo!$D$3),0,1)*W154 -> 0 | O154: 0 | P154: 0 | Q154: =IF(LEFT(D154,2)="IF",1,0)*IF(G154="I",1,0)*IF(OR(J154<=Cálculo!$C$3,I154>=Cálculo!$D$3),0,1)*W154 -> 0 | R154: =IF(J154<Cálculo!$D$3,0,(J154-Cálculo!$D$3))*24*IF(OR(J154<=Cálculo!$C$3,I154>=Cálculo!$D$3),0,1) -> 0 | S154: =IF(I154>Cálculo!$C$3,0,Cálculo!$C$3-I154)*24*IF(OR(J154<=Cálculo!$C$3,I154>=Cálculo!$D$3),0,1) -> 0 | T154: Se realizará medida de aislación, medidas de largo de carbones, aspirado y limpieza en anillos rozantes. | W154: TRUE | X154: 0 | Y154: =IF(LEFT(D154,2)="SD",1,0)*IF(G154="I",1,0)*IF(H154="P",1,0)*IF(OR(J154<=Cálculo!$C$3,I154>=Cálculo!$D$3),0,1)*W154 -> 0
B155: 2014 | C155: HUASCO TGHUASCO 3 | D155: SD01156/2014 | E155: HUASCO TG | F155: HUASCO 3 | G155: I | H155: P | I155: 2014-01-15T07:29:00 | J155: 2014-01-15T17:52:00 | K155: 0 | L155: 19.3 | M155: 10.38333333 | N155: =(L155-K155)/L155*((J155-I155)-(R155/24)-(S155/24))*24*IF(G155="I",1,0)*IF(OR(J155<=Cálculo!$C$3,I155>=Cálculo!$D$3),0,1)*W155 -> 0 | O155: 0 | P155: 0 | Q155: =IF(LEFT(D155,2)="IF",1,0)*IF(G155="I",1,0)*IF(OR(J155<=Cálculo!$C$3,I155>=Cálculo!$D$3),0,1)*W155 -> 0 | R155: =IF(J155<Cálculo!$D$3,0,(J155-Cálculo!$D$3))*24*IF(OR(J155<=Cálculo!$C$3,I155>=Cálculo!$D$3),0,1) -> 0 | S155: =IF(I155>Cálculo!$C$3,0,Cálculo!$C$3-I155)*24*IF(OR(J155<=Cálculo!$C$3,I155>=Cálculo!$D$3),0,1) -> 0 | T155: - Turbina a Gas N° 3 Central Huasco. - Lavado de bushing y Mufas Trafo de Poder TG N° 3 ,Limpieza a Barras Capsuladas, MPB Mensual, con Prueba Partida en Negro y Cierre 52G3 contra Barra Muerta. | W155: TRUE | X155: 0 | Y155: =IF(LEFT(D155,2)="SD",1,0)*IF(G155="I",1,0)*IF(H155="P",1,0)*IF(OR(J155<=Cálculo!$C$3,I155>=Cálculo!$D$3),0,1)*W155 -> 0
B156: 2014 | C156: EOLICA TALINAY ORIENTEEOLICA TALINAY ORIENTE | D156: SD01022/2014 | E156: EOLICA TALINAY ORIENTE | F156: EOLICA TALINAY ORIENTE | G156: I | H156: P | I156: 2014-01-15T08:23:00 | J156: 2014-01-15T17:45:00 | K156: 0 | L156: 90 | M156: 9.366666667 | N156: =(L156-K156)/L156*((J156-I156)-(R156/24)-(S156/24))*24*IF(G156="I",1,0)*IF(OR(J156<=Cálculo!$C$3,I156>=Cálculo!$D$3),0,1)*W156 -> 0 | O156: 0 | P156: 0 | Q156: =IF(LEFT(D156,2)="IF",1,0)*IF(G156="I",1,0)*IF(OR(J156<=Cálculo!$C$3,I156>=Cálculo!$D$3),0,1)*W156 -> 0 | R156: =IF(J156<Cálculo!$D$3,0,(J156-Cálculo!$D$3))*24*IF(OR(J156<=Cálculo!$C$3,I156>=Cálculo!$D$3),0,1) -> 0 | S156: =IF(I156>Cálculo!$C$3,0,Cálculo!$C$3-I156)*24*IF(OR(J156<=Cálculo!$C$3,I156>=Cálculo!$D$3),0,1) -> 0 | T156: Intervención Celdas 34,5 Kv y Patio A/T S/E Talinay. | W156: TRUE | X156: 0 | Y156: =IF(LEFT(D156,2)="SD",1,0)*IF(G156="I",1,0)*IF(H156="P",1,0)*IF(OR(J156<=Cálculo!$C$3,I156>=Cálculo!$D$3),0,1)*W156 -> 0
B157: 2014 | C157: HORCONES TGHORCONES TG | D157: SD00588/2014 | E157: HORCONES TG | F157: HORCONES TG | G157: I | H157: P | I157: 2014-01-15T08:24:00 | J157: 2014-01-23T13:16:00 | K157: 0 | L157: 24.3 | M157: 196.8666667 | N157: =(L157-K157)/L157*((J157-I157)-(R157/24)-(S157/24))*24*IF(G157="I",1,0)*IF(OR(J157<=Cálculo!$C$3,I157>=Cálculo!$D$3),0,1)*W157 -> 0 | O157: 0 | P157: 0 | Q157: =IF(LEFT(D157,2)="IF",1,0)*IF(G157="I",1,0)*IF(OR(J157<=Cálculo!$C$3,I157>=Cálculo!$D$3),0,1)*W157 -> 0 | R157: =IF(J157<Cálculo!$D$3,0,(J157-Cálculo!$D$3))*24*IF(OR(J157<=Cálculo!$C$3,I157>=Cálculo!$D$3),0,1) -> 0 | S157: =IF(I157>Cálculo!$C$3,0,Cálculo!$C$3-I157)*24*IF(OR(J157<=Cálculo!$C$3,I157>=Cálculo!$D$3),0,1) -> 0 | T157: Se desconecta TG Horcones para efectuar mantenimiento mayor(informado en fax SGC-F817/2013 del 27/12/2013), Nota: esta SD reemplaza a la SD00335/2014 por tener error en la fecha de término | W157: TRUE | X157: 0 | Y157: =IF(LEFT(D157,2)="SD",1,0)*IF(G157="I",1,0)*IF(H157="P",1,0)*IF(OR(J157<=Cálculo!$C$3,I157>=Cálculo!$D$3),0,1)*W157 -> 0
B158: 2014 | C158: CANELA IICANELA II | D158: SD01135/2014 | E158: CANELA II | F158: CANELA II | G158: I | H158: P | I158: 2014-01-15T09:20:00 | J158: 2014-01-15T17:26:00 | K158: 58.5 | L158: 60 | M158: 0.2025 | N158: =(L158-K158)/L158*((J158-I158)-(R158/24)-(S158/24))*24*IF(G158="I",1,0)*IF(OR(J158<=Cálculo!$C$3,I158>=Cálculo!$D$3),0,1)*W158 -> 0 | O158: 0 | P158: 0 | Q158: =IF(LEFT(D158,2)="IF",1,0)*IF(G158="I",1,0)*IF(OR(J158<=Cálculo!$C$3,I158>=Cálculo!$D$3),0,1)*W158 -> 0 | R158: =IF(J158<Cálculo!$D$3,0,(J158-Cálculo!$D$3))*24*IF(OR(J158<=Cálculo!$C$3,I158>=Cálculo!$D$3),0,1) -> 0 | S158: =IF(I158>Cálculo!$C$3,0,Cálculo!$C$3-I158)*24*IF(OR(J158<=Cálculo!$C$3,I158>=Cálculo!$D$3),0,1) -> 0 | T158: - Aerogenerador C04, 1.5 MW indisponibles. - Mantenimiento preventivo mecánico y eléctrico, en la unidad Aerogenerador Acciona. | W158: TRUE | X158: 0 | Y158: =IF(LEFT(D158,2)="SD",1,0)*IF(G158="I",1,0)*IF(H158="P",1,0)*IF(OR(J158<=Cálculo!$C$3,I158>=Cálculo!$D$3),0,1)*W158 -> 0
B159: 2014 | C159: CARENACARENA 2 | D159: SD01296/2014 | E159: CARENA | F159: CARENA 2 | G159: I | H159: F | I159: 2014-01-15T09:28:00 | J159: 2014-01-16T00:35:00 | K159: 0 | L159: 2.5 | M159: 15.11666667 | N159: =(L159-K159)/L159*((J159-I159)-(R159/24)-(S159/24))*24*IF(G159="I",1,0)*IF(OR(J159<=Cálculo!$C$3,I159>=Cálculo!$D$3),0,1)*W159 -> 0 | O159: 0 | P159: 0 | Q159: =IF(LEFT(D159,2)="IF",1,0)*IF(G159="I",1,0)*IF(OR(J159<=Cálculo!$C$3,I159>=Cálculo!$D$3),0,1)*W159 -> 0 | R159: =IF(J159<Cálculo!$D$3,0,(J159-Cálculo!$D$3))*24*IF(OR(J159<=Cálculo!$C$3,I159>=Cálculo!$D$3),0,1) -> 0 | S159: =IF(I159>Cálculo!$C$3,0,Cálculo!$C$3-I159)*24*IF(OR(J159<=Cálculo!$C$3,I159>=Cálculo!$D$3),0,1) -> 0 | T159: Se desconecta UG2 por perdida de Agua en Valvula de Sobrepresion | W159: TRUE | X159: 0 | Y159: =IF(LEFT(D159,2)="SD",1,0)*IF(G159="I",1,0)*IF(H159="P",1,0)*IF(OR(J159<=Cálculo!$C$3,I159>=Cálculo!$D$3),0,1)*W159 -> 0
B160: 2014 | C160: LA HIGUERALA HIGUERA 2 | D160: SD01140/2014 | E160: LA HIGUERA | F160: LA HIGUERA 2 | G160: I | H160: P | I160: 2014-01-15T09:50:00 | J160: 2014-01-15T20:00:00 | K160: 0 | L160: 77.35 | M160: 10.16666667 | N160: =(L160-K160)/L160*((J160-I160)-(R160/24)-(S160/24))*24*IF(G160="I",1,0)*IF(OR(J160<=Cálculo!$C$3,I160>=Cálculo!$D$3),0,1)*W160 -> 0 | O160: 0 | P160: 0 | Q160: =IF(LEFT(D160,2)="IF",1,0)*IF(G160="I",1,0)*IF(OR(J160<=Cálculo!$C$3,I160>=Cálculo!$D$3),0,1)*W160 -> 0 | R160: =IF(J160<Cálculo!$D$3,0,(J160-Cálculo!$D$3))*24*IF(OR(J160<=Cálculo!$C$3,I160>=Cálculo!$D$3),0,1) -> 0 | S160: =IF(I160>Cálculo!$C$3,0,Cálculo!$C$3-I160)*24*IF(OR(J160<=Cálculo!$C$3,I160>=Cálculo!$D$3),0,1) -> 0 | T160: Realizar Mantenimiento a Sistema Contra Incendio Transformador Numero 2, en coordinacion con CDEC. | W160: TRUE | X160: 0 | Y160: =IF(LEFT(D160,2)="SD",1,0)*IF(G160="I",1,0)*IF(H160="P",1,0)*IF(OR(J160<=Cálculo!$C$3,I160>=Cálculo!$D$3),0,1)*W160 -> 0
B161: 2014 | C161: ANTILHUE TGANTILHUE 2 | D161: SD01146/2014 | E161: ANTILHUE TG | F161: ANTILHUE 2 | G161: I | H161: P | I161: 2014-01-15T10:05:00 | J161: 2014-01-15T17:40:00 | K161: 0 | L161: 51.6 | M161: 7.583333333 | N161: =(L161-K161)/L161*((J161-I161)-(R161/24)-(S161/24))*24*IF(G161="I",1,0)*IF(OR(J161<=Cálculo!$C$3,I161>=Cálculo!$D$3),0,1)*W161 -> 0 | O161: 0 | P161: 0 | Q161: =IF(LEFT(D161,2)="IF",1,0)*IF(G161="I",1,0)*IF(OR(J161<=Cálculo!$C$3,I161>=Cálculo!$D$3),0,1)*W161 -> 0 | R161: =IF(J161<Cálculo!$D$3,0,(J161-Cálculo!$D$3))*24*IF(OR(J161<=Cálculo!$C$3,I161>=Cálculo!$D$3),0,1) -> 0 | S161: =IF(I161>Cálculo!$C$3,0,Cálculo!$C$3-I161)*24*IF(OR(J161<=Cálculo!$C$3,I161>=Cálculo!$D$3),0,1) -> 0 | T161: Reubicación de los equipos de MP y flujo en chimenea de unidad generadora TG2. | W161: TRUE | X161: 0 | Y161: =IF(LEFT(D161,2)="SD",1,0)*IF(G161="I",1,0)*IF(H161="P",1,0)*IF(OR(J161<=Cálculo!$C$3,I161>=Cálculo!$D$3),0,1)*W161 -> 0
B162: 2014 | C162: CARENACARENA 1 | D162: SD01332/2014 | E162: CARENA | F162: CARENA 1 | G162: I | H162: F | I162: 2014-01-15T10:33:00 | J162: 2014-01-16T01:00:00 | K162: 0 | L162: 2.5 | M162: 14.45 | N162: =(L162-K162)/L162*((J162-I162)-(R162/24)-(S162/24))*24*IF(G162="I",1,0)*IF(OR(J162<=Cálculo!$C$3,I162>=Cálculo!$D$3),0,1)*W162 -> 0 | O162: 0 | P162: 0 | Q162: =IF(LEFT(D162,2)="IF",1,0)*IF(G162="I",1,0)*IF(OR(J162<=Cálculo!$C$3,I162>=Cálculo!$D$3),0,1)*W162 -> 0 | R162: =IF(J162<Cálculo!$D$3,0,(J162-Cálculo!$D$3))*24*IF(OR(J162<=Cálculo!$C$3,I162>=Cálculo!$D$3),0,1) -> 0 | S162: =IF(I162>Cálculo!$C$3,0,Cálculo!$C$3-I162)*24*IF(OR(J162<=Cálculo!$C$3,I162>=Cálculo!$D$3),0,1) -> 0 | T162: Se desconecta UG1 para realizar Vaciado de Tuberia de Presion B, con la finalidad de realizar retiro de Valvula de Sobrepresion UG2 | W162: TRUE | X162: 0 | Y162: =IF(LEFT(D162,2)="SD",1,0)*IF(G162="I",1,0)*IF(H162="P",1,0)*IF(OR(J162<=Cálculo!$C$3,I162>=Cálculo!$D$3),0,1)*W162 -> 0
B163: 2014 | C163: CANELA IICANELA II | D163: SD01150/2014 | E163: CANELA II | F163: CANELA II | G163: I | H163: P | I163: 2014-01-15T11:30:00 | J163: 2014-01-15T17:26:00 | K163: 58.5 | L163: 60 | M163: 0.1483333333 | N163: =(L163-K163)/L163*((J163-I163)-(R163/24)-(S163/24))*24*IF(G163="I",1,0)*IF(OR(J163<=Cálculo!$C$3,I163>=Cálculo!$D$3),0,1)*W163 -> 0 | O163: 0 | P163: 0 | Q163: =IF(LEFT(D163,2)="IF",1,0)*IF(G163="I",1,0)*IF(OR(J163<=Cálculo!$C$3,I163>=Cálculo!$D$3),0,1)*W163 -> 0 | R163: =IF(J163<Cálculo!$D$3,0,(J163-Cálculo!$D$3))*24*IF(OR(J163<=Cálculo!$C$3,I163>=Cálculo!$D$3),0,1) -> 0 | S163: =IF(I163>Cálculo!$C$3,0,Cálculo!$C$3-I163)*24*IF(OR(J163<=Cálculo!$C$3,I163>=Cálculo!$D$3),0,1) -> 0 | T163: - Aerogenerador A01, 1.65 MW indisponibles. - Mantenimiento preventivo mecánico y eléctrico, en la unidad Aerogenerador Vestas. | W163: TRUE | X163: 0 | Y163: =IF(LEFT(D163,2)="SD",1,0)*IF(G163="I",1,0)*IF(H163="P",1,0)*IF(OR(J163<=Cálculo!$C$3,I163>=Cálculo!$D$3),0,1)*W163 -> 0
B164: 2014 | C164: PEUCHENCentral | D164: IF00113/2014 | E164: PEUCHEN | F164: Central | G164: I | H164: F | I164: 2014-01-15T12:07:00 | J164: 2014-01-15T14:21:00 | K164: 0 | L164: 80.2 | M164: 2.233333333 | N164: =(L164-K164)/L164*((J164-I164)-(R164/24)-(S164/24))*24*IF(G164="I",1,0)*IF(OR(J164<=Cálculo!$C$3,I164>=Cálculo!$D$3),0,1)*W164 -> 0 | O164: 0 | P164: 0 | Q164: =IF(LEFT(D164,2)="IF",1,0)*IF(G164="I",1,0)*IF(OR(J164<=Cálculo!$C$3,I164>=Cálculo!$D$3),0,1)*W164 -> 0 | R164: =IF(J164<Cálculo!$D$3,0,(J164-Cálculo!$D$3))*24*IF(OR(J164<=Cálculo!$C$3,I164>=Cálculo!$D$3),0,1) -> 0 | S164: =IF(I164>Cálculo!$C$3,0,Cálculo!$C$3-I164)*24*IF(OR(J164<=Cálculo!$C$3,I164>=Cálculo!$D$3),0,1) -> 0 | U164: 15/01/2014 20:02 ~ Error de señal Inundación de central ~ José Jara | V164: 23/01/2014 04:05 ~ Fallo en relé control, provoca falsa señal de inundacion de central, ocasionando la desconeccion de la unidad en servicio ~ Gerardo Carrasco | W164: TRUE | X164: 0 | Y164: =IF(LEFT(D164,2)="SD",1,0)*IF(G164="I",1,0)*IF(H164="P",1,0)*IF(OR(J164<=Cálculo!$C$3,I164>=Cálculo!$D$3),0,1)*W164 -> 0
B165: 2014 | C165: COYACOYA 5 | D165: SD01076/2014 | E165: COYA | F165: COYA 5 | G165: I | H165: P | I165: 2014-01-15T14:07:00 | J165: 2014-01-15T14:35:00 | K165: 0 | L165: 11 | M165: 0.4666666668 | N165: =(L165-K165)/L165*((J165-I165)-(R165/24)-(S165/24))*24*IF(G165="I",1,0)*IF(OR(J165<=Cálculo!$C$3,I165>=Cálculo!$D$3),0,1)*W165 -> 0 | O165: 0 | P165: 0 | Q165: =IF(LEFT(D165,2)="IF",1,0)*IF(G165="I",1,0)*IF(OR(J165<=Cálculo!$C$3,I165>=Cálculo!$D$3),0,1)*W165 -> 0 | R165: =IF(J165<Cálculo!$D$3,0,(J165-Cálculo!$D$3))*24*IF(OR(J165<=Cálculo!$C$3,I165>=Cálculo!$D$3),0,1) -> 0 | S165: =IF(I165>Cálculo!$C$3,0,Cálculo!$C$3-I165)*24*IF(OR(J165<=Cálculo!$C$3,I165>=Cálculo!$D$3),0,1) -> 0 | T165: Se requiere autorización para conectar el paño HT6 (unidad 5 Coya) a la Barra 2 de 110 Kv. de Sauzal (cambiar desde Barra 1 a Barra 2). Lo anterior para disponer de las condiciones necesarias para colocar en servicio sistema EDAG/ERAG de Chacayes. | W165: TRUE | X165: 0 | Y165: =IF(LEFT(D165,2)="SD",1,0)*IF(G165="I",1,0)*IF(H165="P",1,0)*IF(OR(J165<=Cálculo!$C$3,I165>=Cálculo!$D$3),0,1)*W165 -> 0
B166: =YEAR(I166) -> 2014 | C166: =E166&F166 -> VENTANAS 2VENTANAS 2 | D166: IL00031/2014 | E166: VENTANAS 2 | F166: VENTANAS 2 | G166: I | H166: F | I166: 2014-01-15T14:13:00 | J166: 2014-01-15T14:48:00 | K166: 150 | L166: 220 | M166: =(L166-K166)/L166*((J166-I166)-(R166/24)-(S166/24))*24*IF(G166="I",1,0)*W166 -> 0.1856060606 | N166: =(L166-K166)/L166*((J166-I166)-(R166/24)-(S166/24))*24*IF(G166="I",1,0)*IF(OR(J166<=Cálculo!$C$3,I166>=Cálculo!$D$3),0,1)*W166 -> 0 | O166: =IF(H166="P",$N166,0) -> 0 | P166: =IF(OR(H166="F",H166="N"),$N166,0) -> 0 | Q166: =IF(LEFT(D166,2)="IF",1,0)*IF(G166="I",1,0)*IF(OR(J166<=Cálculo!$C$3,I166>=Cálculo!$D$3),0,1)*W166 -> 0 | R166: =IF(J166<Cálculo!$D$3,0,(J166-Cálculo!$D$3))*24*IF(OR(J166<=Cálculo!$C$3,I166>=Cálculo!$D$3),0,1) -> 0 | S166: =IF(I166>Cálculo!$C$3,0,Cálculo!$C$3-I166)*24*IF(OR(J166<=Cálculo!$C$3,I166>=Cálculo!$D$3),0,1) -> 0 | T166: Limita generación debido a obstrucción de pirita en Pulverizador F | W166: TRUE | X166: =IF(L166<K166,1,0) -> 0 | Y166: =IF(LEFT(D166,2)="SD",1,0)*IF(G166="I",1,0)*IF(H166="P",1,0)*IF(OR(J166<=Cálculo!$C$3,I166>=Cálculo!$D$3),0,1)*W166 -> 0
B167: 2014 | C167: VENTANAS 2VENTANAS 2 | D167: IL00033/2014 | E167: VENTANAS 2 | F167: VENTANAS 2 | G167: I | H167: F | I167: 2014-01-15T14:54:00 | J167: 2014-01-16T18:48:00 | K167: 180 | L167: 220 | M167: 5.072727273 | N167: =(L167-K167)/L167*((J167-I167)-(R167/24)-(S167/24))*24*IF(G167="I",1,0)*IF(OR(J167<=Cálculo!$C$3,I167>=Cálculo!$D$3),0,1)*W167 -> 0 | O167: 0 | P167: 0 | Q167: =IF(LEFT(D167,2)="IF",1,0)*IF(G167="I",1,0)*IF(OR(J167<=Cálculo!$C$3,I167>=Cálculo!$D$3),0,1)*W167 -> 0 | R167: =IF(J167<Cálculo!$D$3,0,(J167-Cálculo!$D$3))*24*IF(OR(J167<=Cálculo!$C$3,I167>=Cálculo!$D$3),0,1) -> 0 | S167: =IF(I167>Cálculo!$C$3,0,Cálculo!$C$3-I167)*24*IF(OR(J167<=Cálculo!$C$3,I167>=Cálculo!$D$3),0,1) -> 0 | T167: Limitada por control de parámetros de descarga de agua de circulación. | W167: TRUE | X167: 0 | Y167: =IF(LEFT(D167,2)="SD",1,0)*IF(G167="I",1,0)*IF(H167="P",1,0)*IF(OR(J167<=Cálculo!$C$3,I167>=Cálculo!$D$3),0,1)*W167 -> 0
B168: 2014 | C168: CHACAYESCHACAYES 1 | D168: SD01081/2014 | E168: CHACAYES | F168: CHACAYES 1 | G168: I | H168: P | I168: 2014-01-15T15:18:00 | J168: 2014-01-15T18:14:00 | K168: 0 | L168: 56 | M168: 2.933333333 | N168: =(L168-K168)/L168*((J168-I168)-(R168/24)-(S168/24))*24*IF(G168="I",1,0)*IF(OR(J168<=Cálculo!$C$3,I168>=Cálculo!$D$3),0,1)*W168 -> 0 | O168: 0 | P168: 0 | Q168: =IF(LEFT(D168,2)="IF",1,0)*IF(G168="I",1,0)*IF(OR(J168<=Cálculo!$C$3,I168>=Cálculo!$D$3),0,1)*W168 -> 0 | R168: =IF(J168<Cálculo!$D$3,0,(J168-Cálculo!$D$3))*24*IF(OR(J168<=Cálculo!$C$3,I168>=Cálculo!$D$3),0,1) -> 0 | S168: =IF(I168>Cálculo!$C$3,0,Cálculo!$C$3-I168)*24*IF(OR(J168<=Cálculo!$C$3,I168>=Cálculo!$D$3),0,1) -> 0 | T168: Se requiere autorización para desconectar la U1 durante 15 minutos con el objetivo de cerrar los seccionadores de barra y operar con barras unidas en S/E Chacayes (110 Kv), considerando los paños de línea L3 y L4 de Sauzal, conectados a barra 1 y a barra 2, respectivamente (barras separadas en Sauzal). Lo anterior con el objetivo colocar en servicio el sistema EDAG-ERAG de Chacayes. | W168: TRUE | X168: 0 | Y168: =IF(LEFT(D168,2)="SD",1,0)*IF(G168="I",1,0)*IF(H168="P",1,0)*IF(OR(J168<=Cálculo!$C$3,I168>=Cálculo!$D$3),0,1)*W168 -> 0
B169: 2014 | C169: VENTANAS 1VENTANAS 1 | D169: IL00032/2014 | E169: VENTANAS 1 | F169: VENTANAS 1 | G169: I | H169: F | I169: 2014-01-15T17:23:00 | J169: 2014-01-15T17:57:00 | K169: 70 | L169: 120 | M169: 0.2361111111 | N169: =(L169-K169)/L169*((J169-I169)-(R169/24)-(S169/24))*24*IF(G169="I",1,0)*IF(OR(J169<=Cálculo!$C$3,I169>=Cálculo!$D$3),0,1)*W169 -> 0 | O169: 0 | P169: 0 | Q169: =IF(LEFT(D169,2)="IF",1,0)*IF(G169="I",1,0)*IF(OR(J169<=Cálculo!$C$3,I169>=Cálculo!$D$3),0,1)*W169 -> 0 | R169: =IF(J169<Cálculo!$D$3,0,(J169-Cálculo!$D$3))*24*IF(OR(J169<=Cálculo!$C$3,I169>=Cálculo!$D$3),0,1) -> 0 | S169: =IF(I169>Cálculo!$C$3,0,Cálculo!$C$3-I169)*24*IF(OR(J169<=Cálculo!$C$3,I169>=Cálculo!$D$3),0,1) -> 0 | T169: limitada por obstrucción alimentador de carbón 1B | W169: TRUE | X169: 0 | Y169: =IF(LEFT(D169,2)="SD",1,0)*IF(G169="I",1,0)*IF(H169="P",1,0)*IF(OR(J169<=Cálculo!$C$3,I169>=Cálculo!$D$3),0,1)*W169 -> 0
B170: 2014 | C170: BOCAMINA IIBOCAMINA II | D170: SD01403/2014 | E170: BOCAMINA II | F170: BOCAMINA II | G170: I | H170: F | I170: 2014-01-16 | J170: 2014-02-28T23:59:00 | K170: 0 | L170: 350 | M170: 1055.983333 | N170: =(L170-K170)/L170*((J170-I170)-(R170/24)-(S170/24))*24*IF(G170="I",1,0)*IF(OR(J170<=Cálculo!$C$3,I170>=Cálculo!$D$3),0,1)*W170 -> 0 | O170: 0 | P170: 0 | Q170: =IF(LEFT(D170,2)="IF",1,0)*IF(G170="I",1,0)*IF(OR(J170<=Cálculo!$C$3,I170>=Cálculo!$D$3),0,1)*W170 -> 0 | R170: =IF(J170<Cálculo!$D$3,0,(J170-Cálculo!$D$3))*24*IF(OR(J170<=Cálculo!$C$3,I170>=Cálculo!$D$3),0,1) -> 0 | S170: =IF(I170>Cálculo!$C$3,0,Cálculo!$C$3-I170)*24*IF(OR(J170<=Cálculo!$C$3,I170>=Cálculo!$D$3),0,1) -> 0 | T170: Condición resuelta en Recurso de Protección Rol N°18988-2013-P, Corte de Apelaciones de Concepción, donde se concede orden de no innovar mientras se tramita el citado recurso, además se realizará el cambio de tuberias | W170: TRUE | X170: 0 | Y170: =IF(LEFT(D170,2)="SD",1,0)*IF(G170="I",1,0)*IF(H170="P",1,0)*IF(OR(J170<=Cálculo!$C$3,I170>=Cálculo!$D$3),0,1)*W170 -> 0
B171: 2014 | C171: ANTUCOANTUCO 2 | D171: SD01240/2014 | E171: ANTUCO | F171: ANTUCO 2 | G171: I | H171: P | I171: 2014-01-16T00:07:00 | J171: 2014-01-16T22:27:00 | K171: 0 | L171: 160 | M171: 22.33333333 | N171: =(L171-K171)/L171*((J171-I171)-(R171/24)-(S171/24))*24*IF(G171="I",1,0)*IF(OR(J171<=Cálculo!$C$3,I171>=Cálculo!$D$3),0,1)*W171 -> 0 | O171: 0 | P171: 0 | Q171: =IF(LEFT(D171,2)="IF",1,0)*IF(G171="I",1,0)*IF(OR(J171<=Cálculo!$C$3,I171>=Cálculo!$D$3),0,1)*W171 -> 0 | R171: =IF(J171<Cálculo!$D$3,0,(J171-Cálculo!$D$3))*24*IF(OR(J171<=Cálculo!$C$3,I171>=Cálculo!$D$3),0,1) -> 0 | S171: =IF(I171>Cálculo!$C$3,0,Cálculo!$C$3-I171)*24*IF(OR(J171<=Cálculo!$C$3,I171>=Cálculo!$D$3),0,1) -> 0 | T171: Unidad N° 2: Inspección Rodete. | W171: TRUE | X171: 0 | Y171: =IF(LEFT(D171,2)="SD",1,0)*IF(G171="I",1,0)*IF(H171="P",1,0)*IF(OR(J171<=Cálculo!$C$3,I171>=Cálculo!$D$3),0,1)*W171 -> 0
B172: 2014 | C172: PUNTILLACentral | D172: SD01372/2014 | E172: PUNTILLA | F172: Central | G172: I | H172: F | I172: 2014-01-16T06:41:00 | J172: 2014-01-16T22:15:00 | K172: 0 | L172: 21.76 | M172: 15.56666667 | N172: =(L172-K172)/L172*((J172-I172)-(R172/24)-(S172/24))*24*IF(G172="I",1,0)*IF(OR(J172<=Cálculo!$C$3,I172>=Cálculo!$D$3),0,1)*W172 -> 0 | O172: 0 | P172: 0 | Q172: =IF(LEFT(D172,2)="IF",1,0)*IF(G172="I",1,0)*IF(OR(J172<=Cálculo!$C$3,I172>=Cálculo!$D$3),0,1)*W172 -> 0 | R172: =IF(J172<Cálculo!$D$3,0,(J172-Cálculo!$D$3))*24*IF(OR(J172<=Cálculo!$C$3,I172>=Cálculo!$D$3),0,1) -> 0 | S172: =IF(I172>Cálculo!$C$3,0,Cálculo!$C$3-I172)*24*IF(OR(J172<=Cálculo!$C$3,I172>=Cálculo!$D$3),0,1) -> 0 | T172: Desconexión de Central Puntilla por embanque en distintos puntos en Canal Sirena, lo que ha producido una baja en la generación de un 50% aprox., arriesgando la continuidad del suministro. | W172: TRUE | X172: 0 | Y172: =IF(LEFT(D172,2)="SD",1,0)*IF(G172="I",1,0)*IF(H172="P",1,0)*IF(OR(J172<=Cálculo!$C$3,I172>=Cálculo!$D$3),0,1)*W172 -> 0
B173: 2014 | C173: HUASCO TGHUASCO 4 | D173: SD01241/2014 | E173: HUASCO TG | F173: HUASCO 4 | G173: I | H173: P | I173: 2014-01-16T07:30:00 | J173: 2014-01-16T17:45:00 | K173: 0 | L173: 19.3 | M173: 10.25 | N173: =(L173-K173)/L173*((J173-I173)-(R173/24)-(S173/24))*24*IF(G173="I",1,0)*IF(OR(J173<=Cálculo!$C$3,I173>=Cálculo!$D$3),0,1)*W173 -> 0 | O173: 0 | P173: 0 | Q173: =IF(LEFT(D173,2)="IF",1,0)*IF(G173="I",1,0)*IF(OR(J173<=Cálculo!$C$3,I173>=Cálculo!$D$3),0,1)*W173 -> 0 | R173: =IF(J173<Cálculo!$D$3,0,(J173-Cálculo!$D$3))*24*IF(OR(J173<=Cálculo!$C$3,I173>=Cálculo!$D$3),0,1) -> 0 | S173: =IF(I173>Cálculo!$C$3,0,Cálculo!$C$3-I173)*24*IF(OR(J173<=Cálculo!$C$3,I173>=Cálculo!$D$3),0,1) -> 0 | T173: Turbo Gas N° 4: Lavado de bushing y mufas Trafo de Poder TG N° 4, Limpieza a Barras Capsuladas. MPB Mensual, con prueba de partida en negro y cierre 52G4 contra barra muerta. | W173: TRUE | X173: 0 | Y173: =IF(LEFT(D173,2)="SD",1,0)*IF(G173="I",1,0)*IF(H173="P",1,0)*IF(OR(J173<=Cálculo!$C$3,I173>=Cálculo!$D$3),0,1)*W173 -> 0
B174: 2014 | C174: MAULECentral | D174: SD00647/2014 | E174: MAULE | F174: Central | G174: I | H174: P | I174: 2014-01-16T08:04:00 | J174: 2014-02-01T05:58:00 | K174: 5.25 | L174: 6 | M174: 47.7375 | N174: =(L174-K174)/L174*((J174-I174)-(R174/24)-(S174/24))*24*IF(G174="I",1,0)*IF(OR(J174<=Cálculo!$C$3,I174>=Cálculo!$D$3),0,1)*W174 -> 0 | O174: 0 | P174: 0 | Q174: =IF(LEFT(D174,2)="IF",1,0)*IF(G174="I",1,0)*IF(OR(J174<=Cálculo!$C$3,I174>=Cálculo!$D$3),0,1)*W174 -> 0 | R174: =IF(J174<Cálculo!$D$3,0,(J174-Cálculo!$D$3))*24*IF(OR(J174<=Cálculo!$C$3,I174>=Cálculo!$D$3),0,1) -> 0 | S174: =IF(I174>Cálculo!$C$3,0,Cálculo!$C$3-I174)*24*IF(OR(J174<=Cálculo!$C$3,I174>=Cálculo!$D$3),0,1) -> 0 | T174: Ejecución de mantenimiento mayor programado de la unidad U2 de la Central Maule,Cronograma enviado en carta GG N°103/13 en respuesta a carta D.O. Nº0991/2013 con fecha 17 de octubre 2013 - Mantenimiento Mayor de las Instalaciones del SIC período 2014-2015. | W174: TRUE | X174: 0 | Y174: =IF(LEFT(D174,2)="SD",1,0)*IF(G174="I",1,0)*IF(H174="P",1,0)*IF(OR(J174<=Cálculo!$C$3,I174>=Cálculo!$D$3),0,1)*W174 -> 0
B175: 2014 | C175: SANTA MARIASANTA MARIA 1 | D175: SD01447/2014 | E175: SANTA MARIA | F175: SANTA MARIA 1 | G175: I | H175: F | I175: 2014-01-16T08:13:00 | J175: 2014-01-19T15:30:00 | K175: 0 | L175: 370 | M175: 79.28333333 | N175: =(L175-K175)/L175*((J175-I175)-(R175/24)-(S175/24))*24*IF(G175="I",1,0)*IF(OR(J175<=Cálculo!$C$3,I175>=Cálculo!$D$3),0,1)*W175 -> 0 | O175: 0 | P175: 0 | Q175: =IF(LEFT(D175,2)="IF",1,0)*IF(G175="I",1,0)*IF(OR(J175<=Cálculo!$C$3,I175>=Cálculo!$D$3),0,1)*W175 -> 0 | R175: =IF(J175<Cálculo!$D$3,0,(J175-Cálculo!$D$3))*24*IF(OR(J175<=Cálculo!$C$3,I175>=Cálculo!$D$3),0,1) -> 0 | S175: =IF(I175>Cálculo!$C$3,0,Cálculo!$C$3-I175)*24*IF(OR(J175<=Cálculo!$C$3,I175>=Cálculo!$D$3),0,1) -> 0 | T175: Tubos rotos de caldera, nivel 48.000 | W175: TRUE | X175: 0 | Y175: =IF(LEFT(D175,2)="SD",1,0)*IF(G175="I",1,0)*IF(H175="P",1,0)*IF(OR(J175<=Cálculo!$C$3,I175>=Cálculo!$D$3),0,1)*W175 -> 0
B176: 2014 | C176: EOLICA TALINAY ORIENTEEOLICA TALINAY ORIENTE | D176: SD01023/2014 | E176: EOLICA TALINAY ORIENTE | F176: EOLICA TALINAY ORIENTE | G176: I | H176: P | I176: 2014-01-16T08:29:00 | J176: 2014-01-16T19:20:00 | K176: 0 | L176: 90 | M176: 10.85 | N176: =(L176-K176)/L176*((J176-I176)-(R176/24)-(S176/24))*24*IF(G176="I",1,0)*IF(OR(J176<=Cálculo!$C$3,I176>=Cálculo!$D$3),0,1)*W176 -> 0 | O176: 0 | P176: 0 | Q176: =IF(LEFT(D176,2)="IF",1,0)*IF(G176="I",1,0)*IF(OR(J176<=Cálculo!$C$3,I176>=Cálculo!$D$3),0,1)*W176 -> 0 | R176: =IF(J176<Cálculo!$D$3,0,(J176-Cálculo!$D$3))*24*IF(OR(J176<=Cálculo!$C$3,I176>=Cálculo!$D$3),0,1) -> 0 | S176: =IF(I176>Cálculo!$C$3,0,Cálculo!$C$3-I176)*24*IF(OR(J176<=Cálculo!$C$3,I176>=Cálculo!$D$3),0,1) -> 0 | T176: Intervención Celdas 34,5 Kv y Patio A/T S/E Talinay. | W176: TRUE | X176: 0 | Y176: =IF(LEFT(D176,2)="SD",1,0)*IF(G176="I",1,0)*IF(H176="P",1,0)*IF(OR(J176<=Cálculo!$C$3,I176>=Cálculo!$D$3),0,1)*W176 -> 0
B177: 2014 | C177: CIPRESESCIPRESES 2 | D177: SD01235/2014 | E177: CIPRESES | F177: CIPRESES 2 | G177: I | H177: P | I177: 2014-01-16T09:02:00 | J177: 2014-01-16T18:00:00 | K177: 0 | L177: 35.3 | M177: 8.966666667 | N177: =(L177-K177)/L177*((J177-I177)-(R177/24)-(S177/24))*24*IF(G177="I",1,0)*IF(OR(J177<=Cálculo!$C$3,I177>=Cálculo!$D$3),0,1)*W177 -> 0 | O177: 0 | P177: 0 | Q177: =IF(LEFT(D177,2)="IF",1,0)*IF(G177="I",1,0)*IF(OR(J177<=Cálculo!$C$3,I177>=Cálculo!$D$3),0,1)*W177 -> 0 | R177: =IF(J177<Cálculo!$D$3,0,(J177-Cálculo!$D$3))*24*IF(OR(J177<=Cálculo!$C$3,I177>=Cálculo!$D$3),0,1) -> 0 | S177: =IF(I177>Cálculo!$C$3,0,Cálculo!$C$3-I177)*24*IF(OR(J177<=Cálculo!$C$3,I177>=Cálculo!$D$3),0,1) -> 0 | T177: Unidad N° 2: Cambio total de carbones del sistema de exitación y cambio de bomba de circulación de aceite lado B. | W177: TRUE | X177: 0 | Y177: =IF(LEFT(D177,2)="SD",1,0)*IF(G177="I",1,0)*IF(H177="P",1,0)*IF(OR(J177<=Cálculo!$C$3,I177>=Cálculo!$D$3),0,1)*W177 -> 0
B178: 2014 | C178: VENTANAS 2VENTANAS 2 | D178: IL00034/2014 | E178: VENTANAS 2 | F178: VENTANAS 2 | G178: I | H178: F | I178: 2014-01-16T09:03:00 | J178: 2014-01-16T10:12:00 | K178: 130 | L178: 220 | M178: 0.4704545455 | N178: =(L178-K178)/L178*((J178-I178)-(R178/24)-(S178/24))*24*IF(G178="I",1,0)*IF(OR(J178<=Cálculo!$C$3,I178>=Cálculo!$D$3),0,1)*W178 -> 0 | O178: 0 | P178: 0 | Q178: =IF(LEFT(D178,2)="IF",1,0)*IF(G178="I",1,0)*IF(OR(J178<=Cálculo!$C$3,I178>=Cálculo!$D$3),0,1)*W178 -> 0 | R178: =IF(J178<Cálculo!$D$3,0,(J178-Cálculo!$D$3))*24*IF(OR(J178<=Cálculo!$C$3,I178>=Cálculo!$D$3),0,1) -> 0 | S178: =IF(I178>Cálculo!$C$3,0,Cálculo!$C$3-I178)*24*IF(OR(J178<=Cálculo!$C$3,I178>=Cálculo!$D$3),0,1) -> 0 | T178: Limita generación para realizar retrolavado en caja de condensador | W178: TRUE | X178: 0 | Y178: =IF(LEFT(D178,2)="SD",1,0)*IF(G178="I",1,0)*IF(H178="P",1,0)*IF(OR(J178<=Cálculo!$C$3,I178>=Cálculo!$D$3),0,1)*W178 -> 0
B179: 2014 | C179: CANELA IICANELA II | D179: SD01331/2014 | E179: CANELA II | F179: CANELA II | G179: I | H179: P | I179: 2014-01-16T09:06:00 | J179: 2014-01-16T18:46:00 | K179: 58.5 | L179: 60 | M179: 0.2416666667 | N179: =(L179-K179)/L179*((J179-I179)-(R179/24)-(S179/24))*24*IF(G179="I",1,0)*IF(OR(J179<=Cálculo!$C$3,I179>=Cálculo!$D$3),0,1)*W179 -> 0 | O179: 0 | P179: 0 | Q179: =IF(LEFT(D179,2)="IF",1,0)*IF(G179="I",1,0)*IF(OR(J179<=Cálculo!$C$3,I179>=Cálculo!$D$3),0,1)*W179 -> 0 | R179: =IF(J179<Cálculo!$D$3,0,(J179-Cálculo!$D$3))*24*IF(OR(J179<=Cálculo!$C$3,I179>=Cálculo!$D$3),0,1) -> 0 | S179: =IF(I179>Cálculo!$C$3,0,Cálculo!$C$3-I179)*24*IF(OR(J179<=Cálculo!$C$3,I179>=Cálculo!$D$3),0,1) -> 0 | T179: - Aerogenerador C05, 1.5 MW indisponibles. - Mantenimiento preventivo mecánico y eléctrico, en la unidad Aerogenerador Acciona. | W179: TRUE | X179: 0 | Y179: =IF(LEFT(D179,2)="SD",1,0)*IF(G179="I",1,0)*IF(H179="P",1,0)*IF(OR(J179<=Cálculo!$C$3,I179>=Cálculo!$D$3),0,1)*W179 -> 0
B180: 2014 | C180: CANELA IICANELA II | D180: SD01311/2014 | E180: CANELA II | F180: CANELA II | G180: I | H180: P | I180: 2014-01-16T09:38:00 | J180: 2014-01-16T18:46:00 | K180: 58.5 | L180: 60 | M180: 0.2283333333 | N180: =(L180-K180)/L180*((J180-I180)-(R180/24)-(S180/24))*24*IF(G180="I",1,0)*IF(OR(J180<=Cálculo!$C$3,I180>=Cálculo!$D$3),0,1)*W180 -> 0 | O180: 0 | P180: 0 | Q180: =IF(LEFT(D180,2)="IF",1,0)*IF(G180="I",1,0)*IF(OR(J180<=Cálculo!$C$3,I180>=Cálculo!$D$3),0,1)*W180 -> 0 | R180: =IF(J180<Cálculo!$D$3,0,(J180-Cálculo!$D$3))*24*IF(OR(J180<=Cálculo!$C$3,I180>=Cálculo!$D$3),0,1) -> 0 | S180: =IF(I180>Cálculo!$C$3,0,Cálculo!$C$3-I180)*24*IF(OR(J180<=Cálculo!$C$3,I180>=Cálculo!$D$3),0,1) -> 0 | T180: - Aerogenerador A01, 1.65 MW indisponibles. - Mantenimiento preventivo mecánico y eléctrico, en la unidad Aerogenerador Vestas. | W180: TRUE | X180: 0 | Y180: =IF(LEFT(D180,2)="SD",1,0)*IF(G180="I",1,0)*IF(H180="P",1,0)*IF(OR(J180<=Cálculo!$C$3,I180>=Cálculo!$D$3),0,1)*W180 -> 0
B181: 2014 | C181: CHILOECentral | D181: SD01068/2014 | E181: CHILOE | F181: Central | G181: I | H181: P | I181: 2014-01-16T09:56:00 | J181: 2014-01-31T09:47:00 | K181: 8 | L181: 9 | M181: 39.98333333 | N181: =(L181-K181)/L181*((J181-I181)-(R181/24)-(S181/24))*24*IF(G181="I",1,0)*IF(OR(J181<=Cálculo!$C$3,I181>=Cálculo!$D$3),0,1)*W181 -> 0 | O181: 0 | P181: 0 | Q181: =IF(LEFT(D181,2)="IF",1,0)*IF(G181="I",1,0)*IF(OR(J181<=Cálculo!$C$3,I181>=Cálculo!$D$3),0,1)*W181 -> 0 | R181: =IF(J181<Cálculo!$D$3,0,(J181-Cálculo!$D$3))*24*IF(OR(J181<=Cálculo!$C$3,I181>=Cálculo!$D$3),0,1) -> 0 | S181: =IF(I181>Cálculo!$C$3,0,Cálculo!$C$3-I181)*24*IF(OR(J181<=Cálculo!$C$3,I181>=Cálculo!$D$3),0,1) -> 0 | T181: Ejecución de mantenimiento mayor programado de unidad U5 de la central Chiloe, cronograma enviado en carta GG 082/12, en respuesta a carta D.O. Nº1109/2012 de fecha 17 de octubre 2012 - Mantenimiento Mayor de las instalaciones del SIC periodo 2013-2014. | W181: TRUE | X181: 0 | Y181: =IF(LEFT(D181,2)="SD",1,0)*IF(G181="I",1,0)*IF(H181="P",1,0)*IF(OR(J181<=Cálculo!$C$3,I181>=Cálculo!$D$3),0,1)*W181 -> 0
B182: 2014 | C182: RENAICORENAICO | D182: IF00133/2014 | E182: RENAICO | F182: RENAICO | G182: I | H182: F | I182: 2014-01-16T10:03:00 | J182: 2014-01-16T15:10:00 | K182: 0 | L182: 6.3 | M182: 5.116666667 | N182: =(L182-K182)/L182*((J182-I182)-(R182/24)-(S182/24))*24*IF(G182="I",1,0)*IF(OR(J182<=Cálculo!$C$3,I182>=Cálculo!$D$3),0,1)*W182 -> 0 | O182: 0 | P182: 0 | Q182: =IF(LEFT(D182,2)="IF",1,0)*IF(G182="I",1,0)*IF(OR(J182<=Cálculo!$C$3,I182>=Cálculo!$D$3),0,1)*W182 -> 0 | R182: =IF(J182<Cálculo!$D$3,0,(J182-Cálculo!$D$3))*24*IF(OR(J182<=Cálculo!$C$3,I182>=Cálculo!$D$3),0,1) -> 0 | S182: =IF(I182>Cálculo!$C$3,0,Cálculo!$C$3-I182)*24*IF(OR(J182<=Cálculo!$C$3,I182>=Cálculo!$D$3),0,1) -> 0 | V182: 16/01/2014 16:00 ~ Cable mensajero produce falla al tocar la fase 2 de linea de 23Kv. de Central Renaico. ~ Rodrigo Véjar B. | W182: TRUE | X182: 0 | Y182: =IF(LEFT(D182,2)="SD",1,0)*IF(G182="I",1,0)*IF(H182="P",1,0)*IF(OR(J182<=Cálculo!$C$3,I182>=Cálculo!$D$3),0,1)*W182 -> 0
B183: 2014 | C183: CHACAYESCentral | D183: SD01456/2014 | E183: CHACAYES | F183: Central | G183: I | H183: F | I183: 2014-01-16T11:07:00 | J183: 2014-01-16T15:03:00 | K183: 0 | L183: 112 | M183: 3.933333333 | N183: =(L183-K183)/L183*((J183-I183)-(R183/24)-(S183/24))*24*IF(G183="I",1,0)*IF(OR(J183<=Cálculo!$C$3,I183>=Cálculo!$D$3),0,1)*W183 -> 0 | O183: 0 | P183: 0 | Q183: =IF(LEFT(D183,2)="IF",1,0)*IF(G183="I",1,0)*IF(OR(J183<=Cálculo!$C$3,I183>=Cálculo!$D$3),0,1)*W183 -> 0 | R183: =IF(J183<Cálculo!$D$3,0,(J183-Cálculo!$D$3))*24*IF(OR(J183<=Cálculo!$C$3,I183>=Cálculo!$D$3),0,1) -> 0 | S183: =IF(I183>Cálculo!$C$3,0,Cálculo!$C$3-I183)*24*IF(OR(J183<=Cálculo!$C$3,I183>=Cálculo!$D$3),0,1) -> 0 | T183: Se requiere detener las unidades 1 y 2 Chacayes para realizar desripiado en la bocatona durante 3 horas. Esto es muy necesario por el gran embanque en la entrada de compuertas del canal de aducción, se bajará y subirá carga en forma gradual. | W183: TRUE | X183: 0 | Y183: =IF(LEFT(D183,2)="SD",1,0)*IF(G183="I",1,0)*IF(H183="P",1,0)*IF(OR(J183<=Cálculo!$C$3,I183>=Cálculo!$D$3),0,1)*W183 -> 0
B184: 2014 | C184: VENTANAS 1VENTANAS 1 | D184: IL00035/2014 | E184: VENTANAS 1 | F184: VENTANAS 1 | G184: I | H184: F | I184: 2014-01-16T13:25:00 | J184: 2014-01-16T18:17:00 | K184: 60 | L184: 120 | M184: 2.433333333 | N184: =(L184-K184)/L184*((J184-I184)-(R184/24)-(S184/24))*24*IF(G184="I",1,0)*IF(OR(J184<=Cálculo!$C$3,I184>=Cálculo!$D$3),0,1)*W184 -> 0 | O184: 0 | P184: 0 | Q184: =IF(LEFT(D184,2)="IF",1,0)*IF(G184="I",1,0)*IF(OR(J184<=Cálculo!$C$3,I184>=Cálculo!$D$3),0,1)*W184 -> 0 | R184: =IF(J184<Cálculo!$D$3,0,(J184-Cálculo!$D$3))*24*IF(OR(J184<=Cálculo!$C$3,I184>=Cálculo!$D$3),0,1) -> 0 | S184: =IF(I184>Cálculo!$C$3,0,Cálculo!$C$3-I184)*24*IF(OR(J184<=Cálculo!$C$3,I184>=Cálculo!$D$3),0,1) -> 0 | T184: Limita generación debido a filtración en la descarga de bomba de agua de alimentación 1A | W184: TRUE | X184: 0 | Y184: =IF(LEFT(D184,2)="SD",1,0)*IF(G184="I",1,0)*IF(H184="P",1,0)*IF(OR(J184<=Cálculo!$C$3,I184>=Cálculo!$D$3),0,1)*W184 -> 0
B185: 2014 | C185: CALLE CALLECentral | D185: IF00132/2014 | E185: CALLE CALLE | F185: Central | G185: I | H185: F | I185: 2014-01-16T14:48:00 | J185: 2014-01-16T17:24:00 | K185: 0 | L185: 13 | M185: 2.6 | N185: =(L185-K185)/L185*((J185-I185)-(R185/24)-(S185/24))*24*IF(G185="I",1,0)*IF(OR(J185<=Cálculo!$C$3,I185>=Cálculo!$D$3),0,1)*W185 -> 0 | O185: 0 | P185: 0 | Q185: =IF(LEFT(D185,2)="IF",1,0)*IF(G185="I",1,0)*IF(OR(J185<=Cálculo!$C$3,I185>=Cálculo!$D$3),0,1)*W185 -> 0 | R185: =IF(J185<Cálculo!$D$3,0,(J185-Cálculo!$D$3))*24*IF(OR(J185<=Cálculo!$C$3,I185>=Cálculo!$D$3),0,1) -> 0 | S185: =IF(I185>Cálculo!$C$3,0,Cálculo!$C$3-I185)*24*IF(OR(J185<=Cálculo!$C$3,I185>=Cálculo!$D$3),0,1) -> 0 | V185: 16/01/2014 15:22 ~ Salida de equipos por alarma de alta temperatura en equipos. ~ Ezequiel Castillo | W185: TRUE | X185: 0 | Y185: =IF(LEFT(D185,2)="SD",1,0)*IF(G185="I",1,0)*IF(H185="P",1,0)*IF(OR(J185<=Cálculo!$C$3,I185>=Cálculo!$D$3),0,1)*W185 -> 0
B186: 2014 | C186: CHACAYESCHACAYES 2 | D186: IF00136/2014 | E186: CHACAYES | F186: CHACAYES 2 | G186: I | H186: F | I186: 2014-01-16T16:24:00 | J186: 2014-01-16T17:00:00 | K186: 0 | L186: 56 | M186: 0.6 | N186: =(L186-K186)/L186*((J186-I186)-(R186/24)-(S186/24))*24*IF(G186="I",1,0)*IF(OR(J186<=Cálculo!$C$3,I186>=Cálculo!$D$3),0,1)*W186 -> 0 | O186: 0 | P186: 0 | Q186: =IF(LEFT(D186,2)="IF",1,0)*IF(G186="I",1,0)*IF(OR(J186<=Cálculo!$C$3,I186>=Cálculo!$D$3),0,1)*W186 -> 0 | R186: =IF(J186<Cálculo!$D$3,0,(J186-Cálculo!$D$3))*24*IF(OR(J186<=Cálculo!$C$3,I186>=Cálculo!$D$3),0,1) -> 0 | S186: =IF(I186>Cálculo!$C$3,0,Cálculo!$C$3-I186)*24*IF(OR(J186<=Cálculo!$C$3,I186>=Cálculo!$D$3),0,1) -> 0 | V186: 16/01/2014 17:42 ~ Señal de trip de sistema EDAG ERAG ~ PHCH | W186: TRUE | X186: 0 | Y186: =IF(LEFT(D186,2)="SD",1,0)*IF(G186="I",1,0)*IF(H186="P",1,0)*IF(OR(J186<=Cálculo!$C$3,I186>=Cálculo!$D$3),0,1)*W186 -> 0
B187: 2014 | C187: LA CONFLUENCIALA CONFLUENCIA 1 | D187: IF00134/2014 | E187: LA CONFLUENCIA | F187: LA CONFLUENCIA 1 | G187: I | H187: F | I187: 2014-01-16T16:53:00 | J187: 2014-01-17T00:10:00 | K187: 0 | L187: 81.6 | M187: 7.283333333 | N187: =(L187-K187)/L187*((J187-I187)-(R187/24)-(S187/24))*24*IF(G187="I",1,0)*IF(OR(J187<=Cálculo!$C$3,I187>=Cálculo!$D$3),0,1)*W187 -> 0 | O187: 0 | P187: 0 | Q187: =IF(LEFT(D187,2)="IF",1,0)*IF(G187="I",1,0)*IF(OR(J187<=Cálculo!$C$3,I187>=Cálculo!$D$3),0,1)*W187 -> 0 | R187: =IF(J187<Cálculo!$D$3,0,(J187-Cálculo!$D$3))*24*IF(OR(J187<=Cálculo!$C$3,I187>=Cálculo!$D$3),0,1) -> 0 | S187: =IF(I187>Cálculo!$C$3,0,Cálculo!$C$3-I187)*24*IF(OR(J187<=Cálculo!$C$3,I187>=Cálculo!$D$3),0,1) -> 0 | T187: 16/01/2014 17:12 ~ Desconexión Forzada UG1-HLC, se investiga. ~ George Suazo | U187: 16/01/2014 17:12 ~ Se investiga ~ George Suazo | W187: TRUE | X187: 0 | Y187: =IF(LEFT(D187,2)="SD",1,0)*IF(G187="I",1,0)*IF(H187="P",1,0)*IF(OR(J187<=Cálculo!$C$3,I187>=Cálculo!$D$3),0,1)*W187 -> 0
B188: 2014 | C188: VENTANAS 2VENTANAS 2 | D188: IL00037/2014 | E188: VENTANAS 2 | F188: VENTANAS 2 | G188: I | H188: F | I188: 2014-01-16T18:48:00 | J188: 2014-01-17T06:54:00 | K188: 150 | L188: 220 | M188: 3.85 | N188: =(L188-K188)/L188*((J188-I188)-(R188/24)-(S188/24))*24*IF(G188="I",1,0)*IF(OR(J188<=Cálculo!$C$3,I188>=Cálculo!$D$3),0,1)*W188 -> 0 | O188: 0 | P188: 0 | Q188: =IF(LEFT(D188,2)="IF",1,0)*IF(G188="I",1,0)*IF(OR(J188<=Cálculo!$C$3,I188>=Cálculo!$D$3),0,1)*W188 -> 0 | R188: =IF(J188<Cálculo!$D$3,0,(J188-Cálculo!$D$3))*24*IF(OR(J188<=Cálculo!$C$3,I188>=Cálculo!$D$3),0,1) -> 0 | S188: =IF(I188>Cálculo!$C$3,0,Cálculo!$C$3-I188)*24*IF(OR(J188<=Cálculo!$C$3,I188>=Cálculo!$D$3),0,1) -> 0 | T188: Unidad limitada por control de parámetros descarga sistema de circulación | W188: TRUE | X188: 0 | Y188: =IF(LEFT(D188,2)="SD",1,0)*IF(G188="I",1,0)*IF(H188="P",1,0)*IF(OR(J188<=Cálculo!$C$3,I188>=Cálculo!$D$3),0,1)*W188 -> 0
B189: 2014 | C189: VENTANAS 2VENTANAS 2 | D189: IL00038/2014 | E189: VENTANAS 2 | F189: VENTANAS 2 | G189: I | H189: F | I189: 2014-01-17T06:54:00 | J189: 2014-01-17T13:41:00 | K189: 170 | L189: 220 | M189: 1.541666667 | N189: =(L189-K189)/L189*((J189-I189)-(R189/24)-(S189/24))*24*IF(G189="I",1,0)*IF(OR(J189<=Cálculo!$C$3,I189>=Cálculo!$D$3),0,1)*W189 -> 0 | O189: 0 | P189: 0 | Q189: =IF(LEFT(D189,2)="IF",1,0)*IF(G189="I",1,0)*IF(OR(J189<=Cálculo!$C$3,I189>=Cálculo!$D$3),0,1)*W189 -> 0 | R189: =IF(J189<Cálculo!$D$3,0,(J189-Cálculo!$D$3))*24*IF(OR(J189<=Cálculo!$C$3,I189>=Cálculo!$D$3),0,1) -> 0 | S189: =IF(I189>Cálculo!$C$3,0,Cálculo!$C$3-I189)*24*IF(OR(J189<=Cálculo!$C$3,I189>=Cálculo!$D$3),0,1) -> 0 | T189: Unidad limitada por control de parámetros descarga sistema de circulación. | W189: TRUE | X189: 0 | Y189: =IF(LEFT(D189,2)="SD",1,0)*IF(G189="I",1,0)*IF(H189="P",1,0)*IF(OR(J189<=Cálculo!$C$3,I189>=Cálculo!$D$3),0,1)*W189 -> 0
B190: 2014 | C190: HUASCO TGHUASCO 5 | D190: SD01420/2014 | E190: HUASCO TG | F190: HUASCO 5 | G190: I | H190: P | I190: 2014-01-17T07:31:00 | J190: 2014-01-17T17:40:00 | K190: 0 | L190: 19.3 | M190: 10.15 | N190: =(L190-K190)/L190*((J190-I190)-(R190/24)-(S190/24))*24*IF(G190="I",1,0)*IF(OR(J190<=Cálculo!$C$3,I190>=Cálculo!$D$3),0,1)*W190 -> 0 | O190: 0 | P190: 0 | Q190: =IF(LEFT(D190,2)="IF",1,0)*IF(G190="I",1,0)*IF(OR(J190<=Cálculo!$C$3,I190>=Cálculo!$D$3),0,1)*W190 -> 0 | R190: =IF(J190<Cálculo!$D$3,0,(J190-Cálculo!$D$3))*24*IF(OR(J190<=Cálculo!$C$3,I190>=Cálculo!$D$3),0,1) -> 0 | S190: =IF(I190>Cálculo!$C$3,0,Cálculo!$C$3-I190)*24*IF(OR(J190<=Cálculo!$C$3,I190>=Cálculo!$D$3),0,1) -> 0 | T190: Lavado de bushing y Mufas Trafo de Poder TG N° 5 , Limpieza Barras Capsuladas MPB Mensual , con Prueba Partida en Negro y Cierre 52G5 contra Barra Muerta. | W190: TRUE | X190: 0 | Y190: =IF(LEFT(D190,2)="SD",1,0)*IF(G190="I",1,0)*IF(H190="P",1,0)*IF(OR(J190<=Cálculo!$C$3,I190>=Cálculo!$D$3),0,1)*W190 -> 0
B191: 2014 | C191: CIPRESESCIPRESES 1 | D191: SD01253/2014 | E191: CIPRESES | F191: CIPRESES 1 | G191: I | H191: P | I191: 2014-01-17T08:58:00 | J191: 2014-01-17T16:38:00 | K191: 0 | L191: 35.3 | M191: 7.666666667 | N191: =(L191-K191)/L191*((J191-I191)-(R191/24)-(S191/24))*24*IF(G191="I",1,0)*IF(OR(J191<=Cálculo!$C$3,I191>=Cálculo!$D$3),0,1)*W191 -> 0 | O191: 0 | P191: 0 | Q191: =IF(LEFT(D191,2)="IF",1,0)*IF(G191="I",1,0)*IF(OR(J191<=Cálculo!$C$3,I191>=Cálculo!$D$3),0,1)*W191 -> 0 | R191: =IF(J191<Cálculo!$D$3,0,(J191-Cálculo!$D$3))*24*IF(OR(J191<=Cálculo!$C$3,I191>=Cálculo!$D$3),0,1) -> 0 | S191: =IF(I191>Cálculo!$C$3,0,Cálculo!$C$3-I191)*24*IF(OR(J191<=Cálculo!$C$3,I191>=Cálculo!$D$3),0,1) -> 0 | T191: Cambio total de carbones del sistema de excitación y limpieza de enfriadores de los descansos. | W191: TRUE | X191: 0 | Y191: =IF(LEFT(D191,2)="SD",1,0)*IF(G191="I",1,0)*IF(H191="P",1,0)*IF(OR(J191<=Cálculo!$C$3,I191>=Cálculo!$D$3),0,1)*W191 -> 0
B192: 2014 | C192: CANELA IICANELA II | D192: SD01435/2014 | E192: CANELA II | F192: CANELA II | G192: I | H192: P | I192: 2014-01-17T09:11:00 | J192: 2014-01-17T13:18:00 | K192: 58.5 | L192: 60 | M192: 0.1029166667 | N192: =(L192-K192)/L192*((J192-I192)-(R192/24)-(S192/24))*24*IF(G192="I",1,0)*IF(OR(J192<=Cálculo!$C$3,I192>=Cálculo!$D$3),0,1)*W192 -> 0 | O192: 0 | P192: 0 | Q192: =IF(LEFT(D192,2)="IF",1,0)*IF(G192="I",1,0)*IF(OR(J192<=Cálculo!$C$3,I192>=Cálculo!$D$3),0,1)*W192 -> 0 | R192: =IF(J192<Cálculo!$D$3,0,(J192-Cálculo!$D$3))*24*IF(OR(J192<=Cálculo!$C$3,I192>=Cálculo!$D$3),0,1) -> 0 | S192: =IF(I192>Cálculo!$C$3,0,Cálculo!$C$3-I192)*24*IF(OR(J192<=Cálculo!$C$3,I192>=Cálculo!$D$3),0,1) -> 0 | T192: - Aerogenerador D02, 1.5 MW indisponibles. - Mantenimiento preventivo mecánico y eléctrico, en la unidad Aerogenerador Acciona. | W192: TRUE | X192: 0 | Y192: =IF(LEFT(D192,2)="SD",1,0)*IF(G192="I",1,0)*IF(H192="P",1,0)*IF(OR(J192<=Cálculo!$C$3,I192>=Cálculo!$D$3),0,1)*W192 -> 0
B193: 2014 | C193: LOMA LOS COLORADOS II (KDM)Central | D193: IF00144/2014 | E193: LOMA LOS COLORADOS II (KDM) | F193: Central | G193: I | H193: F | I193: 2014-01-17T09:28:00 | J193: 2014-01-17T09:48:00 | K193: 0 | L193: 15.4 | M193: 0.3333333334 | N193: =(L193-K193)/L193*((J193-I193)-(R193/24)-(S193/24))*24*IF(G193="I",1,0)*IF(OR(J193<=Cálculo!$C$3,I193>=Cálculo!$D$3),0,1)*W193 -> 0 | O193: 0 | P193: 0 | Q193: =IF(LEFT(D193,2)="IF",1,0)*IF(G193="I",1,0)*IF(OR(J193<=Cálculo!$C$3,I193>=Cálculo!$D$3),0,1)*W193 -> 0 | R193: =IF(J193<Cálculo!$D$3,0,(J193-Cálculo!$D$3))*24*IF(OR(J193<=Cálculo!$C$3,I193>=Cálculo!$D$3),0,1) -> 0 | S193: =IF(I193>Cálculo!$C$3,0,Cálculo!$C$3-I193)*24*IF(OR(J193<=Cálculo!$C$3,I193>=Cálculo!$D$3),0,1) -> 0 | V193: 17/01/2014 14:40 ~ Salida intempestiva Central Loma Los Colorados 2 por baja presión de salida en Planta de Tratamiento de Gas (PTG) de la central. ~ Pablo Echagüe D. | W193: TRUE | X193: 0 | Y193: =IF(LEFT(D193,2)="SD",1,0)*IF(G193="I",1,0)*IF(H193="P",1,0)*IF(OR(J193<=Cálculo!$C$3,I193>=Cálculo!$D$3),0,1)*W193 -> 0
B194: 2014 | C194: RÍO HUASCOCentral | D194: IF00143/2014 | E194: RÍO HUASCO | F194: Central | G194: E | H194: F | I194: 2014-01-17T10:17:00 | J194: 2014-01-17T12:18:00 | K194: 0 | L194: 5.12 | M194: 0 | N194: =(L194-K194)/L194*((J194-I194)-(R194/24)-(S194/24))*24*IF(G194="I",1,0)*IF(OR(J194<=Cálculo!$C$3,I194>=Cálculo!$D$3),0,1)*W194 -> 0 | O194: 0 | P194: 0 | Q194: =IF(LEFT(D194,2)="IF",1,0)*IF(G194="I",1,0)*IF(OR(J194<=Cálculo!$C$3,I194>=Cálculo!$D$3),0,1)*W194 -> 0 | R194: =IF(J194<Cálculo!$D$3,0,(J194-Cálculo!$D$3))*24*IF(OR(J194<=Cálculo!$C$3,I194>=Cálculo!$D$3),0,1) -> 0 | S194: =IF(I194>Cálculo!$C$3,0,Cálculo!$C$3-I194)*24*IF(OR(J194<=Cálculo!$C$3,I194>=Cálculo!$D$3),0,1) -> 0 | U194: 17/01/2014 13:57 ~ Perturbación Línea 220 KV. Pan de Azúcar - Punta Colorada. ~ Hernán Meza | W194: TRUE | X194: 0 | Y194: =IF(LEFT(D194,2)="SD",1,0)*IF(G194="I",1,0)*IF(H194="P",1,0)*IF(OR(J194<=Cálculo!$C$3,I194>=Cálculo!$D$3),0,1)*W194 -> 0
B195: 2014 | C195: EOLICA TALINAY ORIENTEEOLICA TALINAY ORIENTE | D195: IF00142/2014 | E195: EOLICA TALINAY ORIENTE | F195: EOLICA TALINAY ORIENTE | G195: E | H195: F | I195: 2014-01-17T10:17:00 | J195: 2014-01-17T11:01:00 | K195: 2 | L195: 90 | M195: 0 | N195: =(L195-K195)/L195*((J195-I195)-(R195/24)-(S195/24))*24*IF(G195="I",1,0)*IF(OR(J195<=Cálculo!$C$3,I195>=Cálculo!$D$3),0,1)*W195 -> 0 | O195: 0 | P195: 0 | Q195: =IF(LEFT(D195,2)="IF",1,0)*IF(G195="I",1,0)*IF(OR(J195<=Cálculo!$C$3,I195>=Cálculo!$D$3),0,1)*W195 -> 0 | R195: =IF(J195<Cálculo!$D$3,0,(J195-Cálculo!$D$3))*24*IF(OR(J195<=Cálculo!$C$3,I195>=Cálculo!$D$3),0,1) -> 0 | S195: =IF(I195>Cálculo!$C$3,0,Cálculo!$C$3-I195)*24*IF(OR(J195<=Cálculo!$C$3,I195>=Cálculo!$D$3),0,1) -> 0 | U195: Apertura Linea Pan de Azucar- Punta Colorada.- | W195: TRUE | X195: 0 | Y195: =IF(LEFT(D195,2)="SD",1,0)*IF(G195="I",1,0)*IF(H195="P",1,0)*IF(OR(J195<=Cálculo!$C$3,I195>=Cálculo!$D$3),0,1)*W195 -> 0
B196: 2014 | C196: EL PEÑONEL PEÑON | D196: IF00169/2014 | E196: EL PEÑON | F196: EL PEÑON | G196: I | H196: F | I196: 2014-01-17T10:18:00 | J196: 2014-01-17T10:23:00 | K196: 72 | L196: 81 | M196: 0.009259259251 | N196: =(L196-K196)/L196*((J196-I196)-(R196/24)-(S196/24))*24*IF(G196="I",1,0)*IF(OR(J196<=Cálculo!$C$3,I196>=Cálculo!$D$3),0,1)*W196 -> 0 | O196: 0 | P196: 0 | Q196: =IF(LEFT(D196,2)="IF",1,0)*IF(G196="I",1,0)*IF(OR(J196<=Cálculo!$C$3,I196>=Cálculo!$D$3),0,1)*W196 -> 0 | R196: =IF(J196<Cálculo!$D$3,0,(J196-Cálculo!$D$3))*24*IF(OR(J196<=Cálculo!$C$3,I196>=Cálculo!$D$3),0,1) -> 0 | S196: =IF(I196>Cálculo!$C$3,0,Cálculo!$C$3-I196)*24*IF(OR(J196<=Cálculo!$C$3,I196>=Cálculo!$D$3),0,1) -> 0 | V196: 20/01/2014 13:26 ~ desconexión `por salto vector código 78, baja de tensión en la red de 110 kv ~ Werner Witker | W196: TRUE | X196: 0 | Y196: =IF(LEFT(D196,2)="SD",1,0)*IF(G196="I",1,0)*IF(H196="P",1,0)*IF(OR(J196<=Cálculo!$C$3,I196>=Cálculo!$D$3),0,1)*W196 -> 0
B197: 2014 | C197: GUACOLDAGUACOLDA 4 | D197: IL00039/2014 | E197: GUACOLDA | F197: GUACOLDA 4 | G197: I | H197: F | I197: 2014-01-17T11:30:00 | J197: 2014-01-18T00:15:00 | K197: 75 | L197: 152 | M197: 6.458881579 | N197: =(L197-K197)/L197*((J197-I197)-(R197/24)-(S197/24))*24*IF(G197="I",1,0)*IF(OR(J197<=Cálculo!$C$3,I197>=Cálculo!$D$3),0,1)*W197 -> 0 | O197: 0 | P197: 0 | Q197: =IF(LEFT(D197,2)="IF",1,0)*IF(G197="I",1,0)*IF(OR(J197<=Cálculo!$C$3,I197>=Cálculo!$D$3),0,1)*W197 -> 0 | R197: =IF(J197<Cálculo!$D$3,0,(J197-Cálculo!$D$3))*24*IF(OR(J197<=Cálculo!$C$3,I197>=Cálculo!$D$3),0,1) -> 0 | S197: =IF(I197>Cálculo!$C$3,0,Cálculo!$C$3-I197)*24*IF(OR(J197<=Cálculo!$C$3,I197>=Cálculo!$D$3),0,1) -> 0 | T197: Unidad limitada a 75MW para controlar temperatura descarga agua de mar. | W197: TRUE | X197: 0 | Y197: =IF(LEFT(D197,2)="SD",1,0)*IF(G197="I",1,0)*IF(H197="P",1,0)*IF(OR(J197<=Cálculo!$C$3,I197>=Cálculo!$D$3),0,1)*W197 -> 0
B198: 2014 | C198: QUELLON IIQUELLON II 1 | D198: SD01566/2014 | E198: QUELLON II | F198: QUELLON II 1 | G198: I | H198: F | I198: 2014-01-17T12:46:00 | J198: 2014-01-17T14:06:00 | K198: 0 | L198: 2 | M198: 1.333333333 | N198: =(L198-K198)/L198*((J198-I198)-(R198/24)-(S198/24))*24*IF(G198="I",1,0)*IF(OR(J198<=Cálculo!$C$3,I198>=Cálculo!$D$3),0,1)*W198 -> 0 | O198: 0 | P198: 0 | Q198: =IF(LEFT(D198,2)="IF",1,0)*IF(G198="I",1,0)*IF(OR(J198<=Cálculo!$C$3,I198>=Cálculo!$D$3),0,1)*W198 -> 0 | R198: =IF(J198<Cálculo!$D$3,0,(J198-Cálculo!$D$3))*24*IF(OR(J198<=Cálculo!$C$3,I198>=Cálculo!$D$3),0,1) -> 0 | S198: =IF(I198>Cálculo!$C$3,0,Cálculo!$C$3-I198)*24*IF(OR(J198<=Cálculo!$C$3,I198>=Cálculo!$D$3),0,1) -> 0 | T198: 12:46 hrs Unidad N°5592 se retira de sincronismo por reemplazo de filtros de combustibles RACO, al presentarse alarmas de baja presión de combustible. Central Quellón II queda disponible con una unidad (G5594 con 1.5 MW). | W198: TRUE | X198: 0 | Y198: =IF(LEFT(D198,2)="SD",1,0)*IF(G198="I",1,0)*IF(H198="P",1,0)*IF(OR(J198<=Cálculo!$C$3,I198>=Cálculo!$D$3),0,1)*W198 -> 0
B199: 2014 | C199: VALDIVIAVALDIVIA | D199: SD01578/2014 | E199: VALDIVIA | F199: VALDIVIA | G199: I | H199: F | I199: 2014-01-17T13:29:00 | J199: 2014-01-17T19:15:00 | K199: 0 | L199: 61 | M199: 5.766666667 | N199: =(L199-K199)/L199*((J199-I199)-(R199/24)-(S199/24))*24*IF(G199="I",1,0)*IF(OR(J199<=Cálculo!$C$3,I199>=Cálculo!$D$3),0,1)*W199 -> 0 | O199: 0 | P199: 0 | Q199: =IF(LEFT(D199,2)="IF",1,0)*IF(G199="I",1,0)*IF(OR(J199<=Cálculo!$C$3,I199>=Cálculo!$D$3),0,1)*W199 -> 0 | R199: =IF(J199<Cálculo!$D$3,0,(J199-Cálculo!$D$3))*24*IF(OR(J199<=Cálculo!$C$3,I199>=Cálculo!$D$3),0,1) -> 0 | S199: =IF(I199>Cálculo!$C$3,0,Cálculo!$C$3-I199)*24*IF(OR(J199<=Cálculo!$C$3,I199>=Cálculo!$D$3),0,1) -> 0 | T199: Se retiran TG1 y TG2 por problemas en bomba de agua de alimentación a la caldera . Deja de inyectar 20 MW al SIC. | W199: TRUE | X199: 0 | Y199: =IF(LEFT(D199,2)="SD",1,0)*IF(G199="I",1,0)*IF(H199="P",1,0)*IF(OR(J199<=Cálculo!$C$3,I199>=Cálculo!$D$3),0,1)*W199 -> 0
B200: 2014 | C200: VENTANAS 1VENTANAS 1 | D200: IL00040/2014 | E200: VENTANAS 1 | F200: VENTANAS 1 | G200: I | H200: F | I200: 2014-01-17T13:41:00 | J200: 2014-01-17T17:40:00 | K200: 90 | L200: 120 | M200: 0.9958333333 | N200: =(L200-K200)/L200*((J200-I200)-(R200/24)-(S200/24))*24*IF(G200="I",1,0)*IF(OR(J200<=Cálculo!$C$3,I200>=Cálculo!$D$3),0,1)*W200 -> 0 | O200: 0 | P200: 0 | Q200: =IF(LEFT(D200,2)="IF",1,0)*IF(G200="I",1,0)*IF(OR(J200<=Cálculo!$C$3,I200>=Cálculo!$D$3),0,1)*W200 -> 0 | R200: =IF(J200<Cálculo!$D$3,0,(J200-Cálculo!$D$3))*24*IF(OR(J200<=Cálculo!$C$3,I200>=Cálculo!$D$3),0,1) -> 0 | S200: =IF(I200>Cálculo!$C$3,0,Cálculo!$C$3-I200)*24*IF(OR(J200<=Cálculo!$C$3,I200>=Cálculo!$D$3),0,1) -> 0 | T200: Limita generación debido a Control de parámetros descarga sistema de circulación | W200: TRUE | X200: 0 | Y200: =IF(LEFT(D200,2)="SD",1,0)*IF(G200="I",1,0)*IF(H200="P",1,0)*IF(OR(J200<=Cálculo!$C$3,I200>=Cálculo!$D$3),0,1)*W200 -> 0
... 2050 more rows

Sheet Lista Centrales
A1: ID Infotécnica | B1: Nemotecnico | C1: Central | D1: Unidad | E1: Empresa | F1: Grupo Empresa | G1: SubSistema | H1: Pmax | I1: Tecnología Indisponibilidad | J1: Entrada Operación | K1: Ver. Cálculo
A2: 33 | B2: CE01U01G021 | C2: ABANICO | D2: ABANICO 1 | E2: ENEL GENERACION | F2: ENEL GENERACIÓN | H2: 21.5 | I2: Pasada | J2: 1948-01-01 | K2: =MATCH(A2,Cálculo!D:D,0) -> 5
A3: 34 | B3: CE01U02G021 | C3: ABANICO | D3: ABANICO 2 | E3: ENEL GENERACION | F3: ENEL GENERACIÓN | G3: SIC | H3: 21.5 | I3: Pasada | J3: 1948-01-01 | K3: =MATCH(A3,Cálculo!D:D,0) -> 
A4: 35 | B4: CE01U03G021 | C4: ABANICO | D4: ABANICO 3 | E4: ENEL GENERACION | F4: ENEL GENERACIÓN | G4: SIC | H4: 21.5 | I4: Pasada | J4: 1948-01-01 | K4: =MATCH(A4,Cálculo!D:D,0) -> 6
A5: 36 | B5: CE01U04G021 | C5: ABANICO | D5: ABANICO 4 | E5: ENEL GENERACION | F5: ENEL GENERACIÓN | G5: SIC | H5: 21.5 | I5: Pasada | J5: 1948-01-01 | K5: =MATCH(A5,Cálculo!D:D,0) -> 
A6: 37 | B6: CE01U05G021 | C6: ABANICO | D6: ABANICO 5 | E6: ENEL GENERACION | F6: ENEL GENERACIÓN | G6: SIC | H6: 25 | I6: Pasada | J6: 1959-01-01 | K6: =MATCH(A6,Cálculo!D:D,0) -> 7
A7: 38 | B7: CE01U06G021 | C7: ABANICO | D7: ABANICO 6 | E7: ENEL GENERACION | F7: ENEL GENERACIÓN | G7: SIC | H7: 25 | I7: Pasada | J7: 1959-01-01 | K7: =MATCH(A7,Cálculo!D:D,0) -> 8
A8: 260 | B8: CE18U01G004 | C8: BLANCO | D8: ACONCAGUA (BLANCO) | E8: COLBUN | F8: COLBUN | G8: SIC | H8: 53 | I8: Pasada | J8: 1993-01-01 | K8: =MATCH(A8,Cálculo!D:D,0) -> 21
A9: 784 | B9: CE19U01G004 | C9: JUNCAL | D9: ACONCAGUA (JUNCAL) | E9: COLBUN | F9: COLBUN | G9: SIC | H9: 29.2 | I9: Pasada | J9: 1994-01-01 | K9: =MATCH(A9,Cálculo!D:D,0) -> 148
A10: 246 | B10: CE01U01G010 | C10: ALFALFAL | D10: ALFALFAL 1 | E10: AES GENER | F10: AES GENER | G10: SIC | H10: 89 | I10: Pasada | J10: 1991-01-01 | K10: =MATCH(A10,Cálculo!D:D,0) -> 9
A11: 247 | B11: CE01U02G010 | C11: ALFALFAL | D11: ALFALFAL 2 | E11: AES GENER | F11: AES GENER | G11: SIC | H11: 89 | I11: Pasada | J11: 1991-01-01 | K11: =MATCH(A11,Cálculo!D:D,0) -> 10
A12: 1756 | B12: CE06U01G042 | C12: ALTO RENAICO | D12: ALTO RENAICO | E12: MAINCO | F12: MAINCO S.A. | G12: SIC | H12: 1.402 | I12: Pasada | J12: 2018-11-19 | K12: =MATCH(A12,Cálculo!D:D,0) -> 18
A13: 1820 | B13: CE01U01G146 | C13: ANDES GENERACION | D13: ANDES GENERACION 1 | E13: ANDES GENERACIÓN | F13: ANDES GENERACION SpA | G13: SIC | H13: 6.5 | I13: Motores Diésel | J13: 2016-05-17 | K13: =MATCH(A13,Cálculo!D:D,0) -> 367
A14: 1825 | B14: CE01U02G146 | C14: ANDES GENERACION | D14: ANDES GENERACION 2 | E14: ANDES GENERACIÓN | F14: ANDES GENERACION SpA | G14: SIC | H14: 6.5 | I14: Motores Diésel | J14: 2016-05-17 | K14: =MATCH(A14,Cálculo!D:D,0) -> 368
A15: 1826 | B15: CE01U03G146 | C15: ANDES GENERACION | D15: ANDES GENERACION 3 | E15: ANDES GENERACIÓN | F15: ANDES GENERACION SpA | G15: SIC | H15: 6.5 | I15: Motores Diésel | J15: 2016-05-17 | K15: =MATCH(A15,Cálculo!D:D,0) -> 369
A16: 1827 | B16: CE01U04G146 | C16: ANDES GENERACION | D16: ANDES GENERACION 4 | E16: ANDES GENERACIÓN | F16: ANDES GENERACION SpA | G16: SIC | H16: 13 | I16: Motores Diésel | J16: 2016-05-17 | K16: =MATCH(A16,Cálculo!D:D,0) -> 370
A17: 1505 | B17: CE15U01G004 | C17: ANGOSTURA | D17: ANGOSTURA U1 | E17: COLBUN | F17: COLBUN | G17: SIC | H17: 138.58 | I17: Pasada | J17: 2013-12-29 | K17: =MATCH(A17,Cálculo!D:D,0) -> 11
A18: 1506 | B18: CE15U02G004 | C18: ANGOSTURA | D18: ANGOSTURA U2 | E18: COLBUN | F18: COLBUN | G18: SIC | H18: 138.58 | I18: Pasada | J18: 2014-03-06 | K18: =MATCH(A18,Cálculo!D:D,0) -> 12
A19: 1507 | B19: CE15U03G004 | C19: ANGOSTURA | D19: ANGOSTURA U3 | E19: COLBUN | F19: COLBUN | G19: SIC | H19: 46.54 | I19: Pasada | J19: 2014-01-21 | K19: =MATCH(A19,Cálculo!D:D,0) -> 13
A20: 98 | B20: CE22U01G003 | C20: ANTILHUE TG | D20: ANTILHUE 1 | E20: ANTILHUE | F20: ANTILHUE | G20: SIC | H20: 50.9 | I20: Turbina Gas | J20: 2005-01-07 | K20: =MATCH(A20,Cálculo!D:D,0) -> 14
A21: 99 | B21: CE22U02G003 | C21: ANTILHUE TG | D21: ANTILHUE 2 | E21: ANTILHUE | F21: ANTILHUE | G21: SIC | H21: 51.6 | I21: Turbina Gas | J21: 2005-09-24 | K21: =MATCH(A21,Cálculo!D:D,0) -> 15
A22: 39 | B22: CE02U01G021 | C22: ANTUCO | D22: ANTUCO 1 | E22: ENEL GENERACION | F22: ENEL GENERACIÓN | G22: SIC | H22: 160 | I22: Embalse | J22: 1981-01-01 | K22: =MATCH(A22,Cálculo!D:D,0) -> 16
A23: 40 | B23: CE02U02G021 | C23: ANTUCO | D23: ANTUCO 2 | E23: ENEL GENERACION | F23: ENEL GENERACIÓN | G23: SIC | H23: 160 | I23: Embalse | J23: 1981-01-01 | K23: =MATCH(A23,Cálculo!D:D,0) -> 17
A24: 330 | B24: CE07U01L089 | C24: ARAUCO | D24: ARAUCO TG4/5 | E24: CELULOSA ARAUCO | F24: CELULOSA ARAUCO Y CONSTITUCION S.A. | G24: SIC | H24: 9 | I24: Vapor | J24: 1996-10-04 | K24: =MATCH(A24,Cálculo!D:D,0) -> 19
A25: 1502 | B25: CE07U02L089 | C25: ARAUCO | D25: ARAUCO TG6 | E25: CELULOSA ARAUCO | F25: CELULOSA ARAUCO Y CONSTITUCION S.A. | G25: SIC | H25: 15 | I25: Vapor | J25: 2012-02-03 | K25: =MATCH(A25,Cálculo!D:D,0) -> 20
A26: 759 | B26: CE03U01G021 | C26: BOCAMINA | D26: BOCAMINA | E26: ENEL GENERACION | F26: ENEL GENERACIÓN | G26: SIC | H26: 130 | I26: Vapor | J26: 1970-01-01 | K26: =MATCH(A26,Cálculo!D:D,0) -> 22
A27: 1496 | B27: CE21U01G021 | C27: BOCAMINA II | D27: BOCAMINA II | E27: ENEL GENERACION | F27: ENEL GENERACIÓN | G27: SIC | H27: 347.54 | I27: Vapor | J27: 2012-10-28 | K27: =MATCH(A27,Cálculo!D:D,0) -> 23
A28: 1370 | B28: CE03U01G492 | C28: CALLAO | D28: CALLAO 1 | E28: HIDROCALLAO | F28: HIDROCALLAO S.A | G28: SIC | H28: 1.65 | I28: Pasada | J28: 2012-01-08 | K28: =MATCH(A28,Cálculo!D:D,0) -> 300
A29: 2772 | B29: CE03U02G492 | C29: CALLAO | D29: CALLAO 2 | E29: HIDROCALLAO | F29: HIDROCALLAO S.A | G29: SIC | H29: 1.65 | I29: Pasada | J29: 2012-01-08 | K29: =MATCH(A29,Cálculo!D:D,0) -> 301
A30: 517 | B30: CE14U01G018 | C30: CALLE CALLE | D30: CALLE CALLE 1 | E30: SAGESA | F30: SAGESA | G30: SIC | H30: 1.6 | I30: Motores Diésel | J30: 2011-04-28 | K30: =MATCH(A30,Cálculo!D:D,0) -> 24
A31: 518 | B31: CE14U02G018 | C31: CALLE CALLE | D31: CALLE CALLE 2 | E31: SAGESA | F31: SAGESA | G31: SIC | H31: 1.6 | I31: Motores Diésel | J31: 2011-04-28 | K31: =MATCH(A31,Cálculo!D:D,0) -> 25
A32: 519 | B32: CE14U03G018 | C32: CALLE CALLE | D32: CALLE CALLE 3 | E32: SAGESA | F32: SAGESA | G32: SIC | H32: 1.6 | I32: Motores Diésel | J32: 2011-04-28 | K32: =MATCH(A32,Cálculo!D:D,0) -> 26
A33: 520 | B33: CE14U04G018 | C33: CALLE CALLE | D33: CALLE CALLE 4 | E33: SAGESA | F33: SAGESA | G33: SIC | H33: 1.6 | I33: Motores Diésel | J33: 2011-04-28 | K33: =MATCH(A33,Cálculo!D:D,0) -> 27
A34: 521 | B34: CE14U05G018 | C34: CALLE CALLE | D34: CALLE CALLE 5 | E34: SAGESA | F34: SAGESA | G34: SIC | H34: 1.6 | I34: Motores Diésel | J34: 2011-04-28 | K34: =MATCH(A34,Cálculo!D:D,0) -> 28
A35: 1380 | B35: CE10U01G106 | C35: CAMPICHE | D35: CAMPICHE | E35: ELÉCTRICA CAMPICHE | F35: AES GENER | G35: SIC | H35: 272 | I35: Vapor | J35: 2013-03-08 | K35: =MATCH(A35,Cálculo!D:D,0) -> 309
A36: 751 | B36: CE02U01G004 | C36: CANDELARIA | D36: CANDELARIA TG1 | E36: COLBUN | F36: COLBUN | G36: SIC | H36: 125.3 | I36: Turbina Gas | J36: 2005-05-16 | K36: =MATCH(A36,Cálculo!D:D,0) -> 36
A37: 749 | B37: CE02U02G004 | C37: CANDELARIA | D37: CANDELARIA TG2 | E37: COLBUN | F37: COLBUN | G37: SIC | H37: 128.56 | I37: Turbina Gas | J37: 2005-05-01 | K37: =MATCH(A37,Cálculo!D:D,0) -> 37
A38: 967 | B38: CE20U01G021 | C38: CANELA | D38: CANELA | E38: ENEL GENERACION | F38: ENEL GENERACIÓN | G38: SIC | H38: 18.15 | I38: Parques Eólicos y Fotovoltaicos | J38: 2007-12-27 | K38: =MATCH(A38,Cálculo!D:D,0) -> 38
A39: 271 | B39: CE06U01T008 | C39: CANELA II | D39: CANELA II | E39: EÓLICA CANELA | F39: CANELA | G39: SIC | H39: 60 | I39: Parques Eólicos y Fotovoltaicos | J39: 2009-12-11 | K39: =MATCH(A39,Cálculo!D:D,0) -> 39
A40: 6 | B40: CE13U01G004 | C40: CANUTILLAR | D40: CANUTILLAR 1 | E40: COLBUN | F40: COLBUN | G40: SIC | H40: 86 | I40: Embalse | J40: 1990-01-01 | K40: =MATCH(A40,Cálculo!D:D,0) -> 40
A41: 7 | B41: CE13U02G004 | C41: CANUTILLAR | D41: CANUTILLAR 2 | E41: COLBUN | F41: COLBUN | G41: SIC | H41: 86 | I41: Embalse | J41: 1990-01-01 | K41: =MATCH(A41,Cálculo!D:D,0) -> 41
A42: 758 | B42: CE01U01G005 | C42: CAPULLO | D42: CAPULLO | E42: CAPULLO | F42: E.E. CAPULLO | G42: SIC | H42: 12 | I42: Pasada | J42: 1995-01-01 | K42: =MATCH(A42,Cálculo!D:D,0) -> 42
A43: 1360 | B43: CE01U01G047 | C43: CARDONES | D43: CARDONES (EX TIERRA AMARILLA) | E43: CENTRAL CARDONES | F43: CENTRAL CARDONES | G43: SIC | H43: 154.945 | I43: Turbina Gas | J43: 2009-07-04 | K43: =MATCH(A43,Cálculo!D:D,0) -> 289
A44: 29 | B44: CE10U01G028 | C44: CARENA | D44: CARENA 1 | E44: ELECTRICA INDUSTRIAL | F44: EMPRESA ELECTRICA INDUSTRIAL | G44: SIC | H44: 2.5 | I44: Pasada | J44: 2011-04-01 | K44: =MATCH(A44,Cálculo!D:D,0) -> 43
A45: 30 | B45: CE10U02G028 | C45: CARENA | D45: CARENA 2 | E45: ELECTRICA INDUSTRIAL | F45: EMPRESA ELECTRICA INDUSTRIAL | G45: SIC | H45: 2.5 | I45: Pasada | J45: 2011-04-01 | K45: =MATCH(A45,Cálculo!D:D,0) -> 44
A46: 31 | B46: CE10U03G028 | C46: CARENA | D46: CARENA 3 | E46: ELECTRICA INDUSTRIAL | F46: EMPRESA ELECTRICA INDUSTRIAL | G46: SIC | H46: 2.5 | I46: Pasada | J46: 2011-04-01 | K46: =MATCH(A46,Cálculo!D:D,0) -> 45
A47: 32 | B47: CE10U04G028 | C47: CARENA | D47: CARENA 4 | E47: ELECTRICA INDUSTRIAL | F47: EMPRESA ELECTRICA INDUSTRIAL | G47: SIC | H47: 2.5 | I47: Pasada | J47: 2011-04-01 | K47: =MATCH(A47,Cálculo!D:D,0) -> 46
A48: 1801 | B48: CE01U01G177 | C48: CARILAFQUEN | D48: CARILAFQUEN 1 | E48: ELÉCTRICA CAREN | F48: ELECTRICA CAREN | G48: SIC | H48: 10.971 | I48: Pasada | J48: 2016-10-28 | K48: =MATCH(A48,Cálculo!D:D,0) -> 382
A49: 1802 | B49: CE01U02G177 | C49: CARILAFQUEN | D49: CARILAFQUEN 2 | E49: ELÉCTRICA CAREN | F49: ELECTRICA CAREN | G49: SIC | H49: 10.971 | I49: Pasada | J49: 2016-10-28 | K49: =MATCH(A49,Cálculo!D:D,0) -> 383
A50: 826 | B50: CE01U01G077 | C50: CEMENTOS BIOBIO CENTRO | D50: CEMENTOS BIOBIO CENTRO 1 | E50: INACAL S.A. | F50: INACAL S.A | G50: SIC | H50: 1.7 | I50: Motores Diésel | J50: 2010-12-14 | K50: =MATCH(A50,Cálculo!D:D,0) -> 48
A51: 827 | B51: CE01U02G077 | C51: CEMENTOS BIOBIO CENTRO | D51: CEMENTOS BIOBIO CENTRO 2 | E51: INACAL S.A. | F51: INACAL S.A | G51: SIC | H51: 1.7 | I51: Motores Diésel | J51: 2010-12-14 | K51: =MATCH(A51,Cálculo!D:D,0) -> 49
A52: 828 | B52: CE01U03G077 | C52: CEMENTOS BIOBIO CENTRO | D52: CEMENTOS BIOBIO CENTRO 3 | E52: INACAL S.A. | F52: INACAL S.A | G52: SIC | H52: 1.7 | I52: Motores Diésel | J52: 2010-12-14 | K52: =MATCH(A52,Cálculo!D:D,0) -> 50
A53: 829 | B53: CE01U04G077 | C53: CEMENTOS BIOBIO CENTRO | D53: CEMENTOS BIOBIO CENTRO 4 | E53: INACAL S.A. | F53: INACAL S.A | G53: SIC | H53: 1.7 | I53: Motores Diésel | J53: 2010-12-14 | K53: =MATCH(A53,Cálculo!D:D,0) -> 51
A54: 830 | B54: CE01U05G077 | C54: CEMENTOS BIOBIO CENTRO | D54: CEMENTOS BIOBIO CENTRO 5 | E54: INACAL S.A. | F54: INACAL S.A | G54: SIC | H54: 1.7 | I54: Motores Diésel | J54: 2010-12-14 | K54: =MATCH(A54,Cálculo!D:D,0) -> 52
A55: 831 | B55: CE01U06G077 | C55: CEMENTOS BIOBIO CENTRO | D55: CEMENTOS BIOBIO CENTRO 6 | E55: INACAL S.A. | F55: INACAL S.A | G55: SIC | H55: 1.7 | I55: Motores Diésel | J55: 2010-12-14 | K55: =MATCH(A55,Cálculo!D:D,0) -> 53
A56: 832 | B56: CE01U07G077 | C56: CEMENTOS BIOBIO CENTRO | D56: CEMENTOS BIOBIO CENTRO 7 | E56: INACAL S.A. | F56: INACAL S.A | G56: SIC | H56: 1.7 | I56: Motores Diésel | J56: 2010-12-14 | K56: =MATCH(A56,Cálculo!D:D,0) -> 54
A57: 833 | B57: CE01U08G077 | C57: CEMENTOS BIOBIO CENTRO | D57: CEMENTOS BIOBIO CENTRO 8 | E57: INACAL S.A. | F57: INACAL S.A | G57: SIC | H57: 1.7 | I57: Motores Diésel | J57: 2010-12-14 | K57: =MATCH(A57,Cálculo!D:D,0) -> 55
A58: 707 | B58: CE02U01L089 | C58: CELCO | D58: CELCO TG2 | E58: CELULOSA ARAUCO | F58: CELULOSA ARAUCO Y CONSTITUCION S.A. | G58: SIC | H58: 8 | I58: Vapor | J58: 1996-01-01 | K58: =MATCH(A58,Cálculo!D:D,0) -> 47
A59: 1534 | B59: CE03U01A021 | C59: CMPC SANTA FE | D59: CELULOSA SANTA FE 1 | E59: CMPC CELULOSA | F59: CMPC CELULOSA | G59: SIC | H59: 0.86 | I59: Turbina Gas | J59: 2015-04-10 | K59: =MATCH(A59,Cálculo!D:D,0) -> 343
A60: 1535 | B60: CE03U02A021 | C60: CMPC SANTA FE | D60: CELULOSA SANTA FE 2 | E60: CMPC CELULOSA | F60: CMPC CELULOSA | G60: SIC | H60: 2.07 | I60: Turbina Gas | J60: 2015-04-10 | K60: =MATCH(A60,Cálculo!D:D,0) -> 344
A61: 1536 | B61: CE03U03A021 | C61: CMPC SANTA FE | D61: CELULOSA SANTA FE 3 | E61: CMPC CELULOSA | F61: CMPC CELULOSA | G61: SIC | H61: 2.07 | I61: Turbina Gas | J61: 2015-04-10 | K61: =MATCH(A61,Cálculo!D:D,0) -> 345
A62: 723 | B62: CE01U01G039 | C62: CENIZAS | D62: CENIZAS 1 | E62: ELECTRICA CENIZAS | F62: ELECTRICA CENIZAS | G62: SIC | H62: 4.8333 | I62: Motores Diésel | J62: 2009-04-01 | K62: =MATCH(A62,Cálculo!D:D,0) -> 56
A63: 724 | B63: CE01U02G039 | C63: CENIZAS | D63: CENIZAS 2 | E63: ELECTRICA CENIZAS | F63: ELECTRICA CENIZAS | G63: SIC | H63: 5.29 | I63: Motores Diésel | J63: 2009-04-01 | K63: =MATCH(A63,Cálculo!D:D,0) -> 57
A64: 725 | B64: CE01U03G039 | C64: CENIZAS | D64: CENIZAS 3 | E64: ELECTRICA CENIZAS | F64: ELECTRICA CENIZAS | G64: SIC | H64: 4.8333 | I64: Motores Diésel | J64: 2009-04-01 | K64: =MATCH(A64,Cálculo!D:D,0) -> 58
A65: 1838 | B65: CE05U01G180 | C65: CENTRAL LA SILLA | D65: CENTRAL LA SILLA | E65: PARQUE EÓLICO RENAICO | F65: ENEL GREEN POWER | G65: SIC | H65: 1.53 | I65: Parques Eólicos y Fotovoltaicos | J65: 2016-10-19 | K65: =MATCH(A65,Cálculo!D:D,0) -> 388
A66: 64 | B66: CE16U01G004 | C66: CHACABUQUITO | D66: CHACABUQUITO 1 | E66: COLBUN | F66: COLBUN | G66: SIC | H66: 6.425 | I66: Pasada | J66: 2002-01-01 | K66: =MATCH(A66,Cálculo!D:D,0) -> 59
A67: 65 | B67: CE16U02G004 | C67: CHACABUQUITO | D67: CHACABUQUITO 2 | E67: COLBUN | F67: COLBUN | G67: SIC | H67: 6.425 | I67: Pasada | J67: 2002-01-01 | K67: =MATCH(A67,Cálculo!D:D,0) -> 60
A68: 66 | B68: CE16U03G004 | C68: CHACABUQUITO | D68: CHACABUQUITO 3 | E68: COLBUN | F68: COLBUN | G68: SIC | H68: 6.425 | I68: Pasada | J68: 2002-01-01 | K68: =MATCH(A68,Cálculo!D:D,0) -> 61
A69: 67 | B69: CE16U04G004 | C69: CHACABUQUITO | D69: CHACABUQUITO 4 | E69: COLBUN | F69: COLBUN | G69: SIC | H69: 6.425 | I69: Pasada | J69: 2002-01-01 | K69: =MATCH(A69,Cálculo!D:D,0) -> 62
A70: 1655 | B70: CE03U01G101 | C70: CHACAYES | D70: CHACAYES 1 | E70: PACIFIC HYDRO CHACAYES | F70: PACIFIC HYDRO CHACAYES | G70: SIC | H70: 56 | I70: Pasada | J70: 2011-12-31 | K70: =MATCH(A70,Cálculo!D:D,0) -> 63
A71: 836 | B71: CE03U02G101 | C71: CHACAYES | D71: CHACAYES 2 | E71: PACIFIC HYDRO CHACAYES | F71: PACIFIC HYDRO CHACAYES | G71: SIC | H71: 56 | I71: Pasada | J71: 2011-12-31 | K71: =MATCH(A71,Cálculo!D:D,0) -> 64
A72: 1711 | B72: CE04U01G006 | C72: CHAÑARES | D72: CHAÑARES | E72: ELECTRICA PANGUIPULLI | F72: E.E. PANGUIPULLI | G72: SIC | H72: 36 | I72: Parques Eólicos y Fotovoltaicos | J72: 2014-07-12 | K72: =MATCH(A72,Cálculo!D:D,0) -> 347
A73: 8 | B73: CE10U01G004 | C73: CHIBURGO | D73: CHIBURGO 1 | E73: COLBUN | F73: COLBUN | G73: SIC | H73: 9.7 | I73: Pasada | J73: 2007-07-19 | K73: =MATCH(A73,Cálculo!D:D,0) -> 65
A74: 9 | B74: CE10U02G004 | C74: CHIBURGO | D74: CHIBURGO 2 | E74: COLBUN | F74: COLBUN | G74: SIC | H74: 9.7 | I74: Pasada | J74: 2007-07-19 | K74: =MATCH(A74,Cálculo!D:D,0) -> 66
A75: 553 | B75: CE05U01G035 | C75: CHILOE | D75: CHILOE 1 | E75: ELEKTRAGEN | F75: ELEKTRA GENERACION | G75: SIC | H75: 1 | I75: Motores Diésel | J75: 2008-07-08 | K75: =MATCH(A75,Cálculo!D:D,0) -> 69
A76: 554 | B76: CE05U02G035 | C76: CHILOE | D76: CHILOE 2 | E76: ELEKTRAGEN | F76: ELEKTRA GENERACION | G76: SIC | H76: 1 | I76: Motores Diésel | J76: 2008-07-08 | K76: =MATCH(A76,Cálculo!D:D,0) -> 70
A77: 555 | B77: CE05U03G035 | C77: CHILOE | D77: CHILOE 3 | E77: ELEKTRAGEN | F77: ELEKTRA GENERACION | G77: SIC | H77: 1 | I77: Motores Diésel | J77: 2008-07-08 | K77: =MATCH(A77,Cálculo!D:D,0) -> 71
A78: 556 | B78: CE05U04G035 | C78: CHILOE | D78: CHILOE 4 | E78: ELEKTRAGEN | F78: ELEKTRA GENERACION | G78: SIC | H78: 1 | I78: Motores Diésel | J78: 2008-07-08 | K78: =MATCH(A78,Cálculo!D:D,0) -> 72
A79: 557 | B79: CE05U05G035 | C79: CHILOE | D79: CHILOE 5 | E79: ELEKTRAGEN | F79: ELEKTRA GENERACION | G79: SIC | H79: 1 | I79: Motores Diésel | J79: 2008-07-08 | K79: =MATCH(A79,Cálculo!D:D,0) -> 73
A80: 558 | B80: CE05U06G035 | C80: CHILOE | D80: CHILOE 6 | E80: ELEKTRAGEN | F80: ELEKTRA GENERACION | G80: SIC | H80: 1 | I80: Motores Diésel | J80: 2008-07-08 | K80: =MATCH(A80,Cálculo!D:D,0) -> 74
A81: 559 | B81: CE05U07G035 | C81: CHILOE | D81: CHILOE 7 | E81: ELEKTRAGEN | F81: ELEKTRA GENERACION | G81: SIC | H81: 1 | I81: Motores Diésel | J81: 2008-07-08 | K81: =MATCH(A81,Cálculo!D:D,0) -> 75
A82: 560 | B82: CE05U08G035 | C82: CHILOE | D82: CHILOE 8 | E82: ELEKTRAGEN | F82: ELEKTRA GENERACION | G82: SIC | H82: 1 | I82: Motores Diésel | J82: 2008-07-08 | K82: =MATCH(A82,Cálculo!D:D,0) -> 76
A83: 561 | B83: CE05U09G035 | C83: CHILOE | D83: CHILOE 9 | E83: ELEKTRAGEN | F83: ELEKTRA GENERACION | G83: SIC | H83: 1 | I83: Motores Diésel | J83: 2008-07-08 | K83: =MATCH(A83,Cálculo!D:D,0) -> 77
A84: 981 | B84: CE02U01L003 | C84: CHOLGUAN | D84: CHOLGUAN TG | E84: PANELES ARAUCO | F84: PANELES ARAUCO S.A. | G84: SIC | H84: 13 | I84: Vapor | J84: 2003-03-06 | K84: =MATCH(A84,Cálculo!D:D,0) -> 396
A85: 525 | B85: CE10U01G018 | C85: CHUYACA | D85: CHUYACA 1 | E85: SAGESA | F85: SAGESA | G85: SIC | H85: 1.88 | I85: Motores Diésel | J85: 2008-05-05 | K85: =MATCH(A85,Cálculo!D:D,0) -> 78
A86: 526 | B86: CE10U02G018 | C86: CHUYACA | D86: CHUYACA 2 | E86: SAGESA | F86: SAGESA | G86: SIC | H86: 1.88 | I86: Motores Diésel | J86: 2008-05-05 | K86: =MATCH(A86,Cálculo!D:D,0) -> 79
A87: 527 | B87: CE10U03G018 | C87: CHUYACA | D87: CHUYACA 3 | E87: SAGESA | F87: SAGESA | G87: SIC | H87: 1.88 | I87: Motores Diésel | J87: 2008-05-05 | K87: =MATCH(A87,Cálculo!D:D,0) -> 80
A88: 528 | B88: CE10U04G018 | C88: CHUYACA | D88: CHUYACA 4 | E88: SAGESA | F88: SAGESA | G88: SIC | H88: 1.88 | I88: Motores Diésel | J88: 2008-05-05 | K88: =MATCH(A88,Cálculo!D:D,0) -> 81
A89: 529 | B89: CE10U05G018 | C89: CHUYACA | D89: CHUYACA 5 | E89: SAGESA | F89: SAGESA | G89: SIC | H89: 1.88 | I89: Motores Diésel | J89: 2008-05-05 | K89: =MATCH(A89,Cálculo!D:D,0) -> 82
A90: 251 | B90: CE04U01G021 | C90: CIPRESES | D90: CIPRESES 1 | E90: ENEL GENERACION | F90: ENEL GENERACIÓN | G90: SIC | H90: 35.33 | I90: Embalse | J90: 1955-01-01 | K90: =MATCH(A90,Cálculo!D:D,0) -> 84
A91: 252 | B91: CE04U02G021 | C91: CIPRESES | D91: CIPRESES 2 | E91: ENEL GENERACION | F91: ENEL GENERACIÓN | G91: SIC | H91: 35.33 | I91: Embalse | J91: 1955-01-01 | K91: =MATCH(A91,Cálculo!D:D,0) -> 85
A92: 253 | B92: CE04U03G021 | C92: CIPRESES | D92: CIPRESES 3 | E92: ENEL GENERACION | F92: ENEL GENERACIÓN | G92: SIC | H92: 35.33 | I92: Embalse | J92: 1955-01-01 | K92: =MATCH(A92,Cálculo!D:D,0) -> 86
A93: 1805 | B93: CE01U01L079 | C93: CMPC CORDILLERA | D93: CMPC CORDILLERA | E93: CMPC PAPELES CORDILLERA | F93: CMPC PAPELES CORDILLERA | G93: SIC | H93: 26.63 | I93: Turbina Gas | J93: 2016-04-25 | K93: =MATCH(A93,Cálculo!D:D,0) -> 371
A94: 1470 | B94: CE02U01A021 | C94: CMPC LAJA | D94: CMPC LAJA 1 | E94: CMPC CELULOSA | F94: CMPC CELULOSA | G94: SIC | H94: 13.59 | I94: Vapor | J94: 2013-05-01 | K94: =MATCH(A94,Cálculo!D:D,0) -> 311
A95: 1471 | B95: CE02U02A021 | C95: CMPC LAJA | D95: CMPC LAJA 2 | E95: CMPC CELULOSA | F95: CMPC CELULOSA | G95: SIC | H95: 11.41 | I95: Vapor | J95: 2013-05-01 | K95: =MATCH(A95,Cálculo!D:D,0) -> 312
A96: 1494 | B96: CE01U01A021 | C96: CMPC PACIFICO | D96: CMPC PACIFICO 1 | E96: CMPC CELULOSA | F96: CMPC CELULOSA | G96: SIC | H96: 16.05 | I96: Vapor | J96: 2014-01-01 | K96: =MATCH(A96,Cálculo!D:D,0) -> 315
A97: 1495 | B97: CE01U02A021 | C97: CMPC PACIFICO | D97: CMPC PACIFICO 2 | E97: CMPC CELULOSA | F97: CMPC CELULOSA | G97: SIC | H97: 11.45 | I97: Vapor | J97: 2014-01-01 | K97: =MATCH(A97,Cálculo!D:D,0) -> 316
A98: 1530 | B98: CE01U03A021 | C98: CMPC PACIFICO | D98: CMPC PACIFICO 3 | E98: CMPC CELULOSA | F98: CMPC CELULOSA | G98: SIC | H98: 5.5 | I98: Vapor | J98: 2014-01-01 | K98: =MATCH(A98,Cálculo!D:D,0) -> 317
A99: 1811 | B99: CE01U01L103 | C99: CMPC TISSUE | D99: CMPC TISSUE | E99: CMPC TISSUE | F99: CMPC | G99: SIC | H99: 3.9 | I99: Turbina Gas | J99: 2016-06-16 | K99: =MATCH(A99,Cálculo!D:D,0) -> 372
A100: 847 | B100: CE01U01G004 | C100: COLBUN | D100: COLBUN 1 | E100: COLBUN | F100: COLBUN | G100: SIC | H100: 231.2 | I100: Embalse | J100: 1985-01-01 | K100: =MATCH(A100,Cálculo!D:D,0) -> 87
A101: 848 | B101: CE01U02G004 | C101: COLBUN | D101: COLBUN 2 | E101: COLBUN | F101: COLBUN | G101: SIC | H101: 232 | I101: Embalse | J101: 1985-01-01 | K101: =MATCH(A101,Cálculo!D:D,0) -> 88
A102: 786 | B102: CE01U01G066 | C102: COLIHUES | D102: COLIHUES 1 | E102: COLIHUES ENERGÍA | F102: COLIHUES ENERGIA | G102: SIC | H102: 11 | I102: Motores Diésel | J102: 2010-06-09 | K102: =MATCH(A102,Cálculo!D:D,0) -> 89
A103: 785 | B103: CE01U02G066 | C103: COLIHUES | D103: COLIHUES 2 | E103: COLIHUES ENERGÍA | F103: COLIHUES ENERGIA | G103: SIC | H103: 11 | I103: Motores Diésel | J103: 2010-06-09 | K103: =MATCH(A103,Cálculo!D:D,0) -> 90
A104: 516 | B104: CE01U01G123 | C104: COLMITO | D104: COLMITO 1 | E104: TERMOELÉCTRICA COLMITO | F104: TERMOELECTRICA COLMITO | G104: SIC | H104: 58 | I104: Turbina Gas | J104: 2008-08-18 | K104: =MATCH(A104,Cálculo!D:D,0) -> 91
A105: 568 | B105: CE01U01G031 | C105: CONCON | D105: CONCON 1 | E105: TECNORED | F105: TECNORED | G105: SIC | H105: 1.1 | I105: Motores Diésel | J105: 2007-04-23 | K105: =MATCH(A105,Cálculo!D:D,0) -> 92
A106: 569 | B106: CE01U02G031 | C106: CONCON | D106: CONCON 2 | E106: TECNORED | F106: TECNORED | G106: SIC | H106: 0.8 | I106: Motores Diésel | J106: 2007-04-23 | K106: =MATCH(A106,Cálculo!D:D,0) -> 93
A107: 570 | B107: CE01U03G031 | C107: CONCON | D107: CONCON 3 | E107: TECNORED | F107: TECNORED | G107: SIC | H107: 0.8 | I107: Motores Diésel | J107: 2007-04-23 | K107: =MATCH(A107,Cálculo!D:D,0) -> 94
A108: 1842 | B108: CE01U01G195 | C108: PV CONEJO | D108: CONEJO | E108: CONEJO SOLAR | F108: PATTERN ENERGY | G108: SIC | H108: 104 | I108: Parques Eólicos y Fotovoltaicos | J108: 2016-09-08 | K108: =MATCH(A108,Cálculo!D:D,0) -> 376
A109: 562 | B109: CE01U01G035 | C109: CONSTITUCION 1 | D109: CONSTITUCION 1 1 | E109: ELEKTRAGEN | F109: ELEKTRA GENERACION | G109: SIC | H109: 1.5 | I109: Motores Diésel | J109: 2007-06-06 | K109: =MATCH(A109,Cálculo!D:D,0) -> 95
A110: 563 | B110: CE01U02G035 | C110: CONSTITUCION 1 | D110: CONSTITUCION 1 2 | E110: ELEKTRAGEN | F110: ELEKTRA GENERACION | G110: SIC | H110: 1.5 | I110: Motores Diésel | J110: 2007-06-06 | K110: =MATCH(A110,Cálculo!D:D,0) -> 96
A111: 564 | B111: CE01U03G035 | C111: CONSTITUCION 1 | D111: CONSTITUCION 1 3 | E111: ELEKTRAGEN | F111: ELEKTRA GENERACION | G111: SIC | H111: 1.5 | I111: Motores Diésel | J111: 2007-06-06 | K111: =MATCH(A111,Cálculo!D:D,0) -> 97
A112: 565 | B112: CE01U04G035 | C112: CONSTITUCION 1 | D112: CONSTITUCION 1 4 | E112: ELEKTRAGEN | F112: ELEKTRA GENERACION | G112: SIC | H112: 1.5 | I112: Motores Diésel | J112: 2007-06-06 | K112: =MATCH(A112,Cálculo!D:D,0) -> 98
A113: 566 | B113: CE01U05G035 | C113: CONSTITUCION 1 | D113: CONSTITUCION 1 5 | E113: ELEKTRAGEN | F113: ELEKTRA GENERACION | G113: SIC | H113: 1.5 | I113: Motores Diésel | J113: 2007-06-06 | K113: =MATCH(A113,Cálculo!D:D,0) -> 99
A114: 567 | B114: CE01U06G035 | C114: CONSTITUCION 1 | D114: CONSTITUCION 1 6 | E114: ELEKTRAGEN | F114: ELEKTRA GENERACION | G114: SIC | H114: 1.5 | I114: Motores Diésel | J114: 2007-06-06 | K114: =MATCH(A114,Cálculo!D:D,0) -> 100
A115: 792 | B115: CE05U01G018 | C115: CORONEL | D115: CORONEL TG | E115: SAGESA | F115: SAGESA | G115: SIC | H115: 45.674 | I115: Turbina Gas | J115: 2005-04-30 | K115: =MATCH(A115,Cálculo!D:D,0) -> 104
A116: 68 | B116: CE02U01G030 | C116: COYA | D116: COYA 5 | E116: PACIFIC HYDRO | F116: PACIFIC HYDRO CHILE | G116: SIC | H116: 12 | I116: Pasada | J116: 2008-07-09 | K116: =MATCH(A116,Cálculo!D:D,0) -> 105
A117: 787 | B117: CE01U01G017 | C117: CURILLINQUE | D117: CURILLINQUE | E117: PEHUENCHE | F117: PEHUENCHE | G117: SIC | H117: 92 | I117: Pasada | J117: 1993-01-01 | K117: =MATCH(A117,Cálculo!D:D,0) -> 106
A118: 382 | B118: CE01U01G033 | C118: DEGAÑ | D118: DEGAÑ | E118: NUEVA DEGAN | F118: GENERACION DE ENERGIA NUEVA DEGAN S.A. | G118: SIC | H118: 36 | I118: Parque de Motores Diésel | J118: 2007-07-04 | K118: =MATCH(A118,Cálculo!D:D,0) -> 107
A119: 95 | B119: CE05U01G021 | C119: DIEGO DE ALMAGRO | D119: DIEGO DE ALMAGRO | E119: ENEL GENERACION | F119: ENEL GENERACIÓN | G119: SIC | H119: 23.8 | I119: Turbina Gas | J119: 1981-01-01 | K119: =MATCH(A119,Cálculo!D:D,0) -> 110
A120: 1928 | B120: CE01U01G271 | C120: DOÑA CARMEN SOLAR | D120: DOÑA CARMEN | E120: ENERGÍA CERRO EL MORADO | F120: ENERGIA CERRO EL MORADO | G120: SIC | H120: 34.617 | I120: Parques Eólicos y Fotovoltaicos | J120: 2017-12-17 | K120: =MATCH(A120,Cálculo!D:D,0) -> 393
A121: 1948 | B121: CE01U01G253 | C121: DOS VALLES | D121: DOS VALLES | E121: HIDROELECTRICA DOS VALLES SPA | F121: ANPAC ENERGIA SpA | G121: SIC | H121: 2.95 | I121: Pasada | J121: 2019-09-14 | K121: =MATCH(A121,Cálculo!D:D,0) -> 424
A122: 1806 | B122: CE01U01G179 | C122: EL PASO | D122: EL PASO 1 | E122: EL PASO | F122: HYDROCHILE | G122: SIC | H122: 21.5 | I122: Pasada | J122: 2016-03-02 | K122: =MATCH(A122,Cálculo!D:D,0) -> 364
A123: 1807 | B123: CE01U02G179 | C123: EL PASO | D123: EL PASO 2 | E123: EL PASO | F123: HYDROCHILE | G123: SIC | H123: 20.15 | I123: Pasada | J123: 2016-03-02 | K123: =MATCH(A123,Cálculo!D:D,0) -> 365
A124: 1808 | B124: CE01U03G179 | C124: EL PASO | D124: EL PASO 3 | E124: EL PASO | F124: HYDROCHILE | G124: SIC | H124: 20.15 | I124: Pasada | J124: 2016-03-02 | K124: =MATCH(A124,Cálculo!D:D,0) -> 366
A125: 1927 | B125: CE01U01G246 | C125: EL PELICANO | D125: EL PELICANO | E125: TOTAL SUNPOWER EL PELÍCANO | F125: TOTAL SUNPOWER SpA | G125: SIC | H125: 108.103 | I125: Parques Eólicos y Fotovoltaicos | J125: 2018-09-13 | K125: =MATCH(A125,Cálculo!D:D,0) -> 101
A126: 775 | B126: CE04U01G041 | C126: EL PEÑON | D126: EL PEÑON | E126: ENLASA | F126: ENLASA | G126: SIC | H126: 81 | I126: Parque de Motores Diésel | J126: 2009-07-23 | K126: =MATCH(A126,Cálculo!D:D,0) -> 111
A127: 683 | B127: CE05U01G019 | C127: EL RINCON | D127: EL RINCON | E127: PUNTILLA | F127: PUNTILLA | G127: SIC | H127: 0.27 | I127: Pasada | J127: 2007-04-13 | K127: =MATCH(A127,Cálculo!D:D,0) -> 112
A128: 1902 | B128: CE01U01G265 | C128: EL ROMERO | D128: EL ROMERO | E128: ACCIONA ENERGÍA CHILE | F128: ACCIONA ENERGIA CHILE | G128: SIC | H128: 196.02 | I128: Parques Eólicos y Fotovoltaicos | J128: 2017-03-03 | K128: =MATCH(A128,Cálculo!D:D,0) -> 389
A129: 795 | B129: CE01U01G073 | C129: EL SALVADOR | D129: EL SALVADOR 2 | E129: SWC | F129: SWC | G129: SIC | H129: 17.753 | I129: Turbina Gas | J129: 2010-08-06 | K129: =MATCH(A129,Cálculo!D:D,0) -> 268
A130: 254 | B130: CE07U01G021 | C130: EL TORO | D130: EL TORO 1 | E130: ENEL GENERACION | F130: ENEL GENERACIÓN | G130: SIC | H130: 112.5 | I130: Embalse | J130: 1973-01-01 | K130: =MATCH(A130,Cálculo!D:D,0) -> 113
A131: 255 | B131: CE07U02G021 | C131: EL TORO | D131: EL TORO 2 | E131: ENEL GENERACION | F131: ENEL GENERACIÓN | G131: SIC | H131: 112.5 | I131: Embalse | J131: 1973-01-01 | K131: =MATCH(A131,Cálculo!D:D,0) -> 114
A132: 256 | B132: CE07U03G021 | C132: EL TORO | D132: EL TORO 3 | E132: ENEL GENERACION | F132: ENEL GENERACIÓN | G132: SIC | H132: 112.5 | I132: Embalse | J132: 1973-01-01 | K132: =MATCH(A132,Cálculo!D:D,0) -> 115
A133: 257 | B133: CE07U04G021 | C133: EL TORO | D133: EL TORO 4 | E133: ENEL GENERACION | F133: ENEL GENERACIÓN | G133: SIC | H133: 112.5 | I133: Embalse | J133: 1973-01-01 | K133: =MATCH(A133,Cálculo!D:D,0) -> 116
A134: 571 | B134: CE07U01G031 | C134: EL TOTORAL | D134: EL TOTORAL 1 | E134: TECNORED | F134: TECNORED | G134: SIC | H134: 1.2 | I134: Motores Diésel | J134: 2008-04-07 | K134: =MATCH(A134,Cálculo!D:D,0) -> 117
A135: 572 | B135: CE07U02G031 | C135: EL TOTORAL | D135: EL TOTORAL 2 | E135: TECNORED | F135: TECNORED | G135: SIC | H135: 1.2 | I135: Motores Diésel | J135: 2008-04-07 | K135: =MATCH(A135,Cálculo!D:D,0) -> 118
A136: 573 | B136: CE07U03G031 | C136: EL TOTORAL | D136: EL TOTORAL 3 | E136: TECNORED | F136: TECNORED | G136: SIC | H136: 0.6 | I136: Motores Diésel | J136: 2008-04-07 | K136: =MATCH(A136,Cálculo!D:D,0) -> 119
A137: 716 | B137: CE01U01G061 | C137: EMELDA | D137: EMELDA 1 | E137: EMELDA | F137: EMELDA | G137: SIC | H137: 36.526 | I137: Turbina Gas | J137: 2010-06-25 | K137: =MATCH(A137,Cálculo!D:D,0) -> 120
A138: 717 | B138: CE01U02G061 | C138: EMELDA | D138: EMELDA 2 | E138: EMELDA | F138: EMELDA | G138: SIC | H138: 35.426 | I138: Turbina Gas | J138: 2010-09-21 | K138: =MATCH(A138,Cálculo!D:D,0) -> 121
A139: 838 | B139: CE01U01G087 | C139: ENERGIA PACIFICO | D139: ENERGIA PACIFICO | E139: ENERGÍA PACÍFICO | F139: ENERGIA PACIFICO | G139: SIC | H139: 15.6 | I139: Vapor | J139: 2011-06-21 | K139: =MATCH(A139,Cálculo!D:D,0) -> 331
A140: 1448 | B140: CE01U01G122 | C140: EOLICA CUEL | D140: EOLICA CUEL | E140: AELA EOLICA NEGRETE SpA | F140: AELA GENERACION | G140: SIC | H140: 33 | I140: Parques Eólicos y Fotovoltaicos | J140: 2014-02-05 | K140: =MATCH(A140,Cálculo!D:D,0) -> 330
A141: 1595 | B141: CE01U07G130 | C141: EOLICA EL ARRAYAN | D141: EOLICA EL ARRAYAN | E141: PARQUE EÓLICO EL ARRAYÁN | F141: PATTERN ENERGY | G141: SIC | H141: 115 | I141: Parques Eólicos y Fotovoltaicos | J141: 2014-06-06 | K141: =MATCH(A141,Cálculo!D:D,0) -> 336
A142: 19C | B142: CE01U01G053 | C142: EOLICA LEBU | D142: EOLICA LEBU | E142: PARQUE EÓLICO LEBU | F142: CRISTALERIAS TORO | G142: SIC | H142: 10.14 | I142: Parques Eólicos y Fotovoltaicos | J142: 2014-03-25 | K142: =MATCH(A142,Cálculo!D:D,0) -> 339
A143: 1538 | B143: CE03U01G132 | C143: EOLICA LOS CURUROS | D143: EOLICA LOS CURUROS | E143: PARQUE EÓLICO LOS CURUROS | F143: EPM | G143: SIC | H143: 109.4 | I143: Parques Eólicos y Fotovoltaicos | J143: 2014-07-23 | K143: =MATCH(A143,Cálculo!D:D,0) -> 337
A144: 694 | B144: CE01U01G062 | C144: EOLICA PUNTA COLORADA | D144: EOLICA PUNTA COLORADA | E144: BARRICK GENERACIÓN | F144: BARRICK | G144: SIC | H144: 20 | I144: Parques Eólicos y Fotovoltaicos | J144: 2011-12-19 | K144: =MATCH(A144,Cálculo!D:D,0) -> 238
A145: 1660 | B145: CE01U01G144 | C145: EOLICA PUNTA PALMERAS | D145: EOLICA PUNTA PALMERAS | E145: PUNTA PALMERAS | F145: PUNTA PALMERAS S.A | G145: SIC | H145: 45 | I145: Parques Eólicos y Fotovoltaicos | J145: 2014-11-19 | K145: =MATCH(A145,Cálculo!D:D,0) -> 340
A146: 1512 | B146: CE01U01G136 | C146: EOLICA SAN PEDRO | D146: EOLICA SAN PEDRO | E146: ALBA | F146: ALBA S.A. | G146: SIC | H146: 36 | I146: Parques Eólicos y Fotovoltaicos | J146: 2014-06-27 | K146: =MATCH(A146,Cálculo!D:D,0) -> 338
A147: 238C | B147: CE01U01G104 | C147: EOLICA TALINAY ORIENTE | D147: EOLICA TALINAY ORIENTE | E147: PARQUE EÓLICO TALINAY | F147: ENEL GREEN POWER | G147: SIC | H147: 90 | I147: Parques Eólicos y Fotovoltaicos | J147: 2013-04-14 | K147: =MATCH(A147,Cálculo!D:D,0) -> 310
A148: 289C | B148: CE05U01G006 | C148: EOLICA TALINAY PONIENTE | D148: EOLICA TALINAY PONIENTE | E148: ELECTRICA PANGUIPULLI | F148: E.E. PANGUIPULLI | G148: SIC | H148: 60.6 | I148: Parques Eólicos y Fotovoltaicos | J148: 2015-05-26 | K148: =MATCH(A148,Cálculo!D:D,0) -> 357
A149: 1675 | B149: CE01U01G143 | C149: EOLICA TALTAL | D149: EOLICA TALTAL | E149: PARQUE EÓLICO TALTAL | F149: PARQUE EOLICO TAL TAL S.A. | G149: SIC | H149: 99.075 | I149: Parques Eólicos y Fotovoltaicos | J149: 2015-02-09 | K149: =MATCH(A149,Cálculo!D:D,0) -> 342
A150: 358 | B150: CE01U01G051 | C150: EOLICA TOTORAL | D150: EOLICA TOTORAL | E150: NORVIND | F150: NORVIND S.A. | G150: SIC | H150: 46 | I150: Parques Eólicos y Fotovoltaicos | J150: 2010-01-25 | K150: =MATCH(A150,Cálculo!D:D,0) -> 122
A151: 1868 | B151: CE01U01G199 | C151: EÓLICO SAN PEDRO II | D151: EÓLICO SAN PEDRO II | E151: RIO ALTO GENERACIÓN | F151: RIO ALTO GENERACION | G151: SIC | H151: 65 | I151: Parques Eólicos y Fotovoltaicos | J151: 2017-05-19 | K151: =MATCH(A151,Cálculo!D:D,0) -> 391
A152: 1064 | B152: CE01U01G032 | C152: ESCUADRON | D152: ESCUADRON 1 | E152: NUEVA ENERGIA | F152: NUEVA ENERGIA | G152: SIC | H152: 12.1 | I152: Vapor | J152: 2008-03-06 | K152: =MATCH(A152,Cálculo!D:D,0) -> 123
A153: 1065 | B153: CE01U02G032 | C153: ESCUADRON | D153: ESCUADRON 2 | E153: NUEVA ENERGIA | F153: NUEVA ENERGIA | G153: SIC | H153: 2.1 | I153: Vapor | J153: 2009-03-27 | K153: =MATCH(A153,Cálculo!D:D,0) -> 124
A154: 454 | B154: CE01U02G034 | C154: ESPERANZA | D154: ESPERANZA DS1 | E154: ENORCHILE | F154: ENOR CHILE | G154: SIC | H154: 1.6 | I154: Motores Diésel | J154: 2007-06-29 | K154: =MATCH(A154,Cálculo!D:D,0) -> 125
A155: 455 | B155: CE01U03G034 | C155: ESPERANZA | D155: ESPERANZA DS2 | E155: ENORCHILE | F155: ENOR CHILE | G155: SIC | H155: 1.8 | I155: Motores Diésel | J155: 2007-06-27 | K155: =MATCH(A155,Cálculo!D:D,0) -> 126
A156: 84 | B156: CE01U01G034 | C156: ESPERANZA | D156: ESPERANZA TG-1 | E156: ENORCHILE | F156: ENOR CHILE | G156: SIC | H156: 18.8 | I156: Turbina Gas | J156: 2007-08-22 | K156: =MATCH(A156,Cálculo!D:D,0) -> 127
A157: 793 | B157: CE06U01G019 | C157: FLORIDA I | D157: FLORIDA I 3 | E157: PUNTILLA | F157: PUNTILLA | G157: SIC | H157: 2.7 | I157: Pasada | J157: 1909-01-01 | K157: =MATCH(A157,Cálculo!D:D,0) -> 130
A158: 794 | B158: CE06U02G019 | C158: FLORIDA I | D158: FLORIDA I 5 | E158: PUNTILLA | F158: PUNTILLA | G158: SIC | H158: 2.7 | I158: Pasada | J158: 1909-01-01 | K158: =MATCH(A158,Cálculo!D:D,0) -> 131
A159: 78 | B159: CE07U01G019 | C159: FLORIDA II | D159: FLORIDA II 1 | E159: PUNTILLA | F159: PUNTILLA | G159: SIC | H159: 9.563 | I159: Pasada | J159: 1993-01-01 | K159: =MATCH(A159,Cálculo!D:D,0) -> 132
A160: 79 | B160: CE07U02G019 | C160: FLORIDA II | D160: FLORIDA II 2 | E160: PUNTILLA | F160: PUNTILLA | G160: SIC | H160: 9.563 | I160: Pasada | J160: 1993-01-01 | K160: =MATCH(A160,Cálculo!D:D,0) -> 133
A161: 80 | B161: CE08U01G019 | C161: FLORIDA III | D161: FLORIDA III 1 | E161: PUNTILLA | F161: PUNTILLA | G161: SIC | H161: 1.32 | I161: Pasada | J161: 1999-01-01 | K161: =MATCH(A161,Cálculo!D:D,0) -> 134
A162: 81 | B162: CE08U02G019 | C162: FLORIDA III | D162: FLORIDA III 2 | E162: PUNTILLA | F162: PUNTILLA | G162: SIC | H162: 1.32 | I162: Pasada | J162: 1999-01-01 | K162: =MATCH(A162,Cálculo!D:D,0) -> 135
A163: 810 | B163: CE01U01G011 | C163: GUACOLDA | D163: GUACOLDA 1 | E163: GUACOLDA | F163: AES GENER | G163: SIC | H163: 154.18 | I163: Vapor | J163: 1995-01-01 | K163: =MATCH(A163,Cálculo!D:D,0) -> 136
A164: 811 | B164: CE01U02G011 | C164: GUACOLDA | D164: GUACOLDA 2 | E164: GUACOLDA | F164: AES GENER | G164: SIC | H164: 145.41 | I164: Vapor | J164: 1996-01-01 | K164: =MATCH(A164,Cálculo!D:D,0) -> 137
A165: 812 | B165: CE01U03G011 | C165: GUACOLDA | D165: GUACOLDA 3 | E165: GUACOLDA | F165: AES GENER | G165: SIC | H165: 153.93 | I165: Vapor | J165: 2009-07-31 | K165: =MATCH(A165,Cálculo!D:D,0) -> 138
A166: 813 | B166: CE01U04G011 | C166: GUACOLDA | D166: GUACOLDA 4 | E166: GUACOLDA | F166: AES GENER | G166: SIC | H166: 153.88 | I166: Vapor | J166: 2010-03-31 | K166: =MATCH(A166,Cálculo!D:D,0) -> 139
A167: 1833 | B167: CE01U05G011 | C167: GUACOLDA | D167: GUACOLDA 5 | E167: GUACOLDA | F167: AES GENER | G167: SIC | H167: 156.215 | I167: Vapor | J167: 2015-12-15 | K167: =MATCH(A167,Cálculo!D:D,0) -> 140
A168: 771 | B168: CE01U01G065 | C168: GUAYACAN | D168: GUAYACÁN 1 | E168: ENERGÍA COYANCO | F168: ENERGIA COYANCO | G168: SIC | H168: 7 | I168: Pasada | J168: 2010-09-01 | K168: =MATCH(A168,Cálculo!D:D,0) -> 294
A169: 772 | B169: CE01U02G065 | C169: GUAYACAN | D169: GUAYACÁN 2 | E169: ENERGÍA COYANCO | F169: ENERGIA COYANCO | G169: SIC | H169: 7 | I169: Pasada | J169: 2010-09-01 | K169: =MATCH(A169,Cálculo!D:D,0) -> 295
A170: 744 | B170: CE01U01G002 | C170: HORCONES TG | D170: HORCONES TG | E170: ARAUCO BIOENERGÍA | F170: ARAUCO | G170: SIC | H170: 24.3 | I170: Turbina Gas | J170: 2004-10-01 | K170: =MATCH(A170,Cálculo!D:D,0) -> 141
A171: 270 | B171: CE01U01G036 | C171: HORNITOS | D171: HORNITOS 1 | E171: RIO TRANQUILO | F171: RIO TRANQUILO | G171: SIC | H171: 61 | I171: Pasada | J171: 2008-01-01 | K171: =MATCH(A171,Cálculo!D:D,0) -> 142
A172: 1363 | B172: CE08U03G021 | C172: HUASCO TG | D172: HUASCO 3 | E172: ENEL GENERACION | F172: ENEL GENERACIÓN | G172: SIC | H172: 19.33333333 | I172: Turbina Gas | J172: 1977-01-01 | K172: =MATCH(A172,Cálculo!D:D,0) -> 143
A173: 1364 | B173: CE08U04G021 | C173: HUASCO TG | D173: HUASCO 4 | E173: ENEL GENERACION | F173: ENEL GENERACIÓN | G173: SIC | H173: 19.33333333 | I173: Turbina Gas | J173: 1977-01-01 | K173: =MATCH(A173,Cálculo!D:D,0) -> 144
A174: 1365 | B174: CE08U05G021 | C174: HUASCO TG | D174: HUASCO 5 | E174: ENEL GENERACION | F174: ENEL GENERACIÓN | G174: SIC | H174: 19.33333333 | I174: Turbina Gas | J174: 1979-01-01 | K174: =MATCH(A174,Cálculo!D:D,0) -> 145
A175: 41 | B175: CE09U01G021 | C175: ISLA | D175: ISLA 1 | E175: ENEL GENERACION | F175: ENEL GENERACIÓN | G175: SIC | H175: 35 | I175: Pasada | J175: 1963-01-01 | K175: =MATCH(A175,Cálculo!D:D,0) -> 146
A176: 42 | B176: CE09U02G021 | C176: ISLA | D176: ISLA 2 | E176: ENEL GENERACION | F176: ENEL GENERACIÓN | G176: SIC | H176: 35 | I176: Pasada | J176: 1964-01-01 | K176: =MATCH(A176,Cálculo!D:D,0) -> 147
A177: 728 | B177: CE17U01G004 | C177: JUNCALITO | D177: JUNCALITO | E177: COLBUN | F177: COLBUN | G177: SIC | H177: 1.52 | I177: Pasada | K177: =MATCH(A177,Cálculo!D:D,0) -> 359
A178: 1809 | B178: CE09U01G019 | C178: ITATA | D178: ITATA 1 | E178: PUNTILLA | F178: PUNTILLA | G178: SIC | H178: 10.2 | I178: Pasada | J178: 2016-09-09 | K178: =MATCH(A178,Cálculo!D:D,0) -> 377
A179: 1810 | B179: CE09U02G019 | C179: ITATA | D179: ITATA 2 | E179: PUNTILLA | F179: PUNTILLA | G179: SIC | H179: 10.2 | I179: Pasada | J179: 2016-09-09 | K179: =MATCH(A179,Cálculo!D:D,0) -> 378
A180: 54 | B180: CE01U01G078 | C180: LA CONFLUENCIA | D180: LA CONFLUENCIA 1 | E180: HIDROELÉCTRICA LA CONFLUENCIA | F180: HIDROELECTRICA LA CONFLUENCIA | G180: SIC | H180: 81.6 | I180: Pasada | J180: 2011-05-01 | K180: =MATCH(A180,Cálculo!D:D,0) -> 149
A181: 55 | B181: CE01U02G078 | C181: LA CONFLUENCIA | D181: LA CONFLUENCIA 2 | E181: HIDROELÉCTRICA LA CONFLUENCIA | F181: HIDROELECTRICA LA CONFLUENCIA | G181: SIC | H181: 81.6 | I181: Pasada | J181: 2010-12-06 | K181: =MATCH(A181,Cálculo!D:D,0) -> 150
A182: 56 | B182: CE02U01G043 | C182: LA HIGUERA | D182: LA HIGUERA 1 | E182: HIDROELÉCTRICA LA HIGUERA | F182: HIDROELECTRICA LA HIGUERA | G182: SIC | H182: 77.5 | I182: Pasada | J182: 2011-05-02 | K182: =MATCH(A182,Cálculo!D:D,0) -> 151
A183: 57 | B183: CE02U02G043 | C183: LA HIGUERA | D183: LA HIGUERA 2 | E183: HIDROELÉCTRICA LA HIGUERA | F183: HIDROELECTRICA LA HIGUERA | G183: SIC | H183: 77.5 | I183: Pasada | J183: 2011-05-02 | K183: =MATCH(A183,Cálculo!D:D,0) -> 152
A184: 1910 | B184: CE20U01G004 | C184: LA MINA | D184: LA MINA 1 | E184: COLBUN | F184: COLBUN | G184: SIC | H184: 19.86 | I184: Pasada | J184: 2018-02-21 | K184: =MATCH(A184,Cálculo!D:D,0) -> 394
A185: 1911 | B185: CE20U02G004 | C185: LA MINA | D185: LA MINA 2 | E185: COLBUN | F185: COLBUN | G185: SIC | H185: 19.86 | I185: Pasada | J185: 2018-02-21 | K185: =MATCH(A185,Cálculo!D:D,0) -> 395
A186: 741 | B186: CE09U03G010 | C186: LAGUNA VERDE | D186: LAGUNA VERDE TG | E186: AES GENER | F186: AES GENER | G186: SIC | H186: 18.75 | I186: Turbina Gas | J186: 2004-03-03 | K186: =MATCH(A186,Cálculo!D:D,0) -> 153
A187: 327 | B187: CE03U01G010 | C187: LAGUNA VERDE | D187: LAGUNA VERDE TV1 | E187: AES GENER | F187: AES GENER | G187: SIC | H187: 15.773 | I187: Vapor | J187: 1939-01-01 | K187: =MATCH(A187,Cálculo!D:D,0) -> 154
A188: 328 | B188: CE03U02G010 | C188: LAGUNA VERDE | D188: LAGUNA VERDE TV2 | E188: AES GENER | F188: AES GENER | G188: SIC | H188: 24.577 | I188: Vapor | J188: 1949-01-01 | K188: =MATCH(A188,Cálculo!D:D,0) -> 155
A189: 325 | B189: CE07U01G010 | C189: LAJA | D189: LAJA 1 | E189: AES GENER | F189: AES GENER | G189: SIC | H189: 8.7 | I189: Vapor | J189: 1995-01-01 | K189: =MATCH(A189,Cálculo!D:D,0) -> 156
A190: 1758 | B190: CE02U01G050 | C190: LAJA 1 | D190: LAJA 1 1 | E190: EMR | F190: EOLICA MONTE REDONDO S.A. | G190: SIC | H190: 17.2 | I190: Pasada | J190: 2015-05-28 | K190: =MATCH(A190,Cálculo!D:D,0) -> 348
A191: 1759 | B191: CE02U02G050 | C191: LAJA 1 | D191: LAJA 1 2 | E191: EMR | F191: EOLICA MONTE REDONDO S.A. | G191: SIC | H191: 17.2 | I191: Pasada | J191: 2015-05-28 | K191: =MATCH(A191,Cálculo!D:D,0) -> 349
A192: 326 | B192: CE07U02G010 | C192: LAJA | D192: LAJA 2 | E192: AES GENER | F192: AES GENER | G192: SIC | H192: 3.9 | I192: Vapor | J192: 2007-01-01 | K192: =MATCH(A192,Cálculo!D:D,0) -> 157
A193: 1710 | B193: CE03U01G006 | C193: LALACKAMA | D193: LALACKAMA | E193: ELECTRICA PANGUIPULLI | F193: E.E. PANGUIPULLI | G193: SIC | H193: 55 | I193: Parques Eólicos y Fotovoltaicos | J193: 2015-06-02 | K193: =MATCH(A193,Cálculo!D:D,0) -> 350
A194: 1762 | B194: CE06U01G006 | C194: LALACKAMA 2 | D194: LALACKAMA 2 | E194: ELECTRICA PANGUIPULLI | F194: E.E. PANGUIPULLI | G194: SIC | H194: 16.5 | I194: Parques Eólicos y Fotovoltaicos | J194: 2015-10-16 | K194: =MATCH(A194,Cálculo!D:D,0) -> 361
A195: 574 | B195: CE02U01G031 | C195: LAS VEGAS | D195: LAS VEGAS 1 | E195: TECNORED | F195: TECNORED | G195: SIC | H195: 1.05 | I195: Motores Diésel | J195: 2007-04-20 | K195: =MATCH(A195,Cálculo!D:D,0) -> 158
A196: 575 | B196: CE02U02G031 | C196: LAS VEGAS | D196: LAS VEGAS 2 | E196: TECNORED | F196: TECNORED | G196: SIC | H196: 1.05 | I196: Motores Diésel | J196: 2007-04-20 | K196: =MATCH(A196,Cálculo!D:D,0) -> 159
A197: 704 | B197: CE01U01G067 | C197: LAUTARO | D197: LAUTARO I | E197: COMASA | F197: COMASA | G197: SIC | H197: 26 | I197: Vapor | J197: 2011-08-30 | K197: =MATCH(A197,Cálculo!D:D,0) -> 304
A198: 1757 | B198: CE01U02G067 | C198: LAUTARO | D198: LAUTARO II | E198: COMASA | F198: COMASA | G198: SIC | H198: 22 | I198: Vapor | J198: 2014-04-14 | K198: =MATCH(A198,Cálculo!D:D,0) -> 305
A199: 1480 | B199: CE19U01G018 | C199: LEBU | D199: LEBU 1 | E199: SAGESA | F199: SAGESA | G199: SIC | H199: 0.6 | I199: Motores Diésel | J199: 2007-05-29 | K199: =MATCH(A199,Cálculo!D:D,0) -> 401
A200: 1481 | B200: CE19U02G018 | C200: LEBU | D200: LEBU 2 | E200: SAGESA | F200: SAGESA | G200: SIC | H200: 0.6 | I200: Motores Diésel | J200: 2007-05-29 | K200: =MATCH(A200,Cálculo!D:D,0) -> 402
... 357 more rows

Sheet DatosGx Estados Operativos
C2: Fecha Inicio | D2: Fecha Fin
B3: Periodo Indisponibilidad | C3: 2017-08-01 | D3: 2020-12-01
AB4: Indices de Indisponibilidad
B5: ID | C5: CENTRAL | D5: UNIDAD | E5: Tipo | F5: N | G5: LP | H5: LF | I5: RO | J5: LCI | K5: LC | L5: PO | M5: PDO | N5: CSE | O5: DF | P5: DP | Q5: MM | R5: PMM | S5: DLC | T5: DLCI | U5: DLF | V5: DLP | W5: DRO | X5: DN | Y5: FE | Z5: P | AB5: Hprog | AC5: Hforg | AD5: Ffor | AE5: Fpro
B6: 33 | C6: ABANICO | D6: ABANICO 1 | E6: Pasada | F6: 0 | G6: 7.133088235 | H6: 24.22719562 | I6: 0 | J6: 0 | K6: 0 | L6: 1.083333333 | M6: 2.016666667 | N6: 0 | O6: 83.65 | P6: 0 | Q6: 44.8 | R6: 65.55 | S6: 0 | T6: 0 | U6: 5.259068627 | V6: 0 | W6: 0.1985294118 | X6: 0 | Y6: 12.88333333 | Z6: 0 | AB6: 117.4830882 | AC6: 114.418127 | AD6: 11 | AE6: 8
B7: 35 | C7: ABANICO | D7: ABANICO 3 | E7: Pasada | F7: 0 | G7: 7.133088235 | H7: 24.22719562 | I7: 0 | J7: 0 | K7: 0 | L7: 0 | M7: 0 | N7: 0 | O7: 11.56666667 | P7: 0 | Q7: 495.45 | R7: 0 | S7: 0 | T7: 0 | U7: 5.259068627 | V7: 0 | W7: 0.1985294118 | X7: 0 | Y7: 8.566666667 | Z7: 0 | AB7: 502.5830882 | AC7: 41.25146033 | AD7: 1 | AE7: 3
B8: 37 | C8: ABANICO | D8: ABANICO 5 | E8: Pasada | F8: 0 | G8: 7.133088235 | H8: 31.26169216 | I8: 0.2625294118 | J8: 0 | K8: 0 | L8: 0.65 | M8: 0 | N8: 0 | O8: 27.05 | P8: 0 | Q8: 173.8333333 | R8: 41.8 | S8: 0 | T8: 0 | U8: 0 | V8: 0 | W8: 0 | X8: 0 | Y8: 11.03333333 | Z8: 0 | AB8: 222.7664216 | AC8: 59.22422157 | AD8: 3 | AE8: 9
B9: 38 | C9: ABANICO | D9: ABANICO 6 | E9: Pasada | F9: 0 | G9: 7.133088235 | H9: 9.774358824 | I9: 0.2625294118 | J9: 0 | K9: 0 | L9: 0 | M9: 2.766666667 | N9: 0 | O9: 77.11666667 | P9: 1.616666667 | Q9: 267.4 | R9: 113.7833333 | S9: 0 | T9: 0 | U9: 0 | V9: 0 | W9: 2.166666667 | X9: 0 | Y9: 10.03333333 | Z9: 0 | AB9: 389.9330882 | AC9: 89.32022157 | AD9: 20 | AE9: 17
B10: 260 | C10: BLANCO | D10: ACONCAGUA (BLANCO) | E10: Pasada | F10: 0 | G10: 49.92172956 | H10: 519.7157233 | I10: 165.7946541 | J10: 0 | K10: 0 | L10: 0 | M10: 4.016666667 | N10: 0 | O10: 64.23333333 | P10: 0 | Q10: 2443.15 | R10: 49.05 | S10: 0 | T10: 0 | U10: 0 | V10: 0 | W10: 0 | X10: 0 | Y10: 4.85 | Z10: 0 | AB10: 2542.12173 | AC10: 749.7437107 | AD10: 9 | AE10: 45
B11: 784 | C11: JUNCAL | D11: ACONCAGUA (JUNCAL) | E11: Pasada | F11: 0 | G11: 24.51929224 | H11: 72.50639269 | I11: 25.22146119 | J11: 0 | K11: 0 | L11: 0.3657534247 | M11: 3.416666667 | N11: 0 | O11: 21.23333333 | P11: 0 | Q11: 2822.016667 | R11: 56.48333333 | S11: 0 | T11: 0 | U11: 0 | V11: 0 | W11: 0 | X11: 0 | Y11: 8.933333333 | Z11: 0 | AB11: 2903.019292 | AC11: 119.3269406 | AD11: 12 | AE11: 27
B12: 2019 | C12: DIESEL AGUAS BLANCAS | D12: AGB1 | E12: Motores Diésel | F12: 0 | G12: 0 | H12: 0 | I12: 0 | J12: 0 | K12: 0 | L12: 0 | M12: 0 | N12: 0 | O12: 6.716666666 | P12: 27.18333333 | Q12: 74.16666667 | R12: 0 | S12: 0 | T12: 0 | U12: 0 | V12: 0 | W12: 0 | X12: 0 | Y12: 7.033333333 | Z12: 0 | AB12: 101.35 | AC12: 6.716666666 | AD12: 14 | AE12: 14
B13: 2171 | C13: DIESEL AGUAS BLANCAS | D13: AGB2 | E13: Motores Diésel | F13: 0 | G13: 0 | H13: 0 | I13: 0 | J13: 0 | K13: 0 | L13: 0 | M13: 0 | N13: 0 | O13: 2.6 | P13: 24.85 | Q13: 56.28333333 | R13: 0 | S13: 0 | T13: 0 | U13: 0 | V13: 0 | W13: 0 | X13: 0 | Y13: 7.033333333 | Z13: 0 | AB13: 81.13333333 | AC13: 2.6 | AD13: 13 | AE13: 11
B14: 246 | C14: ALFALFAL | D14: ALFALFAL 1 | E14: Pasada | F14: 0 | G14: 0 | H14: 0 | I14: 0 | J14: 0 | K14: 0 | L14: 4.713108614 | M14: 1 | N14: 0 | O14: 29.03333333 | P14: 0 | Q14: 1461.283333 | R14: 390.2666667 | S14: 0 | T14: 0 | U14: 0 | V14: 0 | W14: 0 | X14: 0 | Y14: 10.85 | Z14: 0 | AB14: 1851.55 | AC14: 33.74644195 | AD14: 9 | AE14: 34
B15: 247 | C15: ALFALFAL | D15: ALFALFAL 2 | E15: Pasada | F15: 0 | G15: 0 | H15: 0 | I15: 0 | J15: 0 | K15: 0 | L15: 12.41142322 | M15: 64.76666667 | N15: 0 | O15: 127.7 | P15: 9.183333333 | Q15: 1278.466667 | R15: 329.7166667 | S15: 0 | T15: 0 | U15: 0 | V15: 0 | W15: 0 | X15: 0 | Y15: 17.83333333 | Z15: 0 | AB15: 1617.366667 | AC15: 140.1114232 | AD15: 11 | AE15: 29
B16: 1820 | C16: ANDES GENERACION | D16: ANDES GENERACION 1 | E16: Motores Diésel | F16: 0 | G16: 0 | H16: 0 | I16: 0 | J16: 0 | K16: 0 | L16: 9.010269231 | M16: 0.9 | N16: 0 | O16: 207.3833333 | P16: 0 | Q16: 84.61666667 | R16: 19.56666667 | S16: 0 | T16: 0 | U16: 0 | V16: 0 | W16: 2.433333333 | X16: 0 | Y16: 1.033333333 | Z16: 0 | AB16: 104.1833333 | AC16: 218.8269359 | AD16: 5 | AE16: 20
B17: 1825 | C17: ANDES GENERACION | D17: ANDES GENERACION 2 | E17: Motores Diésel | F17: 0 | G17: 0 | H17: 0 | I17: 0 | J17: 0 | K17: 0 | L17: 1.516666667 | M17: 0.2499999999 | N17: 0 | O17: 6.133333333 | P17: 0 | Q17: 61.25 | R17: 0.95 | S17: 0 | T17: 0 | U17: 0 | V17: 0 | W17: 2.433333333 | X17: 0 | Y17: 1.033333333 | Z17: 0 | AB17: 62.2 | AC17: 10.08333333 | AD17: 3 | AE17: 10
B18: 1826 | C18: ANDES GENERACION | D18: ANDES GENERACION 3 | E18: Motores Diésel | F18: 0 | G18: 0 | H18: 0 | I18: 0 | J18: 0 | K18: 0 | L18: 0 | M18: 0.09999999998 | N18: 0 | O18: 39.26666667 | P18: 0 | Q18: 30.36666667 | R18: 3.716666667 | S18: 0 | T18: 0 | U18: 0 | V18: 0 | W18: 2.433333333 | X18: 0 | Y18: 1.033333333 | Z18: 0 | AB18: 34.08333333 | AC18: 41.7 | AD18: 8 | AE18: 10
B19: 1827 | C19: ANDES GENERACION | D19: ANDES GENERACION 4 | E19: Motores Diésel | F19: 0 | G19: 0 | H19: 0 | I19: 0 | J19: 0 | K19: 0 | L19: 0 | M19: 0.15 | N19: 0 | O19: 5.2 | P19: 0 | Q19: 29.75 | R19: 8.433333333 | S19: 0 | T19: 0 | U19: 0 | V19: 0 | W19: 2.433333333 | X19: 0 | Y19: 1.033333333 | Z19: 0 | AB19: 38.18333333 | AC19: 7.633333334 | AD19: 3 | AE19: 12
B20: 1961 | C20: ANDES SOLAR | D20: ANDES SOLAR | E20: Parques Eólicos y Fotovoltaicos | F20: 0 | G20: 0 | H20: 98.11714384 | I20: 0.333149805 | J20: 0 | K20: 0 | L20: 0.6025885142 | M20: 0 | N20: 0 | O20: 96.71666667 | P20: 0 | Q20: 0 | R20: 0 | S20: 0 | T20: 0 | U20: 64.81292728 | V20: 0 | W20: 0 | X20: 0 | Y20: 0 | Z20: 0 | AB20: 0 | AC20: 260.5824761 | AD20: 2 | AE20: 0
B21: 1965 | C21: TERMOELÉCTRICA ANGAMOS | D21: ANG1 | E21: Vapor | F21: 0 | G21: 54.54639461 | H21: 285.8165944 | I21: 48.38324907 | J21: 0 | K21: 0 | L21: 83.92329361 | M21: 54.41666667 | N21: 0 | O21: 1103.783333 | P21: 0 | Q21: 849.2666667 | R21: 13.65 | S21: 0 | T21: 0 | U21: 0.6168833514 | V21: 0 | W21: 0 | X21: 0 | Y21: 0 | Z21: 0 | AB21: 917.4630613 | AC21: 1522.523354 | AD21: 25 | AE21: 4
B22: 1966 | C22: TERMOELÉCTRICA ANGAMOS | D22: ANG2 | E22: Vapor | F22: 0 | G22: 75.45003555 | H22: 663.4626022 | I22: 9.874985188 | J22: 0 | K22: 0 | L22: 72.43579216 | M22: 67.76666667 | N22: 0 | O22: 795.8833333 | P22: 47.96666667 | Q22: 713.65 | R22: 36.43333333 | S22: 0 | T22: 0 | U22: 22.24123711 | V22: 0 | W22: 0 | X22: 0 | Y22: 0 | Z22: 0 | AB22: 873.5000355 | AC22: 1563.89795 | AD22: 25 | AE22: 10
B23: 1505 | C23: ANGOSTURA | D23: ANGOSTURA U1 | E23: Pasada | F23: 0 | G23: 0 | H23: 0 | I23: 5.841802569 | J23: 0 | K23: 0 | L23: 0 | M23: 1.433333333 | N23: 0 | O23: 25.05 | P23: 0 | Q23: 771.4333333 | R23: 400.1666667 | S23: 0 | T23: 0 | U23: 0 | V23: 0 | W23: 30.41666667 | X23: 0 | Y23: 1.266666667 | Z23: 0 | AB23: 1171.6 | AC23: 61.30846924 | AD23: 13 | AE23: 11
B24: 1506 | C24: ANGOSTURA | D24: ANGOSTURA U2 | E24: Pasada | F24: 0 | G24: 0 | H24: 2.547534517 | I24: 0 | J24: 0 | K24: 0 | L24: 8.384699572 | M24: 1.65 | N24: 0 | O24: 144.3666667 | P24: 0 | Q24: 854.65 | R24: 353.7166667 | S24: 0 | T24: 0 | U24: 0 | V24: 0 | W24: 0 | X24: 0 | Y24: 0 | Z24: 0 | AB24: 1208.366667 | AC24: 155.2989008 | AD24: 9 | AE24: 9
B25: 1507 | C25: ANGOSTURA | D25: ANGOSTURA U3 | E25: Pasada | F25: 0 | G25: 0 | H25: 13.78777396 | I25: 149.5017333 | J25: 0 | K25: 0 | L25: 0 | M25: 3.366666667 | N25: 0 | O25: 22.66666667 | P25: 0 | Q25: 750.5833333 | R25: 351.4666667 | S25: 0 | T25: 0 | U25: 0 | V25: 0 | W25: 57.50963329 | X25: 0 | Y25: 0.3666666666 | Z25: 0 | AB25: 1102.05 | AC25: 243.4658072 | AD25: 8 | AE25: 8
B26: 98 | C26: ANTILHUE TG | D26: ANTILHUE 1 | E26: Turbina Gas | F26: 0 | G26: 0.7700392927 | H26: 153.3824165 | I26: 0 | J26: 0 | K26: 0 | L26: 3.780713818 | M26: 52.41666667 | N26: 0 | O26: 848.4666667 | P26: 0 | Q26: 368.25 | R26: 0.3166666667 | S26: 0 | T26: 0 | U26: 739.2979371 | V26: 0 | W26: 0 | X26: 0 | Y26: 4.633333333 | Z26: 0 | AB26: 369.336706 | AC26: 1744.927734 | AD26: 14 | AE26: 8
B27: 99 | C27: ANTILHUE TG | D27: ANTILHUE 2 | E27: Turbina Gas | F27: 0 | G27: 0 | H27: 150.8530362 | I27: 0 | J27: 0 | K27: 0 | L27: 1.014728682 | M27: 3.866666667 | N27: 0 | O27: 28.31666667 | P27: 0 | Q27: 378.3 | R27: 12.5 | S27: 0 | T27: 0 | U27: 1025.237661 | V27: 0 | W27: 0 | X27: 0 | Y27: 15.63333333 | Z27: 0 | AB27: 390.8 | AC27: 1205.422093 | AD27: 7 | AE27: 6
B28: 39 | C28: ANTUCO | D28: ANTUCO 1 | E28: Embalse | F28: 0 | G28: 0 | H28: 1.454166667 | I28: 0 | J28: 0 | K28: 0 | L28: 0 | M28: 71.83333333 | N28: 0 | O28: 135.65 | P28: 73.5 | Q28: 4518.433333 | R28: 766.2166667 | S28: 0 | T28: 0 | U28: 0 | V28: 0 | W28: 0 | X28: 0 | Y28: 0 | Z28: 0 | AB28: 5358.15 | AC28: 137.1041667 | AD28: 11 | AE28: 70
B29: 40 | C29: ANTUCO | D29: ANTUCO 2 | E29: Embalse | F29: 0 | G29: 0 | H29: 0.3416666666 | I29: 0 | J29: 0 | K29: 0 | L29: 0 | M29: 1.8 | N29: 0 | O29: 35.58333333 | P29: 0 | Q29: 442.8 | R29: 416.8166667 | S29: 0 | T29: 0 | U29: 0 | V29: 0 | W29: 7.45 | X29: 0 | Y29: 10.18333333 | Z29: 0 | AB29: 859.6166667 | AC29: 43.375 | AD29: 14 | AE29: 25
B30: 330 | C30: ARAUCO | D30: ARAUCO TG4/5 | E30: Vapor | F30: 0 | G30: 0 | H30: 3687.85584 | I30: 0.2333333332 | J30: 0 | K30: 0 | L30: 0 | M30: 94.95 | N30: 0 | O30: 453.3833333 | P30: 0 | Q30: 2079.966667 | R30: 60.95 | S30: 0 | T30: 0 | U30: 2029.01251 | V30: 0 | W30: 5.63587963 | X30: 0 | Y30: 48.45 | Z30: 0 | AB30: 2140.916667 | AC30: 6176.120896 | AD30: 57 | AE30: 47
B31: 1502 | C31: ARAUCO | D31: ARAUCO TG6 | E31: Vapor | F31: 0 | G31: 0 | H31: 3502.224137 | I31: 8.027777778 | J31: 0 | K31: 0 | L31: 0 | M31: 100 | N31: 0 | O31: 478.5 | P31: 0 | Q31: 715.4833333 | R31: 89.95 | S31: 0 | T31: 0 | U31: 2067.941706 | V31: 0 | W31: 5.428472222 | X31: 0 | Y31: 45.95 | Z31: 0 | AB31: 805.4333333 | AC31: 6062.122093 | AD31: 56 | AE31: 57
B32: 759 | C32: BOCAMINA | D32: BOCAMINA | E32: Vapor | F32: 0 | G32: 7.468205128 | H32: 2000.745385 | I32: 76.92794872 | J32: 0 | K32: 0 | L32: 5.816410256 | M32: 118.7833333 | N32: 0 | O32: 1129.85 | P32: 0 | Q32: 777.4333333 | R32: 1.783333333 | S32: 0 | T32: 0 | U32: 33.50128205 | V32: 0 | W32: 27.70179487 | X32: 0 | Y32: 24.4 | Z32: 0 | AB32: 786.6848718 | AC32: 3274.542821 | AD32: 28 | AE32: 9
B33: 1496 | C33: BOCAMINA II | D33: BOCAMINA II | E33: Vapor | F33: 0 | G33: 12.29880952 | H33: 614.9092016 | I33: 1.678095238 | J33: 0 | K33: 0 | L33: 68.00631113 | M33: 290.35 | N33: 0 | O33: 960.8833333 | P33: 43.76666667 | Q33: 1591.316667 | R33: 115.3 | S33: 0 | T33: 0 | U33: 102.1560048 | V33: 0 | W33: 0 | X33: 0 | Y33: 252.5666667 | Z33: 0 | AB33: 1762.682143 | AC33: 1747.632946 | AD33: 40 | AE33: 16
B34: 1370 | C34: CALLAO | D34: CALLAO 1 | E34: Pasada | F34: 0 | G34: 0 | H34: 0 | I34: 0 | J34: 0 | K34: 0 | L34: 0 | M34: 0 | N34: 0 | O34: 34.35 | P34: 0 | Q34: 5.15 | R34: 0 | S34: 0 | T34: 0 | U34: 0 | V34: 0 | W34: 7.883333333 | X34: 0 | Y34: 45.26666667 | Z34: 0 | AB34: 5.15 | AC34: 42.23333333 | AD34: 18 | AE34: 2
B35: 2772 | C35: CALLAO | D35: CALLAO 2 | E35: Pasada | F35: 0 | G35: 0 | H35: 0 | I35: 0 | J35: 0 | K35: 0 | L35: 0 | M35: 0 | N35: 0 | O35: 34.2 | P35: 0 | Q35: 5.15 | R35: 0 | S35: 0 | T35: 0 | U35: 0 | V35: 0 | W35: 7.883333333 | X35: 0 | Y35: 45.26666667 | Z35: 0 | AB35: 5.15 | AC35: 42.08333333 | AD35: 17 | AE35: 2
B36: 517 | C36: CALLE CALLE | D36: CALLE CALLE 1 | E36: Motores Diésel | F36: 0 | G36: 0 | H36: 7.186111111 | I36: 0 | J36: 0 | K36: 0 | L36: 0.1893518519 | M36: 5.916666667 | N36: 0 | O36: 905.4666667 | P36: 0 | Q36: 2928 | R36: 42.13333333 | S36: 0 | T36: 0 | U36: 352.2037037 | V36: 0 | W36: 0 | X36: 0 | Y36: 0 | Z36: 0 | AB36: 2970.133333 | AC36: 1265.045833 | AD36: 5 | AE36: 35
B37: 518 | C37: CALLE CALLE | D37: CALLE CALLE 2 | E37: Motores Diésel | F37: 0 | G37: 0 | H37: 0 | I37: 0 | J37: 0 | K37: 0 | L37: 0.1893518519 | M37: 0.9999999999 | N37: 0 | O37: 26.5 | P37: 0 | Q37: 2905.633333 | R37: 39.35 | S37: 0 | T37: 0 | U37: 0 | V37: 0 | W37: 0 | X37: 0 | Y37: 0 | Z37: 0 | AB37: 2944.983333 | AC37: 26.68935185 | AD37: 3 | AE37: 34
B38: 519 | C38: CALLE CALLE | D38: CALLE CALLE 3 | E38: Motores Diésel | F38: 0 | G38: 0 | H38: 0 | I38: 0 | J38: 0 | K38: 0 | L38: 0.1893518519 | M38: 0.9999999999 | N38: 0 | O38: 20.36666667 | P38: 0 | Q38: 2877.433333 | R38: 43.06666667 | S38: 0 | T38: 0 | U38: 0 | V38: 0 | W38: 0 | X38: 0 | Y38: 0 | Z38: 0 | AB38: 2920.5 | AC38: 20.55601852 | AD38: 1 | AE38: 36
B39: 520 | C39: CALLE CALLE | D39: CALLE CALLE 4 | E39: Motores Diésel | F39: 0 | G39: 0 | H39: 0 | I39: 0 | J39: 0 | K39: 0 | L39: 0.1893518519 | M39: 0.9999999999 | N39: 0 | O39: 20.36666667 | P39: 0 | Q39: 2875.783333 | R39: 39.35 | S39: 0 | T39: 0 | U39: 346.7166667 | V39: 0 | W39: 0 | X39: 0 | Y39: 0 | Z39: 0 | AB39: 2915.133333 | AC39: 367.2726852 | AD39: 1 | AE39: 34
B40: 521 | C40: CALLE CALLE | D40: CALLE CALLE 5 | E40: Motores Diésel | F40: 0 | G40: 0 | H40: 0 | I40: 0 | J40: 0 | K40: 0 | L40: 0.1893518519 | M40: 0.9999999999 | N40: 0 | O40: 20.36666667 | P40: 0 | Q40: 2927.933333 | R40: 39.35 | S40: 0 | T40: 0 | U40: 49.43333333 | V40: 0 | W40: 0 | X40: 0 | Y40: 0 | Z40: 0 | AB40: 2967.283333 | AC40: 69.98935185 | AD40: 1 | AE40: 35
B41: 1380 | C41: CAMPICHE | D41: CAMPICHE | E41: Vapor | F41: 0 | G41: 196.0261642 | H41: 518.7485294 | I41: 2.318382353 | J41: 0 | K41: 0 | L41: 41.35863971 | M41: 137.5318627 | N41: 0 | O41: 1787.833333 | P41: 25.86666667 | Q41: 574.7166667 | R41: 57.35 | S41: 0 | T41: 0 | U41: 3.909313725 | V41: 0 | W41: 0 | X41: 0 | Y41: 0 | Z41: 0 | AB41: 853.9594975 | AC41: 2354.168199 | AD41: 28 | AE41: 14
B42: 751 | C42: CANDELARIA | D42: CANDELARIA TG1 | E42: Turbina Gas | F42: 0 | G42: 0 | H42: 0.2552274541 | I42: 151.9280261 | J42: 0 | K42: 0 | L42: 0.001516360735 | M42: 3.55 | N42: 0 | O42: 343.85 | P42: 0 | Q42: 822.9333333 | R42: 5.333333333 | S42: 0 | T42: 0 | U42: 0 | V42: 0 | W42: 851.3333333 | X42: 0 | Y42: 0 | Z42: 0 | AB42: 828.2666667 | AC42: 1347.368103 | AD42: 5 | AE42: 14
B43: 749 | C43: CANDELARIA | D43: CANDELARIA TG2 | E43: Turbina Gas | F43: 0 | G43: 0 | H43: 7.348864343 | I43: 25.48333333 | J43: 0 | K43: 0 | L43: 0.1079340386 | M43: 3.016666667 | N43: 0 | O43: 220.2333333 | P43: 0 | Q43: 686.6 | R43: 6.45 | S43: 0 | T43: 0 | U43: 5.677354283 | V43: 0 | W43: 508.5933624 | X43: 0 | Y43: 0 | Z43: 0 | AB43: 693.05 | AC43: 767.4441817 | AD43: 9 | AE43: 14
B44: 967 | C44: CANELA | D44: CANELA | E44: Parques Eólicos y Fotovoltaicos | F44: 0 | G44: 0 | H44: 0 | I44: 0 | J44: 0 | K44: 0 | L44: 40 | M44: 6.95 | N44: 0 | O44: 139.9666667 | P44: 0 | Q44: 82.55 | R44: 3.25 | S44: 0 | T44: 0 | U44: 0 | V44: 0 | W44: 3.8 | X44: 0 | Y44: 13.93333333 | Z44: 0 | AB44: 85.8 | AC44: 183.7666667 | AD44: 11 | AE44: 14
B45: 271 | C45: CANELA II | D45: CANELA II | E45: Parques Eólicos y Fotovoltaicos | F45: 0 | G45: 2.470833333 | H45: 2.498333333 | I45: 0.1604166667 | J45: 0 | K45: 0 | L45: 0 | M45: 0 | N45: 0 | O45: 10.03333333 | P45: 0 | Q45: 34.48333333 | R45: 0 | S45: 0 | T45: 0 | U45: 0 | V45: 0.1875 | W45: 9.679166667 | X45: 0 | Y45: 16.15 | Z45: 0 | AB45: 37.14166667 | AC45: 22.37125 | AD45: 3 | AE45: 4
B46: 6 | C46: CANUTILLAR | D46: CANUTILLAR 1 | E46: Embalse | F46: 0 | G46: 0 | H46: 17.26744186 | I46: 14.33604651 | J46: 0 | K46: 0 | L46: 3.404651163 | M46: 0.9666666667 | N46: 0 | O46: 14.01666667 | P46: 17.56666667 | Q46: 1251.666667 | R46: 150.7333333 | S46: 0 | T46: 0 | U46: 0.45 | V46: 0 | W46: 0 | X46: 0 | Y46: 3.95 | Z46: 0 | AB46: 1419.966667 | AC46: 49.4748062 | AD46: 3 | AE46: 35
B47: 7 | C47: CANUTILLAR | D47: CANUTILLAR 2 | E47: Embalse | F47: 0 | G47: 0 | H47: 22.67906977 | I47: 0.6220930232 | J47: 0 | K47: 0 | L47: 2.204651163 | M47: 0 | N47: 0 | O47: 20.96666667 | P47: 12.31666667 | Q47: 1002.6 | R47: 145.4166667 | S47: 0 | T47: 0 | U47: 0.45 | V47: 0 | W47: 0 | X47: 0 | Y47: 2.216666667 | Z47: 0 | AB47: 1160.333333 | AC47: 46.92248062 | AD47: 5 | AE47: 43
B48: 758 | C48: CAPULLO | D48: CAPULLO | E48: Pasada | F48: 0 | G48: 0 | H48: 0.075 | I48: 8.054166667 | J48: 0 | K48: 0 | L48: 0 | M48: 3 | N48: 0 | O48: 34.56666667 | P48: 0 | Q48: 359.1166667 | R48: 2.766666667 | S48: 0 | T48: 0 | U48: 0 | V48: 0 | W48: 0.00833333336 | X48: 0 | Y48: 26.48333333 | Z48: 0 | AB48: 361.8833333 | AC48: 42.70416667 | AD48: 13 | AE48: 8
B49: 1360 | C49: CARDONES | D49: CARDONES (EX TIERRA AMARILLA) | E49: Turbina Gas | F49: 0 | G49: 0 | H49: 0 | I49: 0 | J49: 0 | K49: 0 | L49: 0 | M49: 0 | N49: 0 | O49: 0 | P49: 0 | Q49: 567.4166667 | R49: 2.883333333 | S49: 0 | T49: 0 | U49: 0 | V49: 0 | W49: 42.71666667 | X49: 0 | Y49: 574.1666667 | Z49: 0 | AB49: 570.3 | AC49: 42.71666667 | AD49: 0 | AE49: 9
B50: 29 | C50: CARENA | D50: CARENA 1 | E50: Pasada | F50: 0 | G50: 0 | H50: 93.29233333 | I50: 0 | J50: 0 | K50: 0 | L50: 0 | M50: 17 | N50: 0 | O50: 430.6 | P50: 0 | Q50: 8869.183333 | R50: 1296.25 | S50: 0 | T50: 0 | U50: 4.8 | V50: 0 | W50: 1.266666667 | X50: 0 | Y50: 925.2833333 | Z50: 0 | AB50: 10165.43333 | AC50: 529.959 | AD50: 12 | AE50: 86
B51: 30 | C51: CARENA | D51: CARENA 2 | E51: Pasada | F51: 0 | G51: 0 | H51: 21.26633333 | I51: 0 | J51: 0 | K51: 0 | L51: 0 | M51: 0.2166666667 | N51: 0 | O51: 140.8333333 | P51: 0 | Q51: 8988.916667 | R51: 1278.016667 | S51: 0 | T51: 0 | U51: 4.8 | V51: 0 | W51: 1.266666667 | X51: 0 | Y51: 925.2833333 | Z51: 0 | AB51: 10266.93333 | AC51: 168.1663333 | AD51: 9 | AE51: 84
B52: 31 | C52: CARENA | D52: CARENA 3 | E52: Pasada | F52: 0 | G52: 0 | H52: 743.1503333 | I52: 0 | J52: 0 | K52: 0 | L52: 0 | M52: 22.16666667 | N52: 0 | O52: 333.9333333 | P52: 0 | Q52: 2808.816667 | R52: 151.5833333 | S52: 0 | T52: 0 | U52: 17.01266667 | V52: 0 | W52: 1.266666667 | X52: 0 | Y52: 6085.766667 | Z52: 0 | AB52: 2960.4 | AC52: 1095.363 | AD52: 25 | AE52: 46
B53: 32 | C53: CARENA | D53: CARENA 4 | E53: Pasada | F53: 0 | G53: 0 | H53: 26.98833333 | I53: 0.1366666667 | J53: 0 | K53: 0 | L53: 0 | M53: 96.85 | N53: 0 | O53: 198.8333333 | P53: 61.93333333 | Q53: 3455.316667 | R53: 151.5833333 | S53: 0 | T53: 0 | U53: 4.8 | V53: 0 | W53: 1.266666667 | X53: 0 | Y53: 5367.5 | Z53: 0 | AB53: 3668.833333 | AC53: 232.025 | AD53: 16 | AE53: 39
B54: 1801 | C54: CARILAFQUEN | D54: CARILAFQUEN 1 | E54: Pasada | F54: 0 | G54: 0 | H54: 0 | I54: 3.566666667 | J54: 0 | K54: 0 | L54: 0 | M54: 193.9166667 | N54: 0 | O54: 10600.21667 | P54: 0 | Q54: 9848.433333 | R54: 245.35 | S54: 0 | T54: 0 | U54: 8.183333333 | V54: 0 | W54: 31.58333333 | X54: 0 | Y54: 128.5333333 | Z54: 0 | AB54: 10093.78333 | AC54: 10643.55 | AD54: 25 | AE54: 20
B55: 1802 | C55: CARILAFQUEN | D55: CARILAFQUEN 2 | E55: Pasada | F55: 0 | G55: 0 | H55: 0 | I55: 3.566666667 | J55: 0 | K55: 0 | L55: 0.8143970468 | M55: 21.53333333 | N55: 0 | O55: 10451.83333 | P55: 0 | Q55: 9810.533333 | R55: 124.35 | S55: 0 | T55: 0 | U55: 24.4 | V55: 0 | W55: 39.05 | X55: 0 | Y55: 189.7666667 | Z55: 0 | AB55: 9934.883333 | AC55: 10519.6644 | AD55: 19 | AE55: 20
B56: 826 | C56: CBB-CENTRO | D56: CEMENTOS BIOBIO CENTRO 1 | E56: Motores Diésel | F56: 0 | G56: 0 | H56: 107.8588235 | I56: 9.689705882 | J56: 0 | K56: 0 | L56: 15.38235294 | M56: 0 | N56: 0 | O56: 1080.433333 | P56: 0 | Q56: 36.36666667 | R56: 0 | S56: 0 | T56: 0 | U56: 2713.536078 | V56: 0 | W56: 966.2210784 | X56: 0 | Y56: 13.98333333 | Z56: 0 | AB56: 36.36666667 | AC56: 4893.121373 | AD56: 3 | AE56: 5
B57: 827 | C57: CBB-CENTRO | D57: CEMENTOS BIOBIO CENTRO 2 | E57: Motores Diésel | F57: 0 | G57: 0 | H57: 107.4627451 | I57: 9.689705882 | J57: 0 | K57: 0 | L57: 15.38235294 | M57: 0 | N57: 0 | O57: 1080.433333 | P57: 0 | Q57: 36.36666667 | R57: 0 | S57: 0 | T57: 0 | U57: 2713.932157 | V57: 0 | W57: 966.2210784 | X57: 0 | Y57: 13.98333333 | Z57: 0 | AB57: 36.36666667 | AC57: 4893.121373 | AD57: 3 | AE57: 5
B58: 828 | C58: CBB-CENTRO | D58: CEMENTOS BIOBIO CENTRO 3 | E58: Motores Diésel | F58: 0 | G58: 0 | H58: 107.5843137 | I58: 11.15392157 | J58: 0 | K58: 0 | L58: 15.38235294 | M58: 0 | N58: 0 | O58: 1080.433333 | P58: 0 | Q58: 25.58333333 | R58: 0 | S58: 0 | T58: 0 | U58: 2713.810588 | V58: 0 | W58: 969.3556373 | X58: 0 | Y58: 13.98333333 | Z58: 0 | AB58: 25.58333333 | AC58: 4897.720147 | AD58: 3 | AE58: 4
B59: 829 | C59: CBB-CENTRO | D59: CEMENTOS BIOBIO CENTRO 4 | E59: Motores Diésel | F59: 0 | G59: 0 | H59: 108.0431373 | I59: 11.15392157 | J59: 0 | K59: 0 | L59: 15.38235294 | M59: 2.05 | N59: 0 | O59: 1268.583333 | P59: 0 | Q59: 33.9 | R59: 0 | S59: 0 | T59: 0 | U59: 2675.311765 | V59: 0 | W59: 965.8088235 | X59: 0 | Y59: 13.98333333 | Z59: 0 | AB59: 33.9 | AC59: 5044.283333 | AD59: 4 | AE59: 5
B60: 830 | C60: CBB-CENTRO | D60: CEMENTOS BIOBIO CENTRO 5 | E60: Motores Diésel | F60: 0 | G60: 0 | H60: 134.45 | I60: 11.15392157 | J60: 0 | K60: 0 | L60: 10.5627451 | M60: 0 | N60: 0 | O60: 2.066666667 | P60: 0 | Q60: 32.48333333 | R60: 0 | S60: 0 | T60: 0 | U60: 3001.672843 | V60: 0 | W60: 965.8088235 | X60: 0 | Y60: 13.98333333 | Z60: 0 | AB60: 32.48333333 | AC60: 4125.715 | AD60: 1 | AE60: 5
B61: 831 | C61: CBB-CENTRO | D61: CEMENTOS BIOBIO CENTRO 6 | E61: Motores Diésel | F61: 0 | G61: 0 | H61: 139.2794118 | I61: 17.04313725 | J61: 0 | K61: 0 | L61: 10.5627451 | M61: 0 | N61: 0 | O61: 2.066666667 | P61: 0 | Q61: 24.16666667 | R61: 0 | S61: 0 | T61: 0 | U61: 2995.91598 | V61: 0 | W61: 964.3938725 | X61: 0 | Y61: 13.98333333 | Z61: 0 | AB61: 24.16666667 | AC61: 4129.261814 | AD61: 1 | AE61: 4
B62: 832 | C62: CBB-CENTRO | D62: CEMENTOS BIOBIO CENTRO 7 | E62: Motores Diésel | F62: 0 | G62: 0 | H62: 134.9088235 | I62: 11.15392157 | J62: 0 | K62: 0 | L62: 10.5627451 | M62: 0 | N62: 0 | O62: 2.066666667 | P62: 0 | Q62: 24.16666667 | R62: 0 | S62: 0 | T62: 0 | U62: 3001.21402 | V62: 0 | W62: 969.3556373 | X62: 0 | Y62: 13.98333333 | Z62: 0 | AB62: 24.16666667 | AC62: 4129.261814 | AD62: 1 | AE62: 4
B63: 833 | C63: CBB-CENTRO | D63: CEMENTOS BIOBIO CENTRO 8 | E63: Motores Diésel | F63: 0 | G63: 0 | H63: 134.45 | I63: 11.15392157 | J63: 0 | K63: 0 | L63: 6.754901961 | M63: 0 | N63: 0 | O63: 2.066666667 | P63: 0 | Q63: 24.16666667 | R63: 0 | S63: 0 | T63: 0 | U63: 3005.480686 | V63: 0 | W63: 969.3556373 | X63: 0 | Y63: 13.98333333 | Z63: 0 | AB63: 24.16666667 | AC63: 4129.261814 | AD63: 1 | AE63: 4
B64: 2011 | C64: ATACAMA | D64: CC1 | E64: CC | F64: 0 | G64: 105.432177 | H64: 173.5398467 | I64: 42.89661542 | J64: 0 | K64: 0 | L64: 120.5844198 | M64: 11.05311518 | N64: 0 | O64: 34.2 | P64: 48.86666667 | Q64: 0 | R64: 0 | S64: 0 | T64: 0 | U64: 335.1209455 | V64: 157.6269041 | W64: 84.13567395 | X64: 0 | Y64: 16.7 | Z64: 0 | AB64: 311.9257479 | AC64: 790.4775014 | AD64: 8 | AE64: 1
B65: 2013 | C65: ATACAMA | D65: CC2 | E65: CC | F65: 0 | G65: 352.2269066 | H65: 81.86357803 | I65: 39.70356735 | J65: 0 | K65: 0 | L65: 93.6499767 | M65: 23.38298241 | N65: 0 | O65: 35.23333333 | P65: 0 | Q65: 316.2333333 | R65: 19.63333333 | S65: 0 | T65: 0 | U65: 447.0694366 | V65: 26.61438924 | W65: 433.4267358 | X65: 0 | Y65: 0 | Z65: 0 | AB65: 714.7079625 | AC65: 1130.946628 | AD65: 7 | AE65: 6
B66: 1967 | C66: COCHRANE | D66: CCR1 | E66: Vapor | F66: 0 | G66: 63.16873298 | H66: 280.6888018 | I66: 21.57927297 | J66: 0 | K66: 0 | L66: 39.58644299 | M66: 40.88333333 | N66: 0 | O66: 346.1833333 | P66: 0 | Q66: 979.9166667 | R66: 138.7166667 | S66: 0 | T66: 0 | U66: 12.43203234 | V66: 0 | W66: 0 | X66: 0 | Y66: 17.86666667 | Z66: 0 | AB66: 1181.802066 | AC66: 700.4698834 | AD66: 20 | AE66: 10
B67: 1968 | C67: COCHRANE | D67: CCR2 | E67: Vapor | F67: 0 | G67: 17.54919499 | H67: 208.5213049 | I67: 6.813032279 | J67: 0 | K67: 0 | L67: 30.419477 | M67: 84.27161255 | N67: 0 | O67: 274.8333333 | P67: 25.41666667 | Q67: 844.4833333 | R67: 46.93333333 | S67: 0 | T67: 0 | U67: 0 | V67: 0 | W67: 0 | X67: 0 | Y67: 21.43333333 | Z67: 0 | AB67: 934.3825283 | AC67: 520.5871475 | AD67: 21 | AE67: 8
B68: 707 | C68: CELCO | D68: CELCO TG2 | E68: Vapor | F68: 0 | G68: 0 | H68: 112.2870398 | I68: 0 | J68: 0 | K68: 0 | L68: 0 | M68: 19.33333333 | N68: 0 | O68: 227 | P68: 0 | Q68: 863.2 | R68: 1084.366667 | S68: 0 | T68: 0 | U68: 35.46657333 | V68: 0 | W68: 8.55 | X68: 0 | Y68: 101.75 | Z68: 0 | AB68: 1947.566667 | AC68: 383.3036131 | AD68: 27 | AE68: 89
B69: 1534 | C69: CMPC SANTA FE | D69: CELULOSA SANTA FE 1 | E69: Turbina Gas | F69: 0 | G69: 0 | H69: 1.45 | I69: 0 | J69: 0 | K69: 0 | L69: 0 | M69: 235 | N69: 0 | O69: 1691.966667 | P69: 0 | Q69: 824.4666667 | R69: 228 | S69: 0 | T69: 0 | U69: 2.666356589 | V69: 0 | W69: 0 | X69: 0 | Y69: 13.26666667 | Z69: 0 | AB69: 1052.466667 | AC69: 1696.083023 | AD69: 18 | AE69: 31
B70: 1535 | C70: CMPC SANTA FE | D70: CELULOSA SANTA FE 2 | E70: Turbina Gas | F70: 0 | G70: 0 | H70: 6.783333333 | I70: 0 | J70: 0 | K70: 0 | L70: 0 | M70: 0 | N70: 0 | O70: 4.516666667 | P70: 0 | Q70: 1159.133333 | R70: 232.5 | S70: 0 | T70: 0 | U70: 2.666537842 | V70: 0 | W70: 0 | X70: 0 | Y70: 11.31666667 | Z70: 0 | AB70: 1391.633333 | AC70: 13.96653784 | AD70: 2 | AE70: 33
B71: 1536 | C71: CMPC SANTA FE | D71: CELULOSA SANTA FE 3 | E71: Turbina Gas | F71: 0 | G71: 0 | H71: 1.45 | I71: 0 | J71: 0 | K71: 0 | L71: 0 | M71: 0 | N71: 0 | O71: 606.4833333 | P71: 0 | Q71: 824.4666667 | R71: 228 | S71: 0 | T71: 0 | U71: 2.666537842 | V71: 0 | W71: 0 | X71: 0 | Y71: 11.31666667 | Z71: 0 | AB71: 1052.466667 | AC71: 610.5998712 | AD71: 3 | AE71: 31
B72: 723 | C72: CENIZAS | D72: CENIZAS 1 | E72: Motores Diésel | F72: 0 | G72: 0 | H72: 0 | I72: 0 | J72: 0 | K72: 0 | L72: 0 | M72: 24.01666667 | N72: 0 | O72: 29207.98333 | P72: 0 | Q72: 0 | R72: 0 | S72: 0 | T72: 0 | U72: 0 | V72: 0 | W72: 0 | X72: 0 | Y72: 0 | Z72: 0 | AB72: 0 | AC72: 29207.98333 | AD72: 5 | AE72: 0
B73: 724 | C73: CENIZAS | D73: CENIZAS 2 | E73: Motores Diésel | F73: 0 | G73: 0 | H73: 0 | I73: 0 | J73: 0 | K73: 0 | L73: 2.614996849 | M73: 0 | N73: 0 | O73: 1.6 | P73: 0 | Q73: 0 | R73: 0 | S73: 0 | T73: 0 | U73: 0 | V73: 0 | W73: 0 | X73: 0 | Y73: 0 | Z73: 0 | AB73: 0 | AC73: 4.214996849 | AD73: 2 | AE73: 0
B74: 725 | C74: CENIZAS | D74: CENIZAS 3 | E74: Motores Diésel | F74: 0 | G74: 0 | H74: 0 | I74: 0 | J74: 0 | K74: 0 | L74: 0 | M74: 24.01666667 | N74: 0 | O74: 29207.98333 | P74: 0 | Q74: 0 | R74: 0 | S74: 0 | T74: 0 | U74: 0 | V74: 0 | W74: 0 | X74: 0 | Y74: 0 | Z74: 0 | AB74: 0 | AC74: 29207.98333 | AD74: 5 | AE74: 0
B75: 1838 | C75: CENTRAL LA SILLA | D75: CENTRAL LA SILLA | E75: Parques Eólicos y Fotovoltaicos | F75: 0 | G75: 0 | H75: 0 | I75: 0 | J75: 0 | K75: 0 | L75: 0 | M75: 0 | N75: 0 | O75: 76.08333333 | P75: 0 | Q75: 6.266666667 | R75: 0 | S75: 0 | T75: 0 | U75: 0 | V75: 0 | W75: 2.083333333 | X75: 0 | Y75: 210 | Z75: 0 | AB75: 6.266666667 | AC75: 78.16666667 | AD75: 6 | AE75: 1
B76: 64 | C76: CHACABUQUITO | D76: CHACABUQUITO 1 | E76: Pasada | F76: 0 | G76: 0 | H76: 209.2274968 | I76: 0 | J76: 0 | K76: 0 | L76: 0.03566796368 | M76: 0.4666666666 | N76: 0 | O76: 26.08333333 | P76: 95.1 | Q76: 1712.4 | R76: 346.25 | S76: 0 | T76: 0 | U76: 0 | V76: 0 | W76: 7.85 | X76: 0 | Y76: 4.733333333 | Z76: 0 | AB76: 2153.75 | AC76: 243.1964981 | AD76: 5 | AE76: 37
B77: 65 | C77: CHACABUQUITO | D77: CHACABUQUITO 2 | E77: Pasada | F77: 0 | G77: 0 | H77: 209.2274968 | I77: 0 | J77: 0 | K77: 0 | L77: 0 | M77: 7.3 | N77: 0 | O77: 42.06666667 | P77: 0 | Q77: 1653.066667 | R77: 658.4666667 | S77: 0 | T77: 0 | U77: 0 | V77: 0 | W77: 5.383333333 | X77: 0 | Y77: 3.55 | Z77: 0 | AB77: 2311.533333 | AC77: 256.6774968 | AD77: 4 | AE77: 43
B78: 66 | C78: CHACABUQUITO | D78: CHACABUQUITO 3 | E78: Pasada | F78: 0 | G78: 0 | H78: 209.2274968 | I78: 9.35771725 | J78: 0 | K78: 0 | L78: 0 | M78: 0.4666666666 | N78: 0 | O78: 11.78333333 | P78: 95.1 | Q78: 1426.1 | R78: 444.5166667 | S78: 0 | T78: 0 | U78: 0 | V78: 0 | W78: 0 | X78: 0 | Y78: 3.55 | Z78: 0 | AB78: 1965.716667 | AC78: 230.3685473 | AD78: 2 | AE78: 33
B79: 67 | C79: CHACABUQUITO | D79: CHACABUQUITO 4 | E79: Pasada | F79: 0 | G79: 0 | H79: 209.2274968 | I79: 2.486057069 | J79: 0 | K79: 0 | L79: 0 | M79: 0.4666666666 | N79: 0 | O79: 4.516666667 | P79: 95.1 | Q79: 1526.866667 | R79: 472.1833333 | S79: 0 | T79: 0 | U79: 0 | V79: 0 | W79: 3.716666667 | X79: 0 | Y79: 4.733333333 | Z79: 0 | AB79: 2094.15 | AC79: 219.9468872 | AD79: 2 | AE79: 40
B80: 1655 | C80: CHACAYES | D80: CHACAYES 1 | E80: Pasada | F80: 0 | G80: 0 | H80: 0 | I80: 0 | J80: 0 | K80: 0 | L80: 5.383928571 | M80: 11.75 | N80: 0 | O80: 171.7833333 | P80: 0 | Q80: 1339.283333 | R80: 139 | S80: 0 | T80: 0 | U80: 0 | V80: 0 | W80: 0 | X80: 0 | Y80: 0 | Z80: 0 | AB80: 1478.283333 | AC80: 177.1672619 | AD80: 16 | AE80: 25
B81: 836 | C81: CHACAYES | D81: CHACAYES 2 | E81: Pasada | F81: 0 | G81: 0 | H81: 0 | I81: 0 | J81: 0 | K81: 0 | L81: 5.383928571 | M81: 30.45 | N81: 0 | O81: 210.2 | P81: 47.41666667 | Q81: 1009.416667 | R81: 190.8 | S81: 0 | T81: 0 | U81: 0 | V81: 0 | W81: 0 | X81: 0 | Y81: 1.366666667 | Z81: 0 | AB81: 1247.633333 | AC81: 215.5839286 | AD81: 17 | AE81: 31
B82: 1711 | C82: CHAÑARES | D82: CHAÑARES | E82: Parques Eólicos y Fotovoltaicos | F82: 0 | G82: 0 | H82: 0 | I82: 3.566666667 | J82: 0 | K82: 0 | L82: 0 | M82: 0 | N82: 0 | O82: 10.36666667 | P82: 0 | Q82: 65.01666667 | R82: 0 | S82: 0 | T82: 0 | U82: 0 | V82: 0 | W82: 22.18333333 | X82: 0 | Y82: 5.25 | Z82: 0 | AB82: 65.01666667 | AC82: 36.11666667 | AD82: 4 | AE82: 8
B83: 1971 | C83: CHAPIQUIÑA | D83: CHAP1 | E83: Pasada | F83: 0 | G83: 0.475968423 | H83: 0 | I83: 301.6573251 | J83: 0 | K83: 0 | L83: 0.01914815495 | M83: 0 | N83: 0 | O83: 37.41666667 | P83: 86.98333333 | Q83: 944.7666667 | R83: 314.4166667 | S83: 0 | T83: 0 | U83: 0 | V83: 1.518175142 | W83: 0.4113365155 | X83: 0 | Y83: 10.93333333 | Z83: 0 | AB83: 1348.16081 | AC83: 339.5044765 | AD83: 5 | AE83: 44
B84: 2123 | C84: CHAPIQUIÑA | D84: CHAP2 | E84: Pasada | F84: 0 | G84: 1.994143565 | H84: 0 | I84: 290.3086561 | J84: 0 | K84: 0 | L84: 0.1012116762 | M84: 0.15 | N84: 0 | O84: 27.28333333 | P84: 91 | Q84: 628.5 | R84: 280.5833333 | S84: 0 | T84: 0 | U84: 0 | V84: 0 | W84: 0 | X84: 0 | Y84: 1.883333333 | Z84: 0 | AB84: 1002.077477 | AC84: 317.6932012 | AD84: 4 | AE84: 29
B85: 8 | C85: CHIBURGO | D85: CHIBURGO 1 | E85: Pasada | F85: 0 | G85: 0 | H85: 0 | I85: 0.643814433 | J85: 0 | K85: 0 | L85: 8.566666667 | M85: 0.2333333334 | N85: 0 | O85: 28.9 | P85: 0 | Q85: 747.1833333 | R85: 38.83333333 | S85: 0 | T85: 0 | U85: 0 | V85: 0 | W85: 6.35 | X85: 0 | Y85: 6 | Z85: 0 | AB85: 786.0166667 | AC85: 44.4604811 | AD85: 3 | AE85: 23
B86: 9 | C86: CHIBURGO | D86: CHIBURGO 2 | E86: Pasada | F86: 0 | G86: 0 | H86: 0 | I86: 3.167182131 | J86: 0 | K86: 0 | L86: 0 | M86: 0 | N86: 0 | O86: 20.06666667 | P86: 0 | Q86: 772.85 | R86: 49.28333333 | S86: 0 | T86: 0 | U86: 0 | V86: 0 | W86: 7.752061856 | X86: 0 | Y86: 8.683333333 | Z86: 0 | AB86: 822.1333333 | AC86: 30.98591065 | AD86: 3 | AE86: 29
B87: 1756 | C87: ALTO RENAICO | D87: ALTO RENAICO | E87: Pasada | F87: 0 | G87: 0 | H87: 0 | I87: 0 | J87: 0 | K87: 0 | L87: 0 | M87: 2.033333333 | N87: 0 | O87: 125.3166667 | P87: 0 | Q87: 997.5333333 | R87: 2.3 | S87: 0 | T87: 0 | U87: 0 | V87: 0 | W87: 0 | X87: 0 | Y87: 961.4166667 | Z87: 432 | AB87: 999.8333333 | AC87: 125.3166667 | AD87: 8 | AE87: 4
B88: 981 | C88: CHOLGUAN | D88: CHOLGUAN TG | E88: Vapor | F88: 0 | G88: 0 | H88: 1703.398649 | I88: 0 | J88: 0 | K88: 0 | L88: 0 | M88: 17.7 | N88: 0 | O88: 3665.333333 | P88: 0 | Q88: 845 | R88: 24.35 | S88: 0 | T88: 0 | U88: 853.9858162 | V88: 0 | W88: 0 | X88: 0 | Y88: 34.73333333 | Z88: 0 | AB88: 869.35 | AC88: 6222.717798 | AD88: 17 | AE88: 14
B89: 525 | C89: CHUYACA | D89: CHUYACA 1 | E89: Motores Diésel | F89: 0 | G89: 0 | H89: 0 | I89: 0 | J89: 0 | K89: 0 | L89: 0 | M89: 7.066666667 | N89: 0 | O89: 4142.933333 | P89: 0 | Q89: 2727.4 | R89: 25.6 | S89: 0 | T89: 0 | U89: 0 | V89: 0 | W89: 0 | X89: 0 | Y89: 12.11666667 | Z89: 0 | AB89: 2753 | AC89: 4142.933333 | AD89: 5 | AE89: 19
B90: 526 | C90: CHUYACA | D90: CHUYACA 2 | E90: Motores Diésel | F90: 0 | G90: 0 | H90: 0 | I90: 0 | J90: 0 | K90: 0 | L90: 0 | M90: 0 | N90: 0 | O90: 541.8666667 | P90: 0 | Q90: 2727.4 | R90: 25.6 | S90: 0 | T90: 0 | U90: 0 | V90: 0 | W90: 0 | X90: 0 | Y90: 12.11666667 | Z90: 0 | AB90: 2753 | AC90: 541.8666667 | AD90: 1 | AE90: 19
B91: 527 | C91: CHUYACA | D91: CHUYACA 3 | E91: Motores Diésel | F91: 0 | G91: 0 | H91: 0 | I91: 0 | J91: 0 | K91: 0 | L91: 0 | M91: 4 | N91: 0 | O91: 377.3333333 | P91: 0 | Q91: 2727.4 | R91: 25.6 | S91: 0 | T91: 0 | U91: 0 | V91: 0 | W91: 0 | X91: 0 | Y91: 12.11666667 | Z91: 0 | AB91: 2753 | AC91: 377.3333333 | AD91: 3 | AE91: 19
B92: 528 | C92: CHUYACA | D92: CHUYACA 4 | E92: Motores Diésel | F92: 0 | G92: 0 | H92: 0 | I92: 0 | J92: 0 | K92: 0 | L92: 0 | M92: 0 | N92: 0 | O92: 8182.783333 | P92: 0 | Q92: 1531.383333 | R92: 11.71666667 | S92: 0 | T92: 0 | U92: 0 | V92: 0 | W92: 0 | X92: 0 | Y92: 0 | Z92: 0 | AB92: 1543.1 | AC92: 8182.783333 | AD92: 2 | AE92: 13
B93: 529 | C93: CHUYACA | D93: CHUYACA 5 | E93: Motores Diésel | F93: 0 | G93: 0 | H93: 0 | I93: 0 | J93: 0 | K93: 0 | L93: 0 | M93: 0 | N93: 0 | O93: 1855.5 | P93: 0 | Q93: 2727.4 | R93: 25.6 | S93: 0 | T93: 0 | U93: 0 | V93: 0 | W93: 0 | X93: 0 | Y93: 12.11666667 | Z93: 0 | AB93: 2753 | AC93: 1855.5 | AD93: 2 | AE93: 19
B94: 790 | C94: CHUYACA | D94: CHUYACA 8 | E94: Motores Diésel | F94: 0 | G94: 0 | H94: 0 | I94: 0 | J94: 0 | K94: 0 | L94: 0 | M94: 0 | N94: 0 | O94: 7066 | P94: 0 | Q94: 2621.383333 | R94: 11.71666667 | S94: 0 | T94: 0 | U94: 0 | V94: 0 | W94: 0 | X94: 0 | Y94: 0 | Z94: 0 | AB94: 2633.1 | AC94: 7066 | AD94: 1 | AE94: 14
B95: 1927 | C95: EL PELICANO | D95: EL PELICANO | E95: Parques Eólicos y Fotovoltaicos | F95: 24 | G95: 0 | H95: 0 | I95: 2.581990478 | J95: 0 | K95: 0 | L95: 0.2267624395 | M95: 0.9000000001 | N95: 0 | O95: 0 | P95: 0 | Q95: 128.5333333 | R95: 0 | S95: 0 | T95: 0 | U95: 0 | V95: 0 | W95: 0.0464049718 | X95: 18.96666667 | Y95: 47.03333333 | Z95: 288 | AB95: 128.5333333 | AC95: 2.85515789 | AD95: 0 | AE95: 23
B96: 251 | C96: CIPRESES | D96: CIPRESES 1 | E96: Embalse | F96: 0 | G96: 0 | H96: 70.75698965 | I96: 0 | J96: 0 | K96: 0 | L96: 0.08793282385 | M96: 5.583333333 | N96: 0 | O96: 160.7 | P96: 0 | Q96: 745.7 | R96: 36.41666667 | S96: 0 | T96: 0 | U96: 0 | V96: 0 | W96: 0 | X96: 0 | Y96: 41.45 | Z96: 0 | AB96: 782.1166667 | AC96: 231.5449225 | AD96: 22 | AE96: 37
B97: 252 | C97: CIPRESES | D97: CIPRESES 2 | E97: Embalse | F97: 0 | G97: 0 | H97: 0.8888888889 | I97: 49.74041891 | J97: 0 | K97: 0 | L97: 2.167831871 | M97: 0.4000000001 | N97: 0 | O97: 41.38333333 | P97: 0 | Q97: 405.75 | R97: 10.5 | S97: 0 | T97: 0 | U97: 0 | V97: 0 | W97: 87.83297481 | X97: 0 | Y97: 35.75 | Z97: 0 | AB97: 416.25 | AC97: 182.0134478 | AD97: 15 | AE97: 17
B98: 253 | C98: CIPRESES | D98: CIPRESES 3 | E98: Embalse | F98: 0 | G98: 0 | H98: 785.5119335 | I98: 14.7228465 | J98: 0 | K98: 0 | L98: 1.312524766 | M98: 393.7666667 | N98: 0 | O98: 477.5166667 | P98: 0 | Q98: 658.2333333 | R98: 9.25 | S98: 0 | T98: 0 | U98: 619.3229173 | V98: 0 | W98: 36.33368714 | X98: 0 | Y98: 36.58333333 | Z98: 0 | AB98: 667.4833333 | AC98: 1934.720576 | AD98: 42 | AE98: 30
B99: 1805 | C99: CMPC CORDILLERA | D99: CMPC CORDILLERA | E99: Turbina Gas | F99: 0 | G99: 22.16835937 | H99: 74.02705595 | I99: 22.31650895 | J99: 0 | K99: 0 | L99: 47.50519861 | M99: 23.76693117 | N99: 0 | O99: 401.35 | P99: 71.5 | Q99: 7668.75 | R99: 27.63333333 | S99: 0 | T99: 0 | U99: 9.716666667 | V99: 288.7320203 | W99: 2600.41167 | X99: 0 | Y99: 4.55 | Z99: 0 | AB99: 8078.783713 | AC99: 3155.327101 | AD99: 26 | AE99: 23
B100: 1470 | C100: CMPC LAJA | D100: CMPC LAJA 1 | E100: Vapor | F100: 0 | G100: 0 | H100: 735.8896683 | I100: 0 | J100: 0 | K100: 0 | L100: 0.9999999999 | M100: 15.68333333 | N100: 0 | O100: 120.6666667 | P100: 0 | Q100: 1606.116667 | R100: 454.0666667 | S100: 0 | T100: 0 | U100: 1238.827477 | V100: 0 | W100: 0.9 | X100: 0 | Y100: 33.95 | Z100: 0 | AB100: 2060.183333 | AC100: 2097.283812 | AD100: 11 | AE100: 104
B101: 1471 | C101: CMPC LAJA | D101: CMPC LAJA 2 | E101: Vapor | F101: 0 | G101: 0 | H101: 609.0286783 | I101: 0 | J101: 0 | K101: 0 | L101: 0.9999999999 | M101: 7.35 | N101: 0 | O101: 67.66666667 | P101: 69.3 | Q101: 2022.7 | R101: 466.7333333 | S101: 0 | T101: 0 | U101: 966.9599908 | V101: 0 | W101: 0 | X101: 0 | Y101: 25.71666667 | Z101: 0 | AB101: 2558.733333 | AC101: 1644.655336 | AD101: 7 | AE101: 107
B102: 1494 | C102: CMPC PACIFICO | D102: CMPC PACIFICO 1 | E102: Vapor | F102: 0 | G102: 0 | H102: 852.2496486 | I102: 0 | J102: 0 | K102: 0 | L102: 6 | M102: 161.7 | N102: 0 | O102: 415.25 | P102: 0 | Q102: 1083.166667 | R102: 1156.316667 | S102: 0 | T102: 0 | U102: 301.4046469 | V102: 0 | W102: 0 | X102: 0 | Y102: 25 | Z102: 0 | AB102: 2239.483333 | AC102: 1574.904295 | AD102: 20 | AE102: 159
B103: 1495 | C103: CMPC PACIFICO | D103: CMPC PACIFICO 2 | E103: Vapor | F103: 0 | G103: 0 | H103: 488.0128266 | I103: 0 | J103: 0 | K103: 0 | L103: 6 | M103: 161.7 | N103: 0 | O103: 392.55 | P103: 0 | Q103: 2267.416667 | R103: 3178.35 | S103: 0 | T103: 0 | U103: 312.0282883 | V103: 0 | W103: 0 | X103: 0 | Y103: 24.38333333 | Z103: 0 | AB103: 5445.766667 | AC103: 1198.591115 | AD103: 20 | AE103: 194
B104: 1530 | C104: CMPC PACIFICO | D104: CMPC PACIFICO 3 | E104: Vapor | F104: 0 | G104: 0 | H104: 324.5203434 | I104: 0 | J104: 0 | K104: 0 | L104: 6 | M104: 161.7 | N104: 0 | O104: 384.25 | P104: 0 | Q104: 768.95 | R104: 1142.316667 | S104: 0 | T104: 0 | U104: 224.5410877 | V104: 0 | W104: 0 | X104: 0 | Y104: 24.98333333 | Z104: 0 | AB104: 1911.266667 | AC104: 939.3114311 | AD104: 19 | AE104: 154
B105: 1811 | C105: CMPC TISSUE | D105: CMPC TISSUE | E105: Turbina Gas | F105: 0 | G105: 0 | H105: 0.4999999999 | I105: 0 | J105: 0 | K105: 0 | L105: 0 | M105: 5.1 | N105: 0 | O105: 714.9666667 | P105: 23.76666667 | Q105: 981.1833333 | R105: 29.28333333 | S105: 0 | T105: 0 | U105: 22.14973504 | V105: 0 | W105: 0 | X105: 0 | Y105: 118.75 | Z105: 0 | AB105: 1034.233333 | AC105: 737.6164017 | AD105: 72 | AE105: 15
B106: 847 | C106: COLBUN | D106: COLBUN 1 | E106: Embalse | F106: 0 | G106: 0 | H106: 16.58066104 | I106: 0.4652601969 | J106: 0 | K106: 0 | L106: 5.216666667 | M106: 3.85 | N106: 0 | O106: 28.18333333 | P106: 0 | Q106: 1219.433333 | R106: 1016.3 | S106: 0 | T106: 0 | U106: 0.5491561182 | V106: 0 | W106: 0 | X106: 0 | Y106: 0 | Z106: 0 | AB106: 2235.733333 | AC106: 50.99507736 | AD106: 11 | AE106: 54
B107: 848 | C107: COLBUN | D107: COLBUN 2 | E107: Embalse | F107: 0 | G107: 0 | H107: 5.915471167 | I107: 0.3967651195 | J107: 0 | K107: 0 | L107: 5.216666667 | M107: 1.05 | N107: 0 | O107: 79.35 | P107: 0 | Q107: 2153.483333 | R107: 468.55 | S107: 0 | T107: 0 | U107: 0 | V107: 0 | W107: 12 | X107: 0 | Y107: 0 | Z107: 0 | AB107: 2622.033333 | AC107: 102.878903 | AD107: 10 | AE107: 77
B108: 786 | C108: COLIHUES | D108: COLIHUES 1 | E108: Motores Diésel | F108: 0 | G108: 0 | H108: 11.03212121 | I108: 0 | J108: 0 | K108: 0 | L108: 0 | M108: 8.3 | N108: 0 | O108: 33.68333333 | P108: 0 | Q108: 157.3 | R108: 0.3833333334 | S108: 0 | T108: 0 | U108: 3.186666667 | V108: 0 | W108: 4.65 | X108: 0 | Y108: 138.4666667 | Z108: 0 | AB108: 157.6833333 | AC108: 52.55212121 | AD108: 15 | AE108: 2
B109: 785 | C109: COLIHUES | D109: COLIHUES 2 | E109: Motores Diésel | F109: 0 | G109: 0 | H109: 64.79166667 | I109: 0 | J109: 0 | K109: 0 | L109: 0 | M109: 14.25 | N109: 0 | O109: 377.8666667 | P109: 0 | Q109: 552.4833333 | R109: 2.816666667 | S109: 0 | T109: 0 | U109: 181.1287879 | V109: 0 | W109: 17.76666667 | X109: 0 | Y109: 57.11666667 | Z109: 0 | AB109: 555.3 | AC109: 641.5537879 | AD109: 8 | AE109: 4
B110: 516 | C110: COLMITO | D110: COLMITO 1 | E110: Turbina Gas | F110: 0 | G110: 0 | H110: 0 | I110: 0 | J110: 0 | K110: 0 | L110: 0 | M110: 36.48333333 | N110: 0 | O110: 2868.833333 | P110: 0 | Q110: 1516.583333 | R110: 24.58333333 | S110: 0 | T110: 0 | U110: 0 | V110: 0 | W110: 0 | X110: 0 | Y110: 36.98333333 | Z110: 0 | AB110: 1541.166667 | AC110: 2868.833333 | AD110: 36 | AE110: 25
B111: 568 | C111: CONCON | D111: CONCON 1 | E111: Motores Diésel | F111: 0 | G111: 0 | H111: 0 | I111: 0 | J111: 0 | K111: 0 | L111: 0.7636363636 | M111: 0 | N111: 0 | O111: 0 | P111: 0 | Q111: 0 | R111: 0 | S111: 0 | T111: 0 | U111: 0 | V111: 0.4166666667 | W111: 0 | X111: 0 | Y111: 0.8166666667 | Z111: 0 | AB111: 0.4166666667 | AC111: 0.7636363636 | AD111: 0 | AE111: 0
B112: 569 | C112: CONCON | D112: CONCON 2 | E112: Motores Diésel | F112: 0 | G112: 0 | H112: 0 | I112: 0 | J112: 0 | K112: 0 | L112: 0.525 | M112: 0 | N112: 0 | O112: 0 | P112: 0 | Q112: 159.7 | R112: 1.4 | S112: 0 | T112: 0 | U112: 0 | V112: 0.4166666667 | W112: 0 | X112: 0 | Y112: 0.8166666667 | Z112: 0 | AB112: 161.5166667 | AC112: 0.525 | AD112: 0 | AE112: 2
B113: 570 | C113: CONCON | D113: CONCON 3 | E113: Motores Diésel | F113: 0 | G113: 0 | H113: 0 | I113: 0 | J113: 0 | K113: 0 | L113: 0.525 | M113: 0 | N113: 0 | O113: 0 | P113: 0 | Q113: 921.1333333 | R113: 0 | S113: 0 | T113: 0 | U113: 0 | V113: 0.4166666667 | W113: 0 | X113: 0 | Y113: 0.8166666667 | Z113: 0 | AB113: 921.55 | AC113: 0.525 | AD113: 0 | AE113: 1
B114: 2393 | C114: CONVENTO VIEJO | D114: CONVENTO VIEJO 1 | E114: Pasada | F114: 0 | G114: 0 | H114: 0 | I114: 6.043902439 | J114: 0 | K114: 0 | L114: 0 | M114: 12.18333333 | N114: 0 | O114: 974.9666667 | P114: 0 | Q114: 226.4333333 | R114: 9.15 | S114: 0 | T114: 0 | U114: 0 | V114: 0 | W114: 85.44268293 | X114: 0 | Y114: 3.6 | Z114: 480 | AB114: 235.5833333 | AC114: 1066.453252 | AD114: 11 | AE114: 6
B115: 2394 | C115: CONVENTO VIEJO | D115: CONVENTO VIEJO 2 | E115: Pasada | F115: 0 | G115: 0 | H115: 0 | I115: 6.043902439 | J115: 0 | K115: 0 | L115: 0 | M115: 7.083333333 | N115: 0 | O115: 857.85 | P115: 0 | Q115: 345.4166667 | R115: 10.15 | S115: 0 | T115: 0 | U115: 0 | V115: 0 | W115: 85.44268293 | X115: 0 | Y115: 1.883333333 | Z115: 480 | AB115: 355.5666667 | AC115: 949.3365854 | AD115: 7 | AE115: 8
B116: 1842 | C116: PV CONEJO | D116: CONEJO | E116: Parques Eólicos y Fotovoltaicos | F116: 0 | G116: 0 | H116: 43.03910256 | I116: 16.1775641 | J116: 0 | K116: 0 | L116: 0 | M116: 0 | N116: 0 | O116: 111.6333333 | P116: 0 | Q116: 64.26666667 | R116: 0 | S116: 0 | T116: 0 | U116: 42.79775641 | V116: 0 | W116: 15.19230769 | X116: 0 | Y116: 3.583333333 | Z116: 0 | AB116: 64.26666667 | AC116: 228.8400641 | AD116: 3 | AE116: 12
B117: 792 | C117: CORONEL | D117: CORONEL TG | E117: Turbina Gas | F117: 0 | G117: 0 | H117: 14.04470989 | I117: 0 | J117: 0 | K117: 0 | L117: 3.179073905 | M117: 2.716666667 | N117: 0 | O117: 111.95 | P117: 0 | Q117: 1136.25 | R117: 14.6 | S117: 0 | T117: 0 | U117: 712.8885199 | V117: 0 | W117: 1.988110868 | X117: 0 | Y117: 0 | Z117: 0 | AB117: 1150.85 | AC117: 844.0504146 | AD117: 9 | AE117: 26
B118: 68 | C118: COYA | D118: COYA 5 | E118: Pasada | F118: 0 | G118: 0 | H118: 0 | I118: 153.4666667 | J118: 0 | K118: 0 | L118: 0 | M118: 0 | N118: 0 | O118: 261.7333333 | P118: 0 | Q118: 0 | R118: 0 | S118: 0 | T118: 0 | U118: 0 | V118: 0 | W118: 23651.05 | X118: 0 | Y118: 43.88333333 | Z118: 0 | AB118: 0 | AC118: 24066.25 | AD118: 5 | AE118: 0
B119: 1964 | C119: TERMOELÉCTRICA ANDINA | D119: CTA1 | E119: Vapor | F119: 0 | G119: 11.48851224 | H119: 1479.251036 | I119: 61.85932203 | J119: 0 | K119: 0 | L119: 2.814595104 | M119: 192.7 | N119: 0 | O119: 4259.783333 | P119: 5.95 | Q119: 1292.15 | R119: 64.18333333 | S119: 0 | T119: 0 | U119: 415.7355932 | V119: 0 | W119: 0.04293785312 | X119: 0 | Y119: 0 | Z119: 0 | AB119: 1373.771846 | AC119: 6219.486817 | AD119: 63 | AE119: 10
B120: 2017 | C120: TERMOELÉCTRICA HORNITOS | D120: CTH1 | E120: Vapor | F120: 0 | G120: 12.12645976 | H120: 1816.557852 | I120: 11.33319815 | J120: 0 | K120: 0 | L120: 22.59136157 | M120: 244.05 | N120: 0 | O120: 3902.783333 | P120: 7.016666667 | Q120: 1233.583333 | R120: 10.2 | S120: 0 | T120: 0 | U120: 8.612720138 | V120: 0 | W120: 0.236645263 | X120: 0 | Y120: 0 | Z120: 0 | AB120: 1262.92646 | AC120: 5762.11511 | AD120: 65 | AE120: 8
B121: 1985 | C121: TERMOELÉCTRICA MEJILLONES | D121: CTM1 | E121: Vapor | F121: 0 | G121: 18.68631332 | H121: 850.6156837 | I121: 22.5888682 | J121: 0 | K121: 0 | L121: 18.41256781 | M121: 126.1833333 | N121: 0 | O121: 3339.566665 | P121: 0 | Q121: 1567.133333 | R121: 13.41666667 | S121: 0 | T121: 0 | U121: 859.2433134 | V121: 0 | W121: 67.11421539 | X121: 0 | Y121: 0 | Z121: 0 | AB121: 1599.236313 | AC121: 5157.541314 | AD121: 53 | AE121: 6
B122: 1986 | C122: TERMOELÉCTRICA MEJILLONES | D122: CTM2 | E122: Vapor | F122: 0 | G122: 13.92717722 | H122: 1513.703732 | I122: 6.463761539 | J122: 0 | K122: 0 | L122: 4.422457167 | M122: 226.1528685 | N122: 0 | O122: 6506.116667 | P122: 0.3166666667 | Q122: 1395.433333 | R122: 1.416666667 | S122: 0 | T122: 0 | U122: 1755.24805 | V122: 0 | W122: 13.39946311 | X122: 0 | Y122: 0 | Z122: 0 | AB122: 1411.093844 | AC122: 9799.35413 | AD122: 58 | AE122: 5
B123: 1987 | C123: TERMOELÉCTRICA MEJILLONES | D123: CTM3 | E123: CC | F123: 0 | G123: 438.1012595 | H123: 363.570244 | I123: 0 | J123: 0 | K123: 0 | L123: 106.8801098 | M123: 65.56666667 | N123: 0 | O123: 944.6333333 | P123: 1.781081527 | Q123: 2215.183333 | R123: 149.25 | S123: 0 | T123: 0 | U123: 76.89226513 | V123: 0.09707544035 | W123: 0.5531836797 | X123: 0 | Y123: 13.85 | Z123: 0 | AB123: 2804.41275 | AC123: 1492.529136 | AD123: 31 | AE123: 52
B124: 2014 | C124: TERMOELÉCTRICA TARAPACÁ | D124: CTTAR | E124: Vapor | F124: 0 | G124: 22.89493671 | H124: 1571.066561 | I124: 0 | J124: 0 | K124: 0 | L124: 50.50812236 | M124: 480.6166667 | N124: 0 | O124: 12452.13333 | P124: 8.716666667 | Q124: 280.5333333 | R124: 37.8 | S124: 0 | T124: 0 | U124: 29.32773336 | V124: 45.10464135 | W124: 0 | X124: 0 | Y124: 0 | Z124: 0 | AB124: 395.0495781 | AC124: 14103.03575 | AD124: 34 | AE124: 8
B125: 787 | C125: CURILLINQUE | D125: CURILLINQUE | E125: Pasada | F125: 0 | G125: 0 | H125: 0.2097826087 | I125: 19.36123188 | J125: 0 | K125: 0 | L125: 0.04347826087 | M125: 1.683333333 | N125: 0 | O125: 157.15 | P125: 0 | Q125: 838.3166667 | R125: 7.95 | S125: 0 | T125: 0 | U125: 0 | V125: 0 | W125: 0 | X125: 0 | Y125: 35.61666667 | Z125: 0 | AB125: 846.2666667 | AC125: 176.7644928 | AD125: 17 | AE125: 11
B126: 382 | C126: DEGAÑ | D126: DEGAÑ | E126: Parque de Motores Diésel | F126: 0 | G126: 0 | H126: 5.429583333 | I126: 0 | J126: 0 | K126: 0 | L126: 0 | M126: 0 | N126: 0 | O126: 413.7 | P126: 0 | Q126: 234.2 | R126: 0 | S126: 0 | T126: 0 | U126: 299.78375 | V126: 0 | W126: 13.41666667 | X126: 0 | Y126: 64.73333333 | Z126: 0 | AB126: 234.2 | AC126: 732.33 | AD126: 2 | AE126: 2
B127: 95 | C127: DIEGO DE ALMAGRO | D127: DIEGO DE ALMAGRO | E127: Turbina Gas | F127: 0 | G127: 0 | H127: 0 | I127: 0 | J127: 0 | K127: 0 | L127: 0 | M127: 0 | N127: 0 | O127: 7.833333333 | P127: 0 | Q127: 31 | R127: 1.45 | S127: 0 | T127: 0 | U127: 0 | V127: 0 | W127: 0.2666666667 | X127: 0 | Y127: 0 | Z127: 0 | AB127: 32.45 | AC127: 8.1 | AD127: 2 | AE127: 5
B128: 1928 | C128: DOÑA CARMEN SOLAR | D128: DOÑA CARMEN | E128: Parques Eólicos y Fotovoltaicos | F128: 0 | G128: 0 | H128: 0 | I128: 1.199499283 | J128: 0 | K128: 0 | L128: 0 | M128: 3.05 | N128: 0 | O128: 56.35 | P128: 0 | Q128: 37.98333333 | R128: 3.75 | S128: 0 | T128: 0 | U128: 0 | V128: 0 | W128: 0 | X128: 0 | Y128: 175.45 | Z128: 672 | AB128: 41.73333333 | AC128: 57.54949928 | AD128: 10 | AE128: 7
B129: 1806 | C129: EL PASO | D129: EL PASO 1 | E129: Pasada | F129: 0 | G129: 0 | H129: 0 | I129: 0.2058139535 | J129: 0 | K129: 0 | L129: 0.07093023256 | M129: 3.066666667 | N129: 0 | O129: 209.2666667 | P129: 13.75 | Q129: 588.7166667 | R129: 27.51666667 | S129: 0 | T129: 0 | U129: 0 | V129: 0 | W129: 26.55569767 | X129: 0 | Y129: 30.58333333 | Z129: 0 | AB129: 629.9833333 | AC129: 236.0991085 | AD129: 11 | AE129: 29
B130: 1807 | C130: EL PASO | D130: EL PASO 2 | E130: Pasada | F130: 0 | G130: 0 | H130: 0 | I130: 0.02196029777 | J130: 0 | K130: 0 | L130: 0.007568238213 | M130: 111.0166667 | N130: 0 | O130: 233.0166667 | P130: 34.61666667 | Q130: 587.0666667 | R130: 24.06666667 | S130: 0 | T130: 0 | U130: 0 | V130: 0 | W130: 26 | X130: 0 | Y130: 35.7 | Z130: 0 | AB130: 645.75 | AC130: 259.0461952 | AD130: 15 | AE130: 28
B131: 1808 | C131: EL PASO | D131: EL PASO 3 | E131: Pasada | F131: 0 | G131: 0 | H131: 0 | I131: 0.02196029777 | J131: 0 | K131: 0 | L131: 0 | M131: 125.6166667 | N131: 0 | O131: 239.85 | P131: 0 | Q131: 745.5833333 | R131: 35 | S131: 0 | T131: 0 | U131: 0 | V131: 0 | W131: 26 | X131: 0 | Y131: 31.98333333 | Z131: 0 | AB131: 780.5833333 | AC131: 265.8719603 | AD131: 17 | AE131: 31
B132: 775 | C132: EL PEÑON | D132: EL PEÑON | E132: Parque de Motores Diésel | F132: 2.029579065e-14 | G132: 0 | H132: 5.9781893 | I132: 0.2345679012 | J132: 0 | K132: 0 | L132: 6.388786008 | M132: 0 | N132: 0 | O132: 0 | P132: 0 | Q132: 29.96666667 | R132: 0 | S132: 0 | T132: 0 | U132: 656.982716 | V132: 0 | W132: 0.8119341564 | X132: 6.098503504e-13 | Y132: 8.016666667 | Z132: 0 | AB132: 29.96666667 | AC132: 670.3961934 | AD132: 0 | AE132: 4
B133: 683 | C133: EL RINCON | D133: EL RINCON | E133: Pasada | F133: 0 | G133: 0 | H133: 0 | I133: 0 | J133: 0 | K133: 0 | L133: 0 | M133: 11.65925926 | N133: 0 | O133: 1445.1 | P133: 25.38333333 | Q133: 428.75 | R133: 2.25 | S133: 0 | T133: 0 | U133: 0 | V133: 0 | W133: 0 | X133: 0 | Y133: 217.8833333 | Z133: 0 | AB133: 456.3833333 | AC133: 1445.1 | AD133: 16 | AE133: 7
B134: 1902 | C134: EL ROMERO | D134: EL ROMERO | E134: Parques Eólicos y Fotovoltaicos | F134: 0.005164439003 | G134: 65.92301296 | H134: 47.66035439 | I134: 19.44650716 | J134: 0 | K134: 0 | L134: 2.247830153 | M134: 13.5 | N134: 0 | O134: 220.35 | P134: 0 | Q134: 204.9833333 | R134: 30.51666667 | S134: 0 | T134: 0 | U134: 42.16529011 | V134: 53.04020848 | W134: 18.09181206 | X134: 0.003571064177 | Y134: 51.78333333 | Z134: 0 | AB134: 354.4632214 | AC134: 349.9617939 | AD134: 22 | AE134: 23
B135: 795 | C135: EL SALVADOR | D135: EL SALVADOR 2 | E135: Turbina Gas | F135: 0 | G135: 0 | H135: 0 | I135: 0 | J135: 0 | K135: 0 | L135: 0 | M135: 0.4666666666 | N135: 0 | O135: 493.3166667 | P135: 0 | Q135: 297.7166667 | R135: 0 | S135: 0 | T135: 0 | U135: 0 | V135: 5.524509804 | W135: 0 | X135: 0 | Y135: 2.516666667 | Z135: 0 | AB135: 303.2411765 | AC135: 493.3166667 | AD135: 4 | AE135: 5
B136: 254 | C136: EL TORO | D136: EL TORO 1 | E136: Embalse | F136: 0 | G136: 0 | H136: 0 | I136: 0.3751851852 | J136: 0 | K136: 0 | L136: 0 | M136: 9.45 | N136: 0 | O136: 46.96666667 | P136: 0 | Q136: 807.6166667 | R136: 71.61666667 | S136: 0 | T136: 0 | U136: 0 | V136: 0 | W136: 0.3055555556 | X136: 0 | Y136: 0 | Z136: 0 | AB136: 879.2333333 | AC136: 47.64740741 | AD136: 6 | AE136: 23
B137: 255 | C137: EL TORO | D137: EL TORO 2 | E137: Embalse | F137: 0 | G137: 0 | H137: 0 | I137: 0.3237037037 | J137: 0 | K137: 0 | L137: 0.03888888889 | M137: 28.35 | N137: 0 | O137: 1099.15 | P137: 0 | Q137: 700.95 | R137: 168.0166667 | S137: 0 | T137: 0 | U137: 0 | V137: 0 | W137: 0.3055555556 | X137: 0 | Y137: 1.15 | Z137: 0 | AB137: 868.9666667 | AC137: 1099.818148 | AD137: 6 | AE137: 27
B138: 256 | C138: EL TORO | D138: EL TORO 3 | E138: Embalse | F138: 0 | G138: 0 | H138: 267.5418519 | I138: 0.3462962963 | J138: 0 | K138: 0 | L138: 0.03740740741 | M138: 0.8000000002 | N138: 0 | O138: 105.85 | P138: 0 | Q138: 496.65 | R138: 44 | S138: 0 | T138: 0 | U138: 2.277407407 | V138: 0 | W138: 1.504074074 | X138: 0 | Y138: 2.616666667 | Z138: 0 | AB138: 540.65 | AC138: 377.557037 | AD138: 11 | AE138: 19
B139: 257 | C139: EL TORO | D139: EL TORO 4 | E139: Embalse | F139: 0 | G139: 0 | H139: 0 | I139: 0.3237037037 | J139: 0 | K139: 0 | L139: 0 | M139: 0 | N139: 0 | O139: 21.66666667 | P139: 7.266666667 | Q139: 406.15 | R139: 5.933333333 | S139: 0 | T139: 0 | U139: 0 | V139: 0 | W139: 0.3055555556 | X139: 0 | Y139: 15.88333333 | Z139: 0 | AB139: 419.35 | AC139: 22.29592593 | AD139: 3 | AE139: 17
B140: 571 | C140: EL TOTORAL | D140: EL TOTORAL 1 | E140: Motores Diésel | F140: 0 | G140: 0 | H140: 0 | I140: 0 | J140: 0 | K140: 0 | L140: 0 | M140: 0 | N140: 0 | O140: 0 | P140: 0 | Q140: 246.5833333 | R140: 0 | S140: 0 | T140: 0 | U140: 0 | V140: 0 | W140: 0 | X140: 0 | Y140: 0 | Z140: 0 | AB140: 246.5833333 | AC140: 0 | AD140: 0 | AE140: 1
B141: 572 | C141: EL TOTORAL | D141: EL TOTORAL 2 | E141: Motores Diésel | F141: 0 | G141: 0 | H141: 0 | I141: 0 | J141: 0 | K141: 0 | L141: 0 | M141: 0 | N141: 0 | O141: 0 | P141: 0 | Q141: 678.1666667 | R141: 0 | S141: 0 | T141: 0 | U141: 0 | V141: 0 | W141: 0 | X141: 0 | Y141: 0 | Z141: 0 | AB141: 678.1666667 | AC141: 0 | AD141: 0 | AE141: 1
B142: 573 | C142: EL TOTORAL | D142: EL TOTORAL 3 | E142: Motores Diésel | F142: 0 | G142: 0 | H142: 0 | I142: 0 | J142: 0 | K142: 0 | L142: 0 | M142: 0 | N142: 0 | O142: 0 | P142: 0 | Q142: 773.7 | R142: 2 | S142: 0 | T142: 0 | U142: 0 | V142: 0 | W142: 0 | X142: 0 | Y142: 0 | Z142: 0 | AB142: 775.7 | AC142: 0 | AD142: 0 | AE142: 3
B143: 716 | C143: EMELDA | D143: EMELDA 1 | E143: Turbina Gas | F143: 0 | G143: 0 | H143: 0 | I143: 0 | J143: 0 | K143: 0 | L143: 0 | M143: 0 | N143: 0 | O143: 452.3 | P143: 0 | Q143: 145.5166667 | R143: 7.5 | S143: 0 | T143: 0 | U143: 0 | V143: 0 | W143: 0 | X143: 0 | Y143: 0 | Z143: 0 | AB143: 153.0166667 | AC143: 452.3 | AD143: 1 | AE143: 14
B144: 717 | C144: EMELDA | D144: EMELDA 2 | E144: Turbina Gas | F144: 0 | G144: 0 | H144: 0 | I144: 0 | J144: 0 | K144: 0 | L144: 0 | M144: 0 | N144: 0 | O144: 0 | P144: 0 | Q144: 166.7833333 | R144: 9.433333333 | S144: 0 | T144: 0 | U144: 0 | V144: 0 | W144: 0 | X144: 0 | Y144: 0 | Z144: 0 | AB144: 176.2166667 | AC144: 0 | AD144: 0 | AE144: 6
B145: 1976 | C145: DIESEL ENAEX | D145: ENAEX1 | E145: Motores Diésel | F145: 0 | G145: 0 | H145: 0 | I145: 0 | J145: 0 | K145: 0 | L145: 0 | M145: 0 | N145: 0 | O145: 0 | P145: 16992 | Q145: 0 | R145: 0 | S145: 0 | T145: 0 | U145: 0 | V145: 0 | W145: 0 | X145: 0 | Y145: 0 | Z145: 0 | AB145: 16992 | AC145: 0 | AD145: 0 | AE145: 1
B146: 2130 | C146: DIESEL ENAEX | D146: ENAEX2 | E146: Motores Diésel | F146: 0 | G146: 0 | H146: 0 | I146: 0 | J146: 0 | K146: 0 | L146: 0 | M146: 0 | N146: 0 | O146: 0 | P146: 16992 | Q146: 0 | R146: 0 | S146: 0 | T146: 0 | U146: 0 | V146: 0 | W146: 0 | X146: 0 | Y146: 0 | Z146: 0 | AB146: 16992 | AC146: 0 | AD146: 0 | AE146: 1
B147: 2131 | C147: DIESEL ENAEX | D147: ENAEX3 | E147: Motores Diésel | F147: 0 | G147: 0 | H147: 0 | I147: 0 | J147: 0 | K147: 0 | L147: 0 | M147: 0 | N147: 0 | O147: 0 | P147: 16992 | Q147: 0 | R147: 0 | S147: 0 | T147: 0 | U147: 0 | V147: 0 | W147: 0 | X147: 0 | Y147: 0 | Z147: 0 | AB147: 16992 | AC147: 0 | AD147: 0 | AE147: 1
B148: 1975 | C148: DIESEL ENAEX | D148: ENAEX4 | E148: Motores Diésel | F148: 0 | G148: 0 | H148: 0 | I148: 0 | J148: 0 | K148: 0 | L148: 0 | M148: 0 | N148: 0 | O148: 0 | P148: 16992 | Q148: 0 | R148: 0 | S148: 0 | T148: 0 | U148: 0 | V148: 0 | W148: 0 | X148: 0 | Y148: 0 | Z148: 0 | AB148: 16992 | AC148: 0 | AD148: 0 | AE148: 1
B149: 838 | C149: ENERGIA PACIFICO | D149: ENERGIA PACIFICO | E149: Vapor | F149: 0 | G149: 0 | H149: 0.4880448718 | I149: 343.6666667 | J149: 0 | K149: 0 | L149: 1.6 | M149: 135.3666667 | N149: 0 | O149: 2389.95 | P149: 0 | Q149: 533.7333333 | R149: 0 | S149: 0 | T149: 0 | U149: 0 | V149: 0 | W149: 0 | X149: 0 | Y149: 23.88333333 | Z149: 0 | AB149: 533.7333333 | AC149: 2735.704712 | AD149: 129 | AE149: 2
B150: 1448 | C150: EOLICA CUEL | D150: EOLICA CUEL | E150: Parques Eólicos y Fotovoltaicos | F150: 0 | G150: 39.76237374 | H150: 90.80681818 | I150: 0.2909090909 | J150: 0 | K150: 0 | L150: 5.35 | M150: 6.583333333 | N150: 0 | O150: 29.03333333 | P150: 52.76666667 | Q150: 796.1166667 | R150: 0 | S150: 0 | T150: 0 | U150: 26.97954545 | V150: 11.36060606 | W150: 14.15 | X150: 0 | Y150: 45.21666667 | Z150: 0 | AB150: 900.0063131 | AC150: 166.6106061 | AD150: 9 | AE150: 25
B151: 1595 | C151: EOLICA EL ARRAYAN | D151: EOLICA EL ARRAYAN | E151: Parques Eólicos y Fotovoltaicos | F151: -2.63209126e-12 | G151: 6.865333333 | H151: 18.41602899 | I151: 8.408710145 | J151: 0 | K151: 0 | L151: 0 | M151: 1.55 | N151: 0 | O151: 83.15 | P151: 0 | Q151: 135.9333333 | R151: 10.86666667 | S151: 0 | T151: 0 | U151: 9.061521739 | V151: 0.85 | W151: 0.6353333333 | X151: -3.484254431e-13 | Y151: 48.51666667 | Z151: 0 | AB151: 154.5153333 | AC151: 119.6715942 | AD151: 8 | AE151: 7
B152: 19C | C152: EOLICA LEBU | D152: EOLICA LEBU | E152: Parques Eólicos y Fotovoltaicos | F152: 0 | G152: 0 | H152: 0 | I152: 8.416666667 | J152: 0 | K152: 0 | L152: 0 | M152: 1.166666667 | N152: 0 | O152: 76.68361111 | P152: 0 | Q152: 1.5 | R152: 8 | S152: 0 | T152: 0 | U152: 0 | V152: 0 | W152: 1.65 | X152: 0 | Y152: 1115.033333 | Z152: 0 | AB152: 9.5 | AC152: 86.75027778 | AD152: 25 | AE152: 2
B153: 1538 | C153: EOLICA LOS CURUROS | D153: EOLICA LOS CURUROS | E153: Parques Eólicos y Fotovoltaicos | F153: 0 | G153: 0 | H153: 4.925128224 | I153: 0 | J153: 0 | K153: 0 | L153: 0 | M153: 0 | N153: 0 | O153: 168.2166667 | P153: 0 | Q153: 18.01666667 | R153: 0 | S153: 0 | T153: 0 | U153: 1.035083942 | V153: 0 | W153: 0 | X153: 0 | Y153: 3.65 | Z153: 0 | AB153: 18.01666667 | AC153: 174.1768788 | AD153: 2 | AE153: 3
B154: 694 | C154: EOLICA PUNTA COLORADA | D154: EOLICA PUNTA COLORADA | E154: Parques Eólicos y Fotovoltaicos | F154: 0 | G154: 0 | H154: 1087.922667 | I154: 0 | J154: 0 | K154: 0 | L154: 0 | M154: 0 | N154: 0 | O154: 15.76666667 | P154: 27.95 | Q154: 55.58333333 | R154: 4.116666667 | S154: 0 | T154: 0 | U154: 1900.573333 | V154: 0 | W154: 0 | X154: 0 | Y154: 488.7166667 | Z154: 0 | AB154: 87.65 | AC154: 3004.262667 | AD154: 1 | AE154: 4
B155: 1660 | C155: EOLICA PUNTA PALMERAS | D155: EOLICA PUNTA PALMERAS | E155: Parques Eólicos y Fotovoltaicos | F155: 0 | G155: 0 | H155: 19.32296296 | I155: 1.4 | J155: 0 | K155: 0 | L155: 0.2533333333 | M155: 0 | N155: 0 | O155: 19.96666667 | P155: 0 | Q155: 24.8 | R155: 0 | S155: 0 | T155: 0 | U155: 5.222962963 | V155: 0 | W155: 9.222222222 | X155: 0 | Y155: 36.78333333 | Z155: 0 | AB155: 24.8 | AC155: 55.38814815 | AD155: 3 | AE155: 3
B156: 1512 | C156: EOLICA SAN PEDRO | D156: EOLICA SAN PEDRO | E156: Parques Eólicos y Fotovoltaicos | F156: 0 | G156: 114.4124537 | H156: 535.9768519 | I156: 0 | J156: 0 | K156: 0 | L156: 0 | M156: 0 | N156: 0 | O156: 89.05 | P156: 0 | Q156: 200.7898148 | R156: 10 | S156: 0 | T156: 0 | U156: 56.96851852 | V156: 27.22314815 | W156: 0 | X156: 0 | Y156: 41.53333333 | Z156: 0 | AB156: 352.4254167 | AC156: 681.9953704 | AD156: 7 | AE156: 19
B157: 238C | C157: EOLICA TALINAY ORIENTE | D157: EOLICA TALINAY ORIENTE | E157: Parques Eólicos y Fotovoltaicos | F157: 0 | G157: 0 | H157: 17.55482963 | I157: 8.95 | J157: 0 | K157: 0 | L157: 0 | M157: 12.01666667 | N157: 0 | O157: 73.96666667 | P157: 0 | Q157: 25.8 | R157: 5.966666667 | S157: 0 | T157: 0 | U157: 1.705333333 | V157: 0 | W157: 2.283333333 | X157: 0 | Y157: 66.06666667 | Z157: 0 | AB157: 31.76666667 | AC157: 104.460163 | AD157: 4 | AE157: 8
B158: 289C | C158: EOLICA TALINAY PONIENTE | D158: EOLICA TALINAY PONIENTE | E158: Parques Eólicos y Fotovoltaicos | F158: -3.726870908e-13 | G158: 0 | H158: 46.14732673 | I158: 9.133608361 | J158: 0 | K158: 0 | L158: -3.478454537e-16 | M158: 0 | N158: 0 | O158: 10.88333333 | P158: 0 | Q158: 21.86666667 | R158: 7.583333333 | S158: 0 | T158: 0 | U158: 6.251485149 | V158: 0 | W158: -5.276307444e-15 | X158: -3.04853319e-14 | Y158: 61.41666667 | Z158: 0 | AB158: 29.45 | AC158: 72.41575358 | AD158: 6 | AE158: 11
B159: 1675 | C159: EOLICA TALTAL | D159: EOLICA TALTAL | E159: Parques Eólicos y Fotovoltaicos | F159: 0 | G159: 0.3577088065 | H159: 0.3273025486 | I159: 0 | J159: 0 | K159: 0 | L159: 0 | M159: 0 | N159: 0 | O159: 14.41666667 | P159: 0 | Q159: 10.53333333 | R159: 0 | S159: 0 | T159: 0 | U159: 0 | V159: 0 | W159: 0 | X159: 0 | Y159: 12.33333333 | Z159: 0 | AB159: 10.89104214 | AC159: 14.74396922 | AD159: 4 | AE159: 1
B160: 358 | C160: EOLICA TOTORAL | D160: EOLICA TOTORAL | E160: Parques Eólicos y Fotovoltaicos | F160: 0 | G160: 0 | H160: 1.834782609 | I160: 10.56231884 | J160: 0 | K160: 0 | L160: 2.332246377 | M160: 0 | N160: 0 | O160: 1.2 | P160: 0 | Q160: 97.9 | R160: 0 | S160: 0 | T160: 0 | U160: 0 | V160: 0 | W160: 13.97246377 | X160: 0 | Y160: 6.65 | Z160: 0 | AB160: 97.9 | AC160: 29.90181159 | AD160: 1 | AE160: 9
B161: 2027 | C161: EÓLICA VALLE DE LOS VIENTOS | D161: EÓLICA VALLE DE LOS VIENTOS | E161: Parques Eólicos y Fotovoltaicos | F161: 0 | G161: 11.54740741 | H161: 0 | I161: 0 | J161: 0 | K161: 0 | L161: 0.237037037 | M161: 1.583333333 | N161: 0 | O161: 2.9 | P161: 5.766666667 | Q161: 0 | R161: 0 | S161: 0 | T161: 0 | U161: 0 | V161: 0 | W161: 0 | X161: 0 | Y161: 16.33333333 | Z161: 0 | AB161: 17.31407407 | AC161: 3.137037037 | AD161: 2 | AE161: 2
B162: 1868 | C162: EÓLICO SAN PEDRO II | D162: EÓLICO SAN PEDRO II | E162: Parques Eólicos y Fotovoltaicos | F162: 0 | G162: 100.1641026 | H162: 494.4705128 | I162: 0 | J162: 0 | K162: 0 | L162: 0 | M162: 12356.31667 | N162: 0 | O162: 3746.05 | P162: 0 | Q162: 134.6333333 | R162: 8 | S162: 0 | T162: 0 | U162: 44.50128205 | V162: 7.774358974 | W162: 0 | X162: 0 | Y162: 14.45 | Z162: 0 | AB162: 250.5717949 | AC162: 4285.021795 | AD162: 286 | AE162: 12
B163: 1064 | C163: ESCUADRON | D163: ESCUADRON 1 | E163: Vapor | F163: 0 | G163: 0.6776859504 | H163: 919.6508264 | I163: 423.2615702 | J163: 0 | K163: 0 | L163: 3.6 | M163: 245.3166667 | N163: 0 | O163: 2348.033333 | P163: 0 | Q163: 9 | R163: 0 | S163: 0 | T163: 0 | U163: 307.5510049 | V163: 0 | W163: 10.06363636 | X163: 0 | Y163: 0 | Z163: 0 | AB163: 9.67768595 | AC163: 4012.160371 | AD163: 36 | AE163: 1
B164: 1065 | C164: ESCUADRON | D164: ESCUADRON 2 | E164: Vapor | F164: 0 | G164: 0 | H164: 1931.583333 | I164: 0.8095238095 | J164: 0 | K164: 0 | L164: 3.6 | M164: 237.8166667 | N164: 0 | O164: 1951.683333 | P164: 0 | Q164: 17.63333333 | R164: 0 | S164: 0 | T164: 0 | U164: 617.4997079 | V164: 0 | W164: 0 | X164: 0 | Y164: 0 | Z164: 0 | AB164: 17.63333333 | AC164: 4505.175898 | AD164: 25 | AE164: 1
B165: 454 | C165: ESPERANZA | D165: ESPERANZA DS1 | E165: Motores Diésel | F165: 0 | G165: 0 | H165: 0 | I165: 0 | J165: 0 | K165: 0 | L165: 0.7145833333 | M165: 0 | N165: 0 | O165: 24.81666667 | P165: 0 | Q165: 0.3000000001 | R165: 0 | S165: 0 | T165: 0 | U165: 0 | V165: 0 | W165: 21 | X165: 0 | Y165: 38.31666667 | Z165: 0 | AB165: 0.3000000001 | AC165: 46.53125 | AD165: 4 | AE165: 1
B166: 455 | C166: ESPERANZA | D166: ESPERANZA DS2 | E166: Motores Diésel | F166: 0 | G166: 0 | H166: 0 | I166: 0 | J166: 0 | K166: 0 | L166: 0.8555555556 | M166: 0 | N166: 0 | O166: 21.75 | P166: 0 | Q166: 0.2166666667 | R166: 0 | S166: 0 | T166: 0 | U166: 0 | V166: 0 | W166: 15.68333333 | X166: 0 | Y166: 28.8 | Z166: 0 | AB166: 0.2166666667 | AC166: 38.28888889 | AD166: 1 | AE166: 1
B167: 84 | C167: ESPERANZA | D167: ESPERANZA TG-1 | E167: Turbina Gas | F167: 0 | G167: 0 | H167: 0 | I167: 0 | J167: 0 | K167: 0 | L167: 12.12340426 | M167: 0 | N167: 0 | O167: 0 | P167: 0 | Q167: 0.4333333333 | R167: 0 | S167: 0 | T167: 0 | U167: 0 | V167: 0 | W167: 13.2 | X167: 0 | Y167: 11.08333333 | Z167: 0 | AB167: 0.4333333333 | AC167: 25.32340426 | AD167: 0 | AE167: 1
B168: 793 | C168: FLORIDA I | D168: FLORIDA I 3 | E168: Pasada | F168: 0 | G168: 0 | H168: 0 | I168: 0 | J168: 0 | K168: 0 | L168: 0 | M168: 0 | N168: 0 | O168: 7012.083333 | P168: 0 | Q168: 722.9166667 | R168: 0 | S168: 0 | T168: 0 | U168: 0 | V168: 0 | W168: 0 | X168: 0 | Y168: 214 | Z168: 0 | AB168: 722.9166667 | AC168: 7012.083333 | AD168: 3 | AE168: 4
B169: 794 | C169: FLORIDA I | D169: FLORIDA I 5 | E169: Pasada | F169: 0 | G169: 0 | H169: 0 | I169: 0 | J169: 0 | K169: 0 | L169: 0 | M169: 0 | N169: 0 | O169: 7012.083333 | P169: 0 | Q169: 722.9166667 | R169: 0 | S169: 0 | T169: 0 | U169: 0 | V169: 0 | W169: 0 | X169: 0 | Y169: 0 | Z169: 0 | AB169: 722.9166667 | AC169: 7012.083333 | AD169: 3 | AE169: 4
B170: 78 | C170: FLORIDA II | D170: FLORIDA II 1 | E170: Pasada | F170: 0 | G170: 0 | H170: 0 | I170: 0 | J170: 0 | K170: 0 | L170: 0 | M170: 0 | N170: 0 | O170: 4302.3 | P170: 25.38333333 | Q170: 1311.633333 | R170: 239.5 | S170: 0 | T170: 0 | U170: 0 | V170: 0 | W170: 7.433333333 | X170: 0 | Y170: 0 | Z170: 0 | AB170: 1576.516667 | AC170: 4309.733333 | AD170: 2 | AE170: 31
B171: 79 | C171: FLORIDA II | D171: FLORIDA II 2 | E171: Pasada | F171: 0 | G171: 0 | H171: 0 | I171: 0 | J171: 0 | K171: 0 | L171: 0 | M171: 0 | N171: 0 | O171: 4326.916667 | P171: 25.38333333 | Q171: 1387.216667 | R171: 339.0666667 | S171: 0 | T171: 0 | U171: 0 | V171: 0 | W171: 7.433333333 | X171: 0 | Y171: 1.033333333 | Z171: 0 | AB171: 1751.666667 | AC171: 4334.35 | AD171: 6 | AE171: 20
B172: 80 | C172: FLORIDA III | D172: FLORIDA III 1 | E172: Pasada | F172: 0 | G172: 0 | H172: 125.3774747 | I172: 0 | J172: 0 | K172: 0 | L172: 0 | M172: 7.816666667 | N172: 0 | O172: 1101.35 | P172: 25.63333333 | Q172: 412.05 | R172: 1.25 | S172: 0 | T172: 0 | U172: 0 | V172: 0 | W172: 0 | X172: 0 | Y172: 295.8166667 | Z172: 0 | AB172: 438.9333333 | AC172: 1226.727475 | AD172: 40 | AE172: 11
B173: 81 | C173: FLORIDA III | D173: FLORIDA III 2 | E173: Pasada | F173: 0 | G173: 0 | H173: 0 | I173: 0 | J173: 0 | K173: 0 | L173: 0 | M173: 20.91666667 | N173: 0 | O173: 1117.7 | P173: 25.63333333 | Q173: 409.55 | R173: 1.25 | S173: 0 | T173: 0 | U173: 0 | V173: 0 | W173: 0 | X173: 0 | Y173: 293.95 | Z173: 0 | AB173: 436.4333333 | AC173: 1117.7 | AD173: 39 | AE173: 10
B174: 1972 | C174: DIESEL ARICA | D174: GMAR1 | E174: Motores Diésel | F174: 0 | G174: 0 | H174: 0 | I174: 0 | J174: 0 | K174: 0 | L174: 0.2841269841 | M174: 0 | N174: 0 | O174: 39.51666667 | P174: 141.3 | Q174: 1260.033333 | R174: 7.416666667 | S174: 0 | T174: 0 | U174: 0 | V174: 0 | W174: 0 | X174: 0 | Y174: 0.65 | Z174: 0 | AB174: 1408.75 | AC174: 39.80079365 | AD174: 17 | AE174: 13
B175: 2124 | C175: DIESEL ARICA | D175: GMAR2 | E175: Motores Diésel | F175: 0 | G175: 0 | H175: 0 | I175: 0 | J175: 0 | K175: 0 | L175: 0.2833333333 | M175: 1.866666667 | N175: 0 | O175: 333.5166667 | P175: 141.3 | Q175: 804.6 | R175: 0 | S175: 0 | T175: 0 | U175: 0 | V175: 0 | W175: 0 | X175: 0 | Y175: 0.6833333335 | Z175: 0 | AB175: 945.9 | AC175: 333.8 | AD175: 20 | AE175: 7
B176: 2125 | C176: DIESEL ARICA | D176: GMAR3 | E176: Motores Diésel | F176: 0 | G176: 0 | H176: 0 | I176: 0 | J176: 0 | K176: 0 | L176: 0 | M176: 24.03333333 | N176: 0 | O176: 1094.283333 | P176: 141.4833333 | Q176: 438.9833333 | R176: 8.15 | S176: 0 | T176: 0 | U176: 0 | V176: 0 | W176: 0 | X176: 0 | Y176: 0.6666666667 | Z176: 0 | AB176: 588.6166667 | AC176: 1094.283333 | AD176: 21 | AE176: 10
B177: 2126 | C177: DIESEL ARICA | D177: GMAR4 | E177: Motores Diésel | F177: 0 | G177: 0 | H177: 0 | I177: 0 | J177: 0 | K177: 0 | L177: 1.307936508 | M177: 0 | N177: 0 | O177: 117.0166667 | P177: 6448 | Q177: 871.05 | R177: 0 | S177: 0 | T177: 0 | U177: 0 | V177: 0 | W177: 0 | X177: 0 | Y177: 0.5833333333 | Z177: 0 | AB177: 7319.05 | AC177: 118.3246032 | AD177: 3 | AE177: 5
B178: 553 | C178: CHILOE | D178: CHILOE 1 | E178: Motores Diésel | F178: 0 | G178: 0 | H178: 0 | I178: 0 | J178: 0 | K178: 0 | L178: 0 | M178: 0 | N178: 0 | O178: 0 | P178: 0 | Q178: 0 | R178: 0 | S178: 0 | T178: 0 | U178: 0 | V178: 0 | W178: 0 | X178: 0 | Y178: 0 | Z178: 0 | AB178: 0 | AC178: 0 | AD178: 0 | AE178: 0
B179: 554 | C179: CHILOE | D179: CHILOE 2 | E179: Motores Diésel | F179: 0 | G179: 0 | H179: 0 | I179: 0 | J179: 0 | K179: 0 | L179: 0 | M179: 0 | N179: 0 | O179: 0 | P179: 0 | Q179: 0 | R179: 0 | S179: 0 | T179: 0 | U179: 0 | V179: 0 | W179: 0 | X179: 0 | Y179: 0 | Z179: 0 | AB179: 0 | AC179: 0 | AD179: 0 | AE179: 0
